Workbook

Sheet Cover
A1: RIIO price control model
B2: Electricity Transmission
C3: =MID(CELL("filename"),SEARCH("[",CELL("filename"))+1,SEARCH("]",CELL("filename"))-SEARCH("[",CELL("filename"))-1) -> RIIO_ET1_FP_ FinancialModel_dec12.xlsm
C4: DISCLAIMER: This purpose of this model is used to calculate Base Revenue (PU) at Final Proposals and MOD terms in subsequent years for Licensees on the basis of Financial Handbook and Licence conditions of the relevant Network Operator
B5: RIIO ET1 Price Control Financial Model for the Annual Iteration Process that will take place by 30 November 2013-14
B6: Model key
E8: Sample | G8: Calculated value | I8: Sample | K8: Information and interface
E9: Sample | G9: Import | I9: Sample | K9: FP fixed input value
E10: Sample | G10: Export | I10: Sample | K10: Annual update input
E11: Sample | G11: Named range | I11: Sample | K11: Input linked from annual update
E12: Sample | G12: Formula change in cells to the right | I12: Sample | K12: Notes and instructions
I13: Sample | K13: Sheet or calculation included in FP Model
B15: Contents
E17: INTERFACE > | I17: COMPANY SPECIFIC INPUT SHEETS >
E18: Cover | G18: Model key and content directory
E19: UserInterface | G19: Model operation | I19: SHETL | K19: Inputs for SHETL TO
E20: TaxTrigger | G20: Tax trigger calculations | I20: SPTL | K20: Inputs for SPTL TO
E21: INPUT SELECTION > | I21: NGET TO | K21: Inputs for NGET TO
E22: MOD Summary | I22: NGET SO | K22: Inputs for NGET SO
E23: Input | G23: Inputs for selected licensee
E24: CALCULATION >
E25: Totex | G25: Totex allowance and actuals
E26: TIM | G26: Totex Incentive Mechanism and capitalisation
E27: DARTs | G27: Direct Allowance Revenue Terms
E28: Depn | G28: Electricity transmission regulatory depreciation
E29: SystemOperator | G29: System operator calculations
E30: Return&RAV | G30: RAV and return calculations
E31: TaxPools | G31: Tax pools and capital allowances
E32: Finance&Tax | G32: Net debt, equity issuance, financing costs and tax
E33: NonCore | G33: Calculations for non-core regulatory assets (TIRG)
E34: Revenue | G34: Revenue and MOD
E35: OUTPUT >
E36: ResultsLive | G36: Results for selected company
E37: ResultsLive(SO) | G37: Results for SO (for selected company)
E38: SavedResults | G38: Saved results for all companies
E39: FinancialStatements | G39: Financial statements for selected company
E40: FinancialRatios | G40: Financial ratios for selected company
E41: RoRE | G41: Return on Regulatory Equity calculations for selected company
E42: Bill impact | G42: Bill impact for all companies
B44: End of sheet

Sheet UserInterface
A1: User Interface
B3: Model operation
C5: View
E8: Select view
E10: Year t selected: | G10: =INDEX(E74:E75,E76) -> Best view
C13: Ratio switch
E16: Select view
E18: Year t selected: | G18: =INDEX(E78:E79,E80) -> Ratio switch fast/ slow
C20: PCFM year t
C21: Instruction: Use the following drop-down list to identify year t in the model. Year t is identified here by its end date.
E23: Year t selection:
E25: Year t selected: | G25: =EOMONTH(41364,G69*12) -> 2014-03-31
C27: Active company
C28: Instruction: Use the following drop-down list to select the active company in the model.
E30: Company selection:
E32: Selected company: | G32: =INDEX(E61:E63, E64) -> NGET TO
C34: Model state
C35: Instruction: Use the following drop-down list to set the model state and run it as either the "Licence Model" or the "Tax Trigger Tool."
C36: Note: "Tax Trigger Tool" must be selected here for functionality on the "TaxTrigger" sheet to function.
C37: Selecting "Licence Model" ensures that the Tax Trigger Tool functionality is deactivated and does not affect the calculations in the model.
E39: Model status selection:
E41: Selected model status: | G41: =INDEX(E68:E69,m_model_state) -> Licence Model
C43: Run model for all licensees
C44: Instruction: Click on the left button to save results for the selected company only. Click the right button to save results for all.
C45: Note: Annual iterations must have been completed for all prior years before running the model to generate MOD.
C46: The macros save results and values required for future years which cannot be recreated once inputs are revised.
C47: Running the macro saves the output from year t's iteration for use in future iterations.
C48: Results for the selected company can be found on the "LiveResults" sheet and also on the "SavedResults" sheet once saved by a macro.
B54: User selection lists
B55: Note: The lists below drive the drop-down lists above.
B56: Using the drop-down lists above returns an integer in the "cell link" positioned below their "source list."
B57: The number returned in the cell link corresponds to the position of the selected item in the source list.
B58: The company selection output is set as a "named range." This gives a stable anchor point for the "RunForAll" macro to change the company.
E60: ="Source for ''"&C27&"'' drop-down list" -> Source for ''Active company'' drop-down list | G60: ="Source for ''"&C20&"'' drop-down list" -> Source for ''PCFM year t'' drop-down list
E61: SHETL | G61: 2014-03-31
E62: SPTL | G62: 2015-03-31
E63: NGET TO | G63: 2016-03-31
E64: 3 | G64: 2017-03-31
E65: Adjacent named range: m_identity | G65: 2018-03-31
G66: 2019-03-31
E67: ="Source for ''"&C34&"'' drop-down list" -> Source for ''Model state'' drop-down list | G67: 2020-03-31
E68: Licence Model | G68: 2021-03-31
E69: Tax Trigger Tool | G69: 1
E70: 1 | G70: Adjacent named range: m_PCFM_year_t
E71: Adjacent named range: m_model_state
E73: ="Source for ''"&C5&"'' drop-down list" -> Source for ''View'' drop-down list
E74: Base view
E75: Best view
E76: 2
E77: ="Source for ''"&C13&"'' drop-down list" -> Source for ''Ratio switch'' drop-down list
E78: Ratio switch opex/ capex
E79: Ratio switch fast/ slow
E80: 2
B84: End of sheet

Sheet TaxTrigger
A1: Tax Trigger
B2: =UserInterface!G32 -> NGET TO
E3: Parameter | G3: Units | I3: Constant | AH3: Annual values
E4: PCFM year ending | I4: =UserInterface!$G$25 -> 2014-03-31 | K4: 1991-03-31 | L4: 1992-03-31 | M4: 1993-03-31 | N4: 1994-03-31 | O4: 1995-03-31 | P4: 1996-03-31 | Q4: 1997-03-31 | R4: 1998-03-31 | S4: 1999-03-31 | T4: 2000-03-31 | U4: 2001-03-31 | V4: 2002-03-31 | W4: 2003-03-31 | X4: 2004-03-31 | Y4: 2005-03-31 | Z4: 2006-03-31 | AA4: 2007-03-31 | AB4: 2008-03-31 | AC4: 2009-03-31 | AD4: 2010-03-31 | AE4: 2011-03-31 | AF4: 2012-03-31 | AG4: 2013-03-31 | AH4: 2014-03-31 | AI4: 2015-03-31 | AJ4: 2016-03-31 | AK4: 2017-03-31 | AL4: 2018-03-31 | AM4: 2019-03-31 | AN4: 2020-03-31 | AO4: 2021-03-31
B6: Tax trigger calculation
C8: Test operation
C9: Instruction: To run the model as the Tax Trigger Tool, the "model state" must be set to "Tax Trigger Tool" on the "UserInterface" sheet. The model state selected is shown below.
C10: Clicking the macro button below runs the "TaxTrigger" macro, performing the Tax Trigger adjustment calculation for the selected licensee for year t.
C11: The output generated by the macro can be replicated manually using the following steps:
C12: 1. Clear any values from previous tests in the "Test state output" section below (named range "m_saved_original_results")
C13: 2. Set testing state to "Licence Model"
C14: 3. Copy the cells marked as the "m_calculated_tax" named range and paste them at the named range "m_saved_original_test."
C15: 4. Set testing state to "Tax Trigger Calculation"
C16: Note: The Tax Trigger Tool is disabled if the "Model state" below reads "Licence Model."
E18: Model state
E19: =UserInterface!G41 -> Licence Model
E22: State selection
E25: State options
E26: Licence Model
E27: Tax Trigger Calculation
E28: 1
E29: Adjacent named range: m_tax_trigger_state
E31: State selected
E32: =IF(E19 = "Licence Model", "Licence Model", INDEX(E26:E27, E28)) -> Licence Model
E34: Run macro
C39: Transmission operator
D41: Tax calculation
I43: Instruction
E44: Tax allowance before tax trigger | G44: £m 09/10 prices | AH44: ='Finance&Tax'!AH220 * Input!$AD$44 / Input!AH$44 -> 87.01430144 | AI44: ='Finance&Tax'!AI220 * Input!$AD$44 / Input!AI$44 -> 82.87440577 | AJ44: ='Finance&Tax'!AJ220 * Input!$AD$44 / Input!AJ$44 -> 77.02398557 | AK44: ='Finance&Tax'!AK220 * Input!$AD$44 / Input!AK$44 -> 73.52159114 | AL44: ='Finance&Tax'!AL220 * Input!$AD$44 / Input!AL$44 -> 59.55331041 | AM44: ='Finance&Tax'!AM220 * Input!$AD$44 / Input!AM$44 -> 71.79088373 | AN44: ='Finance&Tax'!AN220 * Input!$AD$44 / Input!AN$44 -> 57.9982603 | AO44: ='Finance&Tax'!AO220 * Input!$AD$44 / Input!AO$44 -> 56.05955239
E45: B event value | G45: £m 09/10 prices | AH45: =AH152 -> 0 | AI45: =AI152 -> 0 | AJ45: 0 | AK45: 0 | AL45: 0 | AM45: 0 | AN45: 0 | AO45: 0
E46: Threshold value adjustment | G46: £m 09/10 prices | AH46: =AH97 -> 0 | AI46: =AI97 -> 0 | AJ46: =AJ97 -> 0 | AK46: 0 | AL46: 0 | AM46: 0 | AN46: 0 | AO46: 0
E47: Tax allowance | G47: £m 09/10 prices | I47: =IF( m_tax_trigger_state = 1, "Copy cells -->","-") -> Copy cells --> | AH47: =SUM(AH44:AH46) -> 87.01430144 | AI47: 82.87440577 | AJ47: 77.02398557 | AK47: 73.52159114 | AL47: 59.55331041 | AM47: 71.79088373 | AN47: 57.9982603 | AO47: 56.05955239
AH48: Adjacent named range: m_calculated_tax
D49: Test state output
D50: Note: The formula determines whether the recalculated tax is above or below the threshold and sets the adjustment accordingly
I52: Instruction
E53: Value with original settings | G53: £m 09/10 prices | I53: =IF( m_tax_trigger_state = 1, "Paste cells -->","-") -> Paste cells --> | AG53: m_tax_trigger_results
AH54: Adjacent named range: m_saved_original_test
E55: Value with new settings and threshold adjustment | G55: text | AH55: =AH47 -> 87.01430144 | AI55: =AI47 -> 82.87440577 | AJ55: 77.02398557 | AK55: 73.52159114 | AL55: 59.55331041 | AM55: 71.79088373 | AN55: 57.9982603 | AO55: 56.05955239
D57: Result and output
D58: Note: Once the test is complete, the "Tax Trigger adjustment" below can be taken from below and inputted to the PCFM set to run as the Licence Model, rather than the Tax Trigger Tool.
E60: TO tax trigger adjustment | G60: £m 09/10 prices | AH60: =IF(AND(m_tax_trigger_state=2,m_model_state=2),IF(ABS(AH55-AH53)> ABS(AH97), AH55 - AH53, 0),0) -> 0 | AI60: 0 | AJ60: 0 | AK60: 0 | AL60: 0 | AM60: 0 | AN60: 0 | AO60: 0
C62: System operator
D64: SO tax calculation
I66: Instruction
E67: Tax allowance before tax trigger | G67: £m 09/10 prices | AH67: =SystemOperator!AH351 * Input!$AD$44 / Input!AH$44 -> 4.053510521 | AI67: =SystemOperator!AI351 * Input!$AD$44 / Input!AI$44 -> 0.4701060523 | AJ67: =SystemOperator!AJ351 * Input!$AD$44 / Input!AJ$44 -> 0 | AK67: =SystemOperator!AK351 * Input!$AD$44 / Input!AK$44 -> 0 | AL67: =SystemOperator!AL351 * Input!$AD$44 / Input!AL$44 -> 0.7305696913 | AM67: =SystemOperator!AM351 * Input!$AD$44 / Input!AM$44 -> 0 | AN67: =SystemOperator!AN351 * Input!$AD$44 / Input!AN$44 -> 0.8701476013 | AO67: =SystemOperator!AO351 * Input!$AD$44 / Input!AO$44 -> 0.9091221543
E68: B event value | G68: £m 09/10 prices | AH68: =AH159 -> 0 | AI68: =AI159 -> 0 | AJ68: 0 | AK68: 0 | AL68: 0 | AM68: 0 | AN68: 0 | AO68: 0
E69: Threshold value adjustment | G69: £m 09/10 prices | AH69: =AH103 -> 0 | AI69: =AI103 -> 0 | AJ69: 0 | AK69: 0 | AL69: 0 | AM69: 0 | AN69: 0 | AO69: 0
E70: Tax allowance | G70: £m 09/10 prices | I70: =IF( m_tax_trigger_state = 1, "Copy cells -->","") -> Copy cells --> | AH70: =SUM(AH67:AH69) -> 4.053510521 | AI70: 0.4701060523 | AJ70: 0 | AK70: 0 | AL70: 0.7305696913 | AM70: 0 | AN70: 0.8701476013 | AO70: 0.9091221543
AH71: Adjacent named range: m_SO_calculated_tax
D72: Test state output
D73: Note: The formula determines whether the recalculated tax is above or below the threshold and sets the adjustment accordingly
I75: Instruction
E76: Value with original settings | G76: £m 09/10 prices | I76: =IF( m_tax_trigger_state = 1, "Paste cells -->","") -> Paste cells --> | AG76: m_tax_trigger_results
AH77: Adjacent named range: m_SO_saved_original_test
E78: Value with new settings and threshold adjustment | G78: text | AH78: =AH70 -> 4.053510521 | AI78: =AI70 -> 0.4701060523 | AJ78: 0 | AK78: 0 | AL78: 0.7305696913 | AM78: 0 | AN78: 0.8701476013 | AO78: 0.9091221543
D80: Result and output
D81: Note: Once the test is complete, the "Tax Trigger adjustment" below can be taken from below and inputted to the PCFM set to run as the Licence Model, rather than the Tax Trigger Tool.
E83: SO tax trigger adjustment | G83: £m 09/10 prices | AH83: =IF(AND(m_tax_trigger_state=2,m_model_state=2),IF(ABS(AH78-AH76)> ABS(AH103), AH78 - AH76, 0),0) -> 0 | AI83: 0 | AJ83: 0 | AK83: 0 | AL83: 0 | AM83: 0 | AN83: 0 | AO83: 0
B85: Tax trigger parameters
B86: Instruction: Enter values in the yellow cells below for use in the Tax Trigger test.
B87: Note: Flags are used throughout to indicate whether the original or Tax Trigger value is being used. The live values below are exported for use throughout the model.
C89: Active policy
E91: Tax trigger tax settings are used | G91: flag | AH91: =IF(AND(AH$4 <= $I4, m_tax_trigger_state = 2, m_model_state=2), TRUE, FALSE) -> FALSE | AI91: FALSE | AJ91: FALSE | AK91: FALSE | AL91: FALSE | AM91: FALSE | AN91: FALSE | AO91: FALSE
C93: TO threshold
E95: Threshold value | G95: £m 09/10 prices
E97: Threshold value applied | G97: £m 09/10 prices | AH97: =IF(OR(AH44 = AH53, AH53 = ""), 0, IF(AH53 < AH44, -AH95, +AH95)) -> 0 | AI97: 0 | AJ97: 0 | AK97: 0 | AL97: 0 | AM97: 0 | AN97: 0 | AO97: 0
C99: SO threshold
E101: Threshold value | G101: £m 09/10 prices
E103: Threshold value applied | G103: £m 09/10 prices | AH103: =IF(OR(AH67 = AH76, AH76 = ""), 0, IF(AH76 < AH67, -AH101, +AH101)) -> 0 | AI103: =IF(OR(AI67 = AI76, AI76 = ""), 0, IF(AI76 < AI67, -AI101, +AI101)) -> 0 | AJ103: 0 | AK103: 0 | AL103: 0 | AM103: 0 | AN103: 0 | AO103: 0
C105: Corporation tax rate
E107: Active | G107: text | AH107: =AH$91 = FALSE() -> TRUE | AI107: TRUE | AJ107: TRUE | AK107: TRUE | AL107: TRUE | AM107: TRUE | AN107: TRUE | AO107: TRUE
E108: RIIO | G108: % | J108: > | Y108: =Input!Y285 -> 0.3 | Z108: =Input!Z285 -> 0.3 | AA108: =Input!AA285 -> 0.3 | AB108: =Input!AB285 -> 0.3 | AC108: =Input!AC285 -> 0.28 | AD108: =Input!AD285 -> 0.28 | AE108: =Input!AE285 -> 0.28 | AF108: =Input!AF285 -> 0.26 | AG108: =Input!AG285 -> 0.24 | AH108: =Input!AH285 -> 0.23 | AI108: =Input!AI285 -> 0.21 | AJ108: =Input!AJ285 -> 0.21 | AK108: =Input!AK285 -> 0.21 | AL108: =Input!AL285 -> 0.21 | AM108: =Input!AM285 -> 0.21 | AN108: =Input!AN285 -> 0.21 | AO108: =Input!AO285 -> 0.21
E110: Active | G110: text | AH110: =AH$91 -> FALSE | AI110: FALSE | AJ110: FALSE | AK110: FALSE | AL110: FALSE | AM110: FALSE | AN110: FALSE | AO110: FALSE
E111: Tax trigger | G111: % | AH111: =AH108 -> 0.23 | AI111: 0.21 | AJ111: 0.21 | AK111: 0.21 | AL111: 0.21 | AM111: 0.21 | AN111: 0.21 | AO111: 0.21
E113: Applied | G113: % | J113: > | Y113: =Y108 -> 0.3 | Z113: =Z108 -> 0.3 | AA113: =AA108 -> 0.3 | AB113: 0.3 | AC113: 0.28 | AD113: 0.28 | AE113: 0.28 | AF113: 0.26 | AG113: 0.24 | AH113: =(AH107 * AH108) + (AH110 * AH111) -> 0.23 | AI113: =(AI107 * AI108) + (AI110 * AI111) -> 0.21 | AJ113: 0.21 | AK113: 0.21 | AL113: 0.21 | AM113: 0.21 | AN113: 0.21 | AO113: 0.21
C115: Capital allowance rate
D117: General pool
E119: Active | G119: text | AH119: =AH$91 = FALSE() -> TRUE | AI119: TRUE | AJ119: TRUE | AK119: TRUE | AL119: TRUE | AM119: TRUE | AN119: TRUE | AO119: TRUE
E120: RIIO | G120: % | V120: =Input!V287 -> 0.25 | W120: =Input!W287 -> 0.25 | X120: =Input!X287 -> 0.25 | Y120: =Input!Y287 -> 0.25 | Z120: =Input!Z287 -> 0.25 | AA120: =Input!AA287 -> 0.25 | AB120: =Input!AB287 -> 0.25 | AC120: =Input!AC287 -> 0.2 | AD120: =Input!AD287 -> 0.2 | AE120: =Input!AE287 -> 0.2 | AF120: =Input!AF287 -> 0.2 | AG120: =Input!AG287 -> 0.18 | AH120: =Input!AH287 -> 0.18 | AI120: =Input!AI287 -> 0.18 | AJ120: =Input!AJ287 -> 0.18 | AK120: =Input!AK287 -> 0.18 | AL120: =Input!AL287 -> 0.18 | AM120: =Input!AM287 -> 0.18 | AN120: =Input!AN287 -> 0.18 | AO120: =Input!AO287 -> 0.18
E122: Active | G122: text | AH122: =AH$91 -> FALSE | AI122: FALSE | AJ122: FALSE | AK122: FALSE | AL122: FALSE | AM122: FALSE | AN122: FALSE | AO122: FALSE
E123: Tax trigger | G123: % | AH123: =AH120 -> 0.18 | AI123: =AI120 -> 0.18 | AJ123: 0.18 | AK123: 0.18 | AL123: 0.18 | AM123: 0.18 | AN123: 0.18 | AO123: 0.18
E125: Applied | G125: % | V125: =V120 -> 0.25 | W125: 0.25 | X125: 0.25 | Y125: 0.25 | Z125: 0.25 | AA125: 0.25 | AB125: 0.25 | AC125: 0.2 | AD125: 0.2 | AE125: 0.2 | AF125: 0.2 | AG125: =AG120 -> 0.18 | AH125: =(AH119 * AH120) + (AH122 * AH123) -> 0.18 | AI125: 0.18 | AJ125: 0.18 | AK125: 0.18 | AL125: 0.18 | AM125: 0.18 | AN125: 0.18 | AO125: 0.18
D127: Special Rate pool
E129: Active | G129: text | AH129: =AH$91 = FALSE() -> TRUE | AI129: TRUE | AJ129: TRUE | AK129: TRUE | AL129: TRUE | AM129: TRUE | AN129: TRUE | AO129: TRUE
E130: RIIO | G130: % | J130: > | V130: =Input!V288 -> 0.06 | W130: =Input!W288 -> 0.06 | X130: =Input!X288 -> 0.06 | Y130: =Input!Y288 -> 0.06 | Z130: =Input!Z288 -> 0.06 | AA130: =Input!AA288 -> 0.06 | AB130: =Input!AB288 -> 0.06 | AC130: =Input!AC288 -> 0.1 | AD130: =Input!AD288 -> 0.1 | AE130: =Input!AE288 -> 0.1 | AF130: =Input!AF288 -> 0.1 | AG130: =Input!AG288 -> 0.08 | AH130: =Input!AH288 -> 0.08 | AI130: =Input!AI288 -> 0.08 | AJ130: =Input!AJ288 -> 0.08 | AK130: =Input!AK288 -> 0.08 | AL130: =Input!AL288 -> 0.08 | AM130: =Input!AM288 -> 0.08 | AN130: =Input!AN288 -> 0.08 | AO130: =Input!AO288 -> 0.08
E132: Active | G132: text | AH132: =AH$91 -> FALSE | AI132: FALSE | AJ132: FALSE | AK132: FALSE | AL132: FALSE | AM132: FALSE | AN132: FALSE | AO132: FALSE
E133: Tax trigger | G133: % | AH133: =AH130 -> 0.08 | AI133: =AI130 -> 0.08 | AJ133: 0.08 | AK133: 0.08 | AL133: 0.08 | AM133: 0.08 | AN133: 0.08 | AO133: 0.08
E135: Applied | G135: % | J135: > | V135: =V130 -> 0.06 | W135: =W130 -> 0.06 | X135: =X130 -> 0.06 | Y135: =Y130 -> 0.06 | Z135: =Z130 -> 0.06 | AA135: =AA130 -> 0.06 | AB135: 0.06 | AC135: 0.1 | AD135: 0.1 | AE135: 0.1 | AF135: 0.1 | AG135: 0.08 | AH135: =(AH129 * AH130) + (AH132 * AH133) -> 0.08 | AI135: 0.08 | AJ135: 0.08 | AK135: 0.08 | AL135: 0.08 | AM135: 0.08 | AN135: 0.08 | AO135: 0.08
D137: Deferred revenue writing down allowance rate
E139: Active | G139: text | AH139: =AH$91 = FALSE() -> TRUE | AI139: TRUE | AJ139: TRUE | AK139: TRUE | AL139: TRUE | AM139: TRUE | AN139: TRUE | AO139: TRUE
E140: RIIO | G140: % | J140: > | V140: =Input!V289 -> 0 | W140: =Input!W289 -> 0 | X140: =Input!X289 -> 0 | Y140: =Input!Y289 -> 0 | Z140: =Input!Z289 -> 0 | AA140: =Input!AA289 -> 0 | AB140: =Input!AB289 -> 0 | AC140: =Input!AC289 -> 0 | AD140: =Input!AD289 -> 0 | AE140: =Input!AE289 -> 0 | AF140: =Input!AF289 -> 0 | AG140: =Input!AG289 -> 0 | AH140: =Input!AH289 -> 0.03 | AI140: =Input!AI289 -> 0.03 | AJ140: =Input!AJ289 -> 0.03 | AK140: =Input!AK289 -> 0.03 | AL140: =Input!AL289 -> 0.03 | AM140: =Input!AM289 -> 0.03 | AN140: =Input!AN289 -> 0.03 | AO140: =Input!AO289 -> 0.03
E142: Active | G142: text | AH142: =AH$91 -> FALSE | AI142: FALSE | AJ142: FALSE | AK142: FALSE | AL142: FALSE | AM142: FALSE | AN142: FALSE | AO142: FALSE
E143: Tax trigger | G143: % | AH143: =AH140 -> 0.03 | AI143: =AI140 -> 0.03 | AJ143: 0.03 | AK143: 0.03 | AL143: 0.03 | AM143: 0.03 | AN143: 0.03 | AO143: 0.03
E145: Applied | G145: % | J145: > | V145: =V140 -> 0 | W145: 0 | X145: 0 | Y145: 0 | Z145: 0 | AA145: 0 | AB145: 0 | AC145: 0 | AD145: 0 | AE145: 0 | AF145: 0 | AG145: =AG140 -> 0 | AH145: =(AH139 * AH140) + (AH142 * AH143) -> 0.03 | AI145: 0.03 | AJ145: 0.03 | AK145: 0.03 | AL145: 0.03 | AM145: 0.03 | AN145: 0.03 | AO145: 0.03
C147: TO B event value
E149: Active | G149: text | AH149: =AH$91 -> FALSE | AI149: FALSE | AJ149: FALSE | AK149: FALSE | AL149: FALSE | AM149: FALSE | AN149: FALSE | AO149: FALSE
E150: Tax trigger | G150: £m 09/10 prices | AH150: 0 | AI150: 0 | AJ150: 0 | AK150: 0 | AL150: 0 | AM150: 0 | AN150: 0 | AO150: 0
E152: Applied | G152: £m 09/10 prices | AH152: =AH149 * AH150 -> 0 | AI152: =AI149 * AI150 -> 0 | AJ152: 0 | AK152: 0 | AL152: 0 | AM152: 0 | AN152: 0 | AO152: 0
C154: SO B event value
E156: Active | G156: text | AH156: =AH$91 -> FALSE | AI156: FALSE | AJ156: FALSE | AK156: FALSE | AL156: FALSE | AM156: FALSE | AN156: FALSE | AO156: FALSE
E157: Tax trigger | G157: £m 09/10 prices | AH157: 0 | AI157: 0 | AJ157: 0 | AK157: 0 | AL157: 0 | AM157: 0 | AN157: 0 | AO157: 0
E159: Applied | G159: £m 09/10 prices | AH159: =AH156 * AH157 -> 0 | AI159: =AI156 * AI157 -> 0 | AJ159: 0 | AK159: 0 | AL159: 0 | AM159: 0 | AN159: 0 | AO159: 0
B161: End of sheet

Sheet MOD
A1: MOD Summary
B2: =UserInterface!G32 -> NGET TO
E3: Parameter | G3: Units | I3: Constant | AH3: Annual values
E4: PCFM year ending | I4: =UserInterface!$G$25 -> 2014-03-31 | K4: 1991-03-31 | L4: 1992-03-31 | M4: 1993-03-31 | N4: 1994-03-31 | O4: 1995-03-31 | P4: 1996-03-31 | Q4: 1997-03-31 | R4: 1998-03-31 | S4: 1999-03-31 | T4: 2000-03-31 | U4: 2001-03-31 | V4: 2002-03-31 | W4: 2003-03-31 | X4: 2004-03-31 | Y4: 2005-03-31 | Z4: 2006-03-31 | AA4: 2007-03-31 | AB4: 2008-03-31 | AC4: 2009-03-31 | AD4: 2010-03-31 | AE4: 2011-03-31 | AF4: 2012-03-31 | AG4: 2013-03-31 | AH4: 2014-03-31 | AI4: 2015-03-31 | AJ4: 2016-03-31 | AK4: 2017-03-31 | AL4: 2018-03-31 | AM4: 2019-03-31 | AN4: 2020-03-31 | AO4: 2021-03-31
E6: =UserInterface!E25 -> Year t selected: | G6: =UserInterface!G25 -> 2014-03-31
E8: =Revenue!E64 -> Final Proposals base revenue | AH8: =Revenue!AH64 -> 1362.447434 | AI8: =Revenue!AI64 -> 1494.204315 | AJ8: =Revenue!AJ64 -> 1581.743795 | AK8: =Revenue!AK64 -> 1674.354407 | AL8: =Revenue!AL64 -> 1687.205285 | AM8: =Revenue!AM64 -> 1786.946138 | AN8: =Revenue!AN64 -> 1751.507859 | AO8: =Revenue!AO64 -> 1738.231799
E9: =Revenue!E65 -> MOD | AH9: =Revenue!AH65 -> 0 | AI9: =Revenue!AI65 -> 0 | AJ9: =Revenue!AJ65 -> 0 | AK9: =Revenue!AK65 -> 0 | AL9: =Revenue!AL65 -> 0 | AM9: =Revenue!AM65 -> 0 | AN9: =Revenue!AN65 -> 0 | AO9: =Revenue!AO65 -> 0
E10: =Revenue!E66 -> Base revenue | AH10: =Revenue!AH66 -> 1362.447434 | AI10: =Revenue!AI66 -> 1494.204315 | AJ10: =Revenue!AJ66 -> 1581.743795 | AK10: =Revenue!AK66 -> 1674.354407 | AL10: =Revenue!AL66 -> 1687.205285 | AM10: =Revenue!AM66 -> 1786.946138 | AN10: =Revenue!AN66 -> 1751.507859 | AO10: =Revenue!AO66 -> 1738.231799

Sheet Input
A1: Input
B2: =UserInterface!G32 -> NGET TO | G2: Price shock:
E3: Parameter | F3: Licence condition | G3: Units | H3: Term | I3: Constant | AH3: Annual values
E4: PCFM year ending | F4: =Cover!C3 -> RIIO_ET1_FP_ FinancialModel_dec12.xlsm | I4: =UserInterface!$G$25 -> 2014-03-31 | K4: 1991-03-31 | L4: 1992-03-31 | M4: 1993-03-31 | N4: 1994-03-31 | O4: 1995-03-31 | P4: 1996-03-31 | Q4: 1997-03-31 | R4: 1998-03-31 | S4: 1999-03-31 | T4: 2000-03-31 | U4: 2001-03-31 | V4: 2002-03-31 | W4: 2003-03-31 | X4: 2004-03-31 | Y4: 2005-03-31 | Z4: 2006-03-31 | AA4: 2007-03-31 | AB4: 2008-03-31 | AC4: 2009-03-31 | AD4: 2010-03-31 | AE4: 2011-03-31 | AF4: 2012-03-31 | AG4: 2013-03-31 | AH4: 2014-03-31 | AI4: 2015-03-31 | AJ4: 2016-03-31 | AK4: 2017-03-31 | AL4: 2018-03-31 | AM4: 2019-03-31 | AN4: 2020-03-31 | AO4: 2021-03-31
B6: PCFM Variable Values Table
E8: Allowed percentage cost of debt | F8: 6D | G8: annual real % | H8: CDE | AH8: =IF(UserInterface!$E$76 = 1,CHOOSE(m_identity,'SHETL (Base)'!AH8, 'SPTL (Base)'!AH8, 'NGET TO (Base)'!AH8),CHOOSE(m_identity,'SHETL (Best)'!AH8, 'SPTL (Best)'!AH8, 'NGET TO (Best)'!AH8)) -> 0.0292 | AI8: =IF(UserInterface!$E$76 = 1,CHOOSE(m_identity,'SHETL (Base)'!AI8, 'SPTL (Base)'!AI8, 'NGET TO (Base)'!AI8),CHOOSE(m_identity,'SHETL (Best)'!AI8, 'SPTL (Best)'!AI8, 'NGET TO (Best)'!AI8)) -> 0.0292 | AJ8: =IF(UserInterface!$E$76 = 1,CHOOSE(m_identity,'SHETL (Base)'!AJ8, 'SPTL (Base)'!AJ8, 'NGET TO (Base)'!AJ8),CHOOSE(m_identity,'SHETL (Best)'!AJ8, 'SPTL (Best)'!AJ8, 'NGET TO (Best)'!AJ8)) -> 0.0292 | AK8: =IF(UserInterface!$E$76 = 1,CHOOSE(m_identity,'SHETL (Base)'!AK8, 'SPTL (Base)'!AK8, 'NGET TO (Base)'!AK8),CHOOSE(m_identity,'SHETL (Best)'!AK8, 'SPTL (Best)'!AK8, 'NGET TO (Best)'!AK8)) -> 0.0292 | AL8: =IF(UserInterface!$E$76 = 1,CHOOSE(m_identity,'SHETL (Base)'!AL8, 'SPTL (Base)'!AL8, 'NGET TO (Base)'!AL8),CHOOSE(m_identity,'SHETL (Best)'!AL8, 'SPTL (Best)'!AL8, 'NGET TO (Best)'!AL8)) -> 0.0292 | AM8: =IF(UserInterface!$E$76 = 1,CHOOSE(m_identity,'SHETL (Base)'!AM8, 'SPTL (Base)'!AM8, 'NGET TO (Base)'!AM8),CHOOSE(m_identity,'SHETL (Best)'!AM8, 'SPTL (Best)'!AM8, 'NGET TO (Best)'!AM8)) -> 0.0292 | AN8: =IF(UserInterface!$E$76 = 1,CHOOSE(m_identity,'SHETL (Base)'!AN8, 'SPTL (Base)'!AN8, 'NGET TO (Base)'!AN8),CHOOSE(m_identity,'SHETL (Best)'!AN8, 'SPTL (Best)'!AN8, 'NGET TO (Best)'!AN8)) -> 0.0292 | AO8: =IF(UserInterface!$E$76 = 1,CHOOSE(m_identity,'SHETL (Base)'!AO8, 'SPTL (Base)'!AO8, 'NGET TO (Base)'!AO8),CHOOSE(m_identity,'SHETL (Best)'!AO8, 'SPTL (Best)'!AO8, 'NGET TO (Best)'!AO8)) -> 0.0292
E9: Actual load related capex expenditure | F9: 6C | G9: £m 09/10 prices | H9: ALC | AH9: =IF(UserInterface!$E$76 = 1,CHOOSE(m_identity,'SHETL (Base)'!AH9, 'SPTL (Base)'!AH9, 'NGET TO (Base)'!AH9),CHOOSE(m_identity,'SHETL (Best)'!AH9, 'SPTL (Best)'!AH9, 'NGET TO (Best)'!AH9)) -> 988.2538011 | AI9: =IF(UserInterface!$E$76 = 1,CHOOSE(m_identity,'SHETL (Base)'!AI9, 'SPTL (Base)'!AI9, 'NGET TO (Base)'!AI9),CHOOSE(m_identity,'SHETL (Best)'!AI9, 'SPTL (Best)'!AI9, 'NGET TO (Best)'!AI9)) -> 1244.280253 | AJ9: =IF(UserInterface!$E$76 = 1,CHOOSE(m_identity,'SHETL (Base)'!AJ9, 'SPTL (Base)'!AJ9, 'NGET TO (Base)'!AJ9),CHOOSE(m_identity,'SHETL (Best)'!AJ9, 'SPTL (Best)'!AJ9, 'NGET TO (Best)'!AJ9)) -> 1291.950588 | AK9: =IF(UserInterface!$E$76 = 1,CHOOSE(m_identity,'SHETL (Base)'!AK9, 'SPTL (Base)'!AK9, 'NGET TO (Base)'!AK9),CHOOSE(m_identity,'SHETL (Best)'!AK9, 'SPTL (Best)'!AK9, 'NGET TO (Best)'!AK9)) -> 1260.709999 | AL9: =IF(UserInterface!$E$76 = 1,CHOOSE(m_identity,'SHETL (Base)'!AL9, 'SPTL (Base)'!AL9, 'NGET TO (Base)'!AL9),CHOOSE(m_identity,'SHETL (Best)'!AL9, 'SPTL (Best)'!AL9, 'NGET TO (Best)'!AL9)) -> 911.7846156 | AM9: =IF(UserInterface!$E$76 = 1,CHOOSE(m_identity,'SHETL (Base)'!AM9, 'SPTL (Base)'!AM9, 'NGET TO (Base)'!AM9),CHOOSE(m_identity,'SHETL (Best)'!AM9, 'SPTL (Best)'!AM9, 'NGET TO (Best)'!AM9)) -> 835.7631843 | AN9: =IF(UserInterface!$E$76 = 1,CHOOSE(m_identity,'SHETL (Base)'!AN9, 'SPTL (Base)'!AN9, 'NGET TO (Base)'!AN9),CHOOSE(m_identity,'SHETL (Best)'!AN9, 'SPTL (Best)'!AN9, 'NGET TO (Best)'!AN9)) -> 473.3779152 | AO9: =IF(UserInterface!$E$76 = 1,CHOOSE(m_identity,'SHETL (Base)'!AO9, 'SPTL (Base)'!AO9, 'NGET TO (Base)'!AO9),CHOOSE(m_identity,'SHETL (Best)'!AO9, 'SPTL (Best)'!AO9, 'NGET TO (Best)'!AO9)) -> 301.3830181
E10: Actual asset replacement capex expenditure | F10: 6C | G10: £m 09/10 prices | H10: ARC | AH10: =IF(UserInterface!$E$76 = 1,CHOOSE(m_identity,'SHETL (Base)'!AH10, 'SPTL (Base)'!AH10, 'NGET TO (Base)'!AH10),CHOOSE(m_identity,'SHETL (Best)'!AH10, 'SPTL (Best)'!AH10, 'NGET TO (Best)'!AH10)) -> 468.8084321 | AI10: =IF(UserInterface!$E$76 = 1,CHOOSE(m_identity,'SHETL (Base)'!AI10, 'SPTL (Base)'!AI10, 'NGET TO (Base)'!AI10),CHOOSE(m_identity,'SHETL (Best)'!AI10, 'SPTL (Best)'!AI10, 'NGET TO (Best)'!AI10)) -> 464.0539988 | AJ10: =IF(UserInterface!$E$76 = 1,CHOOSE(m_identity,'SHETL (Base)'!AJ10, 'SPTL (Base)'!AJ10, 'NGET TO (Base)'!AJ10),CHOOSE(m_identity,'SHETL (Best)'!AJ10, 'SPTL (Best)'!AJ10, 'NGET TO (Best)'!AJ10)) -> 458.9694018 | AK10: =IF(UserInterface!$E$76 = 1,CHOOSE(m_identity,'SHETL (Base)'!AK10, 'SPTL (Base)'!AK10, 'NGET TO (Base)'!AK10),CHOOSE(m_identity,'SHETL (Best)'!AK10, 'SPTL (Best)'!AK10, 'NGET TO (Best)'!AK10)) -> 462.2051567 | AL10: =IF(UserInterface!$E$76 = 1,CHOOSE(m_identity,'SHETL (Base)'!AL10, 'SPTL (Base)'!AL10, 'NGET TO (Base)'!AL10),CHOOSE(m_identity,'SHETL (Best)'!AL10, 'SPTL (Best)'!AL10, 'NGET TO (Best)'!AL10)) -> 597.3961699 | AM10: =IF(UserInterface!$E$76 = 1,CHOOSE(m_identity,'SHETL (Base)'!AM10, 'SPTL (Base)'!AM10, 'NGET TO (Base)'!AM10),CHOOSE(m_identity,'SHETL (Best)'!AM10, 'SPTL (Best)'!AM10, 'NGET TO (Best)'!AM10)) -> 694.9536236 | AN10: =IF(UserInterface!$E$76 = 1,CHOOSE(m_identity,'SHETL (Base)'!AN10, 'SPTL (Base)'!AN10, 'NGET TO (Base)'!AN10),CHOOSE(m_identity,'SHETL (Best)'!AN10, 'SPTL (Best)'!AN10, 'NGET TO (Best)'!AN10)) -> 760.4713341 | AO10: =IF(UserInterface!$E$76 = 1,CHOOSE(m_identity,'SHETL (Base)'!AO10, 'SPTL (Base)'!AO10, 'NGET TO (Base)'!AO10),CHOOSE(m_identity,'SHETL (Best)'!AO10, 'SPTL (Best)'!AO10, 'NGET TO (Best)'!AO10)) -> 680.3753404
E11: Actual other capex expenditure | F11: 6C | G11: £m 09/10 prices | H11: AOC | AH11: =IF(UserInterface!$E$76 = 1,CHOOSE(m_identity,'SHETL (Base)'!AH11, 'SPTL (Base)'!AH11, 'NGET TO (Base)'!AH11),CHOOSE(m_identity,'SHETL (Best)'!AH11, 'SPTL (Best)'!AH11, 'NGET TO (Best)'!AH11)) -> 13.69389364 | AI11: =IF(UserInterface!$E$76 = 1,CHOOSE(m_identity,'SHETL (Base)'!AI11, 'SPTL (Base)'!AI11, 'NGET TO (Base)'!AI11),CHOOSE(m_identity,'SHETL (Best)'!AI11, 'SPTL (Best)'!AI11, 'NGET TO (Best)'!AI11)) -> 12.78887742 | AJ11: =IF(UserInterface!$E$76 = 1,CHOOSE(m_identity,'SHETL (Base)'!AJ11, 'SPTL (Base)'!AJ11, 'NGET TO (Base)'!AJ11),CHOOSE(m_identity,'SHETL (Best)'!AJ11, 'SPTL (Best)'!AJ11, 'NGET TO (Best)'!AJ11)) -> 9.120751735 | AK11: =IF(UserInterface!$E$76 = 1,CHOOSE(m_identity,'SHETL (Base)'!AK11, 'SPTL (Base)'!AK11, 'NGET TO (Base)'!AK11),CHOOSE(m_identity,'SHETL (Best)'!AK11, 'SPTL (Best)'!AK11, 'NGET TO (Best)'!AK11)) -> 12.54336759 | AL11: =IF(UserInterface!$E$76 = 1,CHOOSE(m_identity,'SHETL (Base)'!AL11, 'SPTL (Base)'!AL11, 'NGET TO (Base)'!AL11),CHOOSE(m_identity,'SHETL (Best)'!AL11, 'SPTL (Best)'!AL11, 'NGET TO (Best)'!AL11)) -> 9.594990161 | AM11: =IF(UserInterface!$E$76 = 1,CHOOSE(m_identity,'SHETL (Base)'!AM11, 'SPTL (Base)'!AM11, 'NGET TO (Base)'!AM11),CHOOSE(m_identity,'SHETL (Best)'!AM11, 'SPTL (Best)'!AM11, 'NGET TO (Best)'!AM11)) -> 12.42157168 | AN11: =IF(UserInterface!$E$76 = 1,CHOOSE(m_identity,'SHETL (Base)'!AN11, 'SPTL (Base)'!AN11, 'NGET TO (Base)'!AN11),CHOOSE(m_identity,'SHETL (Best)'!AN11, 'SPTL (Best)'!AN11, 'NGET TO (Best)'!AN11)) -> 12.4005158 | AO11: =IF(UserInterface!$E$76 = 1,CHOOSE(m_identity,'SHETL (Base)'!AO11, 'SPTL (Base)'!AO11, 'NGET TO (Base)'!AO11),CHOOSE(m_identity,'SHETL (Best)'!AO11, 'SPTL (Best)'!AO11, 'NGET TO (Best)'!AO11)) -> 13.63263941
E12: Actual controllable opex | F12: 6C | G12: £m 09/10 prices | H12: ACO | AH12: =IF(UserInterface!$E$76 = 1,CHOOSE(m_identity,'SHETL (Base)'!AH12, 'SPTL (Base)'!AH12, 'NGET TO (Base)'!AH12),CHOOSE(m_identity,'SHETL (Best)'!AH12, 'SPTL (Best)'!AH12, 'NGET TO (Best)'!AH12)) -> 193.2032224 | AI12: =IF(UserInterface!$E$76 = 1,CHOOSE(m_identity,'SHETL (Base)'!AI12, 'SPTL (Base)'!AI12, 'NGET TO (Base)'!AI12),CHOOSE(m_identity,'SHETL (Best)'!AI12, 'SPTL (Best)'!AI12, 'NGET TO (Best)'!AI12)) -> 198.1695338 | AJ12: =IF(UserInterface!$E$76 = 1,CHOOSE(m_identity,'SHETL (Base)'!AJ12, 'SPTL (Base)'!AJ12, 'NGET TO (Base)'!AJ12),CHOOSE(m_identity,'SHETL (Best)'!AJ12, 'SPTL (Best)'!AJ12, 'NGET TO (Best)'!AJ12)) -> 206.947895 | AK12: =IF(UserInterface!$E$76 = 1,CHOOSE(m_identity,'SHETL (Base)'!AK12, 'SPTL (Base)'!AK12, 'NGET TO (Base)'!AK12),CHOOSE(m_identity,'SHETL (Best)'!AK12, 'SPTL (Best)'!AK12, 'NGET TO (Best)'!AK12)) -> 207.2446741 | AL12: =IF(UserInterface!$E$76 = 1,CHOOSE(m_identity,'SHETL (Base)'!AL12, 'SPTL (Base)'!AL12, 'NGET TO (Base)'!AL12),CHOOSE(m_identity,'SHETL (Best)'!AL12, 'SPTL (Best)'!AL12, 'NGET TO (Best)'!AL12)) -> 210.7724592 | AM12: =IF(UserInterface!$E$76 = 1,CHOOSE(m_identity,'SHETL (Base)'!AM12, 'SPTL (Base)'!AM12, 'NGET TO (Base)'!AM12),CHOOSE(m_identity,'SHETL (Best)'!AM12, 'SPTL (Best)'!AM12, 'NGET TO (Best)'!AM12)) -> 211.2108875 | AN12: =IF(UserInterface!$E$76 = 1,CHOOSE(m_identity,'SHETL (Base)'!AN12, 'SPTL (Base)'!AN12, 'NGET TO (Base)'!AN12),CHOOSE(m_identity,'SHETL (Best)'!AN12, 'SPTL (Best)'!AN12, 'NGET TO (Best)'!AN12)) -> 213.0629594 | AO12: =IF(UserInterface!$E$76 = 1,CHOOSE(m_identity,'SHETL (Base)'!AO12, 'SPTL (Base)'!AO12, 'NGET TO (Base)'!AO12),CHOOSE(m_identity,'SHETL (Best)'!AO12, 'SPTL (Best)'!AO12, 'NGET TO (Best)'!AO12)) -> 213.4971254
E13: Actual non-operational capex | F13: 6C | G13: £m 09/10 prices | H13: ANC | AH13: =IF(UserInterface!$E$76 = 1,CHOOSE(m_identity,'SHETL (Base)'!AH13, 'SPTL (Base)'!AH13, 'NGET TO (Base)'!AH13),CHOOSE(m_identity,'SHETL (Best)'!AH13, 'SPTL (Best)'!AH13, 'NGET TO (Best)'!AH13)) -> 28.50225287 | AI13: =IF(UserInterface!$E$76 = 1,CHOOSE(m_identity,'SHETL (Base)'!AI13, 'SPTL (Base)'!AI13, 'NGET TO (Base)'!AI13),CHOOSE(m_identity,'SHETL (Best)'!AI13, 'SPTL (Best)'!AI13, 'NGET TO (Best)'!AI13)) -> 27.89321936 | AJ13: =IF(UserInterface!$E$76 = 1,CHOOSE(m_identity,'SHETL (Base)'!AJ13, 'SPTL (Base)'!AJ13, 'NGET TO (Base)'!AJ13),CHOOSE(m_identity,'SHETL (Best)'!AJ13, 'SPTL (Best)'!AJ13, 'NGET TO (Best)'!AJ13)) -> 20.16289582 | AK13: =IF(UserInterface!$E$76 = 1,CHOOSE(m_identity,'SHETL (Base)'!AK13, 'SPTL (Base)'!AK13, 'NGET TO (Base)'!AK13),CHOOSE(m_identity,'SHETL (Best)'!AK13, 'SPTL (Best)'!AK13, 'NGET TO (Best)'!AK13)) -> 18.68399486 | AL13: =IF(UserInterface!$E$76 = 1,CHOOSE(m_identity,'SHETL (Base)'!AL13, 'SPTL (Base)'!AL13, 'NGET TO (Base)'!AL13),CHOOSE(m_identity,'SHETL (Best)'!AL13, 'SPTL (Best)'!AL13, 'NGET TO (Best)'!AL13)) -> 17.31743474 | AM13: =IF(UserInterface!$E$76 = 1,CHOOSE(m_identity,'SHETL (Base)'!AM13, 'SPTL (Base)'!AM13, 'NGET TO (Base)'!AM13),CHOOSE(m_identity,'SHETL (Best)'!AM13, 'SPTL (Best)'!AM13, 'NGET TO (Best)'!AM13)) -> 10.13227357 | AN13: =IF(UserInterface!$E$76 = 1,CHOOSE(m_identity,'SHETL (Base)'!AN13, 'SPTL (Base)'!AN13, 'NGET TO (Base)'!AN13),CHOOSE(m_identity,'SHETL (Best)'!AN13, 'SPTL (Best)'!AN13, 'NGET TO (Best)'!AN13)) -> 13.10983634 | AO13: =IF(UserInterface!$E$76 = 1,CHOOSE(m_identity,'SHETL (Base)'!AO13, 'SPTL (Base)'!AO13, 'NGET TO (Base)'!AO13),CHOOSE(m_identity,'SHETL (Best)'!AO13, 'SPTL (Best)'!AO13, 'NGET TO (Best)'!AO13)) -> 11.95703552
E14: Uncertain costs - enhanced security | F14: 6D | G14: £m 09/10 prices | H14: IAEEPS | AH14: =IF(UserInterface!$E$76 = 1,CHOOSE(m_identity,'SHETL (Base)'!AH14, 'SPTL (Base)'!AH14, 'NGET TO (Base)'!AH14),CHOOSE(m_identity,'SHETL (Best)'!AH14, 'SPTL (Best)'!AH14, 'NGET TO (Best)'!AH14)) -> 5.209369446 | AI14: =IF(UserInterface!$E$76 = 1,CHOOSE(m_identity,'SHETL (Base)'!AI14, 'SPTL (Base)'!AI14, 'NGET TO (Base)'!AI14),CHOOSE(m_identity,'SHETL (Best)'!AI14, 'SPTL (Best)'!AI14, 'NGET TO (Best)'!AI14)) -> 6.320625056 | AJ14: =IF(UserInterface!$E$76 = 1,CHOOSE(m_identity,'SHETL (Base)'!AJ14, 'SPTL (Base)'!AJ14, 'NGET TO (Base)'!AJ14),CHOOSE(m_identity,'SHETL (Best)'!AJ14, 'SPTL (Best)'!AJ14, 'NGET TO (Best)'!AJ14)) -> 6.50577403 | AK14: =IF(UserInterface!$E$76 = 1,CHOOSE(m_identity,'SHETL (Base)'!AK14, 'SPTL (Base)'!AK14, 'NGET TO (Base)'!AK14),CHOOSE(m_identity,'SHETL (Best)'!AK14, 'SPTL (Best)'!AK14, 'NGET TO (Best)'!AK14)) -> 6.815018912 | AL14: =IF(UserInterface!$E$76 = 1,CHOOSE(m_identity,'SHETL (Base)'!AL14, 'SPTL (Base)'!AL14, 'NGET TO (Base)'!AL14),CHOOSE(m_identity,'SHETL (Best)'!AL14, 'SPTL (Best)'!AL14, 'NGET TO (Best)'!AL14)) -> 6.549695246 | AM14: =IF(UserInterface!$E$76 = 1,CHOOSE(m_identity,'SHETL (Base)'!AM14, 'SPTL (Base)'!AM14, 'NGET TO (Base)'!AM14),CHOOSE(m_identity,'SHETL (Best)'!AM14, 'SPTL (Best)'!AM14, 'NGET TO (Best)'!AM14)) -> 6.622167884 | AN14: =IF(UserInterface!$E$76 = 1,CHOOSE(m_identity,'SHETL (Base)'!AN14, 'SPTL (Base)'!AN14, 'NGET TO (Base)'!AN14),CHOOSE(m_identity,'SHETL (Best)'!AN14, 'SPTL (Best)'!AN14, 'NGET TO (Best)'!AN14)) -> 6.704402903 | AO14: =IF(UserInterface!$E$76 = 1,CHOOSE(m_identity,'SHETL (Base)'!AO14, 'SPTL (Base)'!AO14, 'NGET TO (Base)'!AO14),CHOOSE(m_identity,'SHETL (Best)'!AO14, 'SPTL (Best)'!AO14, 'NGET TO (Best)'!AO14)) -> 6.787659128
E15: Uncertain costs – workforce renewal (SPTL only) | F15: 6H | G15: £m 09/10 prices | H15: IAEWR | AH15: =IF(UserInterface!$E$76 = 1,CHOOSE(m_identity,'SHETL (Base)'!AH15, 'SPTL (Base)'!AH15, 'NGET TO (Base)'!AH15),CHOOSE(m_identity,'SHETL (Best)'!AH15, 'SPTL (Best)'!AH15, 'NGET TO (Best)'!AH15)) -> 0 | AI15: =IF(UserInterface!$E$76 = 1,CHOOSE(m_identity,'SHETL (Base)'!AI15, 'SPTL (Base)'!AI15, 'NGET TO (Base)'!AI15),CHOOSE(m_identity,'SHETL (Best)'!AI15, 'SPTL (Best)'!AI15, 'NGET TO (Best)'!AI15)) -> 0 | AJ15: =IF(UserInterface!$E$76 = 1,CHOOSE(m_identity,'SHETL (Base)'!AJ15, 'SPTL (Base)'!AJ15, 'NGET TO (Base)'!AJ15),CHOOSE(m_identity,'SHETL (Best)'!AJ15, 'SPTL (Best)'!AJ15, 'NGET TO (Best)'!AJ15)) -> 0 | AK15: =IF(UserInterface!$E$76 = 1,CHOOSE(m_identity,'SHETL (Base)'!AK15, 'SPTL (Base)'!AK15, 'NGET TO (Base)'!AK15),CHOOSE(m_identity,'SHETL (Best)'!AK15, 'SPTL (Best)'!AK15, 'NGET TO (Best)'!AK15)) -> 0 | AL15: =IF(UserInterface!$E$76 = 1,CHOOSE(m_identity,'SHETL (Base)'!AL15, 'SPTL (Base)'!AL15, 'NGET TO (Base)'!AL15),CHOOSE(m_identity,'SHETL (Best)'!AL15, 'SPTL (Best)'!AL15, 'NGET TO (Best)'!AL15)) -> 0 | AM15: =IF(UserInterface!$E$76 = 1,CHOOSE(m_identity,'SHETL (Base)'!AM15, 'SPTL (Base)'!AM15, 'NGET TO (Base)'!AM15),CHOOSE(m_identity,'SHETL (Best)'!AM15, 'SPTL (Best)'!AM15, 'NGET TO (Best)'!AM15)) -> 0 | AN15: =IF(UserInterface!$E$76 = 1,CHOOSE(m_identity,'SHETL (Base)'!AN15, 'SPTL (Base)'!AN15, 'NGET TO (Base)'!AN15),CHOOSE(m_identity,'SHETL (Best)'!AN15, 'SPTL (Best)'!AN15, 'NGET TO (Best)'!AN15)) -> 0 | AO15: =IF(UserInterface!$E$76 = 1,CHOOSE(m_identity,'SHETL (Base)'!AO15, 'SPTL (Base)'!AO15, 'NGET TO (Base)'!AO15),CHOOSE(m_identity,'SHETL (Best)'!AO15, 'SPTL (Best)'!AO15, 'NGET TO (Best)'!AO15)) -> 0
E16: Uncertain costs – BT 21st Century (SHETPLC only) | F16: 6H | G16: £m 09/10 prices | H16: IAEBT | AH16: =IF(UserInterface!$E$76 = 1,CHOOSE(m_identity,'SHETL (Base)'!AH16, 'SPTL (Base)'!AH16, 'NGET TO (Base)'!AH16),CHOOSE(m_identity,'SHETL (Best)'!AH16, 'SPTL (Best)'!AH16, 'NGET TO (Best)'!AH16)) -> 0 | AI16: =IF(UserInterface!$E$76 = 1,CHOOSE(m_identity,'SHETL (Base)'!AI16, 'SPTL (Base)'!AI16, 'NGET TO (Base)'!AI16),CHOOSE(m_identity,'SHETL (Best)'!AI16, 'SPTL (Best)'!AI16, 'NGET TO (Best)'!AI16)) -> 0 | AJ16: =IF(UserInterface!$E$76 = 1,CHOOSE(m_identity,'SHETL (Base)'!AJ16, 'SPTL (Base)'!AJ16, 'NGET TO (Base)'!AJ16),CHOOSE(m_identity,'SHETL (Best)'!AJ16, 'SPTL (Best)'!AJ16, 'NGET TO (Best)'!AJ16)) -> 0 | AK16: =IF(UserInterface!$E$76 = 1,CHOOSE(m_identity,'SHETL (Base)'!AK16, 'SPTL (Base)'!AK16, 'NGET TO (Base)'!AK16),CHOOSE(m_identity,'SHETL (Best)'!AK16, 'SPTL (Best)'!AK16, 'NGET TO (Best)'!AK16)) -> 0 | AL16: =IF(UserInterface!$E$76 = 1,CHOOSE(m_identity,'SHETL (Base)'!AL16, 'SPTL (Base)'!AL16, 'NGET TO (Base)'!AL16),CHOOSE(m_identity,'SHETL (Best)'!AL16, 'SPTL (Best)'!AL16, 'NGET TO (Best)'!AL16)) -> 0 | AM16: =IF(UserInterface!$E$76 = 1,CHOOSE(m_identity,'SHETL (Base)'!AM16, 'SPTL (Base)'!AM16, 'NGET TO (Base)'!AM16),CHOOSE(m_identity,'SHETL (Best)'!AM16, 'SPTL (Best)'!AM16, 'NGET TO (Best)'!AM16)) -> 0 | AN16: =IF(UserInterface!$E$76 = 1,CHOOSE(m_identity,'SHETL (Base)'!AN16, 'SPTL (Base)'!AN16, 'NGET TO (Base)'!AN16),CHOOSE(m_identity,'SHETL (Best)'!AN16, 'SPTL (Best)'!AN16, 'NGET TO (Best)'!AN16)) -> 0 | AO16: =IF(UserInterface!$E$76 = 1,CHOOSE(m_identity,'SHETL (Base)'!AO16, 'SPTL (Base)'!AO16, 'NGET TO (Base)'!AO16),CHOOSE(m_identity,'SHETL (Best)'!AO16, 'SPTL (Best)'!AO16, 'NGET TO (Best)'!AO16)) -> 0
E17: Uncertain costs – compensation for wayleaves (SHETPLC only) | F17: 6H | G17: £m 09/10 prices | H17: IAEWL | AH17: =IF(UserInterface!$E$76 = 1,CHOOSE(m_identity,'SHETL (Base)'!AH17, 'SPTL (Base)'!AH17, 'NGET TO (Base)'!AH17),CHOOSE(m_identity,'SHETL (Best)'!AH17, 'SPTL (Best)'!AH17, 'NGET TO (Best)'!AH17)) -> 0 | AI17: =IF(UserInterface!$E$76 = 1,CHOOSE(m_identity,'SHETL (Base)'!AI17, 'SPTL (Base)'!AI17, 'NGET TO (Base)'!AI17),CHOOSE(m_identity,'SHETL (Best)'!AI17, 'SPTL (Best)'!AI17, 'NGET TO (Best)'!AI17)) -> 0 | AJ17: =IF(UserInterface!$E$76 = 1,CHOOSE(m_identity,'SHETL (Base)'!AJ17, 'SPTL (Base)'!AJ17, 'NGET TO (Base)'!AJ17),CHOOSE(m_identity,'SHETL (Best)'!AJ17, 'SPTL (Best)'!AJ17, 'NGET TO (Best)'!AJ17)) -> 0 | AK17: =IF(UserInterface!$E$76 = 1,CHOOSE(m_identity,'SHETL (Base)'!AK17, 'SPTL (Base)'!AK17, 'NGET TO (Base)'!AK17),CHOOSE(m_identity,'SHETL (Best)'!AK17, 'SPTL (Best)'!AK17, 'NGET TO (Best)'!AK17)) -> 0 | AL17: =IF(UserInterface!$E$76 = 1,CHOOSE(m_identity,'SHETL (Base)'!AL17, 'SPTL (Base)'!AL17, 'NGET TO (Base)'!AL17),CHOOSE(m_identity,'SHETL (Best)'!AL17, 'SPTL (Best)'!AL17, 'NGET TO (Best)'!AL17)) -> 0 | AM17: =IF(UserInterface!$E$76 = 1,CHOOSE(m_identity,'SHETL (Base)'!AM17, 'SPTL (Base)'!AM17, 'NGET TO (Base)'!AM17),CHOOSE(m_identity,'SHETL (Best)'!AM17, 'SPTL (Best)'!AM17, 'NGET TO (Best)'!AM17)) -> 0 | AN17: =IF(UserInterface!$E$76 = 1,CHOOSE(m_identity,'SHETL (Base)'!AN17, 'SPTL (Base)'!AN17, 'NGET TO (Base)'!AN17),CHOOSE(m_identity,'SHETL (Best)'!AN17, 'SPTL (Best)'!AN17, 'NGET TO (Best)'!AN17)) -> 0 | AO17: =IF(UserInterface!$E$76 = 1,CHOOSE(m_identity,'SHETL (Base)'!AO17, 'SPTL (Base)'!AO17, 'NGET TO (Base)'!AO17),CHOOSE(m_identity,'SHETL (Best)'!AO17, 'SPTL (Best)'!AO17, 'NGET TO (Best)'!AO17)) -> 0
E18: Baseline and strategic wider works outputs | F18: 6I | G18: £m 09/10 prices | H18: WWE | AH18: =IF(UserInterface!$E$76 = 1,CHOOSE(m_identity,'SHETL (Base)'!AH18, 'SPTL (Base)'!AH18, 'NGET TO (Base)'!AH18),CHOOSE(m_identity,'SHETL (Best)'!AH18, 'SPTL (Best)'!AH18, 'NGET TO (Best)'!AH18)) -> 33.54889706 | AI18: =IF(UserInterface!$E$76 = 1,CHOOSE(m_identity,'SHETL (Base)'!AI18, 'SPTL (Base)'!AI18, 'NGET TO (Base)'!AI18),CHOOSE(m_identity,'SHETL (Best)'!AI18, 'SPTL (Best)'!AI18, 'NGET TO (Best)'!AI18)) -> 72.87209382 | AJ18: =IF(UserInterface!$E$76 = 1,CHOOSE(m_identity,'SHETL (Base)'!AJ18, 'SPTL (Base)'!AJ18, 'NGET TO (Base)'!AJ18),CHOOSE(m_identity,'SHETL (Best)'!AJ18, 'SPTL (Best)'!AJ18, 'NGET TO (Best)'!AJ18)) -> 206.9990174 | AK18: =IF(UserInterface!$E$76 = 1,CHOOSE(m_identity,'SHETL (Base)'!AK18, 'SPTL (Base)'!AK18, 'NGET TO (Base)'!AK18),CHOOSE(m_identity,'SHETL (Best)'!AK18, 'SPTL (Best)'!AK18, 'NGET TO (Best)'!AK18)) -> 325.4238533 | AL18: =IF(UserInterface!$E$76 = 1,CHOOSE(m_identity,'SHETL (Base)'!AL18, 'SPTL (Base)'!AL18, 'NGET TO (Base)'!AL18),CHOOSE(m_identity,'SHETL (Best)'!AL18, 'SPTL (Best)'!AL18, 'NGET TO (Best)'!AL18)) -> 336.9255318 | AM18: =IF(UserInterface!$E$76 = 1,CHOOSE(m_identity,'SHETL (Base)'!AM18, 'SPTL (Base)'!AM18, 'NGET TO (Base)'!AM18),CHOOSE(m_identity,'SHETL (Best)'!AM18, 'SPTL (Best)'!AM18, 'NGET TO (Best)'!AM18)) -> 403.2949531 | AN18: =IF(UserInterface!$E$76 = 1,CHOOSE(m_identity,'SHETL (Base)'!AN18, 'SPTL (Base)'!AN18, 'NGET TO (Base)'!AN18),CHOOSE(m_identity,'SHETL (Best)'!AN18, 'SPTL (Best)'!AN18, 'NGET TO (Best)'!AN18)) -> 213.8392833 | AO18: =IF(UserInterface!$E$76 = 1,CHOOSE(m_identity,'SHETL (Base)'!AO18, 'SPTL (Base)'!AO18, 'NGET TO (Base)'!AO18),CHOOSE(m_identity,'SHETL (Best)'!AO18, 'SPTL (Best)'!AO18, 'NGET TO (Best)'!AO18)) -> 97.12306896
E19: Network development and wider works volume driver (NGET only) | F19: 6J | G19: £m 09/10 prices | H19: WWI | AH19: =IF(UserInterface!$E$76 = 1,CHOOSE(m_identity,'SHETL (Base)'!AH19, 'SPTL (Base)'!AH19, 'NGET TO (Base)'!AH19),CHOOSE(m_identity,'SHETL (Best)'!AH19, 'SPTL (Best)'!AH19, 'NGET TO (Best)'!AH19)) -> 66.72403417 | AI19: =IF(UserInterface!$E$76 = 1,CHOOSE(m_identity,'SHETL (Base)'!AI19, 'SPTL (Base)'!AI19, 'NGET TO (Base)'!AI19),CHOOSE(m_identity,'SHETL (Best)'!AI19, 'SPTL (Best)'!AI19, 'NGET TO (Best)'!AI19)) -> 96.88654715 | AJ19: =IF(UserInterface!$E$76 = 1,CHOOSE(m_identity,'SHETL (Base)'!AJ19, 'SPTL (Base)'!AJ19, 'NGET TO (Base)'!AJ19),CHOOSE(m_identity,'SHETL (Best)'!AJ19, 'SPTL (Best)'!AJ19, 'NGET TO (Best)'!AJ19)) -> 57.47661473 | AK19: =IF(UserInterface!$E$76 = 1,CHOOSE(m_identity,'SHETL (Base)'!AK19, 'SPTL (Base)'!AK19, 'NGET TO (Base)'!AK19),CHOOSE(m_identity,'SHETL (Best)'!AK19, 'SPTL (Best)'!AK19, 'NGET TO (Best)'!AK19)) -> 36.90259291 | AL19: =IF(UserInterface!$E$76 = 1,CHOOSE(m_identity,'SHETL (Base)'!AL19, 'SPTL (Base)'!AL19, 'NGET TO (Base)'!AL19),CHOOSE(m_identity,'SHETL (Best)'!AL19, 'SPTL (Best)'!AL19, 'NGET TO (Best)'!AL19)) -> 19.03943497 | AM19: =IF(UserInterface!$E$76 = 1,CHOOSE(m_identity,'SHETL (Base)'!AM19, 'SPTL (Base)'!AM19, 'NGET TO (Base)'!AM19),CHOOSE(m_identity,'SHETL (Best)'!AM19, 'SPTL (Best)'!AM19, 'NGET TO (Best)'!AM19)) -> 23.42108067 | AN19: =IF(UserInterface!$E$76 = 1,CHOOSE(m_identity,'SHETL (Base)'!AN19, 'SPTL (Base)'!AN19, 'NGET TO (Base)'!AN19),CHOOSE(m_identity,'SHETL (Best)'!AN19, 'SPTL (Best)'!AN19, 'NGET TO (Best)'!AN19)) -> 25.05222682 | AO19: =IF(UserInterface!$E$76 = 1,CHOOSE(m_identity,'SHETL (Base)'!AO19, 'SPTL (Base)'!AO19, 'NGET TO (Base)'!AO19),CHOOSE(m_identity,'SHETL (Best)'!AO19, 'SPTL (Best)'!AO19, 'NGET TO (Best)'!AO19)) -> 25.74103363
E20: Enhancements to pre-existing infrastructure | F20: 6G | G20: £m 09/10 prices | H20: EPIE | AH20: =IF(UserInterface!$E$76 = 1,CHOOSE(m_identity,'SHETL (Base)'!AH20, 'SPTL (Base)'!AH20, 'NGET TO (Base)'!AH20),CHOOSE(m_identity,'SHETL (Best)'!AH20, 'SPTL (Best)'!AH20, 'NGET TO (Best)'!AH20)) -> 0 | AI20: =IF(UserInterface!$E$76 = 1,CHOOSE(m_identity,'SHETL (Base)'!AI20, 'SPTL (Base)'!AI20, 'NGET TO (Base)'!AI20),CHOOSE(m_identity,'SHETL (Best)'!AI20, 'SPTL (Best)'!AI20, 'NGET TO (Best)'!AI20)) -> 0 | AJ20: =IF(UserInterface!$E$76 = 1,CHOOSE(m_identity,'SHETL (Base)'!AJ20, 'SPTL (Base)'!AJ20, 'NGET TO (Base)'!AJ20),CHOOSE(m_identity,'SHETL (Best)'!AJ20, 'SPTL (Best)'!AJ20, 'NGET TO (Best)'!AJ20)) -> 0 | AK20: =IF(UserInterface!$E$76 = 1,CHOOSE(m_identity,'SHETL (Base)'!AK20, 'SPTL (Base)'!AK20, 'NGET TO (Base)'!AK20),CHOOSE(m_identity,'SHETL (Best)'!AK20, 'SPTL (Best)'!AK20, 'NGET TO (Best)'!AK20)) -> 0 | AL20: =IF(UserInterface!$E$76 = 1,CHOOSE(m_identity,'SHETL (Base)'!AL20, 'SPTL (Base)'!AL20, 'NGET TO (Base)'!AL20),CHOOSE(m_identity,'SHETL (Best)'!AL20, 'SPTL (Best)'!AL20, 'NGET TO (Best)'!AL20)) -> 0 | AM20: =IF(UserInterface!$E$76 = 1,CHOOSE(m_identity,'SHETL (Base)'!AM20, 'SPTL (Base)'!AM20, 'NGET TO (Base)'!AM20),CHOOSE(m_identity,'SHETL (Best)'!AM20, 'SPTL (Best)'!AM20, 'NGET TO (Best)'!AM20)) -> 0 | AN20: =IF(UserInterface!$E$76 = 1,CHOOSE(m_identity,'SHETL (Base)'!AN20, 'SPTL (Base)'!AN20, 'NGET TO (Base)'!AN20),CHOOSE(m_identity,'SHETL (Best)'!AN20, 'SPTL (Best)'!AN20, 'NGET TO (Best)'!AN20)) -> 0 | AO20: =IF(UserInterface!$E$76 = 1,CHOOSE(m_identity,'SHETL (Base)'!AO20, 'SPTL (Base)'!AO20, 'NGET TO (Base)'!AO20),CHOOSE(m_identity,'SHETL (Best)'!AO20, 'SPTL (Best)'!AO20, 'NGET TO (Best)'!AO20)) -> 0
E21: Demand related infrastructure volume driver | F21: 6L | G21: £m 09/10 prices | H21: DRI | AH21: =IF(UserInterface!$E$76 = 1,CHOOSE(m_identity,'SHETL (Base)'!AH21, 'SPTL (Base)'!AH21, 'NGET TO (Base)'!AH21),CHOOSE(m_identity,'SHETL (Best)'!AH21, 'SPTL (Best)'!AH21, 'NGET TO (Best)'!AH21)) -> 0 | AI21: =IF(UserInterface!$E$76 = 1,CHOOSE(m_identity,'SHETL (Base)'!AI21, 'SPTL (Base)'!AI21, 'NGET TO (Base)'!AI21),CHOOSE(m_identity,'SHETL (Best)'!AI21, 'SPTL (Best)'!AI21, 'NGET TO (Best)'!AI21)) -> 0.0866821025 | AJ21: =IF(UserInterface!$E$76 = 1,CHOOSE(m_identity,'SHETL (Base)'!AJ21, 'SPTL (Base)'!AJ21, 'NGET TO (Base)'!AJ21),CHOOSE(m_identity,'SHETL (Best)'!AJ21, 'SPTL (Best)'!AJ21, 'NGET TO (Best)'!AJ21)) -> 1.671455244 | AK21: =IF(UserInterface!$E$76 = 1,CHOOSE(m_identity,'SHETL (Base)'!AK21, 'SPTL (Base)'!AK21, 'NGET TO (Base)'!AK21),CHOOSE(m_identity,'SHETL (Best)'!AK21, 'SPTL (Best)'!AK21, 'NGET TO (Best)'!AK21)) -> 5.370257156 | AL21: =IF(UserInterface!$E$76 = 1,CHOOSE(m_identity,'SHETL (Base)'!AL21, 'SPTL (Base)'!AL21, 'NGET TO (Base)'!AL21),CHOOSE(m_identity,'SHETL (Best)'!AL21, 'SPTL (Best)'!AL21, 'NGET TO (Best)'!AL21)) -> 25.2475873 | AM21: =IF(UserInterface!$E$76 = 1,CHOOSE(m_identity,'SHETL (Base)'!AM21, 'SPTL (Base)'!AM21, 'NGET TO (Base)'!AM21),CHOOSE(m_identity,'SHETL (Best)'!AM21, 'SPTL (Best)'!AM21, 'NGET TO (Best)'!AM21)) -> 27.64595325 | AN21: =IF(UserInterface!$E$76 = 1,CHOOSE(m_identity,'SHETL (Base)'!AN21, 'SPTL (Base)'!AN21, 'NGET TO (Base)'!AN21),CHOOSE(m_identity,'SHETL (Best)'!AN21, 'SPTL (Best)'!AN21, 'NGET TO (Best)'!AN21)) -> 43.21954255 | AO21: =IF(UserInterface!$E$76 = 1,CHOOSE(m_identity,'SHETL (Base)'!AO21, 'SPTL (Base)'!AO21, 'NGET TO (Base)'!AO21),CHOOSE(m_identity,'SHETL (Best)'!AO21, 'SPTL (Best)'!AO21, 'NGET TO (Best)'!AO21)) -> 75.55575858
E22: Undergrounding volume driver | F22: 6K | G22: £m 09/10 prices | H22: UCE | AH22: =IF(UserInterface!$E$76 = 1,CHOOSE(m_identity,'SHETL (Base)'!AH22, 'SPTL (Base)'!AH22, 'NGET TO (Base)'!AH22),CHOOSE(m_identity,'SHETL (Best)'!AH22, 'SPTL (Best)'!AH22, 'NGET TO (Best)'!AH22)) -> 0 | AI22: =IF(UserInterface!$E$76 = 1,CHOOSE(m_identity,'SHETL (Base)'!AI22, 'SPTL (Base)'!AI22, 'NGET TO (Base)'!AI22),CHOOSE(m_identity,'SHETL (Best)'!AI22, 'SPTL (Best)'!AI22, 'NGET TO (Best)'!AI22)) -> 0 | AJ22: =IF(UserInterface!$E$76 = 1,CHOOSE(m_identity,'SHETL (Base)'!AJ22, 'SPTL (Base)'!AJ22, 'NGET TO (Base)'!AJ22),CHOOSE(m_identity,'SHETL (Best)'!AJ22, 'SPTL (Best)'!AJ22, 'NGET TO (Best)'!AJ22)) -> 0 | AK22: =IF(UserInterface!$E$76 = 1,CHOOSE(m_identity,'SHETL (Base)'!AK22, 'SPTL (Base)'!AK22, 'NGET TO (Base)'!AK22),CHOOSE(m_identity,'SHETL (Best)'!AK22, 'SPTL (Best)'!AK22, 'NGET TO (Best)'!AK22)) -> 0 | AL22: =IF(UserInterface!$E$76 = 1,CHOOSE(m_identity,'SHETL (Base)'!AL22, 'SPTL (Base)'!AL22, 'NGET TO (Base)'!AL22),CHOOSE(m_identity,'SHETL (Best)'!AL22, 'SPTL (Best)'!AL22, 'NGET TO (Best)'!AL22)) -> 0 | AM22: =IF(UserInterface!$E$76 = 1,CHOOSE(m_identity,'SHETL (Base)'!AM22, 'SPTL (Base)'!AM22, 'NGET TO (Base)'!AM22),CHOOSE(m_identity,'SHETL (Best)'!AM22, 'SPTL (Best)'!AM22, 'NGET TO (Best)'!AM22)) -> 0 | AN22: =IF(UserInterface!$E$76 = 1,CHOOSE(m_identity,'SHETL (Base)'!AN22, 'SPTL (Base)'!AN22, 'NGET TO (Base)'!AN22),CHOOSE(m_identity,'SHETL (Best)'!AN22, 'SPTL (Best)'!AN22, 'NGET TO (Best)'!AN22)) -> 0 | AO22: =IF(UserInterface!$E$76 = 1,CHOOSE(m_identity,'SHETL (Base)'!AO22, 'SPTL (Base)'!AO22, 'NGET TO (Base)'!AO22),CHOOSE(m_identity,'SHETL (Best)'!AO22, 'SPTL (Best)'!AO22, 'NGET TO (Best)'!AO22)) -> 0
E23: Generation connections volume driver | F23: 6F | G23: £m 09/10 prices | H23: GCE | AH23: =IF(UserInterface!$E$76 = 1,CHOOSE(m_identity,'SHETL (Base)'!AH23, 'SPTL (Base)'!AH23, 'NGET TO (Base)'!AH23),CHOOSE(m_identity,'SHETL (Best)'!AH23, 'SPTL (Best)'!AH23, 'NGET TO (Best)'!AH23)) -> 4.271244383 | AI23: =IF(UserInterface!$E$76 = 1,CHOOSE(m_identity,'SHETL (Base)'!AI23, 'SPTL (Base)'!AI23, 'NGET TO (Base)'!AI23),CHOOSE(m_identity,'SHETL (Best)'!AI23, 'SPTL (Best)'!AI23, 'NGET TO (Best)'!AI23)) -> 45.74040409 | AJ23: =IF(UserInterface!$E$76 = 1,CHOOSE(m_identity,'SHETL (Base)'!AJ23, 'SPTL (Base)'!AJ23, 'NGET TO (Base)'!AJ23),CHOOSE(m_identity,'SHETL (Best)'!AJ23, 'SPTL (Best)'!AJ23, 'NGET TO (Best)'!AJ23)) -> 64.16809169 | AK23: =IF(UserInterface!$E$76 = 1,CHOOSE(m_identity,'SHETL (Base)'!AK23, 'SPTL (Base)'!AK23, 'NGET TO (Base)'!AK23),CHOOSE(m_identity,'SHETL (Best)'!AK23, 'SPTL (Best)'!AK23, 'NGET TO (Best)'!AK23)) -> 16.6606297 | AL23: =IF(UserInterface!$E$76 = 1,CHOOSE(m_identity,'SHETL (Base)'!AL23, 'SPTL (Base)'!AL23, 'NGET TO (Base)'!AL23),CHOOSE(m_identity,'SHETL (Best)'!AL23, 'SPTL (Best)'!AL23, 'NGET TO (Best)'!AL23)) -> 11.47168239 | AM23: =IF(UserInterface!$E$76 = 1,CHOOSE(m_identity,'SHETL (Base)'!AM23, 'SPTL (Base)'!AM23, 'NGET TO (Base)'!AM23),CHOOSE(m_identity,'SHETL (Best)'!AM23, 'SPTL (Best)'!AM23, 'NGET TO (Best)'!AM23)) -> 8.623243068 | AN23: =IF(UserInterface!$E$76 = 1,CHOOSE(m_identity,'SHETL (Base)'!AN23, 'SPTL (Base)'!AN23, 'NGET TO (Base)'!AN23),CHOOSE(m_identity,'SHETL (Best)'!AN23, 'SPTL (Best)'!AN23, 'NGET TO (Best)'!AN23)) -> 37.69707186 | AO23: =IF(UserInterface!$E$76 = 1,CHOOSE(m_identity,'SHETL (Base)'!AO23, 'SPTL (Base)'!AO23, 'NGET TO (Base)'!AO23),CHOOSE(m_identity,'SHETL (Best)'!AO23, 'SPTL (Best)'!AO23, 'NGET TO (Best)'!AO23)) -> 41.39912511
E24: Innovation roll out mechanism | F24: 6E | G24: £m 09/10 prices | H24: IRM | AH24: =IF(UserInterface!$E$76 = 1,CHOOSE(m_identity,'SHETL (Base)'!AH24, 'SPTL (Base)'!AH24, 'NGET TO (Base)'!AH24),CHOOSE(m_identity,'SHETL (Best)'!AH24, 'SPTL (Best)'!AH24, 'NGET TO (Best)'!AH24)) -> 0 | AI24: =IF(UserInterface!$E$76 = 1,CHOOSE(m_identity,'SHETL (Base)'!AI24, 'SPTL (Base)'!AI24, 'NGET TO (Base)'!AI24),CHOOSE(m_identity,'SHETL (Best)'!AI24, 'SPTL (Best)'!AI24, 'NGET TO (Best)'!AI24)) -> 0 | AJ24: =IF(UserInterface!$E$76 = 1,CHOOSE(m_identity,'SHETL (Base)'!AJ24, 'SPTL (Base)'!AJ24, 'NGET TO (Base)'!AJ24),CHOOSE(m_identity,'SHETL (Best)'!AJ24, 'SPTL (Best)'!AJ24, 'NGET TO (Best)'!AJ24)) -> 0 | AK24: =IF(UserInterface!$E$76 = 1,CHOOSE(m_identity,'SHETL (Base)'!AK24, 'SPTL (Base)'!AK24, 'NGET TO (Base)'!AK24),CHOOSE(m_identity,'SHETL (Best)'!AK24, 'SPTL (Best)'!AK24, 'NGET TO (Best)'!AK24)) -> 0 | AL24: =IF(UserInterface!$E$76 = 1,CHOOSE(m_identity,'SHETL (Base)'!AL24, 'SPTL (Base)'!AL24, 'NGET TO (Base)'!AL24),CHOOSE(m_identity,'SHETL (Best)'!AL24, 'SPTL (Best)'!AL24, 'NGET TO (Best)'!AL24)) -> 0 | AM24: =IF(UserInterface!$E$76 = 1,CHOOSE(m_identity,'SHETL (Base)'!AM24, 'SPTL (Base)'!AM24, 'NGET TO (Base)'!AM24),CHOOSE(m_identity,'SHETL (Best)'!AM24, 'SPTL (Best)'!AM24, 'NGET TO (Best)'!AM24)) -> 0 | AN24: =IF(UserInterface!$E$76 = 1,CHOOSE(m_identity,'SHETL (Base)'!AN24, 'SPTL (Base)'!AN24, 'NGET TO (Base)'!AN24),CHOOSE(m_identity,'SHETL (Best)'!AN24, 'SPTL (Best)'!AN24, 'NGET TO (Best)'!AN24)) -> 0 | AO24: =IF(UserInterface!$E$76 = 1,CHOOSE(m_identity,'SHETL (Base)'!AO24, 'SPTL (Base)'!AO24, 'NGET TO (Base)'!AO24),CHOOSE(m_identity,'SHETL (Best)'!AO24, 'SPTL (Best)'!AO24, 'NGET TO (Best)'!AO24)) -> 0
E25: Tax liability - gearing/interest costs | F25: 6C | G25: £m nominal | H25: TGIE | AH25: =IF(UserInterface!$E$76 = 1,CHOOSE(m_identity,'SHETL (Base)'!AH25, 'SPTL (Base)'!AH25, 'NGET TO (Base)'!AH25),CHOOSE(m_identity,'SHETL (Best)'!AH25, 'SPTL (Best)'!AH25, 'NGET TO (Best)'!AH25)) -> 0 | AI25: =IF(UserInterface!$E$76 = 1,CHOOSE(m_identity,'SHETL (Base)'!AI25, 'SPTL (Base)'!AI25, 'NGET TO (Base)'!AI25),CHOOSE(m_identity,'SHETL (Best)'!AI25, 'SPTL (Best)'!AI25, 'NGET TO (Best)'!AI25)) -> 0 | AJ25: =IF(UserInterface!$E$76 = 1,CHOOSE(m_identity,'SHETL (Base)'!AJ25, 'SPTL (Base)'!AJ25, 'NGET TO (Base)'!AJ25),CHOOSE(m_identity,'SHETL (Best)'!AJ25, 'SPTL (Best)'!AJ25, 'NGET TO (Best)'!AJ25)) -> 0 | AK25: =IF(UserInterface!$E$76 = 1,CHOOSE(m_identity,'SHETL (Base)'!AK25, 'SPTL (Base)'!AK25, 'NGET TO (Base)'!AK25),CHOOSE(m_identity,'SHETL (Best)'!AK25, 'SPTL (Best)'!AK25, 'NGET TO (Best)'!AK25)) -> 0 | AL25: =IF(UserInterface!$E$76 = 1,CHOOSE(m_identity,'SHETL (Base)'!AL25, 'SPTL (Base)'!AL25, 'NGET TO (Base)'!AL25),CHOOSE(m_identity,'SHETL (Best)'!AL25, 'SPTL (Best)'!AL25, 'NGET TO (Best)'!AL25)) -> 0 | AM25: =IF(UserInterface!$E$76 = 1,CHOOSE(m_identity,'SHETL (Base)'!AM25, 'SPTL (Base)'!AM25, 'NGET TO (Base)'!AM25),CHOOSE(m_identity,'SHETL (Best)'!AM25, 'SPTL (Best)'!AM25, 'NGET TO (Best)'!AM25)) -> 0 | AN25: =IF(UserInterface!$E$76 = 1,CHOOSE(m_identity,'SHETL (Base)'!AN25, 'SPTL (Base)'!AN25, 'NGET TO (Base)'!AN25),CHOOSE(m_identity,'SHETL (Best)'!AN25, 'SPTL (Best)'!AN25, 'NGET TO (Best)'!AN25)) -> 0 | AO25: =IF(UserInterface!$E$76 = 1,CHOOSE(m_identity,'SHETL (Base)'!AO25, 'SPTL (Base)'!AO25, 'NGET TO (Base)'!AO25),CHOOSE(m_identity,'SHETL (Best)'!AO25, 'SPTL (Best)'!AO25, 'NGET TO (Best)'!AO25)) -> 0
E26: Tax liability - tax trigger events | F26: 6C | G26: £m 09/10 prices | H26: TTE | AH26: =IF(UserInterface!$E$76 = 1,CHOOSE(m_identity,'SHETL (Base)'!AH26, 'SPTL (Base)'!AH26, 'NGET TO (Base)'!AH26),CHOOSE(m_identity,'SHETL (Best)'!AH26, 'SPTL (Best)'!AH26, 'NGET TO (Best)'!AH26)) -> 0 | AI26: =IF(UserInterface!$E$76 = 1,CHOOSE(m_identity,'SHETL (Base)'!AI26, 'SPTL (Base)'!AI26, 'NGET TO (Base)'!AI26),CHOOSE(m_identity,'SHETL (Best)'!AI26, 'SPTL (Best)'!AI26, 'NGET TO (Best)'!AI26)) -> 0 | AJ26: =IF(UserInterface!$E$76 = 1,CHOOSE(m_identity,'SHETL (Base)'!AJ26, 'SPTL (Base)'!AJ26, 'NGET TO (Base)'!AJ26),CHOOSE(m_identity,'SHETL (Best)'!AJ26, 'SPTL (Best)'!AJ26, 'NGET TO (Best)'!AJ26)) -> 0 | AK26: =IF(UserInterface!$E$76 = 1,CHOOSE(m_identity,'SHETL (Base)'!AK26, 'SPTL (Base)'!AK26, 'NGET TO (Base)'!AK26),CHOOSE(m_identity,'SHETL (Best)'!AK26, 'SPTL (Best)'!AK26, 'NGET TO (Best)'!AK26)) -> 0 | AL26: =IF(UserInterface!$E$76 = 1,CHOOSE(m_identity,'SHETL (Base)'!AL26, 'SPTL (Base)'!AL26, 'NGET TO (Base)'!AL26),CHOOSE(m_identity,'SHETL (Best)'!AL26, 'SPTL (Best)'!AL26, 'NGET TO (Best)'!AL26)) -> 0 | AM26: =IF(UserInterface!$E$76 = 1,CHOOSE(m_identity,'SHETL (Base)'!AM26, 'SPTL (Base)'!AM26, 'NGET TO (Base)'!AM26),CHOOSE(m_identity,'SHETL (Best)'!AM26, 'SPTL (Best)'!AM26, 'NGET TO (Best)'!AM26)) -> 0 | AN26: =IF(UserInterface!$E$76 = 1,CHOOSE(m_identity,'SHETL (Base)'!AN26, 'SPTL (Base)'!AN26, 'NGET TO (Base)'!AN26),CHOOSE(m_identity,'SHETL (Best)'!AN26, 'SPTL (Best)'!AN26, 'NGET TO (Best)'!AN26)) -> 0 | AO26: =IF(UserInterface!$E$76 = 1,CHOOSE(m_identity,'SHETL (Base)'!AO26, 'SPTL (Base)'!AO26, 'NGET TO (Base)'!AO26),CHOOSE(m_identity,'SHETL (Best)'!AO26, 'SPTL (Best)'!AO26, 'NGET TO (Best)'!AO26)) -> 0
E27: Pension scheme administration and Pension Protection Fund Levy | F27: 6C | G27: £m 09/10 prices | H27: APFE | AH27: =IF(UserInterface!$E$76 = 1,CHOOSE(m_identity,'SHETL (Base)'!AH27, 'SPTL (Base)'!AH27, 'NGET TO (Base)'!AH27),CHOOSE(m_identity,'SHETL (Best)'!AH27, 'SPTL (Best)'!AH27, 'NGET TO (Best)'!AH27)) -> 1.5 | AI27: =IF(UserInterface!$E$76 = 1,CHOOSE(m_identity,'SHETL (Base)'!AI27, 'SPTL (Base)'!AI27, 'NGET TO (Base)'!AI27),CHOOSE(m_identity,'SHETL (Best)'!AI27, 'SPTL (Best)'!AI27, 'NGET TO (Best)'!AI27)) -> 1.3 | AJ27: =IF(UserInterface!$E$76 = 1,CHOOSE(m_identity,'SHETL (Base)'!AJ27, 'SPTL (Base)'!AJ27, 'NGET TO (Base)'!AJ27),CHOOSE(m_identity,'SHETL (Best)'!AJ27, 'SPTL (Best)'!AJ27, 'NGET TO (Best)'!AJ27)) -> 1.3 | AK27: =IF(UserInterface!$E$76 = 1,CHOOSE(m_identity,'SHETL (Base)'!AK27, 'SPTL (Base)'!AK27, 'NGET TO (Base)'!AK27),CHOOSE(m_identity,'SHETL (Best)'!AK27, 'SPTL (Best)'!AK27, 'NGET TO (Best)'!AK27)) -> 1.5 | AL27: =IF(UserInterface!$E$76 = 1,CHOOSE(m_identity,'SHETL (Base)'!AL27, 'SPTL (Base)'!AL27, 'NGET TO (Base)'!AL27),CHOOSE(m_identity,'SHETL (Best)'!AL27, 'SPTL (Best)'!AL27, 'NGET TO (Best)'!AL27)) -> 1.3 | AM27: =IF(UserInterface!$E$76 = 1,CHOOSE(m_identity,'SHETL (Base)'!AM27, 'SPTL (Base)'!AM27, 'NGET TO (Base)'!AM27),CHOOSE(m_identity,'SHETL (Best)'!AM27, 'SPTL (Best)'!AM27, 'NGET TO (Best)'!AM27)) -> 1.3 | AN27: =IF(UserInterface!$E$76 = 1,CHOOSE(m_identity,'SHETL (Base)'!AN27, 'SPTL (Base)'!AN27, 'NGET TO (Base)'!AN27),CHOOSE(m_identity,'SHETL (Best)'!AN27, 'SPTL (Best)'!AN27, 'NGET TO (Best)'!AN27)) -> 1.5 | AO27: =IF(UserInterface!$E$76 = 1,CHOOSE(m_identity,'SHETL (Base)'!AO27, 'SPTL (Base)'!AO27, 'NGET TO (Base)'!AO27),CHOOSE(m_identity,'SHETL (Best)'!AO27, 'SPTL (Best)'!AO27, 'NGET TO (Best)'!AO27)) -> 1.3
E28: Pension Scheme Established Deficit | F28: 6C | G28: £m 09/10 prices | H28: EDE | AH28: =IF(UserInterface!$E$76 = 1,CHOOSE(m_identity,'SHETL (Base)'!AH28, 'SPTL (Base)'!AH28, 'NGET TO (Base)'!AH28),CHOOSE(m_identity,'SHETL (Best)'!AH28, 'SPTL (Best)'!AH28, 'NGET TO (Best)'!AH28)) -> 28.92905255 | AI28: =IF(UserInterface!$E$76 = 1,CHOOSE(m_identity,'SHETL (Base)'!AI28, 'SPTL (Base)'!AI28, 'NGET TO (Base)'!AI28),CHOOSE(m_identity,'SHETL (Best)'!AI28, 'SPTL (Best)'!AI28, 'NGET TO (Best)'!AI28)) -> 28.92905255 | AJ28: =IF(UserInterface!$E$76 = 1,CHOOSE(m_identity,'SHETL (Base)'!AJ28, 'SPTL (Base)'!AJ28, 'NGET TO (Base)'!AJ28),CHOOSE(m_identity,'SHETL (Best)'!AJ28, 'SPTL (Best)'!AJ28, 'NGET TO (Best)'!AJ28)) -> 28.92905255 | AK28: =IF(UserInterface!$E$76 = 1,CHOOSE(m_identity,'SHETL (Base)'!AK28, 'SPTL (Base)'!AK28, 'NGET TO (Base)'!AK28),CHOOSE(m_identity,'SHETL (Best)'!AK28, 'SPTL (Best)'!AK28, 'NGET TO (Best)'!AK28)) -> 28.92905255 | AL28: =IF(UserInterface!$E$76 = 1,CHOOSE(m_identity,'SHETL (Base)'!AL28, 'SPTL (Base)'!AL28, 'NGET TO (Base)'!AL28),CHOOSE(m_identity,'SHETL (Best)'!AL28, 'SPTL (Best)'!AL28, 'NGET TO (Best)'!AL28)) -> 28.92905255 | AM28: =IF(UserInterface!$E$76 = 1,CHOOSE(m_identity,'SHETL (Base)'!AM28, 'SPTL (Base)'!AM28, 'NGET TO (Base)'!AM28),CHOOSE(m_identity,'SHETL (Best)'!AM28, 'SPTL (Best)'!AM28, 'NGET TO (Best)'!AM28)) -> 28.92905255 | AN28: =IF(UserInterface!$E$76 = 1,CHOOSE(m_identity,'SHETL (Base)'!AN28, 'SPTL (Base)'!AN28, 'NGET TO (Base)'!AN28),CHOOSE(m_identity,'SHETL (Best)'!AN28, 'SPTL (Best)'!AN28, 'NGET TO (Best)'!AN28)) -> 28.92905255 | AO28: =IF(UserInterface!$E$76 = 1,CHOOSE(m_identity,'SHETL (Base)'!AO28, 'SPTL (Base)'!AO28, 'NGET TO (Base)'!AO28),CHOOSE(m_identity,'SHETL (Best)'!AO28, 'SPTL (Best)'!AO28, 'NGET TO (Best)'!AO28)) -> 28.92905255
E29: Legacy price control adjustments to allowed revenue | F29: 6A | G29: £m 09/10 prices | H29: LAR | AH29: =IF(UserInterface!$E$76 = 1,CHOOSE(m_identity,'SHETL (Base)'!AH29, 'SPTL (Base)'!AH29, 'NGET TO (Base)'!AH29),CHOOSE(m_identity,'SHETL (Best)'!AH29, 'SPTL (Best)'!AH29, 'NGET TO (Best)'!AH29)) -> 0
E30: Legacy price control adjustments to RAV | F30: 6A | G30: £m 09/10 prices | H30: LRAV | AH30: =IF(UserInterface!$E$76 = 1,CHOOSE(m_identity,'SHETL (Base)'!AH30, 'SPTL (Base)'!AH30, 'NGET TO (Base)'!AH30),CHOOSE(m_identity,'SHETL (Best)'!AH30, 'SPTL (Best)'!AH30, 'NGET TO (Best)'!AH30)) -> 0
B32: Policy
C34: Cost of capital
E36: Cost of debt | G36: annual real % | AH36: =AH8 -> 0.0292 | AI36: 0.0292 | AJ36: 0.0292 | AK36: 0.0292 | AL36: 0.0292 | AM36: 0.0292 | AN36: 0.0292 | AO36: 0.0292
E37: Cost of equity | G37: annual real % | AH37: =IF(UserInterface!$E$76 = 1,CHOOSE(m_identity,'SHETL (Base)'!AH37, 'SPTL (Base)'!AH37, 'NGET TO (Base)'!AH37),CHOOSE(m_identity,'SHETL (Best)'!AH37, 'SPTL (Best)'!AH37, 'NGET TO (Best)'!AH37)) -> 0.07 | AI37: =IF(UserInterface!$E$76 = 1,CHOOSE(m_identity,'SHETL (Base)'!AI37, 'SPTL (Base)'!AI37, 'NGET TO (Base)'!AI37),CHOOSE(m_identity,'SHETL (Best)'!AI37, 'SPTL (Best)'!AI37, 'NGET TO (Best)'!AI37)) -> 0.07 | AJ37: =IF(UserInterface!$E$76 = 1,CHOOSE(m_identity,'SHETL (Base)'!AJ37, 'SPTL (Base)'!AJ37, 'NGET TO (Base)'!AJ37),CHOOSE(m_identity,'SHETL (Best)'!AJ37, 'SPTL (Best)'!AJ37, 'NGET TO (Best)'!AJ37)) -> 0.07 | AK37: =IF(UserInterface!$E$76 = 1,CHOOSE(m_identity,'SHETL (Base)'!AK37, 'SPTL (Base)'!AK37, 'NGET TO (Base)'!AK37),CHOOSE(m_identity,'SHETL (Best)'!AK37, 'SPTL (Best)'!AK37, 'NGET TO (Best)'!AK37)) -> 0.07 | AL37: =IF(UserInterface!$E$76 = 1,CHOOSE(m_identity,'SHETL (Base)'!AL37, 'SPTL (Base)'!AL37, 'NGET TO (Base)'!AL37),CHOOSE(m_identity,'SHETL (Best)'!AL37, 'SPTL (Best)'!AL37, 'NGET TO (Best)'!AL37)) -> 0.07 | AM37: =IF(UserInterface!$E$76 = 1,CHOOSE(m_identity,'SHETL (Base)'!AM37, 'SPTL (Base)'!AM37, 'NGET TO (Base)'!AM37),CHOOSE(m_identity,'SHETL (Best)'!AM37, 'SPTL (Best)'!AM37, 'NGET TO (Best)'!AM37)) -> 0.07 | AN37: =IF(UserInterface!$E$76 = 1,CHOOSE(m_identity,'SHETL (Base)'!AN37, 'SPTL (Base)'!AN37, 'NGET TO (Base)'!AN37),CHOOSE(m_identity,'SHETL (Best)'!AN37, 'SPTL (Best)'!AN37, 'NGET TO (Best)'!AN37)) -> 0.07 | AO37: =IF(UserInterface!$E$76 = 1,CHOOSE(m_identity,'SHETL (Base)'!AO37, 'SPTL (Base)'!AO37, 'NGET TO (Base)'!AO37),CHOOSE(m_identity,'SHETL (Best)'!AO37, 'SPTL (Best)'!AO37, 'NGET TO (Best)'!AO37)) -> 0.07
E38: Notional gearing | G38: % | J38: > | AG38: =IF(UserInterface!$E$76 = 1,CHOOSE(m_identity,'SHETL (Base)'!AG38, 'SPTL (Base)'!AG38, 'NGET TO (Base)'!AG38),CHOOSE(m_identity,'SHETL (Best)'!AG38, 'SPTL (Best)'!AG38, 'NGET TO (Best)'!AG38)) -> 0.6 | AH38: =IF(UserInterface!$E$76 = 1,CHOOSE(m_identity,'SHETL (Base)'!AH38, 'SPTL (Base)'!AH38, 'NGET TO (Base)'!AH38),CHOOSE(m_identity,'SHETL (Best)'!AH38, 'SPTL (Best)'!AH38, 'NGET TO (Best)'!AH38)) -> 0.6 | AI38: =IF(UserInterface!$E$76 = 1,CHOOSE(m_identity,'SHETL (Base)'!AI38, 'SPTL (Base)'!AI38, 'NGET TO (Base)'!AI38),CHOOSE(m_identity,'SHETL (Best)'!AI38, 'SPTL (Best)'!AI38, 'NGET TO (Best)'!AI38)) -> 0.6 | AJ38: =IF(UserInterface!$E$76 = 1,CHOOSE(m_identity,'SHETL (Base)'!AJ38, 'SPTL (Base)'!AJ38, 'NGET TO (Base)'!AJ38),CHOOSE(m_identity,'SHETL (Best)'!AJ38, 'SPTL (Best)'!AJ38, 'NGET TO (Best)'!AJ38)) -> 0.6 | AK38: =IF(UserInterface!$E$76 = 1,CHOOSE(m_identity,'SHETL (Base)'!AK38, 'SPTL (Base)'!AK38, 'NGET TO (Base)'!AK38),CHOOSE(m_identity,'SHETL (Best)'!AK38, 'SPTL (Best)'!AK38, 'NGET TO (Best)'!AK38)) -> 0.6 | AL38: =IF(UserInterface!$E$76 = 1,CHOOSE(m_identity,'SHETL (Base)'!AL38, 'SPTL (Base)'!AL38, 'NGET TO (Base)'!AL38),CHOOSE(m_identity,'SHETL (Best)'!AL38, 'SPTL (Best)'!AL38, 'NGET TO (Best)'!AL38)) -> 0.6 | AM38: =IF(UserInterface!$E$76 = 1,CHOOSE(m_identity,'SHETL (Base)'!AM38, 'SPTL (Base)'!AM38, 'NGET TO (Base)'!AM38),CHOOSE(m_identity,'SHETL (Best)'!AM38, 'SPTL (Best)'!AM38, 'NGET TO (Best)'!AM38)) -> 0.6 | AN38: =IF(UserInterface!$E$76 = 1,CHOOSE(m_identity,'SHETL (Base)'!AN38, 'SPTL (Base)'!AN38, 'NGET TO (Base)'!AN38),CHOOSE(m_identity,'SHETL (Best)'!AN38, 'SPTL (Best)'!AN38, 'NGET TO (Best)'!AN38)) -> 0.6 | AO38: =IF(UserInterface!$E$76 = 1,CHOOSE(m_identity,'SHETL (Base)'!AO38, 'SPTL (Base)'!AO38, 'NGET TO (Base)'!AO38),CHOOSE(m_identity,'SHETL (Best)'!AO38, 'SPTL (Best)'!AO38, 'NGET TO (Best)'!AO38)) -> 0.6
E40: Vanilla WACC | G40: annual real % | AH40: =(AH36 * AH38) + (AH37 * (1 - AH38)) -> 0.04552 | AI40: 0.04552 | AJ40: 0.04552 | AK40: 0.04552 | AL40: 0.04552 | AM40: 0.04552 | AN40: 0.04552 | AO40: 0.04552
E42: Pre-RIIO closing notional gearing | G42: % | I42: =IF(UserInterface!$E$76 = 1,CHOOSE(m_identity,'SHETL (Base)'!I42, 'SPTL (Base)'!I42, 'NGET TO (Base)'!I42),CHOOSE(m_identity,'SHETL (Best)'!I42, 'SPTL (Best)'!I42, 'NGET TO (Best)'!I42)) -> 0.6113535324
E44: Forecast RPI (simple average year to March) | G44: index value | J44: > | V44: =IF(UserInterface!$E$76 = 1,CHOOSE(m_identity,'SHETL (Base)'!V44, 'SPTL (Base)'!V44, 'NGET TO (Base)'!V44),CHOOSE(m_identity,'SHETL (Best)'!V44, 'SPTL (Best)'!V44, 'NGET TO (Best)'!V44)) -> 173.875 | W44: =IF(UserInterface!$E$76 = 1,CHOOSE(m_identity,'SHETL (Base)'!W44, 'SPTL (Base)'!W44, 'NGET TO (Base)'!W44),CHOOSE(m_identity,'SHETL (Best)'!W44, 'SPTL (Best)'!W44, 'NGET TO (Best)'!W44)) -> 177.517 | X44: =IF(UserInterface!$E$76 = 1,CHOOSE(m_identity,'SHETL (Base)'!X44, 'SPTL (Base)'!X44, 'NGET TO (Base)'!X44),CHOOSE(m_identity,'SHETL (Best)'!X44, 'SPTL (Best)'!X44, 'NGET TO (Best)'!X44)) -> 182.475 | Y44: =IF(UserInterface!$E$76 = 1,CHOOSE(m_identity,'SHETL (Base)'!Y44, 'SPTL (Base)'!Y44, 'NGET TO (Base)'!Y44),CHOOSE(m_identity,'SHETL (Best)'!Y44, 'SPTL (Best)'!Y44, 'NGET TO (Best)'!Y44)) -> 188.15 | Z44: =IF(UserInterface!$E$76 = 1,CHOOSE(m_identity,'SHETL (Base)'!Z44, 'SPTL (Base)'!Z44, 'NGET TO (Base)'!Z44),CHOOSE(m_identity,'SHETL (Best)'!Z44, 'SPTL (Best)'!Z44, 'NGET TO (Best)'!Z44)) -> 193.108 | AA44: =IF(UserInterface!$E$76 = 1,CHOOSE(m_identity,'SHETL (Base)'!AA44, 'SPTL (Base)'!AA44, 'NGET TO (Base)'!AA44),CHOOSE(m_identity,'SHETL (Best)'!AA44, 'SPTL (Best)'!AA44, 'NGET TO (Best)'!AA44)) -> 200.317 | AB44: =IF(UserInterface!$E$76 = 1,CHOOSE(m_identity,'SHETL (Base)'!AB44, 'SPTL (Base)'!AB44, 'NGET TO (Base)'!AB44),CHOOSE(m_identity,'SHETL (Best)'!AB44, 'SPTL (Best)'!AB44, 'NGET TO (Best)'!AB44)) -> 208.592 | AC44: =IF(UserInterface!$E$76 = 1,CHOOSE(m_identity,'SHETL (Base)'!AC44, 'SPTL (Base)'!AC44, 'NGET TO (Base)'!AC44),CHOOSE(m_identity,'SHETL (Best)'!AC44, 'SPTL (Best)'!AC44, 'NGET TO (Best)'!AC44)) -> 214.783 | AD44: =IF(UserInterface!$E$76 = 1,CHOOSE(m_identity,'SHETL (Base)'!AD44, 'SPTL (Base)'!AD44, 'NGET TO (Base)'!AD44),CHOOSE(m_identity,'SHETL (Best)'!AD44, 'SPTL (Best)'!AD44, 'NGET TO (Best)'!AD44)) -> 215.767 | AE44: =IF(UserInterface!$E$76 = 1,CHOOSE(m_identity,'SHETL (Base)'!AE44, 'SPTL (Base)'!AE44, 'NGET TO (Base)'!AE44),CHOOSE(m_identity,'SHETL (Best)'!AE44, 'SPTL (Best)'!AE44, 'NGET TO (Best)'!AE44)) -> 226.475 | AF44: =IF(UserInterface!$E$76 = 1,CHOOSE(m_identity,'SHETL (Base)'!AF44, 'SPTL (Base)'!AF44, 'NGET TO (Base)'!AF44),CHOOSE(m_identity,'SHETL (Best)'!AF44, 'SPTL (Best)'!AF44, 'NGET TO (Best)'!AF44)) -> 237.342 | AG44: =IF(UserInterface!$E$76 = 1,CHOOSE(m_identity,'SHETL (Base)'!AG44, 'SPTL (Base)'!AG44, 'NGET TO (Base)'!AG44),CHOOSE(m_identity,'SHETL (Best)'!AG44, 'SPTL (Best)'!AG44, 'NGET TO (Best)'!AG44)) -> 243.988 | AH44: =IF(UserInterface!$E$76 = 1,CHOOSE(m_identity,'SHETL (Base)'!AH44, 'SPTL (Base)'!AH44, 'NGET TO (Base)'!AH44),CHOOSE(m_identity,'SHETL (Best)'!AH44, 'SPTL (Best)'!AH44, 'NGET TO (Best)'!AH44)) -> 250.82 | AI44: =IF(UserInterface!$E$76 = 1,CHOOSE(m_identity,'SHETL (Base)'!AI44, 'SPTL (Base)'!AI44, 'NGET TO (Base)'!AI44),CHOOSE(m_identity,'SHETL (Best)'!AI44, 'SPTL (Best)'!AI44, 'NGET TO (Best)'!AI44)) -> 257.843 | AJ44: =IF(UserInterface!$E$76 = 1,CHOOSE(m_identity,'SHETL (Base)'!AJ44, 'SPTL (Base)'!AJ44, 'NGET TO (Base)'!AJ44),CHOOSE(m_identity,'SHETL (Best)'!AJ44, 'SPTL (Best)'!AJ44, 'NGET TO (Best)'!AJ44)) -> 265.063 | AK44: =IF(UserInterface!$E$76 = 1,CHOOSE(m_identity,'SHETL (Base)'!AK44, 'SPTL (Base)'!AK44, 'NGET TO (Base)'!AK44),CHOOSE(m_identity,'SHETL (Best)'!AK44, 'SPTL (Best)'!AK44, 'NGET TO (Best)'!AK44)) -> 272.485 | AL44: =IF(UserInterface!$E$76 = 1,CHOOSE(m_identity,'SHETL (Base)'!AL44, 'SPTL (Base)'!AL44, 'NGET TO (Base)'!AL44),CHOOSE(m_identity,'SHETL (Best)'!AL44, 'SPTL (Best)'!AL44, 'NGET TO (Best)'!AL44)) -> 280.115 | AM44: =IF(UserInterface!$E$76 = 1,CHOOSE(m_identity,'SHETL (Base)'!AM44, 'SPTL (Base)'!AM44, 'NGET TO (Base)'!AM44),CHOOSE(m_identity,'SHETL (Best)'!AM44, 'SPTL (Best)'!AM44, 'NGET TO (Best)'!AM44)) -> 287.958 | AN44: =IF(UserInterface!$E$76 = 1,CHOOSE(m_identity,'SHETL (Base)'!AN44, 'SPTL (Base)'!AN44, 'NGET TO (Base)'!AN44),CHOOSE(m_identity,'SHETL (Best)'!AN44, 'SPTL (Best)'!AN44, 'NGET TO (Best)'!AN44)) -> 296.021 | AO44: =IF(UserInterface!$E$76 = 1,CHOOSE(m_identity,'SHETL (Base)'!AO44, 'SPTL (Base)'!AO44, 'NGET TO (Base)'!AO44),CHOOSE(m_identity,'SHETL (Best)'!AO44, 'SPTL (Best)'!AO44, 'NGET TO (Best)'!AO44)) -> 304.31
E45: Cost of Debt Inflation | G45: index value | J45: > | V45: =IF(UserInterface!$E$76 = 1,CHOOSE(m_identity,'SHETL (Base)'!V45, 'SPTL (Base)'!V45, 'NGET TO (Base)'!V45),CHOOSE(m_identity,'SHETL (Best)'!V45, 'SPTL (Best)'!V45, 'NGET TO (Best)'!V45)) -> 173.875 | W45: =IF(UserInterface!$E$76 = 1,CHOOSE(m_identity,'SHETL (Base)'!W45, 'SPTL (Base)'!W45, 'NGET TO (Base)'!W45),CHOOSE(m_identity,'SHETL (Best)'!W45, 'SPTL (Best)'!W45, 'NGET TO (Best)'!W45)) -> 177.517 | X45: =IF(UserInterface!$E$76 = 1,CHOOSE(m_identity,'SHETL (Base)'!X45, 'SPTL (Base)'!X45, 'NGET TO (Base)'!X45),CHOOSE(m_identity,'SHETL (Best)'!X45, 'SPTL (Best)'!X45, 'NGET TO (Best)'!X45)) -> 182.475 | Y45: =IF(UserInterface!$E$76 = 1,CHOOSE(m_identity,'SHETL (Base)'!Y45, 'SPTL (Base)'!Y45, 'NGET TO (Base)'!Y45),CHOOSE(m_identity,'SHETL (Best)'!Y45, 'SPTL (Best)'!Y45, 'NGET TO (Best)'!Y45)) -> 188.15 | Z45: =IF(UserInterface!$E$76 = 1,CHOOSE(m_identity,'SHETL (Base)'!Z45, 'SPTL (Base)'!Z45, 'NGET TO (Base)'!Z45),CHOOSE(m_identity,'SHETL (Best)'!Z45, 'SPTL (Best)'!Z45, 'NGET TO (Best)'!Z45)) -> 193.108 | AA45: =IF(UserInterface!$E$76 = 1,CHOOSE(m_identity,'SHETL (Base)'!AA45, 'SPTL (Base)'!AA45, 'NGET TO (Base)'!AA45),CHOOSE(m_identity,'SHETL (Best)'!AA45, 'SPTL (Best)'!AA45, 'NGET TO (Best)'!AA45)) -> 200.317 | AB45: =IF(UserInterface!$E$76 = 1,CHOOSE(m_identity,'SHETL (Base)'!AB45, 'SPTL (Base)'!AB45, 'NGET TO (Base)'!AB45),CHOOSE(m_identity,'SHETL (Best)'!AB45, 'SPTL (Best)'!AB45, 'NGET TO (Best)'!AB45)) -> 208.592 | AC45: =IF(UserInterface!$E$76 = 1,CHOOSE(m_identity,'SHETL (Base)'!AC45, 'SPTL (Base)'!AC45, 'NGET TO (Base)'!AC45),CHOOSE(m_identity,'SHETL (Best)'!AC45, 'SPTL (Best)'!AC45, 'NGET TO (Best)'!AC45)) -> 214.783 | AD45: =IF(UserInterface!$E$76 = 1,CHOOSE(m_identity,'SHETL (Base)'!AD45, 'SPTL (Base)'!AD45, 'NGET TO (Base)'!AD45),CHOOSE(m_identity,'SHETL (Best)'!AD45, 'SPTL (Best)'!AD45, 'NGET TO (Best)'!AD45)) -> 215.767 | AE45: =IF(UserInterface!$E$76 = 1,CHOOSE(m_identity,'SHETL (Base)'!AE45, 'SPTL (Base)'!AE45, 'NGET TO (Base)'!AE45),CHOOSE(m_identity,'SHETL (Best)'!AE45, 'SPTL (Best)'!AE45, 'NGET TO (Best)'!AE45)) -> 226.475 | AF45: =IF(UserInterface!$E$76 = 1,CHOOSE(m_identity,'SHETL (Base)'!AF45, 'SPTL (Base)'!AF45, 'NGET TO (Base)'!AF45),CHOOSE(m_identity,'SHETL (Best)'!AF45, 'SPTL (Best)'!AF45, 'NGET TO (Best)'!AF45)) -> 237.342 | AG45: =IF(UserInterface!$E$76 = 1,CHOOSE(m_identity,'SHETL (Base)'!AG45, 'SPTL (Base)'!AG45, 'NGET TO (Base)'!AG45),CHOOSE(m_identity,'SHETL (Best)'!AG45, 'SPTL (Best)'!AG45, 'NGET TO (Best)'!AG45)) -> 243.988 | AH45: =IF(UserInterface!$E$76 = 1,CHOOSE(m_identity,'SHETL (Base)'!AH45, 'SPTL (Base)'!AH45, 'NGET TO (Base)'!AH45),CHOOSE(m_identity,'SHETL (Best)'!AH45, 'SPTL (Best)'!AH45, 'NGET TO (Best)'!AH45)) -> 250.82 | AI45: =IF(UserInterface!$E$76 = 1,CHOOSE(m_identity,'SHETL (Base)'!AI45, 'SPTL (Base)'!AI45, 'NGET TO (Base)'!AI45),CHOOSE(m_identity,'SHETL (Best)'!AI45, 'SPTL (Best)'!AI45, 'NGET TO (Best)'!AI45)) -> 257.843 | AJ45: =IF(UserInterface!$E$76 = 1,CHOOSE(m_identity,'SHETL (Base)'!AJ45, 'SPTL (Base)'!AJ45, 'NGET TO (Base)'!AJ45),CHOOSE(m_identity,'SHETL (Best)'!AJ45, 'SPTL (Best)'!AJ45, 'NGET TO (Best)'!AJ45)) -> 265.063 | AK45: =IF(UserInterface!$E$76 = 1,CHOOSE(m_identity,'SHETL (Base)'!AK45, 'SPTL (Base)'!AK45, 'NGET TO (Base)'!AK45),CHOOSE(m_identity,'SHETL (Best)'!AK45, 'SPTL (Best)'!AK45, 'NGET TO (Best)'!AK45)) -> 272.485 | AL45: =IF(UserInterface!$E$76 = 1,CHOOSE(m_identity,'SHETL (Base)'!AL45, 'SPTL (Base)'!AL45, 'NGET TO (Base)'!AL45),CHOOSE(m_identity,'SHETL (Best)'!AL45, 'SPTL (Best)'!AL45, 'NGET TO (Best)'!AL45)) -> 280.115 | AM45: =IF(UserInterface!$E$76 = 1,CHOOSE(m_identity,'SHETL (Base)'!AM45, 'SPTL (Base)'!AM45, 'NGET TO (Base)'!AM45),CHOOSE(m_identity,'SHETL (Best)'!AM45, 'SPTL (Best)'!AM45, 'NGET TO (Best)'!AM45)) -> 287.958 | AN45: =IF(UserInterface!$E$76 = 1,CHOOSE(m_identity,'SHETL (Base)'!AN45, 'SPTL (Base)'!AN45, 'NGET TO (Base)'!AN45),CHOOSE(m_identity,'SHETL (Best)'!AN45, 'SPTL (Best)'!AN45, 'NGET TO (Best)'!AN45)) -> 296.021 | AO45: =IF(UserInterface!$E$76 = 1,CHOOSE(m_identity,'SHETL (Base)'!AO45, 'SPTL (Base)'!AO45, 'NGET TO (Base)'!AO45),CHOOSE(m_identity,'SHETL (Best)'!AO45, 'SPTL (Best)'!AO45, 'NGET TO (Best)'!AO45)) -> 304.31
C46: TIM and capitalisation
E48: Years from t until normal reporting of actual costs | G48: years | I48: =IF(UserInterface!$E$76 = 1,CHOOSE(m_identity,'SHETL (Base)'!I48, 'SPTL (Base)'!I48, 'NGET TO (Base)'!I48),CHOOSE(m_identity,'SHETL (Best)'!I48, 'SPTL (Best)'!I48, 'NGET TO (Best)'!I48)) -> 2
E50: Capitalised share of totex | G50: % | AH50: =IF(UserInterface!$E$76 = 1,CHOOSE(m_identity,'SHETL (Base)'!AH50, 'SPTL (Base)'!AH50, 'NGET TO (Base)'!AH50),CHOOSE(m_identity,'SHETL (Best)'!AH50, 'SPTL (Best)'!AH50, 'NGET TO (Best)'!AH50)) -> 0.85 | AI50: =IF(UserInterface!$E$76 = 1,CHOOSE(m_identity,'SHETL (Base)'!AI50, 'SPTL (Base)'!AI50, 'NGET TO (Base)'!AI50),CHOOSE(m_identity,'SHETL (Best)'!AI50, 'SPTL (Best)'!AI50, 'NGET TO (Best)'!AI50)) -> 0.85 | AJ50: =IF(UserInterface!$E$76 = 1,CHOOSE(m_identity,'SHETL (Base)'!AJ50, 'SPTL (Base)'!AJ50, 'NGET TO (Base)'!AJ50),CHOOSE(m_identity,'SHETL (Best)'!AJ50, 'SPTL (Best)'!AJ50, 'NGET TO (Best)'!AJ50)) -> 0.85 | AK50: =IF(UserInterface!$E$76 = 1,CHOOSE(m_identity,'SHETL (Base)'!AK50, 'SPTL (Base)'!AK50, 'NGET TO (Base)'!AK50),CHOOSE(m_identity,'SHETL (Best)'!AK50, 'SPTL (Best)'!AK50, 'NGET TO (Best)'!AK50)) -> 0.85 | AL50: =IF(UserInterface!$E$76 = 1,CHOOSE(m_identity,'SHETL (Base)'!AL50, 'SPTL (Base)'!AL50, 'NGET TO (Base)'!AL50),CHOOSE(m_identity,'SHETL (Best)'!AL50, 'SPTL (Best)'!AL50, 'NGET TO (Best)'!AL50)) -> 0.85 | AM50: =IF(UserInterface!$E$76 = 1,CHOOSE(m_identity,'SHETL (Base)'!AM50, 'SPTL (Base)'!AM50, 'NGET TO (Base)'!AM50),CHOOSE(m_identity,'SHETL (Best)'!AM50, 'SPTL (Best)'!AM50, 'NGET TO (Best)'!AM50)) -> 0.85 | AN50: =IF(UserInterface!$E$76 = 1,CHOOSE(m_identity,'SHETL (Base)'!AN50, 'SPTL (Base)'!AN50, 'NGET TO (Base)'!AN50),CHOOSE(m_identity,'SHETL (Best)'!AN50, 'SPTL (Best)'!AN50, 'NGET TO (Best)'!AN50)) -> 0.85 | AO50: =IF(UserInterface!$E$76 = 1,CHOOSE(m_identity,'SHETL (Base)'!AO50, 'SPTL (Base)'!AO50, 'NGET TO (Base)'!AO50),CHOOSE(m_identity,'SHETL (Best)'!AO50, 'SPTL (Best)'!AO50, 'NGET TO (Best)'!AO50)) -> 0.85
E51: Capitalised share of wider works | G51: % | AH51: =IF(UserInterface!$E$76 = 1,CHOOSE(m_identity,'SHETL (Base)'!AH51, 'SPTL (Base)'!AH51, 'NGET TO (Base)'!AH51),CHOOSE(m_identity,'SHETL (Best)'!AH51, 'SPTL (Best)'!AH51, 'NGET TO (Best)'!AH51)) -> 0.85 | AI51: =IF(UserInterface!$E$76 = 1,CHOOSE(m_identity,'SHETL (Base)'!AI51, 'SPTL (Base)'!AI51, 'NGET TO (Base)'!AI51),CHOOSE(m_identity,'SHETL (Best)'!AI51, 'SPTL (Best)'!AI51, 'NGET TO (Best)'!AI51)) -> 0.85 | AJ51: =IF(UserInterface!$E$76 = 1,CHOOSE(m_identity,'SHETL (Base)'!AJ51, 'SPTL (Base)'!AJ51, 'NGET TO (Base)'!AJ51),CHOOSE(m_identity,'SHETL (Best)'!AJ51, 'SPTL (Best)'!AJ51, 'NGET TO (Best)'!AJ51)) -> 0.85 | AK51: =IF(UserInterface!$E$76 = 1,CHOOSE(m_identity,'SHETL (Base)'!AK51, 'SPTL (Base)'!AK51, 'NGET TO (Base)'!AK51),CHOOSE(m_identity,'SHETL (Best)'!AK51, 'SPTL (Best)'!AK51, 'NGET TO (Best)'!AK51)) -> 0.85 | AL51: =IF(UserInterface!$E$76 = 1,CHOOSE(m_identity,'SHETL (Base)'!AL51, 'SPTL (Base)'!AL51, 'NGET TO (Base)'!AL51),CHOOSE(m_identity,'SHETL (Best)'!AL51, 'SPTL (Best)'!AL51, 'NGET TO (Best)'!AL51)) -> 0.85 | AM51: =IF(UserInterface!$E$76 = 1,CHOOSE(m_identity,'SHETL (Base)'!AM51, 'SPTL (Base)'!AM51, 'NGET TO (Base)'!AM51),CHOOSE(m_identity,'SHETL (Best)'!AM51, 'SPTL (Best)'!AM51, 'NGET TO (Best)'!AM51)) -> 0.85 | AN51: =IF(UserInterface!$E$76 = 1,CHOOSE(m_identity,'SHETL (Base)'!AN51, 'SPTL (Base)'!AN51, 'NGET TO (Base)'!AN51),CHOOSE(m_identity,'SHETL (Best)'!AN51, 'SPTL (Best)'!AN51, 'NGET TO (Best)'!AN51)) -> 0.85 | AO51: =IF(UserInterface!$E$76 = 1,CHOOSE(m_identity,'SHETL (Base)'!AO51, 'SPTL (Base)'!AO51, 'NGET TO (Base)'!AO51),CHOOSE(m_identity,'SHETL (Best)'!AO51, 'SPTL (Best)'!AO51, 'NGET TO (Best)'!AO51)) -> 0.85
E53: Incentive rate (slope) | G53: scalar | I53: =IF(UserInterface!$E$76 = 1,CHOOSE(m_identity,'SHETL (Base)'!I53, 'SPTL (Base)'!I53, 'NGET TO (Base)'!I53),CHOOSE(m_identity,'SHETL (Best)'!I53, 'SPTL (Best)'!I53, 'NGET TO (Best)'!I53)) -> -0.0025
E54: Incentive rate (intercept) | G54: scalar | I54: =IF(UserInterface!$E$76 = 1,CHOOSE(m_identity,'SHETL (Base)'!I54, 'SPTL (Base)'!I54, 'NGET TO (Base)'!I54),CHOOSE(m_identity,'SHETL (Best)'!I54, 'SPTL (Best)'!I54, 'NGET TO (Best)'!I54)) -> 0.75
E55: Additional income (intercept) | G55: scalar | I55: =IF(UserInterface!$E$76 = 1,CHOOSE(m_identity,'SHETL (Base)'!I55, 'SPTL (Base)'!I55, 'NGET TO (Base)'!I55),CHOOSE(m_identity,'SHETL (Best)'!I55, 'SPTL (Best)'!I55, 'NGET TO (Best)'!I55)) -> 8.75
E56: Additional Income (adjustment) | G56: £m 09/10 prices | AH56: =IF(UserInterface!$E$76 = 1,CHOOSE(m_identity,'SHETL (Base)'!AH56, 'SPTL (Base)'!AH56, 'NGET TO (Base)'!AH56),CHOOSE(m_identity,'SHETL (Best)'!AH56, 'SPTL (Best)'!AH56, 'NGET TO (Best)'!AH56)) -> 2.112301096 | AI56: =IF(UserInterface!$E$76 = 1,CHOOSE(m_identity,'SHETL (Base)'!AI56, 'SPTL (Base)'!AI56, 'NGET TO (Base)'!AI56),CHOOSE(m_identity,'SHETL (Best)'!AI56, 'SPTL (Best)'!AI56, 'NGET TO (Best)'!AI56)) -> 2.043075937 | AJ56: =IF(UserInterface!$E$76 = 1,CHOOSE(m_identity,'SHETL (Base)'!AJ56, 'SPTL (Base)'!AJ56, 'NGET TO (Base)'!AJ56),CHOOSE(m_identity,'SHETL (Best)'!AJ56, 'SPTL (Best)'!AJ56, 'NGET TO (Best)'!AJ56)) -> 2.000931562 | AK56: =IF(UserInterface!$E$76 = 1,CHOOSE(m_identity,'SHETL (Base)'!AK56, 'SPTL (Base)'!AK56, 'NGET TO (Base)'!AK56),CHOOSE(m_identity,'SHETL (Best)'!AK56, 'SPTL (Best)'!AK56, 'NGET TO (Best)'!AK56)) -> 1.958787188 | AL56: =IF(UserInterface!$E$76 = 1,CHOOSE(m_identity,'SHETL (Base)'!AL56, 'SPTL (Base)'!AL56, 'NGET TO (Base)'!AL56),CHOOSE(m_identity,'SHETL (Best)'!AL56, 'SPTL (Best)'!AL56, 'NGET TO (Best)'!AL56)) -> 1.916642813 | AM56: =IF(UserInterface!$E$76 = 1,CHOOSE(m_identity,'SHETL (Base)'!AM56, 'SPTL (Base)'!AM56, 'NGET TO (Base)'!AM56),CHOOSE(m_identity,'SHETL (Best)'!AM56, 'SPTL (Best)'!AM56, 'NGET TO (Best)'!AM56)) -> 1.874498438 | AN56: =IF(UserInterface!$E$76 = 1,CHOOSE(m_identity,'SHETL (Base)'!AN56, 'SPTL (Base)'!AN56, 'NGET TO (Base)'!AN56),CHOOSE(m_identity,'SHETL (Best)'!AN56, 'SPTL (Best)'!AN56, 'NGET TO (Best)'!AN56)) -> 1.832354063 | AO56: =IF(UserInterface!$E$76 = 1,CHOOSE(m_identity,'SHETL (Base)'!AO56, 'SPTL (Base)'!AO56, 'NGET TO (Base)'!AO56),CHOOSE(m_identity,'SHETL (Best)'!AO56, 'SPTL (Best)'!AO56, 'NGET TO (Best)'!AO56)) -> 1.790209688
E57: Weight of Ofgem's view on price control totex | G57: % | I57: =IF(UserInterface!$E$76 = 1,CHOOSE(m_identity,'SHETL (Base)'!I57, 'SPTL (Base)'!I57, 'NGET TO (Base)'!I57),CHOOSE(m_identity,'SHETL (Best)'!I57, 'SPTL (Best)'!I57, 'NGET TO (Best)'!I57)) -> 0.75
E58: Weight of operator's view on price control totex | G58: % | I58: =IF(UserInterface!$E$76 = 1,CHOOSE(m_identity,'SHETL (Base)'!I58, 'SPTL (Base)'!I58, 'NGET TO (Base)'!I58),CHOOSE(m_identity,'SHETL (Best)'!I58, 'SPTL (Best)'!I58, 'NGET TO (Best)'!I58)) -> 0.25
E60: Ofgem's view of licensee totex | G60: £m 09/10 prices | I60: =IF(UserInterface!$E$76 = 1,CHOOSE(m_identity,'SHETL (Base)'!I60, 'SPTL (Base)'!I60, 'NGET TO (Base)'!I60),CHOOSE(m_identity,'SHETL (Best)'!I60, 'SPTL (Best)'!I60, 'NGET TO (Best)'!I60)) -> 10961.97316
E61: Operator's view of licensee totex | G61: £m 09/10 prices | I61: =IF(UserInterface!$E$76 = 1,CHOOSE(m_identity,'SHETL (Base)'!I61, 'SPTL (Base)'!I61, 'NGET TO (Base)'!I61),CHOOSE(m_identity,'SHETL (Best)'!I61, 'SPTL (Best)'!I61, 'NGET TO (Best)'!I61)) -> 12278.83025
E63: Ofgem's view of group price control totex | G63: £m 09/10 prices | I63: =IF(UserInterface!$E$76 = 1,CHOOSE(m_identity,'SHETL (Base)'!I63, 'SPTL (Base)'!I63, 'NGET TO (Base)'!I63),CHOOSE(m_identity,'SHETL (Best)'!I63, 'SPTL (Best)'!I63, 'NGET TO (Best)'!I63)) -> 11784.97539
E64: Operator's view of group price control totex | G64: £m 09/10 prices | I64: =IF(UserInterface!$E$76 = 1,CHOOSE(m_identity,'SHETL (Base)'!I64, 'SPTL (Base)'!I64, 'NGET TO (Base)'!I64),CHOOSE(m_identity,'SHETL (Best)'!I64, 'SPTL (Best)'!I64, 'NGET TO (Best)'!I64)) -> 13249.13586
C66: Finance
E68: Minimum equity issuance threshold | G68: % | I68: =IF(UserInterface!$E$76 = 1,CHOOSE(m_identity,'SHETL (Base)'!I68, 'SPTL (Base)'!I68, 'NGET TO (Base)'!I68),CHOOSE(m_identity,'SHETL (Best)'!I68, 'SPTL (Best)'!I68, 'NGET TO (Best)'!I68)) -> 0.025
E69: Equity issuance costs | G69: % | I69: =IF(UserInterface!$E$76 = 1,CHOOSE(m_identity,'SHETL (Base)'!I69, 'SPTL (Base)'!I69, 'NGET TO (Base)'!I69),CHOOSE(m_identity,'SHETL (Best)'!I69, 'SPTL (Best)'!I69, 'NGET TO (Best)'!I69)) -> 0.05
E70: Assumed dividends as % of notional equity portion of RAV | G70: % | I70: =IF(UserInterface!$E$76 = 1,CHOOSE(m_identity,'SHETL (Base)'!I70, 'SPTL (Base)'!I70, 'NGET TO (Base)'!I70),CHOOSE(m_identity,'SHETL (Best)'!I70, 'SPTL (Best)'!I70, 'NGET TO (Best)'!I70)) -> 0.05
E72: Equity issuance gearing target | G72: % | AH72: =IF(UserInterface!$E$76 = 1,CHOOSE(m_identity,'SHETL (Base)'!AH72, 'SPTL (Base)'!AH72, 'NGET TO (Base)'!AH72),CHOOSE(m_identity,'SHETL (Best)'!AH72, 'SPTL (Best)'!AH72, 'NGET TO (Best)'!AH72)) -> 0.6 | AI72: =IF(UserInterface!$E$76 = 1,CHOOSE(m_identity,'SHETL (Base)'!AI72, 'SPTL (Base)'!AI72, 'NGET TO (Base)'!AI72),CHOOSE(m_identity,'SHETL (Best)'!AI72, 'SPTL (Best)'!AI72, 'NGET TO (Best)'!AI72)) -> 0.6 | AJ72: =IF(UserInterface!$E$76 = 1,CHOOSE(m_identity,'SHETL (Base)'!AJ72, 'SPTL (Base)'!AJ72, 'NGET TO (Base)'!AJ72),CHOOSE(m_identity,'SHETL (Best)'!AJ72, 'SPTL (Best)'!AJ72, 'NGET TO (Best)'!AJ72)) -> 0.6 | AK72: =IF(UserInterface!$E$76 = 1,CHOOSE(m_identity,'SHETL (Base)'!AK72, 'SPTL (Base)'!AK72, 'NGET TO (Base)'!AK72),CHOOSE(m_identity,'SHETL (Best)'!AK72, 'SPTL (Best)'!AK72, 'NGET TO (Best)'!AK72)) -> 0.6 | AL72: =IF(UserInterface!$E$76 = 1,CHOOSE(m_identity,'SHETL (Base)'!AL72, 'SPTL (Base)'!AL72, 'NGET TO (Base)'!AL72),CHOOSE(m_identity,'SHETL (Best)'!AL72, 'SPTL (Best)'!AL72, 'NGET TO (Best)'!AL72)) -> 0.6 | AM72: =IF(UserInterface!$E$76 = 1,CHOOSE(m_identity,'SHETL (Base)'!AM72, 'SPTL (Base)'!AM72, 'NGET TO (Base)'!AM72),CHOOSE(m_identity,'SHETL (Best)'!AM72, 'SPTL (Best)'!AM72, 'NGET TO (Best)'!AM72)) -> 0.6 | AN72: =IF(UserInterface!$E$76 = 1,CHOOSE(m_identity,'SHETL (Base)'!AN72, 'SPTL (Base)'!AN72, 'NGET TO (Base)'!AN72),CHOOSE(m_identity,'SHETL (Best)'!AN72, 'SPTL (Best)'!AN72, 'NGET TO (Best)'!AN72)) -> 0.6 | AO72: =IF(UserInterface!$E$76 = 1,CHOOSE(m_identity,'SHETL (Base)'!AO72, 'SPTL (Base)'!AO72, 'NGET TO (Base)'!AO72),CHOOSE(m_identity,'SHETL (Best)'!AO72, 'SPTL (Best)'!AO72, 'NGET TO (Best)'!AO72)) -> 0.6
E74: Index-linked debt as a percentage of net debt | G74: % | AH74: =IF(UserInterface!$E$76 = 1,CHOOSE(m_identity,'SHETL (Base)'!AH74, 'SPTL (Base)'!AH74, 'NGET TO (Base)'!AH74),CHOOSE(m_identity,'SHETL (Best)'!AH74, 'SPTL (Best)'!AH74, 'NGET TO (Best)'!AH74)) -> 0.25 | AI74: =IF(UserInterface!$E$76 = 1,CHOOSE(m_identity,'SHETL (Base)'!AI74, 'SPTL (Base)'!AI74, 'NGET TO (Base)'!AI74),CHOOSE(m_identity,'SHETL (Best)'!AI74, 'SPTL (Best)'!AI74, 'NGET TO (Best)'!AI74)) -> 0.25 | AJ74: =IF(UserInterface!$E$76 = 1,CHOOSE(m_identity,'SHETL (Base)'!AJ74, 'SPTL (Base)'!AJ74, 'NGET TO (Base)'!AJ74),CHOOSE(m_identity,'SHETL (Best)'!AJ74, 'SPTL (Best)'!AJ74, 'NGET TO (Best)'!AJ74)) -> 0.25 | AK74: =IF(UserInterface!$E$76 = 1,CHOOSE(m_identity,'SHETL (Base)'!AK74, 'SPTL (Base)'!AK74, 'NGET TO (Base)'!AK74),CHOOSE(m_identity,'SHETL (Best)'!AK74, 'SPTL (Best)'!AK74, 'NGET TO (Best)'!AK74)) -> 0.25 | AL74: =IF(UserInterface!$E$76 = 1,CHOOSE(m_identity,'SHETL (Base)'!AL74, 'SPTL (Base)'!AL74, 'NGET TO (Base)'!AL74),CHOOSE(m_identity,'SHETL (Best)'!AL74, 'SPTL (Best)'!AL74, 'NGET TO (Best)'!AL74)) -> 0.25 | AM74: =IF(UserInterface!$E$76 = 1,CHOOSE(m_identity,'SHETL (Base)'!AM74, 'SPTL (Base)'!AM74, 'NGET TO (Base)'!AM74),CHOOSE(m_identity,'SHETL (Best)'!AM74, 'SPTL (Best)'!AM74, 'NGET TO (Best)'!AM74)) -> 0.25 | AN74: =IF(UserInterface!$E$76 = 1,CHOOSE(m_identity,'SHETL (Base)'!AN74, 'SPTL (Base)'!AN74, 'NGET TO (Base)'!AN74),CHOOSE(m_identity,'SHETL (Best)'!AN74, 'SPTL (Best)'!AN74, 'NGET TO (Best)'!AN74)) -> 0.25 | AO74: =IF(UserInterface!$E$76 = 1,CHOOSE(m_identity,'SHETL (Base)'!AO74, 'SPTL (Base)'!AO74, 'NGET TO (Base)'!AO74),CHOOSE(m_identity,'SHETL (Best)'!AO74, 'SPTL (Best)'!AO74, 'NGET TO (Best)'!AO74)) -> 0.25
B76: Expenditure
C78: Totex
D80: Non-variant allowances
E82: Non-variant allowed load related capex expenditure | G82: £m 09/10 prices | AH82: =IF(UserInterface!$E$76 = 1,CHOOSE(m_identity,'SHETL (Base)'!AH82, 'SPTL (Base)'!AH82, 'NGET TO (Base)'!AH82),CHOOSE(m_identity,'SHETL (Best)'!AH82, 'SPTL (Best)'!AH82, 'NGET TO (Best)'!AH82)) -> 884.3768658 | AI82: =IF(UserInterface!$E$76 = 1,CHOOSE(m_identity,'SHETL (Base)'!AI82, 'SPTL (Base)'!AI82, 'NGET TO (Base)'!AI82),CHOOSE(m_identity,'SHETL (Best)'!AI82, 'SPTL (Best)'!AI82, 'NGET TO (Best)'!AI82)) -> 1029.663391 | AJ82: =IF(UserInterface!$E$76 = 1,CHOOSE(m_identity,'SHETL (Base)'!AJ82, 'SPTL (Base)'!AJ82, 'NGET TO (Base)'!AJ82),CHOOSE(m_identity,'SHETL (Best)'!AJ82, 'SPTL (Best)'!AJ82, 'NGET TO (Best)'!AJ82)) -> 962.2101749 | AK82: =IF(UserInterface!$E$76 = 1,CHOOSE(m_identity,'SHETL (Base)'!AK82, 'SPTL (Base)'!AK82, 'NGET TO (Base)'!AK82),CHOOSE(m_identity,'SHETL (Best)'!AK82, 'SPTL (Best)'!AK82, 'NGET TO (Best)'!AK82)) -> 876.7216915 | AL82: =IF(UserInterface!$E$76 = 1,CHOOSE(m_identity,'SHETL (Base)'!AL82, 'SPTL (Base)'!AL82, 'NGET TO (Base)'!AL82),CHOOSE(m_identity,'SHETL (Best)'!AL82, 'SPTL (Best)'!AL82, 'NGET TO (Best)'!AL82)) -> 519.2907735 | AM82: =IF(UserInterface!$E$76 = 1,CHOOSE(m_identity,'SHETL (Base)'!AM82, 'SPTL (Base)'!AM82, 'NGET TO (Base)'!AM82),CHOOSE(m_identity,'SHETL (Best)'!AM82, 'SPTL (Best)'!AM82, 'NGET TO (Best)'!AM82)) -> 373.012165 | AN82: =IF(UserInterface!$E$76 = 1,CHOOSE(m_identity,'SHETL (Base)'!AN82, 'SPTL (Base)'!AN82, 'NGET TO (Base)'!AN82),CHOOSE(m_identity,'SHETL (Best)'!AN82, 'SPTL (Best)'!AN82, 'NGET TO (Best)'!AN82)) -> 153.8203129 | AO82: =IF(UserInterface!$E$76 = 1,CHOOSE(m_identity,'SHETL (Base)'!AO82, 'SPTL (Base)'!AO82, 'NGET TO (Base)'!AO82),CHOOSE(m_identity,'SHETL (Best)'!AO82, 'SPTL (Best)'!AO82, 'NGET TO (Best)'!AO82)) -> 61.8214422
E83: Non-variant allowed asset replacement capex expenditure | G83: £m 09/10 prices | AH83: =IF(UserInterface!$E$76 = 1,CHOOSE(m_identity,'SHETL (Base)'!AH83, 'SPTL (Base)'!AH83, 'NGET TO (Base)'!AH83),CHOOSE(m_identity,'SHETL (Best)'!AH83, 'SPTL (Best)'!AH83, 'NGET TO (Best)'!AH83)) -> 468.8084321 | AI83: =IF(UserInterface!$E$76 = 1,CHOOSE(m_identity,'SHETL (Base)'!AI83, 'SPTL (Base)'!AI83, 'NGET TO (Base)'!AI83),CHOOSE(m_identity,'SHETL (Best)'!AI83, 'SPTL (Best)'!AI83, 'NGET TO (Best)'!AI83)) -> 464.0539988 | AJ83: =IF(UserInterface!$E$76 = 1,CHOOSE(m_identity,'SHETL (Base)'!AJ83, 'SPTL (Base)'!AJ83, 'NGET TO (Base)'!AJ83),CHOOSE(m_identity,'SHETL (Best)'!AJ83, 'SPTL (Best)'!AJ83, 'NGET TO (Best)'!AJ83)) -> 458.9694018 | AK83: =IF(UserInterface!$E$76 = 1,CHOOSE(m_identity,'SHETL (Base)'!AK83, 'SPTL (Base)'!AK83, 'NGET TO (Base)'!AK83),CHOOSE(m_identity,'SHETL (Best)'!AK83, 'SPTL (Best)'!AK83, 'NGET TO (Best)'!AK83)) -> 462.2051567 | AL83: =IF(UserInterface!$E$76 = 1,CHOOSE(m_identity,'SHETL (Base)'!AL83, 'SPTL (Base)'!AL83, 'NGET TO (Base)'!AL83),CHOOSE(m_identity,'SHETL (Best)'!AL83, 'SPTL (Best)'!AL83, 'NGET TO (Best)'!AL83)) -> 597.3961699 | AM83: =IF(UserInterface!$E$76 = 1,CHOOSE(m_identity,'SHETL (Base)'!AM83, 'SPTL (Base)'!AM83, 'NGET TO (Base)'!AM83),CHOOSE(m_identity,'SHETL (Best)'!AM83, 'SPTL (Best)'!AM83, 'NGET TO (Best)'!AM83)) -> 694.9536236 | AN83: =IF(UserInterface!$E$76 = 1,CHOOSE(m_identity,'SHETL (Base)'!AN83, 'SPTL (Base)'!AN83, 'NGET TO (Base)'!AN83),CHOOSE(m_identity,'SHETL (Best)'!AN83, 'SPTL (Best)'!AN83, 'NGET TO (Best)'!AN83)) -> 760.4713341 | AO83: =IF(UserInterface!$E$76 = 1,CHOOSE(m_identity,'SHETL (Base)'!AO83, 'SPTL (Base)'!AO83, 'NGET TO (Base)'!AO83),CHOOSE(m_identity,'SHETL (Best)'!AO83, 'SPTL (Best)'!AO83, 'NGET TO (Best)'!AO83)) -> 680.3753404
E84: Non-variant allowed other capex expenditure | G84: £m 09/10 prices | AH84: =IF(UserInterface!$E$76 = 1,CHOOSE(m_identity,'SHETL (Base)'!AH84, 'SPTL (Base)'!AH84, 'NGET TO (Base)'!AH84),CHOOSE(m_identity,'SHETL (Best)'!AH84, 'SPTL (Best)'!AH84, 'NGET TO (Best)'!AH84)) -> 8.80768 | AI84: =IF(UserInterface!$E$76 = 1,CHOOSE(m_identity,'SHETL (Base)'!AI84, 'SPTL (Base)'!AI84, 'NGET TO (Base)'!AI84),CHOOSE(m_identity,'SHETL (Best)'!AI84, 'SPTL (Best)'!AI84, 'NGET TO (Best)'!AI84)) -> 7.25688 | AJ84: =IF(UserInterface!$E$76 = 1,CHOOSE(m_identity,'SHETL (Base)'!AJ84, 'SPTL (Base)'!AJ84, 'NGET TO (Base)'!AJ84),CHOOSE(m_identity,'SHETL (Best)'!AJ84, 'SPTL (Best)'!AJ84, 'NGET TO (Best)'!AJ84)) -> 5.941 | AK84: =IF(UserInterface!$E$76 = 1,CHOOSE(m_identity,'SHETL (Base)'!AK84, 'SPTL (Base)'!AK84, 'NGET TO (Base)'!AK84),CHOOSE(m_identity,'SHETL (Best)'!AK84, 'SPTL (Best)'!AK84, 'NGET TO (Best)'!AK84)) -> 8.25228 | AL84: =IF(UserInterface!$E$76 = 1,CHOOSE(m_identity,'SHETL (Base)'!AL84, 'SPTL (Base)'!AL84, 'NGET TO (Base)'!AL84),CHOOSE(m_identity,'SHETL (Best)'!AL84, 'SPTL (Best)'!AL84, 'NGET TO (Best)'!AL84)) -> 7.90532 | AM84: =IF(UserInterface!$E$76 = 1,CHOOSE(m_identity,'SHETL (Base)'!AM84, 'SPTL (Base)'!AM84, 'NGET TO (Base)'!AM84),CHOOSE(m_identity,'SHETL (Best)'!AM84, 'SPTL (Best)'!AM84, 'NGET TO (Best)'!AM84)) -> 10.71164 | AN84: =IF(UserInterface!$E$76 = 1,CHOOSE(m_identity,'SHETL (Base)'!AN84, 'SPTL (Base)'!AN84, 'NGET TO (Base)'!AN84),CHOOSE(m_identity,'SHETL (Best)'!AN84, 'SPTL (Best)'!AN84, 'NGET TO (Best)'!AN84)) -> 10.66964 | AO84: =IF(UserInterface!$E$76 = 1,CHOOSE(m_identity,'SHETL (Base)'!AO84, 'SPTL (Base)'!AO84, 'NGET TO (Base)'!AO84),CHOOSE(m_identity,'SHETL (Best)'!AO84, 'SPTL (Best)'!AO84, 'NGET TO (Best)'!AO84)) -> 11.88064
E85: Non-variant allowed controllable opex | G85: £m 09/10 prices | AH85: =IF(UserInterface!$E$76 = 1,CHOOSE(m_identity,'SHETL (Base)'!AH85, 'SPTL (Base)'!AH85, 'NGET TO (Base)'!AH85),CHOOSE(m_identity,'SHETL (Best)'!AH85, 'SPTL (Best)'!AH85, 'NGET TO (Best)'!AH85)) -> 192.2128263 | AI85: =IF(UserInterface!$E$76 = 1,CHOOSE(m_identity,'SHETL (Base)'!AI85, 'SPTL (Base)'!AI85, 'NGET TO (Base)'!AI85),CHOOSE(m_identity,'SHETL (Best)'!AI85, 'SPTL (Best)'!AI85, 'NGET TO (Best)'!AI85)) -> 196.4120407 | AJ85: =IF(UserInterface!$E$76 = 1,CHOOSE(m_identity,'SHETL (Base)'!AJ85, 'SPTL (Base)'!AJ85, 'NGET TO (Base)'!AJ85),CHOOSE(m_identity,'SHETL (Best)'!AJ85, 'SPTL (Best)'!AJ85, 'NGET TO (Best)'!AJ85)) -> 203.0471066 | AK85: =IF(UserInterface!$E$76 = 1,CHOOSE(m_identity,'SHETL (Base)'!AK85, 'SPTL (Base)'!AK85, 'NGET TO (Base)'!AK85),CHOOSE(m_identity,'SHETL (Best)'!AK85, 'SPTL (Best)'!AK85, 'NGET TO (Best)'!AK85)) -> 204.3517168 | AL85: =IF(UserInterface!$E$76 = 1,CHOOSE(m_identity,'SHETL (Base)'!AL85, 'SPTL (Base)'!AL85, 'NGET TO (Base)'!AL85),CHOOSE(m_identity,'SHETL (Best)'!AL85, 'SPTL (Best)'!AL85, 'NGET TO (Best)'!AL85)) -> 205.7220397 | AM85: =IF(UserInterface!$E$76 = 1,CHOOSE(m_identity,'SHETL (Base)'!AM85, 'SPTL (Base)'!AM85, 'NGET TO (Base)'!AM85),CHOOSE(m_identity,'SHETL (Best)'!AM85, 'SPTL (Best)'!AM85, 'NGET TO (Best)'!AM85)) -> 206.0644405 | AN85: =IF(UserInterface!$E$76 = 1,CHOOSE(m_identity,'SHETL (Base)'!AN85, 'SPTL (Base)'!AN85, 'NGET TO (Base)'!AN85),CHOOSE(m_identity,'SHETL (Best)'!AN85, 'SPTL (Best)'!AN85, 'NGET TO (Best)'!AN85)) -> 207.83891 | AO85: =IF(UserInterface!$E$76 = 1,CHOOSE(m_identity,'SHETL (Base)'!AO85, 'SPTL (Base)'!AO85, 'NGET TO (Base)'!AO85),CHOOSE(m_identity,'SHETL (Best)'!AO85, 'SPTL (Best)'!AO85, 'NGET TO (Best)'!AO85)) -> 208.2040553
E86: Non-variant allowed non-operational capex | G86: £m 09/10 prices | AH86: =IF(UserInterface!$E$76 = 1,CHOOSE(m_identity,'SHETL (Base)'!AH86, 'SPTL (Base)'!AH86, 'NGET TO (Base)'!AH86),CHOOSE(m_identity,'SHETL (Best)'!AH86, 'SPTL (Best)'!AH86, 'NGET TO (Best)'!AH86)) -> 28.50225287 | AI86: =IF(UserInterface!$E$76 = 1,CHOOSE(m_identity,'SHETL (Base)'!AI86, 'SPTL (Base)'!AI86, 'NGET TO (Base)'!AI86),CHOOSE(m_identity,'SHETL (Best)'!AI86, 'SPTL (Best)'!AI86, 'NGET TO (Best)'!AI86)) -> 27.89321936 | AJ86: =IF(UserInterface!$E$76 = 1,CHOOSE(m_identity,'SHETL (Base)'!AJ86, 'SPTL (Base)'!AJ86, 'NGET TO (Base)'!AJ86),CHOOSE(m_identity,'SHETL (Best)'!AJ86, 'SPTL (Best)'!AJ86, 'NGET TO (Best)'!AJ86)) -> 20.16289582 | AK86: =IF(UserInterface!$E$76 = 1,CHOOSE(m_identity,'SHETL (Base)'!AK86, 'SPTL (Base)'!AK86, 'NGET TO (Base)'!AK86),CHOOSE(m_identity,'SHETL (Best)'!AK86, 'SPTL (Best)'!AK86, 'NGET TO (Best)'!AK86)) -> 18.68399486 | AL86: =IF(UserInterface!$E$76 = 1,CHOOSE(m_identity,'SHETL (Base)'!AL86, 'SPTL (Base)'!AL86, 'NGET TO (Base)'!AL86),CHOOSE(m_identity,'SHETL (Best)'!AL86, 'SPTL (Best)'!AL86, 'NGET TO (Best)'!AL86)) -> 17.31743474 | AM86: =IF(UserInterface!$E$76 = 1,CHOOSE(m_identity,'SHETL (Base)'!AM86, 'SPTL (Base)'!AM86, 'NGET TO (Base)'!AM86),CHOOSE(m_identity,'SHETL (Best)'!AM86, 'SPTL (Best)'!AM86, 'NGET TO (Best)'!AM86)) -> 10.13227357 | AN86: =IF(UserInterface!$E$76 = 1,CHOOSE(m_identity,'SHETL (Base)'!AN86, 'SPTL (Base)'!AN86, 'NGET TO (Base)'!AN86),CHOOSE(m_identity,'SHETL (Best)'!AN86, 'SPTL (Best)'!AN86, 'NGET TO (Best)'!AN86)) -> 13.10983634 | AO86: =IF(UserInterface!$E$76 = 1,CHOOSE(m_identity,'SHETL (Base)'!AO86, 'SPTL (Base)'!AO86, 'NGET TO (Base)'!AO86),CHOOSE(m_identity,'SHETL (Best)'!AO86, 'SPTL (Best)'!AO86, 'NGET TO (Best)'!AO86)) -> 11.95703552
D88: Variant allowances
E90: =E14 -> Uncertain costs - enhanced security | G90: £m 09/10 prices | AH90: =AH14 -> 5.209369446 | AI90: =AI14 -> 6.320625056 | AJ90: 6.50577403 | AK90: 6.815018912 | AL90: 6.549695246 | AM90: 6.622167884 | AN90: 6.704402903 | AO90: 6.787659128
E91: Allocation to load related capex expenditure | G91: % | AH91: =IF(UserInterface!$E$76 = 1,CHOOSE(m_identity,'SHETL (Base)'!AH91, 'SPTL (Base)'!AH91, 'NGET TO (Base)'!AH91),CHOOSE(m_identity,'SHETL (Best)'!AH91, 'SPTL (Best)'!AH91, 'NGET TO (Best)'!AH91)) -> 0 | AI91: =IF(UserInterface!$E$76 = 1,CHOOSE(m_identity,'SHETL (Base)'!AI91, 'SPTL (Base)'!AI91, 'NGET TO (Base)'!AI91),CHOOSE(m_identity,'SHETL (Best)'!AI91, 'SPTL (Best)'!AI91, 'NGET TO (Best)'!AI91)) -> 0 | AJ91: =IF(UserInterface!$E$76 = 1,CHOOSE(m_identity,'SHETL (Base)'!AJ91, 'SPTL (Base)'!AJ91, 'NGET TO (Base)'!AJ91),CHOOSE(m_identity,'SHETL (Best)'!AJ91, 'SPTL (Best)'!AJ91, 'NGET TO (Best)'!AJ91)) -> 0 | AK91: =IF(UserInterface!$E$76 = 1,CHOOSE(m_identity,'SHETL (Base)'!AK91, 'SPTL (Base)'!AK91, 'NGET TO (Base)'!AK91),CHOOSE(m_identity,'SHETL (Best)'!AK91, 'SPTL (Best)'!AK91, 'NGET TO (Best)'!AK91)) -> 0 | AL91: =IF(UserInterface!$E$76 = 1,CHOOSE(m_identity,'SHETL (Base)'!AL91, 'SPTL (Base)'!AL91, 'NGET TO (Base)'!AL91),CHOOSE(m_identity,'SHETL (Best)'!AL91, 'SPTL (Best)'!AL91, 'NGET TO (Best)'!AL91)) -> 0 | AM91: =IF(UserInterface!$E$76 = 1,CHOOSE(m_identity,'SHETL (Base)'!AM91, 'SPTL (Base)'!AM91, 'NGET TO (Base)'!AM91),CHOOSE(m_identity,'SHETL (Best)'!AM91, 'SPTL (Best)'!AM91, 'NGET TO (Best)'!AM91)) -> 0 | AN91: =IF(UserInterface!$E$76 = 1,CHOOSE(m_identity,'SHETL (Base)'!AN91, 'SPTL (Base)'!AN91, 'NGET TO (Base)'!AN91),CHOOSE(m_identity,'SHETL (Best)'!AN91, 'SPTL (Best)'!AN91, 'NGET TO (Best)'!AN91)) -> 0 | AO91: =IF(UserInterface!$E$76 = 1,CHOOSE(m_identity,'SHETL (Base)'!AO91, 'SPTL (Base)'!AO91, 'NGET TO (Base)'!AO91),CHOOSE(m_identity,'SHETL (Best)'!AO91, 'SPTL (Best)'!AO91, 'NGET TO (Best)'!AO91)) -> 0
E92: Allocation to asset replacement capex expenditure | G92: % | AH92: =IF(UserInterface!$E$76 = 1,CHOOSE(m_identity,'SHETL (Base)'!AH92, 'SPTL (Base)'!AH92, 'NGET TO (Base)'!AH92),CHOOSE(m_identity,'SHETL (Best)'!AH92, 'SPTL (Best)'!AH92, 'NGET TO (Best)'!AH92)) -> 0 | AI92: =IF(UserInterface!$E$76 = 1,CHOOSE(m_identity,'SHETL (Base)'!AI92, 'SPTL (Base)'!AI92, 'NGET TO (Base)'!AI92),CHOOSE(m_identity,'SHETL (Best)'!AI92, 'SPTL (Best)'!AI92, 'NGET TO (Best)'!AI92)) -> 0 | AJ92: =IF(UserInterface!$E$76 = 1,CHOOSE(m_identity,'SHETL (Base)'!AJ92, 'SPTL (Base)'!AJ92, 'NGET TO (Base)'!AJ92),CHOOSE(m_identity,'SHETL (Best)'!AJ92, 'SPTL (Best)'!AJ92, 'NGET TO (Best)'!AJ92)) -> 0 | AK92: =IF(UserInterface!$E$76 = 1,CHOOSE(m_identity,'SHETL (Base)'!AK92, 'SPTL (Base)'!AK92, 'NGET TO (Base)'!AK92),CHOOSE(m_identity,'SHETL (Best)'!AK92, 'SPTL (Best)'!AK92, 'NGET TO (Best)'!AK92)) -> 0 | AL92: =IF(UserInterface!$E$76 = 1,CHOOSE(m_identity,'SHETL (Base)'!AL92, 'SPTL (Base)'!AL92, 'NGET TO (Base)'!AL92),CHOOSE(m_identity,'SHETL (Best)'!AL92, 'SPTL (Best)'!AL92, 'NGET TO (Best)'!AL92)) -> 0 | AM92: =IF(UserInterface!$E$76 = 1,CHOOSE(m_identity,'SHETL (Base)'!AM92, 'SPTL (Base)'!AM92, 'NGET TO (Base)'!AM92),CHOOSE(m_identity,'SHETL (Best)'!AM92, 'SPTL (Best)'!AM92, 'NGET TO (Best)'!AM92)) -> 0 | AN92: =IF(UserInterface!$E$76 = 1,CHOOSE(m_identity,'SHETL (Base)'!AN92, 'SPTL (Base)'!AN92, 'NGET TO (Base)'!AN92),CHOOSE(m_identity,'SHETL (Best)'!AN92, 'SPTL (Best)'!AN92, 'NGET TO (Best)'!AN92)) -> 0 | AO92: =IF(UserInterface!$E$76 = 1,CHOOSE(m_identity,'SHETL (Base)'!AO92, 'SPTL (Base)'!AO92, 'NGET TO (Base)'!AO92),CHOOSE(m_identity,'SHETL (Best)'!AO92, 'SPTL (Best)'!AO92, 'NGET TO (Best)'!AO92)) -> 0
E93: Allocation to other capex expenditure | G93: % | AH93: =IF(UserInterface!$E$76 = 1,CHOOSE(m_identity,'SHETL (Base)'!AH93, 'SPTL (Base)'!AH93, 'NGET TO (Base)'!AH93),CHOOSE(m_identity,'SHETL (Best)'!AH93, 'SPTL (Best)'!AH93, 'NGET TO (Best)'!AH93)) -> 0.9379664251 | AI93: =IF(UserInterface!$E$76 = 1,CHOOSE(m_identity,'SHETL (Base)'!AI93, 'SPTL (Base)'!AI93, 'NGET TO (Base)'!AI93),CHOOSE(m_identity,'SHETL (Best)'!AI93, 'SPTL (Best)'!AI93, 'NGET TO (Best)'!AI93)) -> 0.8752294861 | AJ93: =IF(UserInterface!$E$76 = 1,CHOOSE(m_identity,'SHETL (Base)'!AJ93, 'SPTL (Base)'!AJ93, 'NGET TO (Base)'!AJ93),CHOOSE(m_identity,'SHETL (Best)'!AJ93, 'SPTL (Best)'!AJ93, 'NGET TO (Best)'!AJ93)) -> 0.4887584045 | AK93: =IF(UserInterface!$E$76 = 1,CHOOSE(m_identity,'SHETL (Base)'!AK93, 'SPTL (Base)'!AK93, 'NGET TO (Base)'!AK93),CHOOSE(m_identity,'SHETL (Best)'!AK93, 'SPTL (Best)'!AK93, 'NGET TO (Best)'!AK93)) -> 0.6296516044 | AL93: =IF(UserInterface!$E$76 = 1,CHOOSE(m_identity,'SHETL (Base)'!AL93, 'SPTL (Base)'!AL93, 'NGET TO (Base)'!AL93),CHOOSE(m_identity,'SHETL (Best)'!AL93, 'SPTL (Best)'!AL93, 'NGET TO (Best)'!AL93)) -> 0.2579769131 | AM93: =IF(UserInterface!$E$76 = 1,CHOOSE(m_identity,'SHETL (Base)'!AM93, 'SPTL (Base)'!AM93, 'NGET TO (Base)'!AM93),CHOOSE(m_identity,'SHETL (Best)'!AM93, 'SPTL (Best)'!AM93, 'NGET TO (Best)'!AM93)) -> 0.2582132785 | AN93: =IF(UserInterface!$E$76 = 1,CHOOSE(m_identity,'SHETL (Base)'!AN93, 'SPTL (Base)'!AN93, 'NGET TO (Base)'!AN93),CHOOSE(m_identity,'SHETL (Best)'!AN93, 'SPTL (Best)'!AN93, 'NGET TO (Best)'!AN93)) -> 0.2581700151 | AO93: =IF(UserInterface!$E$76 = 1,CHOOSE(m_identity,'SHETL (Base)'!AO93, 'SPTL (Base)'!AO93, 'NGET TO (Base)'!AO93),CHOOSE(m_identity,'SHETL (Best)'!AO93, 'SPTL (Best)'!AO93, 'NGET TO (Best)'!AO93)) -> 0.2581154085
E94: Allocation to controllable opex | G94: % | AH94: =IF(UserInterface!$E$76 = 1,CHOOSE(m_identity,'SHETL (Base)'!AH94, 'SPTL (Base)'!AH94, 'NGET TO (Base)'!AH94),CHOOSE(m_identity,'SHETL (Best)'!AH94, 'SPTL (Best)'!AH94, 'NGET TO (Best)'!AH94)) -> 0.06203357495 | AI94: =IF(UserInterface!$E$76 = 1,CHOOSE(m_identity,'SHETL (Base)'!AI94, 'SPTL (Base)'!AI94, 'NGET TO (Base)'!AI94),CHOOSE(m_identity,'SHETL (Best)'!AI94, 'SPTL (Best)'!AI94, 'NGET TO (Best)'!AI94)) -> 0.1247705139 | AJ94: =IF(UserInterface!$E$76 = 1,CHOOSE(m_identity,'SHETL (Base)'!AJ94, 'SPTL (Base)'!AJ94, 'NGET TO (Base)'!AJ94),CHOOSE(m_identity,'SHETL (Best)'!AJ94, 'SPTL (Best)'!AJ94, 'NGET TO (Best)'!AJ94)) -> 0.5112415955 | AK94: =IF(UserInterface!$E$76 = 1,CHOOSE(m_identity,'SHETL (Base)'!AK94, 'SPTL (Base)'!AK94, 'NGET TO (Base)'!AK94),CHOOSE(m_identity,'SHETL (Best)'!AK94, 'SPTL (Best)'!AK94, 'NGET TO (Best)'!AK94)) -> 0.3703483956 | AL94: =IF(UserInterface!$E$76 = 1,CHOOSE(m_identity,'SHETL (Base)'!AL94, 'SPTL (Base)'!AL94, 'NGET TO (Base)'!AL94),CHOOSE(m_identity,'SHETL (Best)'!AL94, 'SPTL (Best)'!AL94, 'NGET TO (Best)'!AL94)) -> 0.7420230869 | AM94: =IF(UserInterface!$E$76 = 1,CHOOSE(m_identity,'SHETL (Base)'!AM94, 'SPTL (Base)'!AM94, 'NGET TO (Base)'!AM94),CHOOSE(m_identity,'SHETL (Best)'!AM94, 'SPTL (Best)'!AM94, 'NGET TO (Best)'!AM94)) -> 0.7417867215 | AN94: =IF(UserInterface!$E$76 = 1,CHOOSE(m_identity,'SHETL (Base)'!AN94, 'SPTL (Base)'!AN94, 'NGET TO (Base)'!AN94),CHOOSE(m_identity,'SHETL (Best)'!AN94, 'SPTL (Best)'!AN94, 'NGET TO (Best)'!AN94)) -> 0.7418299849 | AO94: =IF(UserInterface!$E$76 = 1,CHOOSE(m_identity,'SHETL (Base)'!AO94, 'SPTL (Base)'!AO94, 'NGET TO (Base)'!AO94),CHOOSE(m_identity,'SHETL (Best)'!AO94, 'SPTL (Best)'!AO94, 'NGET TO (Best)'!AO94)) -> 0.7418845915
E95: Allocation to non-operational capex | G95: % | AH95: =IF(UserInterface!$E$76 = 1,CHOOSE(m_identity,'SHETL (Base)'!AH95, 'SPTL (Base)'!AH95, 'NGET TO (Base)'!AH95),CHOOSE(m_identity,'SHETL (Best)'!AH95, 'SPTL (Best)'!AH95, 'NGET TO (Best)'!AH95)) -> 0 | AI95: =IF(UserInterface!$E$76 = 1,CHOOSE(m_identity,'SHETL (Base)'!AI95, 'SPTL (Base)'!AI95, 'NGET TO (Base)'!AI95),CHOOSE(m_identity,'SHETL (Best)'!AI95, 'SPTL (Best)'!AI95, 'NGET TO (Best)'!AI95)) -> 0 | AJ95: =IF(UserInterface!$E$76 = 1,CHOOSE(m_identity,'SHETL (Base)'!AJ95, 'SPTL (Base)'!AJ95, 'NGET TO (Base)'!AJ95),CHOOSE(m_identity,'SHETL (Best)'!AJ95, 'SPTL (Best)'!AJ95, 'NGET TO (Best)'!AJ95)) -> 0 | AK95: =IF(UserInterface!$E$76 = 1,CHOOSE(m_identity,'SHETL (Base)'!AK95, 'SPTL (Base)'!AK95, 'NGET TO (Base)'!AK95),CHOOSE(m_identity,'SHETL (Best)'!AK95, 'SPTL (Best)'!AK95, 'NGET TO (Best)'!AK95)) -> 0 | AL95: =IF(UserInterface!$E$76 = 1,CHOOSE(m_identity,'SHETL (Base)'!AL95, 'SPTL (Base)'!AL95, 'NGET TO (Base)'!AL95),CHOOSE(m_identity,'SHETL (Best)'!AL95, 'SPTL (Best)'!AL95, 'NGET TO (Best)'!AL95)) -> 0 | AM95: =IF(UserInterface!$E$76 = 1,CHOOSE(m_identity,'SHETL (Base)'!AM95, 'SPTL (Base)'!AM95, 'NGET TO (Base)'!AM95),CHOOSE(m_identity,'SHETL (Best)'!AM95, 'SPTL (Best)'!AM95, 'NGET TO (Best)'!AM95)) -> 0 | AN95: =IF(UserInterface!$E$76 = 1,CHOOSE(m_identity,'SHETL (Base)'!AN95, 'SPTL (Base)'!AN95, 'NGET TO (Base)'!AN95),CHOOSE(m_identity,'SHETL (Best)'!AN95, 'SPTL (Best)'!AN95, 'NGET TO (Best)'!AN95)) -> 0 | AO95: =IF(UserInterface!$E$76 = 1,CHOOSE(m_identity,'SHETL (Base)'!AO95, 'SPTL (Base)'!AO95, 'NGET TO (Base)'!AO95),CHOOSE(m_identity,'SHETL (Best)'!AO95, 'SPTL (Best)'!AO95, 'NGET TO (Best)'!AO95)) -> 0
E97: =E15 -> Uncertain costs – workforce renewal (SPTL only) | G97: £m 09/10 prices | AH97: =AH15 -> 0 | AI97: =AI15 -> 0 | AJ97: =AJ15 -> 0 | AK97: 0 | AL97: 0 | AM97: 0 | AN97: 0 | AO97: 0
E98: Allocation to load related capex expenditure | G98: % | AH98: =IF(UserInterface!$E$76 = 1,CHOOSE(m_identity,'SHETL (Base)'!AH98, 'SPTL (Base)'!AH98, 'NGET TO (Base)'!AH98),CHOOSE(m_identity,'SHETL (Best)'!AH98, 'SPTL (Best)'!AH98, 'NGET TO (Best)'!AH98)) -> 0 | AI98: =IF(UserInterface!$E$76 = 1,CHOOSE(m_identity,'SHETL (Base)'!AI98, 'SPTL (Base)'!AI98, 'NGET TO (Base)'!AI98),CHOOSE(m_identity,'SHETL (Best)'!AI98, 'SPTL (Best)'!AI98, 'NGET TO (Best)'!AI98)) -> 0 | AJ98: =IF(UserInterface!$E$76 = 1,CHOOSE(m_identity,'SHETL (Base)'!AJ98, 'SPTL (Base)'!AJ98, 'NGET TO (Base)'!AJ98),CHOOSE(m_identity,'SHETL (Best)'!AJ98, 'SPTL (Best)'!AJ98, 'NGET TO (Best)'!AJ98)) -> 0 | AK98: =IF(UserInterface!$E$76 = 1,CHOOSE(m_identity,'SHETL (Base)'!AK98, 'SPTL (Base)'!AK98, 'NGET TO (Base)'!AK98),CHOOSE(m_identity,'SHETL (Best)'!AK98, 'SPTL (Best)'!AK98, 'NGET TO (Best)'!AK98)) -> 0 | AL98: =IF(UserInterface!$E$76 = 1,CHOOSE(m_identity,'SHETL (Base)'!AL98, 'SPTL (Base)'!AL98, 'NGET TO (Base)'!AL98),CHOOSE(m_identity,'SHETL (Best)'!AL98, 'SPTL (Best)'!AL98, 'NGET TO (Best)'!AL98)) -> 0 | AM98: =IF(UserInterface!$E$76 = 1,CHOOSE(m_identity,'SHETL (Base)'!AM98, 'SPTL (Base)'!AM98, 'NGET TO (Base)'!AM98),CHOOSE(m_identity,'SHETL (Best)'!AM98, 'SPTL (Best)'!AM98, 'NGET TO (Best)'!AM98)) -> 0 | AN98: =IF(UserInterface!$E$76 = 1,CHOOSE(m_identity,'SHETL (Base)'!AN98, 'SPTL (Base)'!AN98, 'NGET TO (Base)'!AN98),CHOOSE(m_identity,'SHETL (Best)'!AN98, 'SPTL (Best)'!AN98, 'NGET TO (Best)'!AN98)) -> 0 | AO98: =IF(UserInterface!$E$76 = 1,CHOOSE(m_identity,'SHETL (Base)'!AO98, 'SPTL (Base)'!AO98, 'NGET TO (Base)'!AO98),CHOOSE(m_identity,'SHETL (Best)'!AO98, 'SPTL (Best)'!AO98, 'NGET TO (Best)'!AO98)) -> 0
E99: Allocation to asset replacement capex expenditure | G99: % | AH99: =IF(UserInterface!$E$76 = 1,CHOOSE(m_identity,'SHETL (Base)'!AH99, 'SPTL (Base)'!AH99, 'NGET TO (Base)'!AH99),CHOOSE(m_identity,'SHETL (Best)'!AH99, 'SPTL (Best)'!AH99, 'NGET TO (Best)'!AH99)) -> 0 | AI99: =IF(UserInterface!$E$76 = 1,CHOOSE(m_identity,'SHETL (Base)'!AI99, 'SPTL (Base)'!AI99, 'NGET TO (Base)'!AI99),CHOOSE(m_identity,'SHETL (Best)'!AI99, 'SPTL (Best)'!AI99, 'NGET TO (Best)'!AI99)) -> 0 | AJ99: =IF(UserInterface!$E$76 = 1,CHOOSE(m_identity,'SHETL (Base)'!AJ99, 'SPTL (Base)'!AJ99, 'NGET TO (Base)'!AJ99),CHOOSE(m_identity,'SHETL (Best)'!AJ99, 'SPTL (Best)'!AJ99, 'NGET TO (Best)'!AJ99)) -> 0 | AK99: =IF(UserInterface!$E$76 = 1,CHOOSE(m_identity,'SHETL (Base)'!AK99, 'SPTL (Base)'!AK99, 'NGET TO (Base)'!AK99),CHOOSE(m_identity,'SHETL (Best)'!AK99, 'SPTL (Best)'!AK99, 'NGET TO (Best)'!AK99)) -> 0 | AL99: =IF(UserInterface!$E$76 = 1,CHOOSE(m_identity,'SHETL (Base)'!AL99, 'SPTL (Base)'!AL99, 'NGET TO (Base)'!AL99),CHOOSE(m_identity,'SHETL (Best)'!AL99, 'SPTL (Best)'!AL99, 'NGET TO (Best)'!AL99)) -> 0 | AM99: =IF(UserInterface!$E$76 = 1,CHOOSE(m_identity,'SHETL (Base)'!AM99, 'SPTL (Base)'!AM99, 'NGET TO (Base)'!AM99),CHOOSE(m_identity,'SHETL (Best)'!AM99, 'SPTL (Best)'!AM99, 'NGET TO (Best)'!AM99)) -> 0 | AN99: =IF(UserInterface!$E$76 = 1,CHOOSE(m_identity,'SHETL (Base)'!AN99, 'SPTL (Base)'!AN99, 'NGET TO (Base)'!AN99),CHOOSE(m_identity,'SHETL (Best)'!AN99, 'SPTL (Best)'!AN99, 'NGET TO (Best)'!AN99)) -> 0 | AO99: =IF(UserInterface!$E$76 = 1,CHOOSE(m_identity,'SHETL (Base)'!AO99, 'SPTL (Base)'!AO99, 'NGET TO (Base)'!AO99),CHOOSE(m_identity,'SHETL (Best)'!AO99, 'SPTL (Best)'!AO99, 'NGET TO (Best)'!AO99)) -> 0
E100: Allocation to other capex expenditure | G100: % | AH100: =IF(UserInterface!$E$76 = 1,CHOOSE(m_identity,'SHETL (Base)'!AH100, 'SPTL (Base)'!AH100, 'NGET TO (Base)'!AH100),CHOOSE(m_identity,'SHETL (Best)'!AH100, 'SPTL (Best)'!AH100, 'NGET TO (Best)'!AH100)) -> 1 | AI100: =IF(UserInterface!$E$76 = 1,CHOOSE(m_identity,'SHETL (Base)'!AI100, 'SPTL (Base)'!AI100, 'NGET TO (Base)'!AI100),CHOOSE(m_identity,'SHETL (Best)'!AI100, 'SPTL (Best)'!AI100, 'NGET TO (Best)'!AI100)) -> 1 | AJ100: =IF(UserInterface!$E$76 = 1,CHOOSE(m_identity,'SHETL (Base)'!AJ100, 'SPTL (Base)'!AJ100, 'NGET TO (Base)'!AJ100),CHOOSE(m_identity,'SHETL (Best)'!AJ100, 'SPTL (Best)'!AJ100, 'NGET TO (Best)'!AJ100)) -> 1 | AK100: =IF(UserInterface!$E$76 = 1,CHOOSE(m_identity,'SHETL (Base)'!AK100, 'SPTL (Base)'!AK100, 'NGET TO (Base)'!AK100),CHOOSE(m_identity,'SHETL (Best)'!AK100, 'SPTL (Best)'!AK100, 'NGET TO (Best)'!AK100)) -> 1 | AL100: =IF(UserInterface!$E$76 = 1,CHOOSE(m_identity,'SHETL (Base)'!AL100, 'SPTL (Base)'!AL100, 'NGET TO (Base)'!AL100),CHOOSE(m_identity,'SHETL (Best)'!AL100, 'SPTL (Best)'!AL100, 'NGET TO (Best)'!AL100)) -> 1 | AM100: =IF(UserInterface!$E$76 = 1,CHOOSE(m_identity,'SHETL (Base)'!AM100, 'SPTL (Base)'!AM100, 'NGET TO (Base)'!AM100),CHOOSE(m_identity,'SHETL (Best)'!AM100, 'SPTL (Best)'!AM100, 'NGET TO (Best)'!AM100)) -> 1 | AN100: =IF(UserInterface!$E$76 = 1,CHOOSE(m_identity,'SHETL (Base)'!AN100, 'SPTL (Base)'!AN100, 'NGET TO (Base)'!AN100),CHOOSE(m_identity,'SHETL (Best)'!AN100, 'SPTL (Best)'!AN100, 'NGET TO (Best)'!AN100)) -> 1 | AO100: =IF(UserInterface!$E$76 = 1,CHOOSE(m_identity,'SHETL (Base)'!AO100, 'SPTL (Base)'!AO100, 'NGET TO (Base)'!AO100),CHOOSE(m_identity,'SHETL (Best)'!AO100, 'SPTL (Best)'!AO100, 'NGET TO (Best)'!AO100)) -> 1
E101: Allocation to controllable opex | G101: % | AH101: =IF(UserInterface!$E$76 = 1,CHOOSE(m_identity,'SHETL (Base)'!AH101, 'SPTL (Base)'!AH101, 'NGET TO (Base)'!AH101),CHOOSE(m_identity,'SHETL (Best)'!AH101, 'SPTL (Best)'!AH101, 'NGET TO (Best)'!AH101)) -> 0 | AI101: =IF(UserInterface!$E$76 = 1,CHOOSE(m_identity,'SHETL (Base)'!AI101, 'SPTL (Base)'!AI101, 'NGET TO (Base)'!AI101),CHOOSE(m_identity,'SHETL (Best)'!AI101, 'SPTL (Best)'!AI101, 'NGET TO (Best)'!AI101)) -> 0 | AJ101: =IF(UserInterface!$E$76 = 1,CHOOSE(m_identity,'SHETL (Base)'!AJ101, 'SPTL (Base)'!AJ101, 'NGET TO (Base)'!AJ101),CHOOSE(m_identity,'SHETL (Best)'!AJ101, 'SPTL (Best)'!AJ101, 'NGET TO (Best)'!AJ101)) -> 0 | AK101: =IF(UserInterface!$E$76 = 1,CHOOSE(m_identity,'SHETL (Base)'!AK101, 'SPTL (Base)'!AK101, 'NGET TO (Base)'!AK101),CHOOSE(m_identity,'SHETL (Best)'!AK101, 'SPTL (Best)'!AK101, 'NGET TO (Best)'!AK101)) -> 0 | AL101: =IF(UserInterface!$E$76 = 1,CHOOSE(m_identity,'SHETL (Base)'!AL101, 'SPTL (Base)'!AL101, 'NGET TO (Base)'!AL101),CHOOSE(m_identity,'SHETL (Best)'!AL101, 'SPTL (Best)'!AL101, 'NGET TO (Best)'!AL101)) -> 0 | AM101: =IF(UserInterface!$E$76 = 1,CHOOSE(m_identity,'SHETL (Base)'!AM101, 'SPTL (Base)'!AM101, 'NGET TO (Base)'!AM101),CHOOSE(m_identity,'SHETL (Best)'!AM101, 'SPTL (Best)'!AM101, 'NGET TO (Best)'!AM101)) -> 0 | AN101: =IF(UserInterface!$E$76 = 1,CHOOSE(m_identity,'SHETL (Base)'!AN101, 'SPTL (Base)'!AN101, 'NGET TO (Base)'!AN101),CHOOSE(m_identity,'SHETL (Best)'!AN101, 'SPTL (Best)'!AN101, 'NGET TO (Best)'!AN101)) -> 0 | AO101: =IF(UserInterface!$E$76 = 1,CHOOSE(m_identity,'SHETL (Base)'!AO101, 'SPTL (Base)'!AO101, 'NGET TO (Base)'!AO101),CHOOSE(m_identity,'SHETL (Best)'!AO101, 'SPTL (Best)'!AO101, 'NGET TO (Best)'!AO101)) -> 0
E102: Allocation to non-operational capex | G102: % | AH102: =IF(UserInterface!$E$76 = 1,CHOOSE(m_identity,'SHETL (Base)'!AH102, 'SPTL (Base)'!AH102, 'NGET TO (Base)'!AH102),CHOOSE(m_identity,'SHETL (Best)'!AH102, 'SPTL (Best)'!AH102, 'NGET TO (Best)'!AH102)) -> 0 | AI102: =IF(UserInterface!$E$76 = 1,CHOOSE(m_identity,'SHETL (Base)'!AI102, 'SPTL (Base)'!AI102, 'NGET TO (Base)'!AI102),CHOOSE(m_identity,'SHETL (Best)'!AI102, 'SPTL (Best)'!AI102, 'NGET TO (Best)'!AI102)) -> 0 | AJ102: =IF(UserInterface!$E$76 = 1,CHOOSE(m_identity,'SHETL (Base)'!AJ102, 'SPTL (Base)'!AJ102, 'NGET TO (Base)'!AJ102),CHOOSE(m_identity,'SHETL (Best)'!AJ102, 'SPTL (Best)'!AJ102, 'NGET TO (Best)'!AJ102)) -> 0 | AK102: =IF(UserInterface!$E$76 = 1,CHOOSE(m_identity,'SHETL (Base)'!AK102, 'SPTL (Base)'!AK102, 'NGET TO (Base)'!AK102),CHOOSE(m_identity,'SHETL (Best)'!AK102, 'SPTL (Best)'!AK102, 'NGET TO (Best)'!AK102)) -> 0 | AL102: =IF(UserInterface!$E$76 = 1,CHOOSE(m_identity,'SHETL (Base)'!AL102, 'SPTL (Base)'!AL102, 'NGET TO (Base)'!AL102),CHOOSE(m_identity,'SHETL (Best)'!AL102, 'SPTL (Best)'!AL102, 'NGET TO (Best)'!AL102)) -> 0 | AM102: =IF(UserInterface!$E$76 = 1,CHOOSE(m_identity,'SHETL (Base)'!AM102, 'SPTL (Base)'!AM102, 'NGET TO (Base)'!AM102),CHOOSE(m_identity,'SHETL (Best)'!AM102, 'SPTL (Best)'!AM102, 'NGET TO (Best)'!AM102)) -> 0 | AN102: =IF(UserInterface!$E$76 = 1,CHOOSE(m_identity,'SHETL (Base)'!AN102, 'SPTL (Base)'!AN102, 'NGET TO (Base)'!AN102),CHOOSE(m_identity,'SHETL (Best)'!AN102, 'SPTL (Best)'!AN102, 'NGET TO (Best)'!AN102)) -> 0 | AO102: =IF(UserInterface!$E$76 = 1,CHOOSE(m_identity,'SHETL (Base)'!AO102, 'SPTL (Base)'!AO102, 'NGET TO (Base)'!AO102),CHOOSE(m_identity,'SHETL (Best)'!AO102, 'SPTL (Best)'!AO102, 'NGET TO (Best)'!AO102)) -> 0
E104: =E16 -> Uncertain costs – BT 21st Century (SHETPLC only) | G104: £m 09/10 prices | AH104: =AH16 -> 0 | AI104: =AI16 -> 0 | AJ104: 0 | AK104: 0 | AL104: 0 | AM104: 0 | AN104: 0 | AO104: 0
E105: Allocation to load related capex expenditure | G105: % | AH105: =IF(UserInterface!$E$76 = 1,CHOOSE(m_identity,'SHETL (Base)'!AH105, 'SPTL (Base)'!AH105, 'NGET TO (Base)'!AH105),CHOOSE(m_identity,'SHETL (Best)'!AH105, 'SPTL (Best)'!AH105, 'NGET TO (Best)'!AH105)) -> 0 | AI105: =IF(UserInterface!$E$76 = 1,CHOOSE(m_identity,'SHETL (Base)'!AI105, 'SPTL (Base)'!AI105, 'NGET TO (Base)'!AI105),CHOOSE(m_identity,'SHETL (Best)'!AI105, 'SPTL (Best)'!AI105, 'NGET TO (Best)'!AI105)) -> 0 | AJ105: =IF(UserInterface!$E$76 = 1,CHOOSE(m_identity,'SHETL (Base)'!AJ105, 'SPTL (Base)'!AJ105, 'NGET TO (Base)'!AJ105),CHOOSE(m_identity,'SHETL (Best)'!AJ105, 'SPTL (Best)'!AJ105, 'NGET TO (Best)'!AJ105)) -> 0 | AK105: =IF(UserInterface!$E$76 = 1,CHOOSE(m_identity,'SHETL (Base)'!AK105, 'SPTL (Base)'!AK105, 'NGET TO (Base)'!AK105),CHOOSE(m_identity,'SHETL (Best)'!AK105, 'SPTL (Best)'!AK105, 'NGET TO (Best)'!AK105)) -> 0 | AL105: =IF(UserInterface!$E$76 = 1,CHOOSE(m_identity,'SHETL (Base)'!AL105, 'SPTL (Base)'!AL105, 'NGET TO (Base)'!AL105),CHOOSE(m_identity,'SHETL (Best)'!AL105, 'SPTL (Best)'!AL105, 'NGET TO (Best)'!AL105)) -> 0 | AM105: =IF(UserInterface!$E$76 = 1,CHOOSE(m_identity,'SHETL (Base)'!AM105, 'SPTL (Base)'!AM105, 'NGET TO (Base)'!AM105),CHOOSE(m_identity,'SHETL (Best)'!AM105, 'SPTL (Best)'!AM105, 'NGET TO (Best)'!AM105)) -> 0 | AN105: =IF(UserInterface!$E$76 = 1,CHOOSE(m_identity,'SHETL (Base)'!AN105, 'SPTL (Base)'!AN105, 'NGET TO (Base)'!AN105),CHOOSE(m_identity,'SHETL (Best)'!AN105, 'SPTL (Best)'!AN105, 'NGET TO (Best)'!AN105)) -> 0 | AO105: =IF(UserInterface!$E$76 = 1,CHOOSE(m_identity,'SHETL (Base)'!AO105, 'SPTL (Base)'!AO105, 'NGET TO (Base)'!AO105),CHOOSE(m_identity,'SHETL (Best)'!AO105, 'SPTL (Best)'!AO105, 'NGET TO (Best)'!AO105)) -> 0
E106: Allocation to asset replacement capex expenditure | G106: % | AH106: =IF(UserInterface!$E$76 = 1,CHOOSE(m_identity,'SHETL (Base)'!AH106, 'SPTL (Base)'!AH106, 'NGET TO (Base)'!AH106),CHOOSE(m_identity,'SHETL (Best)'!AH106, 'SPTL (Best)'!AH106, 'NGET TO (Best)'!AH106)) -> 0 | AI106: =IF(UserInterface!$E$76 = 1,CHOOSE(m_identity,'SHETL (Base)'!AI106, 'SPTL (Base)'!AI106, 'NGET TO (Base)'!AI106),CHOOSE(m_identity,'SHETL (Best)'!AI106, 'SPTL (Best)'!AI106, 'NGET TO (Best)'!AI106)) -> 0 | AJ106: =IF(UserInterface!$E$76 = 1,CHOOSE(m_identity,'SHETL (Base)'!AJ106, 'SPTL (Base)'!AJ106, 'NGET TO (Base)'!AJ106),CHOOSE(m_identity,'SHETL (Best)'!AJ106, 'SPTL (Best)'!AJ106, 'NGET TO (Best)'!AJ106)) -> 0 | AK106: =IF(UserInterface!$E$76 = 1,CHOOSE(m_identity,'SHETL (Base)'!AK106, 'SPTL (Base)'!AK106, 'NGET TO (Base)'!AK106),CHOOSE(m_identity,'SHETL (Best)'!AK106, 'SPTL (Best)'!AK106, 'NGET TO (Best)'!AK106)) -> 0 | AL106: =IF(UserInterface!$E$76 = 1,CHOOSE(m_identity,'SHETL (Base)'!AL106, 'SPTL (Base)'!AL106, 'NGET TO (Base)'!AL106),CHOOSE(m_identity,'SHETL (Best)'!AL106, 'SPTL (Best)'!AL106, 'NGET TO (Best)'!AL106)) -> 0 | AM106: =IF(UserInterface!$E$76 = 1,CHOOSE(m_identity,'SHETL (Base)'!AM106, 'SPTL (Base)'!AM106, 'NGET TO (Base)'!AM106),CHOOSE(m_identity,'SHETL (Best)'!AM106, 'SPTL (Best)'!AM106, 'NGET TO (Best)'!AM106)) -> 0 | AN106: =IF(UserInterface!$E$76 = 1,CHOOSE(m_identity,'SHETL (Base)'!AN106, 'SPTL (Base)'!AN106, 'NGET TO (Base)'!AN106),CHOOSE(m_identity,'SHETL (Best)'!AN106, 'SPTL (Best)'!AN106, 'NGET TO (Best)'!AN106)) -> 0 | AO106: =IF(UserInterface!$E$76 = 1,CHOOSE(m_identity,'SHETL (Base)'!AO106, 'SPTL (Base)'!AO106, 'NGET TO (Base)'!AO106),CHOOSE(m_identity,'SHETL (Best)'!AO106, 'SPTL (Best)'!AO106, 'NGET TO (Best)'!AO106)) -> 0
E107: Allocation to other capex expenditure | G107: % | AH107: =IF(UserInterface!$E$76 = 1,CHOOSE(m_identity,'SHETL (Base)'!AH107, 'SPTL (Base)'!AH107, 'NGET TO (Base)'!AH107),CHOOSE(m_identity,'SHETL (Best)'!AH107, 'SPTL (Best)'!AH107, 'NGET TO (Best)'!AH107)) -> 1 | AI107: =IF(UserInterface!$E$76 = 1,CHOOSE(m_identity,'SHETL (Base)'!AI107, 'SPTL (Base)'!AI107, 'NGET TO (Base)'!AI107),CHOOSE(m_identity,'SHETL (Best)'!AI107, 'SPTL (Best)'!AI107, 'NGET TO (Best)'!AI107)) -> 1 | AJ107: =IF(UserInterface!$E$76 = 1,CHOOSE(m_identity,'SHETL (Base)'!AJ107, 'SPTL (Base)'!AJ107, 'NGET TO (Base)'!AJ107),CHOOSE(m_identity,'SHETL (Best)'!AJ107, 'SPTL (Best)'!AJ107, 'NGET TO (Best)'!AJ107)) -> 1 | AK107: =IF(UserInterface!$E$76 = 1,CHOOSE(m_identity,'SHETL (Base)'!AK107, 'SPTL (Base)'!AK107, 'NGET TO (Base)'!AK107),CHOOSE(m_identity,'SHETL (Best)'!AK107, 'SPTL (Best)'!AK107, 'NGET TO (Best)'!AK107)) -> 1 | AL107: =IF(UserInterface!$E$76 = 1,CHOOSE(m_identity,'SHETL (Base)'!AL107, 'SPTL (Base)'!AL107, 'NGET TO (Base)'!AL107),CHOOSE(m_identity,'SHETL (Best)'!AL107, 'SPTL (Best)'!AL107, 'NGET TO (Best)'!AL107)) -> 1 | AM107: =IF(UserInterface!$E$76 = 1,CHOOSE(m_identity,'SHETL (Base)'!AM107, 'SPTL (Base)'!AM107, 'NGET TO (Base)'!AM107),CHOOSE(m_identity,'SHETL (Best)'!AM107, 'SPTL (Best)'!AM107, 'NGET TO (Best)'!AM107)) -> 1 | AN107: =IF(UserInterface!$E$76 = 1,CHOOSE(m_identity,'SHETL (Base)'!AN107, 'SPTL (Base)'!AN107, 'NGET TO (Base)'!AN107),CHOOSE(m_identity,'SHETL (Best)'!AN107, 'SPTL (Best)'!AN107, 'NGET TO (Best)'!AN107)) -> 1 | AO107: =IF(UserInterface!$E$76 = 1,CHOOSE(m_identity,'SHETL (Base)'!AO107, 'SPTL (Base)'!AO107, 'NGET TO (Base)'!AO107),CHOOSE(m_identity,'SHETL (Best)'!AO107, 'SPTL (Best)'!AO107, 'NGET TO (Best)'!AO107)) -> 1
E108: Allocation to controllable opex | G108: % | AH108: =IF(UserInterface!$E$76 = 1,CHOOSE(m_identity,'SHETL (Base)'!AH108, 'SPTL (Base)'!AH108, 'NGET TO (Base)'!AH108),CHOOSE(m_identity,'SHETL (Best)'!AH108, 'SPTL (Best)'!AH108, 'NGET TO (Best)'!AH108)) -> 0 | AI108: =IF(UserInterface!$E$76 = 1,CHOOSE(m_identity,'SHETL (Base)'!AI108, 'SPTL (Base)'!AI108, 'NGET TO (Base)'!AI108),CHOOSE(m_identity,'SHETL (Best)'!AI108, 'SPTL (Best)'!AI108, 'NGET TO (Best)'!AI108)) -> 0 | AJ108: =IF(UserInterface!$E$76 = 1,CHOOSE(m_identity,'SHETL (Base)'!AJ108, 'SPTL (Base)'!AJ108, 'NGET TO (Base)'!AJ108),CHOOSE(m_identity,'SHETL (Best)'!AJ108, 'SPTL (Best)'!AJ108, 'NGET TO (Best)'!AJ108)) -> 0 | AK108: =IF(UserInterface!$E$76 = 1,CHOOSE(m_identity,'SHETL (Base)'!AK108, 'SPTL (Base)'!AK108, 'NGET TO (Base)'!AK108),CHOOSE(m_identity,'SHETL (Best)'!AK108, 'SPTL (Best)'!AK108, 'NGET TO (Best)'!AK108)) -> 0 | AL108: =IF(UserInterface!$E$76 = 1,CHOOSE(m_identity,'SHETL (Base)'!AL108, 'SPTL (Base)'!AL108, 'NGET TO (Base)'!AL108),CHOOSE(m_identity,'SHETL (Best)'!AL108, 'SPTL (Best)'!AL108, 'NGET TO (Best)'!AL108)) -> 0 | AM108: =IF(UserInterface!$E$76 = 1,CHOOSE(m_identity,'SHETL (Base)'!AM108, 'SPTL (Base)'!AM108, 'NGET TO (Base)'!AM108),CHOOSE(m_identity,'SHETL (Best)'!AM108, 'SPTL (Best)'!AM108, 'NGET TO (Best)'!AM108)) -> 0 | AN108: =IF(UserInterface!$E$76 = 1,CHOOSE(m_identity,'SHETL (Base)'!AN108, 'SPTL (Base)'!AN108, 'NGET TO (Base)'!AN108),CHOOSE(m_identity,'SHETL (Best)'!AN108, 'SPTL (Best)'!AN108, 'NGET TO (Best)'!AN108)) -> 0 | AO108: =IF(UserInterface!$E$76 = 1,CHOOSE(m_identity,'SHETL (Base)'!AO108, 'SPTL (Base)'!AO108, 'NGET TO (Base)'!AO108),CHOOSE(m_identity,'SHETL (Best)'!AO108, 'SPTL (Best)'!AO108, 'NGET TO (Best)'!AO108)) -> 0
E109: Allocation to non-operational capex | G109: % | AH109: =IF(UserInterface!$E$76 = 1,CHOOSE(m_identity,'SHETL (Base)'!AH109, 'SPTL (Base)'!AH109, 'NGET TO (Base)'!AH109),CHOOSE(m_identity,'SHETL (Best)'!AH109, 'SPTL (Best)'!AH109, 'NGET TO (Best)'!AH109)) -> 0 | AI109: =IF(UserInterface!$E$76 = 1,CHOOSE(m_identity,'SHETL (Base)'!AI109, 'SPTL (Base)'!AI109, 'NGET TO (Base)'!AI109),CHOOSE(m_identity,'SHETL (Best)'!AI109, 'SPTL (Best)'!AI109, 'NGET TO (Best)'!AI109)) -> 0 | AJ109: =IF(UserInterface!$E$76 = 1,CHOOSE(m_identity,'SHETL (Base)'!AJ109, 'SPTL (Base)'!AJ109, 'NGET TO (Base)'!AJ109),CHOOSE(m_identity,'SHETL (Best)'!AJ109, 'SPTL (Best)'!AJ109, 'NGET TO (Best)'!AJ109)) -> 0 | AK109: =IF(UserInterface!$E$76 = 1,CHOOSE(m_identity,'SHETL (Base)'!AK109, 'SPTL (Base)'!AK109, 'NGET TO (Base)'!AK109),CHOOSE(m_identity,'SHETL (Best)'!AK109, 'SPTL (Best)'!AK109, 'NGET TO (Best)'!AK109)) -> 0 | AL109: =IF(UserInterface!$E$76 = 1,CHOOSE(m_identity,'SHETL (Base)'!AL109, 'SPTL (Base)'!AL109, 'NGET TO (Base)'!AL109),CHOOSE(m_identity,'SHETL (Best)'!AL109, 'SPTL (Best)'!AL109, 'NGET TO (Best)'!AL109)) -> 0 | AM109: =IF(UserInterface!$E$76 = 1,CHOOSE(m_identity,'SHETL (Base)'!AM109, 'SPTL (Base)'!AM109, 'NGET TO (Base)'!AM109),CHOOSE(m_identity,'SHETL (Best)'!AM109, 'SPTL (Best)'!AM109, 'NGET TO (Best)'!AM109)) -> 0 | AN109: =IF(UserInterface!$E$76 = 1,CHOOSE(m_identity,'SHETL (Base)'!AN109, 'SPTL (Base)'!AN109, 'NGET TO (Base)'!AN109),CHOOSE(m_identity,'SHETL (Best)'!AN109, 'SPTL (Best)'!AN109, 'NGET TO (Best)'!AN109)) -> 0 | AO109: =IF(UserInterface!$E$76 = 1,CHOOSE(m_identity,'SHETL (Base)'!AO109, 'SPTL (Base)'!AO109, 'NGET TO (Base)'!AO109),CHOOSE(m_identity,'SHETL (Best)'!AO109, 'SPTL (Best)'!AO109, 'NGET TO (Best)'!AO109)) -> 0
E111: =E17 -> Uncertain costs – compensation for wayleaves (SHETPLC only) | G111: £m 09/10 prices | AH111: =AH17 -> 0 | AI111: =AI17 -> 0 | AJ111: 0 | AK111: 0 | AL111: 0 | AM111: 0 | AN111: 0 | AO111: 0
E112: Allocation to load related capex expenditure | G112: % | AH112: =IF(UserInterface!$E$76 = 1,CHOOSE(m_identity,'SHETL (Base)'!AH112, 'SPTL (Base)'!AH112, 'NGET TO (Base)'!AH112),CHOOSE(m_identity,'SHETL (Best)'!AH112, 'SPTL (Best)'!AH112, 'NGET TO (Best)'!AH112)) -> 0 | AI112: =IF(UserInterface!$E$76 = 1,CHOOSE(m_identity,'SHETL (Base)'!AI112, 'SPTL (Base)'!AI112, 'NGET TO (Base)'!AI112),CHOOSE(m_identity,'SHETL (Best)'!AI112, 'SPTL (Best)'!AI112, 'NGET TO (Best)'!AI112)) -> 0 | AJ112: =IF(UserInterface!$E$76 = 1,CHOOSE(m_identity,'SHETL (Base)'!AJ112, 'SPTL (Base)'!AJ112, 'NGET TO (Base)'!AJ112),CHOOSE(m_identity,'SHETL (Best)'!AJ112, 'SPTL (Best)'!AJ112, 'NGET TO (Best)'!AJ112)) -> 0 | AK112: =IF(UserInterface!$E$76 = 1,CHOOSE(m_identity,'SHETL (Base)'!AK112, 'SPTL (Base)'!AK112, 'NGET TO (Base)'!AK112),CHOOSE(m_identity,'SHETL (Best)'!AK112, 'SPTL (Best)'!AK112, 'NGET TO (Best)'!AK112)) -> 0 | AL112: =IF(UserInterface!$E$76 = 1,CHOOSE(m_identity,'SHETL (Base)'!AL112, 'SPTL (Base)'!AL112, 'NGET TO (Base)'!AL112),CHOOSE(m_identity,'SHETL (Best)'!AL112, 'SPTL (Best)'!AL112, 'NGET TO (Best)'!AL112)) -> 0 | AM112: =IF(UserInterface!$E$76 = 1,CHOOSE(m_identity,'SHETL (Base)'!AM112, 'SPTL (Base)'!AM112, 'NGET TO (Base)'!AM112),CHOOSE(m_identity,'SHETL (Best)'!AM112, 'SPTL (Best)'!AM112, 'NGET TO (Best)'!AM112)) -> 0 | AN112: =IF(UserInterface!$E$76 = 1,CHOOSE(m_identity,'SHETL (Base)'!AN112, 'SPTL (Base)'!AN112, 'NGET TO (Base)'!AN112),CHOOSE(m_identity,'SHETL (Best)'!AN112, 'SPTL (Best)'!AN112, 'NGET TO (Best)'!AN112)) -> 0 | AO112: =IF(UserInterface!$E$76 = 1,CHOOSE(m_identity,'SHETL (Base)'!AO112, 'SPTL (Base)'!AO112, 'NGET TO (Base)'!AO112),CHOOSE(m_identity,'SHETL (Best)'!AO112, 'SPTL (Best)'!AO112, 'NGET TO (Best)'!AO112)) -> 0
E113: Allocation to asset replacement capex expenditure | G113: % | AH113: =IF(UserInterface!$E$76 = 1,CHOOSE(m_identity,'SHETL (Base)'!AH113, 'SPTL (Base)'!AH113, 'NGET TO (Base)'!AH113),CHOOSE(m_identity,'SHETL (Best)'!AH113, 'SPTL (Best)'!AH113, 'NGET TO (Best)'!AH113)) -> 0 | AI113: =IF(UserInterface!$E$76 = 1,CHOOSE(m_identity,'SHETL (Base)'!AI113, 'SPTL (Base)'!AI113, 'NGET TO (Base)'!AI113),CHOOSE(m_identity,'SHETL (Best)'!AI113, 'SPTL (Best)'!AI113, 'NGET TO (Best)'!AI113)) -> 0 | AJ113: =IF(UserInterface!$E$76 = 1,CHOOSE(m_identity,'SHETL (Base)'!AJ113, 'SPTL (Base)'!AJ113, 'NGET TO (Base)'!AJ113),CHOOSE(m_identity,'SHETL (Best)'!AJ113, 'SPTL (Best)'!AJ113, 'NGET TO (Best)'!AJ113)) -> 0 | AK113: =IF(UserInterface!$E$76 = 1,CHOOSE(m_identity,'SHETL (Base)'!AK113, 'SPTL (Base)'!AK113, 'NGET TO (Base)'!AK113),CHOOSE(m_identity,'SHETL (Best)'!AK113, 'SPTL (Best)'!AK113, 'NGET TO (Best)'!AK113)) -> 0 | AL113: =IF(UserInterface!$E$76 = 1,CHOOSE(m_identity,'SHETL (Base)'!AL113, 'SPTL (Base)'!AL113, 'NGET TO (Base)'!AL113),CHOOSE(m_identity,'SHETL (Best)'!AL113, 'SPTL (Best)'!AL113, 'NGET TO (Best)'!AL113)) -> 0 | AM113: =IF(UserInterface!$E$76 = 1,CHOOSE(m_identity,'SHETL (Base)'!AM113, 'SPTL (Base)'!AM113, 'NGET TO (Base)'!AM113),CHOOSE(m_identity,'SHETL (Best)'!AM113, 'SPTL (Best)'!AM113, 'NGET TO (Best)'!AM113)) -> 0 | AN113: =IF(UserInterface!$E$76 = 1,CHOOSE(m_identity,'SHETL (Base)'!AN113, 'SPTL (Base)'!AN113, 'NGET TO (Base)'!AN113),CHOOSE(m_identity,'SHETL (Best)'!AN113, 'SPTL (Best)'!AN113, 'NGET TO (Best)'!AN113)) -> 0 | AO113: =IF(UserInterface!$E$76 = 1,CHOOSE(m_identity,'SHETL (Base)'!AO113, 'SPTL (Base)'!AO113, 'NGET TO (Base)'!AO113),CHOOSE(m_identity,'SHETL (Best)'!AO113, 'SPTL (Best)'!AO113, 'NGET TO (Best)'!AO113)) -> 0
E114: Allocation to other capex expenditure | G114: % | AH114: =IF(UserInterface!$E$76 = 1,CHOOSE(m_identity,'SHETL (Base)'!AH114, 'SPTL (Base)'!AH114, 'NGET TO (Base)'!AH114),CHOOSE(m_identity,'SHETL (Best)'!AH114, 'SPTL (Best)'!AH114, 'NGET TO (Best)'!AH114)) -> 1 | AI114: =IF(UserInterface!$E$76 = 1,CHOOSE(m_identity,'SHETL (Base)'!AI114, 'SPTL (Base)'!AI114, 'NGET TO (Base)'!AI114),CHOOSE(m_identity,'SHETL (Best)'!AI114, 'SPTL (Best)'!AI114, 'NGET TO (Best)'!AI114)) -> 1 | AJ114: =IF(UserInterface!$E$76 = 1,CHOOSE(m_identity,'SHETL (Base)'!AJ114, 'SPTL (Base)'!AJ114, 'NGET TO (Base)'!AJ114),CHOOSE(m_identity,'SHETL (Best)'!AJ114, 'SPTL (Best)'!AJ114, 'NGET TO (Best)'!AJ114)) -> 1 | AK114: =IF(UserInterface!$E$76 = 1,CHOOSE(m_identity,'SHETL (Base)'!AK114, 'SPTL (Base)'!AK114, 'NGET TO (Base)'!AK114),CHOOSE(m_identity,'SHETL (Best)'!AK114, 'SPTL (Best)'!AK114, 'NGET TO (Best)'!AK114)) -> 1 | AL114: =IF(UserInterface!$E$76 = 1,CHOOSE(m_identity,'SHETL (Base)'!AL114, 'SPTL (Base)'!AL114, 'NGET TO (Base)'!AL114),CHOOSE(m_identity,'SHETL (Best)'!AL114, 'SPTL (Best)'!AL114, 'NGET TO (Best)'!AL114)) -> 1 | AM114: =IF(UserInterface!$E$76 = 1,CHOOSE(m_identity,'SHETL (Base)'!AM114, 'SPTL (Base)'!AM114, 'NGET TO (Base)'!AM114),CHOOSE(m_identity,'SHETL (Best)'!AM114, 'SPTL (Best)'!AM114, 'NGET TO (Best)'!AM114)) -> 1 | AN114: =IF(UserInterface!$E$76 = 1,CHOOSE(m_identity,'SHETL (Base)'!AN114, 'SPTL (Base)'!AN114, 'NGET TO (Base)'!AN114),CHOOSE(m_identity,'SHETL (Best)'!AN114, 'SPTL (Best)'!AN114, 'NGET TO (Best)'!AN114)) -> 1 | AO114: =IF(UserInterface!$E$76 = 1,CHOOSE(m_identity,'SHETL (Base)'!AO114, 'SPTL (Base)'!AO114, 'NGET TO (Base)'!AO114),CHOOSE(m_identity,'SHETL (Best)'!AO114, 'SPTL (Best)'!AO114, 'NGET TO (Best)'!AO114)) -> 1
E115: Allocation to controllable opex | G115: % | AH115: =IF(UserInterface!$E$76 = 1,CHOOSE(m_identity,'SHETL (Base)'!AH115, 'SPTL (Base)'!AH115, 'NGET TO (Base)'!AH115),CHOOSE(m_identity,'SHETL (Best)'!AH115, 'SPTL (Best)'!AH115, 'NGET TO (Best)'!AH115)) -> 0 | AI115: =IF(UserInterface!$E$76 = 1,CHOOSE(m_identity,'SHETL (Base)'!AI115, 'SPTL (Base)'!AI115, 'NGET TO (Base)'!AI115),CHOOSE(m_identity,'SHETL (Best)'!AI115, 'SPTL (Best)'!AI115, 'NGET TO (Best)'!AI115)) -> 0 | AJ115: =IF(UserInterface!$E$76 = 1,CHOOSE(m_identity,'SHETL (Base)'!AJ115, 'SPTL (Base)'!AJ115, 'NGET TO (Base)'!AJ115),CHOOSE(m_identity,'SHETL (Best)'!AJ115, 'SPTL (Best)'!AJ115, 'NGET TO (Best)'!AJ115)) -> 0 | AK115: =IF(UserInterface!$E$76 = 1,CHOOSE(m_identity,'SHETL (Base)'!AK115, 'SPTL (Base)'!AK115, 'NGET TO (Base)'!AK115),CHOOSE(m_identity,'SHETL (Best)'!AK115, 'SPTL (Best)'!AK115, 'NGET TO (Best)'!AK115)) -> 0 | AL115: =IF(UserInterface!$E$76 = 1,CHOOSE(m_identity,'SHETL (Base)'!AL115, 'SPTL (Base)'!AL115, 'NGET TO (Base)'!AL115),CHOOSE(m_identity,'SHETL (Best)'!AL115, 'SPTL (Best)'!AL115, 'NGET TO (Best)'!AL115)) -> 0 | AM115: =IF(UserInterface!$E$76 = 1,CHOOSE(m_identity,'SHETL (Base)'!AM115, 'SPTL (Base)'!AM115, 'NGET TO (Base)'!AM115),CHOOSE(m_identity,'SHETL (Best)'!AM115, 'SPTL (Best)'!AM115, 'NGET TO (Best)'!AM115)) -> 0 | AN115: =IF(UserInterface!$E$76 = 1,CHOOSE(m_identity,'SHETL (Base)'!AN115, 'SPTL (Base)'!AN115, 'NGET TO (Base)'!AN115),CHOOSE(m_identity,'SHETL (Best)'!AN115, 'SPTL (Best)'!AN115, 'NGET TO (Best)'!AN115)) -> 0 | AO115: =IF(UserInterface!$E$76 = 1,CHOOSE(m_identity,'SHETL (Base)'!AO115, 'SPTL (Base)'!AO115, 'NGET TO (Base)'!AO115),CHOOSE(m_identity,'SHETL (Best)'!AO115, 'SPTL (Best)'!AO115, 'NGET TO (Best)'!AO115)) -> 0
E116: Allocation to non-operational capex | G116: % | AH116: =IF(UserInterface!$E$76 = 1,CHOOSE(m_identity,'SHETL (Base)'!AH116, 'SPTL (Base)'!AH116, 'NGET TO (Base)'!AH116),CHOOSE(m_identity,'SHETL (Best)'!AH116, 'SPTL (Best)'!AH116, 'NGET TO (Best)'!AH116)) -> 0 | AI116: =IF(UserInterface!$E$76 = 1,CHOOSE(m_identity,'SHETL (Base)'!AI116, 'SPTL (Base)'!AI116, 'NGET TO (Base)'!AI116),CHOOSE(m_identity,'SHETL (Best)'!AI116, 'SPTL (Best)'!AI116, 'NGET TO (Best)'!AI116)) -> 0 | AJ116: =IF(UserInterface!$E$76 = 1,CHOOSE(m_identity,'SHETL (Base)'!AJ116, 'SPTL (Base)'!AJ116, 'NGET TO (Base)'!AJ116),CHOOSE(m_identity,'SHETL (Best)'!AJ116, 'SPTL (Best)'!AJ116, 'NGET TO (Best)'!AJ116)) -> 0 | AK116: =IF(UserInterface!$E$76 = 1,CHOOSE(m_identity,'SHETL (Base)'!AK116, 'SPTL (Base)'!AK116, 'NGET TO (Base)'!AK116),CHOOSE(m_identity,'SHETL (Best)'!AK116, 'SPTL (Best)'!AK116, 'NGET TO (Best)'!AK116)) -> 0 | AL116: =IF(UserInterface!$E$76 = 1,CHOOSE(m_identity,'SHETL (Base)'!AL116, 'SPTL (Base)'!AL116, 'NGET TO (Base)'!AL116),CHOOSE(m_identity,'SHETL (Best)'!AL116, 'SPTL (Best)'!AL116, 'NGET TO (Best)'!AL116)) -> 0 | AM116: =IF(UserInterface!$E$76 = 1,CHOOSE(m_identity,'SHETL (Base)'!AM116, 'SPTL (Base)'!AM116, 'NGET TO (Base)'!AM116),CHOOSE(m_identity,'SHETL (Best)'!AM116, 'SPTL (Best)'!AM116, 'NGET TO (Best)'!AM116)) -> 0 | AN116: =IF(UserInterface!$E$76 = 1,CHOOSE(m_identity,'SHETL (Base)'!AN116, 'SPTL (Base)'!AN116, 'NGET TO (Base)'!AN116),CHOOSE(m_identity,'SHETL (Best)'!AN116, 'SPTL (Best)'!AN116, 'NGET TO (Best)'!AN116)) -> 0 | AO116: =IF(UserInterface!$E$76 = 1,CHOOSE(m_identity,'SHETL (Base)'!AO116, 'SPTL (Base)'!AO116, 'NGET TO (Base)'!AO116),CHOOSE(m_identity,'SHETL (Best)'!AO116, 'SPTL (Best)'!AO116, 'NGET TO (Best)'!AO116)) -> 0
E118: =E18 -> Baseline and strategic wider works outputs | G118: £m 09/10 prices | AH118: =AH18 -> 33.54889706 | AI118: =AI18 -> 72.87209382 | AJ118: 206.9990174 | AK118: 325.4238533 | AL118: 336.9255318 | AM118: 403.2949531 | AN118: 213.8392833 | AO118: 97.12306896
E119: Allocation to load related capex expenditure | G119: % | AH119: =IF(UserInterface!$E$76 = 1,CHOOSE(m_identity,'SHETL (Base)'!AH119, 'SPTL (Base)'!AH119, 'NGET TO (Base)'!AH119),CHOOSE(m_identity,'SHETL (Best)'!AH119, 'SPTL (Best)'!AH119, 'NGET TO (Best)'!AH119)) -> 1 | AI119: =IF(UserInterface!$E$76 = 1,CHOOSE(m_identity,'SHETL (Base)'!AI119, 'SPTL (Base)'!AI119, 'NGET TO (Base)'!AI119),CHOOSE(m_identity,'SHETL (Best)'!AI119, 'SPTL (Best)'!AI119, 'NGET TO (Best)'!AI119)) -> 1 | AJ119: =IF(UserInterface!$E$76 = 1,CHOOSE(m_identity,'SHETL (Base)'!AJ119, 'SPTL (Base)'!AJ119, 'NGET TO (Base)'!AJ119),CHOOSE(m_identity,'SHETL (Best)'!AJ119, 'SPTL (Best)'!AJ119, 'NGET TO (Best)'!AJ119)) -> 1 | AK119: =IF(UserInterface!$E$76 = 1,CHOOSE(m_identity,'SHETL (Base)'!AK119, 'SPTL (Base)'!AK119, 'NGET TO (Base)'!AK119),CHOOSE(m_identity,'SHETL (Best)'!AK119, 'SPTL (Best)'!AK119, 'NGET TO (Best)'!AK119)) -> 1 | AL119: =IF(UserInterface!$E$76 = 1,CHOOSE(m_identity,'SHETL (Base)'!AL119, 'SPTL (Base)'!AL119, 'NGET TO (Base)'!AL119),CHOOSE(m_identity,'SHETL (Best)'!AL119, 'SPTL (Best)'!AL119, 'NGET TO (Best)'!AL119)) -> 1 | AM119: =IF(UserInterface!$E$76 = 1,CHOOSE(m_identity,'SHETL (Base)'!AM119, 'SPTL (Base)'!AM119, 'NGET TO (Base)'!AM119),CHOOSE(m_identity,'SHETL (Best)'!AM119, 'SPTL (Best)'!AM119, 'NGET TO (Best)'!AM119)) -> 1 | AN119: =IF(UserInterface!$E$76 = 1,CHOOSE(m_identity,'SHETL (Base)'!AN119, 'SPTL (Base)'!AN119, 'NGET TO (Base)'!AN119),CHOOSE(m_identity,'SHETL (Best)'!AN119, 'SPTL (Best)'!AN119, 'NGET TO (Best)'!AN119)) -> 1 | AO119: =IF(UserInterface!$E$76 = 1,CHOOSE(m_identity,'SHETL (Base)'!AO119, 'SPTL (Base)'!AO119, 'NGET TO (Base)'!AO119),CHOOSE(m_identity,'SHETL (Best)'!AO119, 'SPTL (Best)'!AO119, 'NGET TO (Best)'!AO119)) -> 1
E120: Allocation to asset replacement capex expenditure | G120: % | AH120: =IF(UserInterface!$E$76 = 1,CHOOSE(m_identity,'SHETL (Base)'!AH120, 'SPTL (Base)'!AH120, 'NGET TO (Base)'!AH120),CHOOSE(m_identity,'SHETL (Best)'!AH120, 'SPTL (Best)'!AH120, 'NGET TO (Best)'!AH120)) -> 0 | AI120: =IF(UserInterface!$E$76 = 1,CHOOSE(m_identity,'SHETL (Base)'!AI120, 'SPTL (Base)'!AI120, 'NGET TO (Base)'!AI120),CHOOSE(m_identity,'SHETL (Best)'!AI120, 'SPTL (Best)'!AI120, 'NGET TO (Best)'!AI120)) -> 0 | AJ120: =IF(UserInterface!$E$76 = 1,CHOOSE(m_identity,'SHETL (Base)'!AJ120, 'SPTL (Base)'!AJ120, 'NGET TO (Base)'!AJ120),CHOOSE(m_identity,'SHETL (Best)'!AJ120, 'SPTL (Best)'!AJ120, 'NGET TO (Best)'!AJ120)) -> 0 | AK120: =IF(UserInterface!$E$76 = 1,CHOOSE(m_identity,'SHETL (Base)'!AK120, 'SPTL (Base)'!AK120, 'NGET TO (Base)'!AK120),CHOOSE(m_identity,'SHETL (Best)'!AK120, 'SPTL (Best)'!AK120, 'NGET TO (Best)'!AK120)) -> 0 | AL120: =IF(UserInterface!$E$76 = 1,CHOOSE(m_identity,'SHETL (Base)'!AL120, 'SPTL (Base)'!AL120, 'NGET TO (Base)'!AL120),CHOOSE(m_identity,'SHETL (Best)'!AL120, 'SPTL (Best)'!AL120, 'NGET TO (Best)'!AL120)) -> 0 | AM120: =IF(UserInterface!$E$76 = 1,CHOOSE(m_identity,'SHETL (Base)'!AM120, 'SPTL (Base)'!AM120, 'NGET TO (Base)'!AM120),CHOOSE(m_identity,'SHETL (Best)'!AM120, 'SPTL (Best)'!AM120, 'NGET TO (Best)'!AM120)) -> 0 | AN120: =IF(UserInterface!$E$76 = 1,CHOOSE(m_identity,'SHETL (Base)'!AN120, 'SPTL (Base)'!AN120, 'NGET TO (Base)'!AN120),CHOOSE(m_identity,'SHETL (Best)'!AN120, 'SPTL (Best)'!AN120, 'NGET TO (Best)'!AN120)) -> 0 | AO120: =IF(UserInterface!$E$76 = 1,CHOOSE(m_identity,'SHETL (Base)'!AO120, 'SPTL (Base)'!AO120, 'NGET TO (Base)'!AO120),CHOOSE(m_identity,'SHETL (Best)'!AO120, 'SPTL (Best)'!AO120, 'NGET TO (Best)'!AO120)) -> 0
E121: Allocation to other capex expenditure | G121: % | AH121: =IF(UserInterface!$E$76 = 1,CHOOSE(m_identity,'SHETL (Base)'!AH121, 'SPTL (Base)'!AH121, 'NGET TO (Base)'!AH121),CHOOSE(m_identity,'SHETL (Best)'!AH121, 'SPTL (Best)'!AH121, 'NGET TO (Best)'!AH121)) -> 0 | AI121: =IF(UserInterface!$E$76 = 1,CHOOSE(m_identity,'SHETL (Base)'!AI121, 'SPTL (Base)'!AI121, 'NGET TO (Base)'!AI121),CHOOSE(m_identity,'SHETL (Best)'!AI121, 'SPTL (Best)'!AI121, 'NGET TO (Best)'!AI121)) -> 0 | AJ121: =IF(UserInterface!$E$76 = 1,CHOOSE(m_identity,'SHETL (Base)'!AJ121, 'SPTL (Base)'!AJ121, 'NGET TO (Base)'!AJ121),CHOOSE(m_identity,'SHETL (Best)'!AJ121, 'SPTL (Best)'!AJ121, 'NGET TO (Best)'!AJ121)) -> 0 | AK121: =IF(UserInterface!$E$76 = 1,CHOOSE(m_identity,'SHETL (Base)'!AK121, 'SPTL (Base)'!AK121, 'NGET TO (Base)'!AK121),CHOOSE(m_identity,'SHETL (Best)'!AK121, 'SPTL (Best)'!AK121, 'NGET TO (Best)'!AK121)) -> 0 | AL121: =IF(UserInterface!$E$76 = 1,CHOOSE(m_identity,'SHETL (Base)'!AL121, 'SPTL (Base)'!AL121, 'NGET TO (Base)'!AL121),CHOOSE(m_identity,'SHETL (Best)'!AL121, 'SPTL (Best)'!AL121, 'NGET TO (Best)'!AL121)) -> 0 | AM121: =IF(UserInterface!$E$76 = 1,CHOOSE(m_identity,'SHETL (Base)'!AM121, 'SPTL (Base)'!AM121, 'NGET TO (Base)'!AM121),CHOOSE(m_identity,'SHETL (Best)'!AM121, 'SPTL (Best)'!AM121, 'NGET TO (Best)'!AM121)) -> 0 | AN121: =IF(UserInterface!$E$76 = 1,CHOOSE(m_identity,'SHETL (Base)'!AN121, 'SPTL (Base)'!AN121, 'NGET TO (Base)'!AN121),CHOOSE(m_identity,'SHETL (Best)'!AN121, 'SPTL (Best)'!AN121, 'NGET TO (Best)'!AN121)) -> 0 | AO121: =IF(UserInterface!$E$76 = 1,CHOOSE(m_identity,'SHETL (Base)'!AO121, 'SPTL (Base)'!AO121, 'NGET TO (Base)'!AO121),CHOOSE(m_identity,'SHETL (Best)'!AO121, 'SPTL (Best)'!AO121, 'NGET TO (Best)'!AO121)) -> 0
E122: Allocation to controllable opex | G122: % | AH122: =IF(UserInterface!$E$76 = 1,CHOOSE(m_identity,'SHETL (Base)'!AH122, 'SPTL (Base)'!AH122, 'NGET TO (Base)'!AH122),CHOOSE(m_identity,'SHETL (Best)'!AH122, 'SPTL (Best)'!AH122, 'NGET TO (Best)'!AH122)) -> 0 | AI122: =IF(UserInterface!$E$76 = 1,CHOOSE(m_identity,'SHETL (Base)'!AI122, 'SPTL (Base)'!AI122, 'NGET TO (Base)'!AI122),CHOOSE(m_identity,'SHETL (Best)'!AI122, 'SPTL (Best)'!AI122, 'NGET TO (Best)'!AI122)) -> 0 | AJ122: =IF(UserInterface!$E$76 = 1,CHOOSE(m_identity,'SHETL (Base)'!AJ122, 'SPTL (Base)'!AJ122, 'NGET TO (Base)'!AJ122),CHOOSE(m_identity,'SHETL (Best)'!AJ122, 'SPTL (Best)'!AJ122, 'NGET TO (Best)'!AJ122)) -> 0 | AK122: =IF(UserInterface!$E$76 = 1,CHOOSE(m_identity,'SHETL (Base)'!AK122, 'SPTL (Base)'!AK122, 'NGET TO (Base)'!AK122),CHOOSE(m_identity,'SHETL (Best)'!AK122, 'SPTL (Best)'!AK122, 'NGET TO (Best)'!AK122)) -> 0 | AL122: =IF(UserInterface!$E$76 = 1,CHOOSE(m_identity,'SHETL (Base)'!AL122, 'SPTL (Base)'!AL122, 'NGET TO (Base)'!AL122),CHOOSE(m_identity,'SHETL (Best)'!AL122, 'SPTL (Best)'!AL122, 'NGET TO (Best)'!AL122)) -> 0 | AM122: =IF(UserInterface!$E$76 = 1,CHOOSE(m_identity,'SHETL (Base)'!AM122, 'SPTL (Base)'!AM122, 'NGET TO (Base)'!AM122),CHOOSE(m_identity,'SHETL (Best)'!AM122, 'SPTL (Best)'!AM122, 'NGET TO (Best)'!AM122)) -> 0 | AN122: =IF(UserInterface!$E$76 = 1,CHOOSE(m_identity,'SHETL (Base)'!AN122, 'SPTL (Base)'!AN122, 'NGET TO (Base)'!AN122),CHOOSE(m_identity,'SHETL (Best)'!AN122, 'SPTL (Best)'!AN122, 'NGET TO (Best)'!AN122)) -> 0 | AO122: =IF(UserInterface!$E$76 = 1,CHOOSE(m_identity,'SHETL (Base)'!AO122, 'SPTL (Base)'!AO122, 'NGET TO (Base)'!AO122),CHOOSE(m_identity,'SHETL (Best)'!AO122, 'SPTL (Best)'!AO122, 'NGET TO (Best)'!AO122)) -> 0
E123: Allocation to non-operational capex | G123: % | AH123: =IF(UserInterface!$E$76 = 1,CHOOSE(m_identity,'SHETL (Base)'!AH123, 'SPTL (Base)'!AH123, 'NGET TO (Base)'!AH123),CHOOSE(m_identity,'SHETL (Best)'!AH123, 'SPTL (Best)'!AH123, 'NGET TO (Best)'!AH123)) -> 0 | AI123: =IF(UserInterface!$E$76 = 1,CHOOSE(m_identity,'SHETL (Base)'!AI123, 'SPTL (Base)'!AI123, 'NGET TO (Base)'!AI123),CHOOSE(m_identity,'SHETL (Best)'!AI123, 'SPTL (Best)'!AI123, 'NGET TO (Best)'!AI123)) -> 0 | AJ123: =IF(UserInterface!$E$76 = 1,CHOOSE(m_identity,'SHETL (Base)'!AJ123, 'SPTL (Base)'!AJ123, 'NGET TO (Base)'!AJ123),CHOOSE(m_identity,'SHETL (Best)'!AJ123, 'SPTL (Best)'!AJ123, 'NGET TO (Best)'!AJ123)) -> 0 | AK123: =IF(UserInterface!$E$76 = 1,CHOOSE(m_identity,'SHETL (Base)'!AK123, 'SPTL (Base)'!AK123, 'NGET TO (Base)'!AK123),CHOOSE(m_identity,'SHETL (Best)'!AK123, 'SPTL (Best)'!AK123, 'NGET TO (Best)'!AK123)) -> 0 | AL123: =IF(UserInterface!$E$76 = 1,CHOOSE(m_identity,'SHETL (Base)'!AL123, 'SPTL (Base)'!AL123, 'NGET TO (Base)'!AL123),CHOOSE(m_identity,'SHETL (Best)'!AL123, 'SPTL (Best)'!AL123, 'NGET TO (Best)'!AL123)) -> 0 | AM123: =IF(UserInterface!$E$76 = 1,CHOOSE(m_identity,'SHETL (Base)'!AM123, 'SPTL (Base)'!AM123, 'NGET TO (Base)'!AM123),CHOOSE(m_identity,'SHETL (Best)'!AM123, 'SPTL (Best)'!AM123, 'NGET TO (Best)'!AM123)) -> 0 | AN123: =IF(UserInterface!$E$76 = 1,CHOOSE(m_identity,'SHETL (Base)'!AN123, 'SPTL (Base)'!AN123, 'NGET TO (Base)'!AN123),CHOOSE(m_identity,'SHETL (Best)'!AN123, 'SPTL (Best)'!AN123, 'NGET TO (Best)'!AN123)) -> 0 | AO123: =IF(UserInterface!$E$76 = 1,CHOOSE(m_identity,'SHETL (Base)'!AO123, 'SPTL (Base)'!AO123, 'NGET TO (Base)'!AO123),CHOOSE(m_identity,'SHETL (Best)'!AO123, 'SPTL (Best)'!AO123, 'NGET TO (Best)'!AO123)) -> 0
E125: =E19 -> Network development and wider works volume driver (NGET only) | G125: £m 09/10 prices | AH125: =AH19 -> 66.72403417 | AI125: 96.88654715 | AJ125: 57.47661473 | AK125: 36.90259291 | AL125: 19.03943497 | AM125: 23.42108067 | AN125: 25.05222682 | AO125: 25.74103363
E126: Allocation to load related capex expenditure | G126: % | AH126: =IF(UserInterface!$E$76 = 1,CHOOSE(m_identity,'SHETL (Base)'!AH126, 'SPTL (Base)'!AH126, 'NGET TO (Base)'!AH126),CHOOSE(m_identity,'SHETL (Best)'!AH126, 'SPTL (Best)'!AH126, 'NGET TO (Best)'!AH126)) -> 0.99 | AI126: =IF(UserInterface!$E$76 = 1,CHOOSE(m_identity,'SHETL (Base)'!AI126, 'SPTL (Base)'!AI126, 'NGET TO (Base)'!AI126),CHOOSE(m_identity,'SHETL (Best)'!AI126, 'SPTL (Best)'!AI126, 'NGET TO (Best)'!AI126)) -> 0.99 | AJ126: =IF(UserInterface!$E$76 = 1,CHOOSE(m_identity,'SHETL (Base)'!AJ126, 'SPTL (Base)'!AJ126, 'NGET TO (Base)'!AJ126),CHOOSE(m_identity,'SHETL (Best)'!AJ126, 'SPTL (Best)'!AJ126, 'NGET TO (Best)'!AJ126)) -> 0.99 | AK126: =IF(UserInterface!$E$76 = 1,CHOOSE(m_identity,'SHETL (Base)'!AK126, 'SPTL (Base)'!AK126, 'NGET TO (Base)'!AK126),CHOOSE(m_identity,'SHETL (Best)'!AK126, 'SPTL (Best)'!AK126, 'NGET TO (Best)'!AK126)) -> 0.99 | AL126: =IF(UserInterface!$E$76 = 1,CHOOSE(m_identity,'SHETL (Base)'!AL126, 'SPTL (Base)'!AL126, 'NGET TO (Base)'!AL126),CHOOSE(m_identity,'SHETL (Best)'!AL126, 'SPTL (Best)'!AL126, 'NGET TO (Best)'!AL126)) -> 0.99 | AM126: =IF(UserInterface!$E$76 = 1,CHOOSE(m_identity,'SHETL (Base)'!AM126, 'SPTL (Base)'!AM126, 'NGET TO (Base)'!AM126),CHOOSE(m_identity,'SHETL (Best)'!AM126, 'SPTL (Best)'!AM126, 'NGET TO (Best)'!AM126)) -> 0.99 | AN126: =IF(UserInterface!$E$76 = 1,CHOOSE(m_identity,'SHETL (Base)'!AN126, 'SPTL (Base)'!AN126, 'NGET TO (Base)'!AN126),CHOOSE(m_identity,'SHETL (Best)'!AN126, 'SPTL (Best)'!AN126, 'NGET TO (Best)'!AN126)) -> 0.99 | AO126: =IF(UserInterface!$E$76 = 1,CHOOSE(m_identity,'SHETL (Base)'!AO126, 'SPTL (Base)'!AO126, 'NGET TO (Base)'!AO126),CHOOSE(m_identity,'SHETL (Best)'!AO126, 'SPTL (Best)'!AO126, 'NGET TO (Best)'!AO126)) -> 0.99
E127: Allocation to asset replacement capex expenditure | G127: % | AH127: =IF(UserInterface!$E$76 = 1,CHOOSE(m_identity,'SHETL (Base)'!AH127, 'SPTL (Base)'!AH127, 'NGET TO (Base)'!AH127),CHOOSE(m_identity,'SHETL (Best)'!AH127, 'SPTL (Best)'!AH127, 'NGET TO (Best)'!AH127)) -> 0 | AI127: =IF(UserInterface!$E$76 = 1,CHOOSE(m_identity,'SHETL (Base)'!AI127, 'SPTL (Base)'!AI127, 'NGET TO (Base)'!AI127),CHOOSE(m_identity,'SHETL (Best)'!AI127, 'SPTL (Best)'!AI127, 'NGET TO (Best)'!AI127)) -> 0 | AJ127: =IF(UserInterface!$E$76 = 1,CHOOSE(m_identity,'SHETL (Base)'!AJ127, 'SPTL (Base)'!AJ127, 'NGET TO (Base)'!AJ127),CHOOSE(m_identity,'SHETL (Best)'!AJ127, 'SPTL (Best)'!AJ127, 'NGET TO (Best)'!AJ127)) -> 0 | AK127: =IF(UserInterface!$E$76 = 1,CHOOSE(m_identity,'SHETL (Base)'!AK127, 'SPTL (Base)'!AK127, 'NGET TO (Base)'!AK127),CHOOSE(m_identity,'SHETL (Best)'!AK127, 'SPTL (Best)'!AK127, 'NGET TO (Best)'!AK127)) -> 0 | AL127: =IF(UserInterface!$E$76 = 1,CHOOSE(m_identity,'SHETL (Base)'!AL127, 'SPTL (Base)'!AL127, 'NGET TO (Base)'!AL127),CHOOSE(m_identity,'SHETL (Best)'!AL127, 'SPTL (Best)'!AL127, 'NGET TO (Best)'!AL127)) -> 0 | AM127: =IF(UserInterface!$E$76 = 1,CHOOSE(m_identity,'SHETL (Base)'!AM127, 'SPTL (Base)'!AM127, 'NGET TO (Base)'!AM127),CHOOSE(m_identity,'SHETL (Best)'!AM127, 'SPTL (Best)'!AM127, 'NGET TO (Best)'!AM127)) -> 0 | AN127: =IF(UserInterface!$E$76 = 1,CHOOSE(m_identity,'SHETL (Base)'!AN127, 'SPTL (Base)'!AN127, 'NGET TO (Base)'!AN127),CHOOSE(m_identity,'SHETL (Best)'!AN127, 'SPTL (Best)'!AN127, 'NGET TO (Best)'!AN127)) -> 0 | AO127: =IF(UserInterface!$E$76 = 1,CHOOSE(m_identity,'SHETL (Base)'!AO127, 'SPTL (Base)'!AO127, 'NGET TO (Base)'!AO127),CHOOSE(m_identity,'SHETL (Best)'!AO127, 'SPTL (Best)'!AO127, 'NGET TO (Best)'!AO127)) -> 0
E128: Allocation to other capex expenditure | G128: % | AH128: =IF(UserInterface!$E$76 = 1,CHOOSE(m_identity,'SHETL (Base)'!AH128, 'SPTL (Base)'!AH128, 'NGET TO (Base)'!AH128),CHOOSE(m_identity,'SHETL (Best)'!AH128, 'SPTL (Best)'!AH128, 'NGET TO (Best)'!AH128)) -> 0 | AI128: =IF(UserInterface!$E$76 = 1,CHOOSE(m_identity,'SHETL (Base)'!AI128, 'SPTL (Base)'!AI128, 'NGET TO (Base)'!AI128),CHOOSE(m_identity,'SHETL (Best)'!AI128, 'SPTL (Best)'!AI128, 'NGET TO (Best)'!AI128)) -> 0 | AJ128: =IF(UserInterface!$E$76 = 1,CHOOSE(m_identity,'SHETL (Base)'!AJ128, 'SPTL (Base)'!AJ128, 'NGET TO (Base)'!AJ128),CHOOSE(m_identity,'SHETL (Best)'!AJ128, 'SPTL (Best)'!AJ128, 'NGET TO (Best)'!AJ128)) -> 0 | AK128: =IF(UserInterface!$E$76 = 1,CHOOSE(m_identity,'SHETL (Base)'!AK128, 'SPTL (Base)'!AK128, 'NGET TO (Base)'!AK128),CHOOSE(m_identity,'SHETL (Best)'!AK128, 'SPTL (Best)'!AK128, 'NGET TO (Best)'!AK128)) -> 0 | AL128: =IF(UserInterface!$E$76 = 1,CHOOSE(m_identity,'SHETL (Base)'!AL128, 'SPTL (Base)'!AL128, 'NGET TO (Base)'!AL128),CHOOSE(m_identity,'SHETL (Best)'!AL128, 'SPTL (Best)'!AL128, 'NGET TO (Best)'!AL128)) -> 0 | AM128: =IF(UserInterface!$E$76 = 1,CHOOSE(m_identity,'SHETL (Base)'!AM128, 'SPTL (Base)'!AM128, 'NGET TO (Base)'!AM128),CHOOSE(m_identity,'SHETL (Best)'!AM128, 'SPTL (Best)'!AM128, 'NGET TO (Best)'!AM128)) -> 0 | AN128: =IF(UserInterface!$E$76 = 1,CHOOSE(m_identity,'SHETL (Base)'!AN128, 'SPTL (Base)'!AN128, 'NGET TO (Base)'!AN128),CHOOSE(m_identity,'SHETL (Best)'!AN128, 'SPTL (Best)'!AN128, 'NGET TO (Best)'!AN128)) -> 0 | AO128: =IF(UserInterface!$E$76 = 1,CHOOSE(m_identity,'SHETL (Base)'!AO128, 'SPTL (Base)'!AO128, 'NGET TO (Base)'!AO128),CHOOSE(m_identity,'SHETL (Best)'!AO128, 'SPTL (Best)'!AO128, 'NGET TO (Best)'!AO128)) -> 0
E129: Allocation to controllable opex | G129: % | AH129: =IF(UserInterface!$E$76 = 1,CHOOSE(m_identity,'SHETL (Base)'!AH129, 'SPTL (Base)'!AH129, 'NGET TO (Base)'!AH129),CHOOSE(m_identity,'SHETL (Best)'!AH129, 'SPTL (Best)'!AH129, 'NGET TO (Best)'!AH129)) -> 0.01 | AI129: =IF(UserInterface!$E$76 = 1,CHOOSE(m_identity,'SHETL (Base)'!AI129, 'SPTL (Base)'!AI129, 'NGET TO (Base)'!AI129),CHOOSE(m_identity,'SHETL (Best)'!AI129, 'SPTL (Best)'!AI129, 'NGET TO (Best)'!AI129)) -> 0.01 | AJ129: =IF(UserInterface!$E$76 = 1,CHOOSE(m_identity,'SHETL (Base)'!AJ129, 'SPTL (Base)'!AJ129, 'NGET TO (Base)'!AJ129),CHOOSE(m_identity,'SHETL (Best)'!AJ129, 'SPTL (Best)'!AJ129, 'NGET TO (Best)'!AJ129)) -> 0.01 | AK129: =IF(UserInterface!$E$76 = 1,CHOOSE(m_identity,'SHETL (Base)'!AK129, 'SPTL (Base)'!AK129, 'NGET TO (Base)'!AK129),CHOOSE(m_identity,'SHETL (Best)'!AK129, 'SPTL (Best)'!AK129, 'NGET TO (Best)'!AK129)) -> 0.01 | AL129: =IF(UserInterface!$E$76 = 1,CHOOSE(m_identity,'SHETL (Base)'!AL129, 'SPTL (Base)'!AL129, 'NGET TO (Base)'!AL129),CHOOSE(m_identity,'SHETL (Best)'!AL129, 'SPTL (Best)'!AL129, 'NGET TO (Best)'!AL129)) -> 0.01 | AM129: =IF(UserInterface!$E$76 = 1,CHOOSE(m_identity,'SHETL (Base)'!AM129, 'SPTL (Base)'!AM129, 'NGET TO (Base)'!AM129),CHOOSE(m_identity,'SHETL (Best)'!AM129, 'SPTL (Best)'!AM129, 'NGET TO (Best)'!AM129)) -> 0.01 | AN129: =IF(UserInterface!$E$76 = 1,CHOOSE(m_identity,'SHETL (Base)'!AN129, 'SPTL (Base)'!AN129, 'NGET TO (Base)'!AN129),CHOOSE(m_identity,'SHETL (Best)'!AN129, 'SPTL (Best)'!AN129, 'NGET TO (Best)'!AN129)) -> 0.01 | AO129: =IF(UserInterface!$E$76 = 1,CHOOSE(m_identity,'SHETL (Base)'!AO129, 'SPTL (Base)'!AO129, 'NGET TO (Base)'!AO129),CHOOSE(m_identity,'SHETL (Best)'!AO129, 'SPTL (Best)'!AO129, 'NGET TO (Best)'!AO129)) -> 0.01
E130: Allocation to non-operational capex | G130: % | AH130: =IF(UserInterface!$E$76 = 1,CHOOSE(m_identity,'SHETL (Base)'!AH130, 'SPTL (Base)'!AH130, 'NGET TO (Base)'!AH130),CHOOSE(m_identity,'SHETL (Best)'!AH130, 'SPTL (Best)'!AH130, 'NGET TO (Best)'!AH130)) -> 0 | AI130: =IF(UserInterface!$E$76 = 1,CHOOSE(m_identity,'SHETL (Base)'!AI130, 'SPTL (Base)'!AI130, 'NGET TO (Base)'!AI130),CHOOSE(m_identity,'SHETL (Best)'!AI130, 'SPTL (Best)'!AI130, 'NGET TO (Best)'!AI130)) -> 0 | AJ130: =IF(UserInterface!$E$76 = 1,CHOOSE(m_identity,'SHETL (Base)'!AJ130, 'SPTL (Base)'!AJ130, 'NGET TO (Base)'!AJ130),CHOOSE(m_identity,'SHETL (Best)'!AJ130, 'SPTL (Best)'!AJ130, 'NGET TO (Best)'!AJ130)) -> 0 | AK130: =IF(UserInterface!$E$76 = 1,CHOOSE(m_identity,'SHETL (Base)'!AK130, 'SPTL (Base)'!AK130, 'NGET TO (Base)'!AK130),CHOOSE(m_identity,'SHETL (Best)'!AK130, 'SPTL (Best)'!AK130, 'NGET TO (Best)'!AK130)) -> 0 | AL130: =IF(UserInterface!$E$76 = 1,CHOOSE(m_identity,'SHETL (Base)'!AL130, 'SPTL (Base)'!AL130, 'NGET TO (Base)'!AL130),CHOOSE(m_identity,'SHETL (Best)'!AL130, 'SPTL (Best)'!AL130, 'NGET TO (Best)'!AL130)) -> 0 | AM130: =IF(UserInterface!$E$76 = 1,CHOOSE(m_identity,'SHETL (Base)'!AM130, 'SPTL (Base)'!AM130, 'NGET TO (Base)'!AM130),CHOOSE(m_identity,'SHETL (Best)'!AM130, 'SPTL (Best)'!AM130, 'NGET TO (Best)'!AM130)) -> 0 | AN130: =IF(UserInterface!$E$76 = 1,CHOOSE(m_identity,'SHETL (Base)'!AN130, 'SPTL (Base)'!AN130, 'NGET TO (Base)'!AN130),CHOOSE(m_identity,'SHETL (Best)'!AN130, 'SPTL (Best)'!AN130, 'NGET TO (Best)'!AN130)) -> 0 | AO130: =IF(UserInterface!$E$76 = 1,CHOOSE(m_identity,'SHETL (Base)'!AO130, 'SPTL (Base)'!AO130, 'NGET TO (Base)'!AO130),CHOOSE(m_identity,'SHETL (Best)'!AO130, 'SPTL (Best)'!AO130, 'NGET TO (Best)'!AO130)) -> 0
E132: =E20 -> Enhancements to pre-existing infrastructure | G132: £m 09/10 prices | AH132: =AH20 -> 0 | AI132: 0 | AJ132: 0 | AK132: 0 | AL132: 0 | AM132: 0 | AN132: 0 | AO132: 0
E133: Allocation to load related capex expenditure | G133: % | AH133: =IF(UserInterface!$E$76 = 1,CHOOSE(m_identity,'SHETL (Base)'!AH133, 'SPTL (Base)'!AH133, 'NGET TO (Base)'!AH133),CHOOSE(m_identity,'SHETL (Best)'!AH133, 'SPTL (Best)'!AH133, 'NGET TO (Best)'!AH133)) -> 0 | AI133: =IF(UserInterface!$E$76 = 1,CHOOSE(m_identity,'SHETL (Base)'!AI133, 'SPTL (Base)'!AI133, 'NGET TO (Base)'!AI133),CHOOSE(m_identity,'SHETL (Best)'!AI133, 'SPTL (Best)'!AI133, 'NGET TO (Best)'!AI133)) -> 0 | AJ133: =IF(UserInterface!$E$76 = 1,CHOOSE(m_identity,'SHETL (Base)'!AJ133, 'SPTL (Base)'!AJ133, 'NGET TO (Base)'!AJ133),CHOOSE(m_identity,'SHETL (Best)'!AJ133, 'SPTL (Best)'!AJ133, 'NGET TO (Best)'!AJ133)) -> 0 | AK133: =IF(UserInterface!$E$76 = 1,CHOOSE(m_identity,'SHETL (Base)'!AK133, 'SPTL (Base)'!AK133, 'NGET TO (Base)'!AK133),CHOOSE(m_identity,'SHETL (Best)'!AK133, 'SPTL (Best)'!AK133, 'NGET TO (Best)'!AK133)) -> 0 | AL133: =IF(UserInterface!$E$76 = 1,CHOOSE(m_identity,'SHETL (Base)'!AL133, 'SPTL (Base)'!AL133, 'NGET TO (Base)'!AL133),CHOOSE(m_identity,'SHETL (Best)'!AL133, 'SPTL (Best)'!AL133, 'NGET TO (Best)'!AL133)) -> 0 | AM133: =IF(UserInterface!$E$76 = 1,CHOOSE(m_identity,'SHETL (Base)'!AM133, 'SPTL (Base)'!AM133, 'NGET TO (Base)'!AM133),CHOOSE(m_identity,'SHETL (Best)'!AM133, 'SPTL (Best)'!AM133, 'NGET TO (Best)'!AM133)) -> 0 | AN133: =IF(UserInterface!$E$76 = 1,CHOOSE(m_identity,'SHETL (Base)'!AN133, 'SPTL (Base)'!AN133, 'NGET TO (Base)'!AN133),CHOOSE(m_identity,'SHETL (Best)'!AN133, 'SPTL (Best)'!AN133, 'NGET TO (Best)'!AN133)) -> 0 | AO133: =IF(UserInterface!$E$76 = 1,CHOOSE(m_identity,'SHETL (Base)'!AO133, 'SPTL (Base)'!AO133, 'NGET TO (Base)'!AO133),CHOOSE(m_identity,'SHETL (Best)'!AO133, 'SPTL (Best)'!AO133, 'NGET TO (Best)'!AO133)) -> 0
E134: Allocation to asset replacement capex expenditure | G134: % | AH134: =IF(UserInterface!$E$76 = 1,CHOOSE(m_identity,'SHETL (Base)'!AH134, 'SPTL (Base)'!AH134, 'NGET TO (Base)'!AH134),CHOOSE(m_identity,'SHETL (Best)'!AH134, 'SPTL (Best)'!AH134, 'NGET TO (Best)'!AH134)) -> 0 | AI134: =IF(UserInterface!$E$76 = 1,CHOOSE(m_identity,'SHETL (Base)'!AI134, 'SPTL (Base)'!AI134, 'NGET TO (Base)'!AI134),CHOOSE(m_identity,'SHETL (Best)'!AI134, 'SPTL (Best)'!AI134, 'NGET TO (Best)'!AI134)) -> 0 | AJ134: =IF(UserInterface!$E$76 = 1,CHOOSE(m_identity,'SHETL (Base)'!AJ134, 'SPTL (Base)'!AJ134, 'NGET TO (Base)'!AJ134),CHOOSE(m_identity,'SHETL (Best)'!AJ134, 'SPTL (Best)'!AJ134, 'NGET TO (Best)'!AJ134)) -> 0 | AK134: =IF(UserInterface!$E$76 = 1,CHOOSE(m_identity,'SHETL (Base)'!AK134, 'SPTL (Base)'!AK134, 'NGET TO (Base)'!AK134),CHOOSE(m_identity,'SHETL (Best)'!AK134, 'SPTL (Best)'!AK134, 'NGET TO (Best)'!AK134)) -> 0 | AL134: =IF(UserInterface!$E$76 = 1,CHOOSE(m_identity,'SHETL (Base)'!AL134, 'SPTL (Base)'!AL134, 'NGET TO (Base)'!AL134),CHOOSE(m_identity,'SHETL (Best)'!AL134, 'SPTL (Best)'!AL134, 'NGET TO (Best)'!AL134)) -> 0 | AM134: =IF(UserInterface!$E$76 = 1,CHOOSE(m_identity,'SHETL (Base)'!AM134, 'SPTL (Base)'!AM134, 'NGET TO (Base)'!AM134),CHOOSE(m_identity,'SHETL (Best)'!AM134, 'SPTL (Best)'!AM134, 'NGET TO (Best)'!AM134)) -> 0 | AN134: =IF(UserInterface!$E$76 = 1,CHOOSE(m_identity,'SHETL (Base)'!AN134, 'SPTL (Base)'!AN134, 'NGET TO (Base)'!AN134),CHOOSE(m_identity,'SHETL (Best)'!AN134, 'SPTL (Best)'!AN134, 'NGET TO (Best)'!AN134)) -> 0 | AO134: =IF(UserInterface!$E$76 = 1,CHOOSE(m_identity,'SHETL (Base)'!AO134, 'SPTL (Base)'!AO134, 'NGET TO (Base)'!AO134),CHOOSE(m_identity,'SHETL (Best)'!AO134, 'SPTL (Best)'!AO134, 'NGET TO (Best)'!AO134)) -> 0
E135: Allocation to other capex expenditure | G135: % | AH135: =IF(UserInterface!$E$76 = 1,CHOOSE(m_identity,'SHETL (Base)'!AH135, 'SPTL (Base)'!AH135, 'NGET TO (Base)'!AH135),CHOOSE(m_identity,'SHETL (Best)'!AH135, 'SPTL (Best)'!AH135, 'NGET TO (Best)'!AH135)) -> 1 | AI135: =IF(UserInterface!$E$76 = 1,CHOOSE(m_identity,'SHETL (Base)'!AI135, 'SPTL (Base)'!AI135, 'NGET TO (Base)'!AI135),CHOOSE(m_identity,'SHETL (Best)'!AI135, 'SPTL (Best)'!AI135, 'NGET TO (Best)'!AI135)) -> 1 | AJ135: =IF(UserInterface!$E$76 = 1,CHOOSE(m_identity,'SHETL (Base)'!AJ135, 'SPTL (Base)'!AJ135, 'NGET TO (Base)'!AJ135),CHOOSE(m_identity,'SHETL (Best)'!AJ135, 'SPTL (Best)'!AJ135, 'NGET TO (Best)'!AJ135)) -> 1 | AK135: =IF(UserInterface!$E$76 = 1,CHOOSE(m_identity,'SHETL (Base)'!AK135, 'SPTL (Base)'!AK135, 'NGET TO (Base)'!AK135),CHOOSE(m_identity,'SHETL (Best)'!AK135, 'SPTL (Best)'!AK135, 'NGET TO (Best)'!AK135)) -> 1 | AL135: =IF(UserInterface!$E$76 = 1,CHOOSE(m_identity,'SHETL (Base)'!AL135, 'SPTL (Base)'!AL135, 'NGET TO (Base)'!AL135),CHOOSE(m_identity,'SHETL (Best)'!AL135, 'SPTL (Best)'!AL135, 'NGET TO (Best)'!AL135)) -> 1 | AM135: =IF(UserInterface!$E$76 = 1,CHOOSE(m_identity,'SHETL (Base)'!AM135, 'SPTL (Base)'!AM135, 'NGET TO (Base)'!AM135),CHOOSE(m_identity,'SHETL (Best)'!AM135, 'SPTL (Best)'!AM135, 'NGET TO (Best)'!AM135)) -> 1 | AN135: =IF(UserInterface!$E$76 = 1,CHOOSE(m_identity,'SHETL (Base)'!AN135, 'SPTL (Base)'!AN135, 'NGET TO (Base)'!AN135),CHOOSE(m_identity,'SHETL (Best)'!AN135, 'SPTL (Best)'!AN135, 'NGET TO (Best)'!AN135)) -> 1 | AO135: =IF(UserInterface!$E$76 = 1,CHOOSE(m_identity,'SHETL (Base)'!AO135, 'SPTL (Base)'!AO135, 'NGET TO (Base)'!AO135),CHOOSE(m_identity,'SHETL (Best)'!AO135, 'SPTL (Best)'!AO135, 'NGET TO (Best)'!AO135)) -> 1
E136: Allocation to controllable opex | G136: % | AH136: =IF(UserInterface!$E$76 = 1,CHOOSE(m_identity,'SHETL (Base)'!AH136, 'SPTL (Base)'!AH136, 'NGET TO (Base)'!AH136),CHOOSE(m_identity,'SHETL (Best)'!AH136, 'SPTL (Best)'!AH136, 'NGET TO (Best)'!AH136)) -> 0 | AI136: =IF(UserInterface!$E$76 = 1,CHOOSE(m_identity,'SHETL (Base)'!AI136, 'SPTL (Base)'!AI136, 'NGET TO (Base)'!AI136),CHOOSE(m_identity,'SHETL (Best)'!AI136, 'SPTL (Best)'!AI136, 'NGET TO (Best)'!AI136)) -> 0 | AJ136: =IF(UserInterface!$E$76 = 1,CHOOSE(m_identity,'SHETL (Base)'!AJ136, 'SPTL (Base)'!AJ136, 'NGET TO (Base)'!AJ136),CHOOSE(m_identity,'SHETL (Best)'!AJ136, 'SPTL (Best)'!AJ136, 'NGET TO (Best)'!AJ136)) -> 0 | AK136: =IF(UserInterface!$E$76 = 1,CHOOSE(m_identity,'SHETL (Base)'!AK136, 'SPTL (Base)'!AK136, 'NGET TO (Base)'!AK136),CHOOSE(m_identity,'SHETL (Best)'!AK136, 'SPTL (Best)'!AK136, 'NGET TO (Best)'!AK136)) -> 0 | AL136: =IF(UserInterface!$E$76 = 1,CHOOSE(m_identity,'SHETL (Base)'!AL136, 'SPTL (Base)'!AL136, 'NGET TO (Base)'!AL136),CHOOSE(m_identity,'SHETL (Best)'!AL136, 'SPTL (Best)'!AL136, 'NGET TO (Best)'!AL136)) -> 0 | AM136: =IF(UserInterface!$E$76 = 1,CHOOSE(m_identity,'SHETL (Base)'!AM136, 'SPTL (Base)'!AM136, 'NGET TO (Base)'!AM136),CHOOSE(m_identity,'SHETL (Best)'!AM136, 'SPTL (Best)'!AM136, 'NGET TO (Best)'!AM136)) -> 0 | AN136: =IF(UserInterface!$E$76 = 1,CHOOSE(m_identity,'SHETL (Base)'!AN136, 'SPTL (Base)'!AN136, 'NGET TO (Base)'!AN136),CHOOSE(m_identity,'SHETL (Best)'!AN136, 'SPTL (Best)'!AN136, 'NGET TO (Best)'!AN136)) -> 0 | AO136: =IF(UserInterface!$E$76 = 1,CHOOSE(m_identity,'SHETL (Base)'!AO136, 'SPTL (Base)'!AO136, 'NGET TO (Base)'!AO136),CHOOSE(m_identity,'SHETL (Best)'!AO136, 'SPTL (Best)'!AO136, 'NGET TO (Best)'!AO136)) -> 0
E137: Allocation to non-operational capex | G137: % | AH137: =IF(UserInterface!$E$76 = 1,CHOOSE(m_identity,'SHETL (Base)'!AH137, 'SPTL (Base)'!AH137, 'NGET TO (Base)'!AH137),CHOOSE(m_identity,'SHETL (Best)'!AH137, 'SPTL (Best)'!AH137, 'NGET TO (Best)'!AH137)) -> 0 | AI137: =IF(UserInterface!$E$76 = 1,CHOOSE(m_identity,'SHETL (Base)'!AI137, 'SPTL (Base)'!AI137, 'NGET TO (Base)'!AI137),CHOOSE(m_identity,'SHETL (Best)'!AI137, 'SPTL (Best)'!AI137, 'NGET TO (Best)'!AI137)) -> 0 | AJ137: =IF(UserInterface!$E$76 = 1,CHOOSE(m_identity,'SHETL (Base)'!AJ137, 'SPTL (Base)'!AJ137, 'NGET TO (Base)'!AJ137),CHOOSE(m_identity,'SHETL (Best)'!AJ137, 'SPTL (Best)'!AJ137, 'NGET TO (Best)'!AJ137)) -> 0 | AK137: =IF(UserInterface!$E$76 = 1,CHOOSE(m_identity,'SHETL (Base)'!AK137, 'SPTL (Base)'!AK137, 'NGET TO (Base)'!AK137),CHOOSE(m_identity,'SHETL (Best)'!AK137, 'SPTL (Best)'!AK137, 'NGET TO (Best)'!AK137)) -> 0 | AL137: =IF(UserInterface!$E$76 = 1,CHOOSE(m_identity,'SHETL (Base)'!AL137, 'SPTL (Base)'!AL137, 'NGET TO (Base)'!AL137),CHOOSE(m_identity,'SHETL (Best)'!AL137, 'SPTL (Best)'!AL137, 'NGET TO (Best)'!AL137)) -> 0 | AM137: =IF(UserInterface!$E$76 = 1,CHOOSE(m_identity,'SHETL (Base)'!AM137, 'SPTL (Base)'!AM137, 'NGET TO (Base)'!AM137),CHOOSE(m_identity,'SHETL (Best)'!AM137, 'SPTL (Best)'!AM137, 'NGET TO (Best)'!AM137)) -> 0 | AN137: =IF(UserInterface!$E$76 = 1,CHOOSE(m_identity,'SHETL (Base)'!AN137, 'SPTL (Base)'!AN137, 'NGET TO (Base)'!AN137),CHOOSE(m_identity,'SHETL (Best)'!AN137, 'SPTL (Best)'!AN137, 'NGET TO (Best)'!AN137)) -> 0 | AO137: =IF(UserInterface!$E$76 = 1,CHOOSE(m_identity,'SHETL (Base)'!AO137, 'SPTL (Base)'!AO137, 'NGET TO (Base)'!AO137),CHOOSE(m_identity,'SHETL (Best)'!AO137, 'SPTL (Best)'!AO137, 'NGET TO (Best)'!AO137)) -> 0
E139: =E21 -> Demand related infrastructure volume driver | G139: £m 09/10 prices | AH139: =AH21 -> 0 | AI139: =AI21 -> 0.0866821025 | AJ139: 1.671455244 | AK139: 5.370257156 | AL139: 25.2475873 | AM139: 27.64595325 | AN139: 43.21954255 | AO139: 75.55575858
E140: Allocation to load related capex expenditure | G140: % | AH140: =IF(UserInterface!$E$76 = 1,CHOOSE(m_identity,'SHETL (Base)'!AH140, 'SPTL (Base)'!AH140, 'NGET TO (Base)'!AH140),CHOOSE(m_identity,'SHETL (Best)'!AH140, 'SPTL (Best)'!AH140, 'NGET TO (Best)'!AH140)) -> 1 | AI140: =IF(UserInterface!$E$76 = 1,CHOOSE(m_identity,'SHETL (Base)'!AI140, 'SPTL (Base)'!AI140, 'NGET TO (Base)'!AI140),CHOOSE(m_identity,'SHETL (Best)'!AI140, 'SPTL (Best)'!AI140, 'NGET TO (Best)'!AI140)) -> 1 | AJ140: =IF(UserInterface!$E$76 = 1,CHOOSE(m_identity,'SHETL (Base)'!AJ140, 'SPTL (Base)'!AJ140, 'NGET TO (Base)'!AJ140),CHOOSE(m_identity,'SHETL (Best)'!AJ140, 'SPTL (Best)'!AJ140, 'NGET TO (Best)'!AJ140)) -> 1 | AK140: =IF(UserInterface!$E$76 = 1,CHOOSE(m_identity,'SHETL (Base)'!AK140, 'SPTL (Base)'!AK140, 'NGET TO (Base)'!AK140),CHOOSE(m_identity,'SHETL (Best)'!AK140, 'SPTL (Best)'!AK140, 'NGET TO (Best)'!AK140)) -> 1 | AL140: =IF(UserInterface!$E$76 = 1,CHOOSE(m_identity,'SHETL (Base)'!AL140, 'SPTL (Base)'!AL140, 'NGET TO (Base)'!AL140),CHOOSE(m_identity,'SHETL (Best)'!AL140, 'SPTL (Best)'!AL140, 'NGET TO (Best)'!AL140)) -> 1 | AM140: =IF(UserInterface!$E$76 = 1,CHOOSE(m_identity,'SHETL (Base)'!AM140, 'SPTL (Base)'!AM140, 'NGET TO (Base)'!AM140),CHOOSE(m_identity,'SHETL (Best)'!AM140, 'SPTL (Best)'!AM140, 'NGET TO (Best)'!AM140)) -> 1 | AN140: =IF(UserInterface!$E$76 = 1,CHOOSE(m_identity,'SHETL (Base)'!AN140, 'SPTL (Base)'!AN140, 'NGET TO (Base)'!AN140),CHOOSE(m_identity,'SHETL (Best)'!AN140, 'SPTL (Best)'!AN140, 'NGET TO (Best)'!AN140)) -> 1 | AO140: =IF(UserInterface!$E$76 = 1,CHOOSE(m_identity,'SHETL (Base)'!AO140, 'SPTL (Base)'!AO140, 'NGET TO (Base)'!AO140),CHOOSE(m_identity,'SHETL (Best)'!AO140, 'SPTL (Best)'!AO140, 'NGET TO (Best)'!AO140)) -> 1
E141: Allocation to asset replacement capex expenditure | G141: % | AH141: =IF(UserInterface!$E$76 = 1,CHOOSE(m_identity,'SHETL (Base)'!AH141, 'SPTL (Base)'!AH141, 'NGET TO (Base)'!AH141),CHOOSE(m_identity,'SHETL (Best)'!AH141, 'SPTL (Best)'!AH141, 'NGET TO (Best)'!AH141)) -> 0 | AI141: =IF(UserInterface!$E$76 = 1,CHOOSE(m_identity,'SHETL (Base)'!AI141, 'SPTL (Base)'!AI141, 'NGET TO (Base)'!AI141),CHOOSE(m_identity,'SHETL (Best)'!AI141, 'SPTL (Best)'!AI141, 'NGET TO (Best)'!AI141)) -> 0 | AJ141: =IF(UserInterface!$E$76 = 1,CHOOSE(m_identity,'SHETL (Base)'!AJ141, 'SPTL (Base)'!AJ141, 'NGET TO (Base)'!AJ141),CHOOSE(m_identity,'SHETL (Best)'!AJ141, 'SPTL (Best)'!AJ141, 'NGET TO (Best)'!AJ141)) -> 0 | AK141: =IF(UserInterface!$E$76 = 1,CHOOSE(m_identity,'SHETL (Base)'!AK141, 'SPTL (Base)'!AK141, 'NGET TO (Base)'!AK141),CHOOSE(m_identity,'SHETL (Best)'!AK141, 'SPTL (Best)'!AK141, 'NGET TO (Best)'!AK141)) -> 0 | AL141: =IF(UserInterface!$E$76 = 1,CHOOSE(m_identity,'SHETL (Base)'!AL141, 'SPTL (Base)'!AL141, 'NGET TO (Base)'!AL141),CHOOSE(m_identity,'SHETL (Best)'!AL141, 'SPTL (Best)'!AL141, 'NGET TO (Best)'!AL141)) -> 0 | AM141: =IF(UserInterface!$E$76 = 1,CHOOSE(m_identity,'SHETL (Base)'!AM141, 'SPTL (Base)'!AM141, 'NGET TO (Base)'!AM141),CHOOSE(m_identity,'SHETL (Best)'!AM141, 'SPTL (Best)'!AM141, 'NGET TO (Best)'!AM141)) -> 0 | AN141: =IF(UserInterface!$E$76 = 1,CHOOSE(m_identity,'SHETL (Base)'!AN141, 'SPTL (Base)'!AN141, 'NGET TO (Base)'!AN141),CHOOSE(m_identity,'SHETL (Best)'!AN141, 'SPTL (Best)'!AN141, 'NGET TO (Best)'!AN141)) -> 0 | AO141: =IF(UserInterface!$E$76 = 1,CHOOSE(m_identity,'SHETL (Base)'!AO141, 'SPTL (Base)'!AO141, 'NGET TO (Base)'!AO141),CHOOSE(m_identity,'SHETL (Best)'!AO141, 'SPTL (Best)'!AO141, 'NGET TO (Best)'!AO141)) -> 0
E142: Allocation to other capex expenditure | G142: % | AH142: =IF(UserInterface!$E$76 = 1,CHOOSE(m_identity,'SHETL (Base)'!AH142, 'SPTL (Base)'!AH142, 'NGET TO (Base)'!AH142),CHOOSE(m_identity,'SHETL (Best)'!AH142, 'SPTL (Best)'!AH142, 'NGET TO (Best)'!AH142)) -> 0 | AI142: =IF(UserInterface!$E$76 = 1,CHOOSE(m_identity,'SHETL (Base)'!AI142, 'SPTL (Base)'!AI142, 'NGET TO (Base)'!AI142),CHOOSE(m_identity,'SHETL (Best)'!AI142, 'SPTL (Best)'!AI142, 'NGET TO (Best)'!AI142)) -> 0 | AJ142: =IF(UserInterface!$E$76 = 1,CHOOSE(m_identity,'SHETL (Base)'!AJ142, 'SPTL (Base)'!AJ142, 'NGET TO (Base)'!AJ142),CHOOSE(m_identity,'SHETL (Best)'!AJ142, 'SPTL (Best)'!AJ142, 'NGET TO (Best)'!AJ142)) -> 0 | AK142: =IF(UserInterface!$E$76 = 1,CHOOSE(m_identity,'SHETL (Base)'!AK142, 'SPTL (Base)'!AK142, 'NGET TO (Base)'!AK142),CHOOSE(m_identity,'SHETL (Best)'!AK142, 'SPTL (Best)'!AK142, 'NGET TO (Best)'!AK142)) -> 0 | AL142: =IF(UserInterface!$E$76 = 1,CHOOSE(m_identity,'SHETL (Base)'!AL142, 'SPTL (Base)'!AL142, 'NGET TO (Base)'!AL142),CHOOSE(m_identity,'SHETL (Best)'!AL142, 'SPTL (Best)'!AL142, 'NGET TO (Best)'!AL142)) -> 0 | AM142: =IF(UserInterface!$E$76 = 1,CHOOSE(m_identity,'SHETL (Base)'!AM142, 'SPTL (Base)'!AM142, 'NGET TO (Base)'!AM142),CHOOSE(m_identity,'SHETL (Best)'!AM142, 'SPTL (Best)'!AM142, 'NGET TO (Best)'!AM142)) -> 0 | AN142: =IF(UserInterface!$E$76 = 1,CHOOSE(m_identity,'SHETL (Base)'!AN142, 'SPTL (Base)'!AN142, 'NGET TO (Base)'!AN142),CHOOSE(m_identity,'SHETL (Best)'!AN142, 'SPTL (Best)'!AN142, 'NGET TO (Best)'!AN142)) -> 0 | AO142: =IF(UserInterface!$E$76 = 1,CHOOSE(m_identity,'SHETL (Base)'!AO142, 'SPTL (Base)'!AO142, 'NGET TO (Base)'!AO142),CHOOSE(m_identity,'SHETL (Best)'!AO142, 'SPTL (Best)'!AO142, 'NGET TO (Best)'!AO142)) -> 0
E143: Allocation to controllable opex | G143: % | AH143: =IF(UserInterface!$E$76 = 1,CHOOSE(m_identity,'SHETL (Base)'!AH143, 'SPTL (Base)'!AH143, 'NGET TO (Base)'!AH143),CHOOSE(m_identity,'SHETL (Best)'!AH143, 'SPTL (Best)'!AH143, 'NGET TO (Best)'!AH143)) -> 0 | AI143: =IF(UserInterface!$E$76 = 1,CHOOSE(m_identity,'SHETL (Base)'!AI143, 'SPTL (Base)'!AI143, 'NGET TO (Base)'!AI143),CHOOSE(m_identity,'SHETL (Best)'!AI143, 'SPTL (Best)'!AI143, 'NGET TO (Best)'!AI143)) -> 0 | AJ143: =IF(UserInterface!$E$76 = 1,CHOOSE(m_identity,'SHETL (Base)'!AJ143, 'SPTL (Base)'!AJ143, 'NGET TO (Base)'!AJ143),CHOOSE(m_identity,'SHETL (Best)'!AJ143, 'SPTL (Best)'!AJ143, 'NGET TO (Best)'!AJ143)) -> 0 | AK143: =IF(UserInterface!$E$76 = 1,CHOOSE(m_identity,'SHETL (Base)'!AK143, 'SPTL (Base)'!AK143, 'NGET TO (Base)'!AK143),CHOOSE(m_identity,'SHETL (Best)'!AK143, 'SPTL (Best)'!AK143, 'NGET TO (Best)'!AK143)) -> 0 | AL143: =IF(UserInterface!$E$76 = 1,CHOOSE(m_identity,'SHETL (Base)'!AL143, 'SPTL (Base)'!AL143, 'NGET TO (Base)'!AL143),CHOOSE(m_identity,'SHETL (Best)'!AL143, 'SPTL (Best)'!AL143, 'NGET TO (Best)'!AL143)) -> 0 | AM143: =IF(UserInterface!$E$76 = 1,CHOOSE(m_identity,'SHETL (Base)'!AM143, 'SPTL (Base)'!AM143, 'NGET TO (Base)'!AM143),CHOOSE(m_identity,'SHETL (Best)'!AM143, 'SPTL (Best)'!AM143, 'NGET TO (Best)'!AM143)) -> 0 | AN143: =IF(UserInterface!$E$76 = 1,CHOOSE(m_identity,'SHETL (Base)'!AN143, 'SPTL (Base)'!AN143, 'NGET TO (Base)'!AN143),CHOOSE(m_identity,'SHETL (Best)'!AN143, 'SPTL (Best)'!AN143, 'NGET TO (Best)'!AN143)) -> 0 | AO143: =IF(UserInterface!$E$76 = 1,CHOOSE(m_identity,'SHETL (Base)'!AO143, 'SPTL (Base)'!AO143, 'NGET TO (Base)'!AO143),CHOOSE(m_identity,'SHETL (Best)'!AO143, 'SPTL (Best)'!AO143, 'NGET TO (Best)'!AO143)) -> 0
E144: Allocation to non-operational capex | G144: % | AH144: =IF(UserInterface!$E$76 = 1,CHOOSE(m_identity,'SHETL (Base)'!AH144, 'SPTL (Base)'!AH144, 'NGET TO (Base)'!AH144),CHOOSE(m_identity,'SHETL (Best)'!AH144, 'SPTL (Best)'!AH144, 'NGET TO (Best)'!AH144)) -> 0 | AI144: =IF(UserInterface!$E$76 = 1,CHOOSE(m_identity,'SHETL (Base)'!AI144, 'SPTL (Base)'!AI144, 'NGET TO (Base)'!AI144),CHOOSE(m_identity,'SHETL (Best)'!AI144, 'SPTL (Best)'!AI144, 'NGET TO (Best)'!AI144)) -> 0 | AJ144: =IF(UserInterface!$E$76 = 1,CHOOSE(m_identity,'SHETL (Base)'!AJ144, 'SPTL (Base)'!AJ144, 'NGET TO (Base)'!AJ144),CHOOSE(m_identity,'SHETL (Best)'!AJ144, 'SPTL (Best)'!AJ144, 'NGET TO (Best)'!AJ144)) -> 0 | AK144: =IF(UserInterface!$E$76 = 1,CHOOSE(m_identity,'SHETL (Base)'!AK144, 'SPTL (Base)'!AK144, 'NGET TO (Base)'!AK144),CHOOSE(m_identity,'SHETL (Best)'!AK144, 'SPTL (Best)'!AK144, 'NGET TO (Best)'!AK144)) -> 0 | AL144: =IF(UserInterface!$E$76 = 1,CHOOSE(m_identity,'SHETL (Base)'!AL144, 'SPTL (Base)'!AL144, 'NGET TO (Base)'!AL144),CHOOSE(m_identity,'SHETL (Best)'!AL144, 'SPTL (Best)'!AL144, 'NGET TO (Best)'!AL144)) -> 0 | AM144: =IF(UserInterface!$E$76 = 1,CHOOSE(m_identity,'SHETL (Base)'!AM144, 'SPTL (Base)'!AM144, 'NGET TO (Base)'!AM144),CHOOSE(m_identity,'SHETL (Best)'!AM144, 'SPTL (Best)'!AM144, 'NGET TO (Best)'!AM144)) -> 0 | AN144: =IF(UserInterface!$E$76 = 1,CHOOSE(m_identity,'SHETL (Base)'!AN144, 'SPTL (Base)'!AN144, 'NGET TO (Base)'!AN144),CHOOSE(m_identity,'SHETL (Best)'!AN144, 'SPTL (Best)'!AN144, 'NGET TO (Best)'!AN144)) -> 0 | AO144: =IF(UserInterface!$E$76 = 1,CHOOSE(m_identity,'SHETL (Base)'!AO144, 'SPTL (Base)'!AO144, 'NGET TO (Base)'!AO144),CHOOSE(m_identity,'SHETL (Best)'!AO144, 'SPTL (Best)'!AO144, 'NGET TO (Best)'!AO144)) -> 0
E146: =E22 -> Undergrounding volume driver | G146: £m 09/10 prices | AH146: =AH22 -> 0 | AI146: =AI22 -> 0 | AJ146: 0 | AK146: 0 | AL146: 0 | AM146: 0 | AN146: 0 | AO146: 0
E147: Allocation to load related capex expenditure | G147: % | AH147: =IF(UserInterface!$E$76 = 1,CHOOSE(m_identity,'SHETL (Base)'!AH147, 'SPTL (Base)'!AH147, 'NGET TO (Base)'!AH147),CHOOSE(m_identity,'SHETL (Best)'!AH147, 'SPTL (Best)'!AH147, 'NGET TO (Best)'!AH147)) -> 1 | AI147: =IF(UserInterface!$E$76 = 1,CHOOSE(m_identity,'SHETL (Base)'!AI147, 'SPTL (Base)'!AI147, 'NGET TO (Base)'!AI147),CHOOSE(m_identity,'SHETL (Best)'!AI147, 'SPTL (Best)'!AI147, 'NGET TO (Best)'!AI147)) -> 1 | AJ147: =IF(UserInterface!$E$76 = 1,CHOOSE(m_identity,'SHETL (Base)'!AJ147, 'SPTL (Base)'!AJ147, 'NGET TO (Base)'!AJ147),CHOOSE(m_identity,'SHETL (Best)'!AJ147, 'SPTL (Best)'!AJ147, 'NGET TO (Best)'!AJ147)) -> 1 | AK147: =IF(UserInterface!$E$76 = 1,CHOOSE(m_identity,'SHETL (Base)'!AK147, 'SPTL (Base)'!AK147, 'NGET TO (Base)'!AK147),CHOOSE(m_identity,'SHETL (Best)'!AK147, 'SPTL (Best)'!AK147, 'NGET TO (Best)'!AK147)) -> 1 | AL147: =IF(UserInterface!$E$76 = 1,CHOOSE(m_identity,'SHETL (Base)'!AL147, 'SPTL (Base)'!AL147, 'NGET TO (Base)'!AL147),CHOOSE(m_identity,'SHETL (Best)'!AL147, 'SPTL (Best)'!AL147, 'NGET TO (Best)'!AL147)) -> 1 | AM147: =IF(UserInterface!$E$76 = 1,CHOOSE(m_identity,'SHETL (Base)'!AM147, 'SPTL (Base)'!AM147, 'NGET TO (Base)'!AM147),CHOOSE(m_identity,'SHETL (Best)'!AM147, 'SPTL (Best)'!AM147, 'NGET TO (Best)'!AM147)) -> 1 | AN147: =IF(UserInterface!$E$76 = 1,CHOOSE(m_identity,'SHETL (Base)'!AN147, 'SPTL (Base)'!AN147, 'NGET TO (Base)'!AN147),CHOOSE(m_identity,'SHETL (Best)'!AN147, 'SPTL (Best)'!AN147, 'NGET TO (Best)'!AN147)) -> 1 | AO147: =IF(UserInterface!$E$76 = 1,CHOOSE(m_identity,'SHETL (Base)'!AO147, 'SPTL (Base)'!AO147, 'NGET TO (Base)'!AO147),CHOOSE(m_identity,'SHETL (Best)'!AO147, 'SPTL (Best)'!AO147, 'NGET TO (Best)'!AO147)) -> 1
E148: Allocation to asset replacement capex expenditure | G148: % | AH148: =IF(UserInterface!$E$76 = 1,CHOOSE(m_identity,'SHETL (Base)'!AH148, 'SPTL (Base)'!AH148, 'NGET TO (Base)'!AH148),CHOOSE(m_identity,'SHETL (Best)'!AH148, 'SPTL (Best)'!AH148, 'NGET TO (Best)'!AH148)) -> 0 | AI148: =IF(UserInterface!$E$76 = 1,CHOOSE(m_identity,'SHETL (Base)'!AI148, 'SPTL (Base)'!AI148, 'NGET TO (Base)'!AI148),CHOOSE(m_identity,'SHETL (Best)'!AI148, 'SPTL (Best)'!AI148, 'NGET TO (Best)'!AI148)) -> 0 | AJ148: =IF(UserInterface!$E$76 = 1,CHOOSE(m_identity,'SHETL (Base)'!AJ148, 'SPTL (Base)'!AJ148, 'NGET TO (Base)'!AJ148),CHOOSE(m_identity,'SHETL (Best)'!AJ148, 'SPTL (Best)'!AJ148, 'NGET TO (Best)'!AJ148)) -> 0 | AK148: =IF(UserInterface!$E$76 = 1,CHOOSE(m_identity,'SHETL (Base)'!AK148, 'SPTL (Base)'!AK148, 'NGET TO (Base)'!AK148),CHOOSE(m_identity,'SHETL (Best)'!AK148, 'SPTL (Best)'!AK148, 'NGET TO (Best)'!AK148)) -> 0 | AL148: =IF(UserInterface!$E$76 = 1,CHOOSE(m_identity,'SHETL (Base)'!AL148, 'SPTL (Base)'!AL148, 'NGET TO (Base)'!AL148),CHOOSE(m_identity,'SHETL (Best)'!AL148, 'SPTL (Best)'!AL148, 'NGET TO (Best)'!AL148)) -> 0 | AM148: =IF(UserInterface!$E$76 = 1,CHOOSE(m_identity,'SHETL (Base)'!AM148, 'SPTL (Base)'!AM148, 'NGET TO (Base)'!AM148),CHOOSE(m_identity,'SHETL (Best)'!AM148, 'SPTL (Best)'!AM148, 'NGET TO (Best)'!AM148)) -> 0 | AN148: =IF(UserInterface!$E$76 = 1,CHOOSE(m_identity,'SHETL (Base)'!AN148, 'SPTL (Base)'!AN148, 'NGET TO (Base)'!AN148),CHOOSE(m_identity,'SHETL (Best)'!AN148, 'SPTL (Best)'!AN148, 'NGET TO (Best)'!AN148)) -> 0 | AO148: =IF(UserInterface!$E$76 = 1,CHOOSE(m_identity,'SHETL (Base)'!AO148, 'SPTL (Base)'!AO148, 'NGET TO (Base)'!AO148),CHOOSE(m_identity,'SHETL (Best)'!AO148, 'SPTL (Best)'!AO148, 'NGET TO (Best)'!AO148)) -> 0
E149: Allocation to other capex expenditure | G149: % | AH149: =IF(UserInterface!$E$76 = 1,CHOOSE(m_identity,'SHETL (Base)'!AH149, 'SPTL (Base)'!AH149, 'NGET TO (Base)'!AH149),CHOOSE(m_identity,'SHETL (Best)'!AH149, 'SPTL (Best)'!AH149, 'NGET TO (Best)'!AH149)) -> 0 | AI149: =IF(UserInterface!$E$76 = 1,CHOOSE(m_identity,'SHETL (Base)'!AI149, 'SPTL (Base)'!AI149, 'NGET TO (Base)'!AI149),CHOOSE(m_identity,'SHETL (Best)'!AI149, 'SPTL (Best)'!AI149, 'NGET TO (Best)'!AI149)) -> 0 | AJ149: =IF(UserInterface!$E$76 = 1,CHOOSE(m_identity,'SHETL (Base)'!AJ149, 'SPTL (Base)'!AJ149, 'NGET TO (Base)'!AJ149),CHOOSE(m_identity,'SHETL (Best)'!AJ149, 'SPTL (Best)'!AJ149, 'NGET TO (Best)'!AJ149)) -> 0 | AK149: =IF(UserInterface!$E$76 = 1,CHOOSE(m_identity,'SHETL (Base)'!AK149, 'SPTL (Base)'!AK149, 'NGET TO (Base)'!AK149),CHOOSE(m_identity,'SHETL (Best)'!AK149, 'SPTL (Best)'!AK149, 'NGET TO (Best)'!AK149)) -> 0 | AL149: =IF(UserInterface!$E$76 = 1,CHOOSE(m_identity,'SHETL (Base)'!AL149, 'SPTL (Base)'!AL149, 'NGET TO (Base)'!AL149),CHOOSE(m_identity,'SHETL (Best)'!AL149, 'SPTL (Best)'!AL149, 'NGET TO (Best)'!AL149)) -> 0 | AM149: =IF(UserInterface!$E$76 = 1,CHOOSE(m_identity,'SHETL (Base)'!AM149, 'SPTL (Base)'!AM149, 'NGET TO (Base)'!AM149),CHOOSE(m_identity,'SHETL (Best)'!AM149, 'SPTL (Best)'!AM149, 'NGET TO (Best)'!AM149)) -> 0 | AN149: =IF(UserInterface!$E$76 = 1,CHOOSE(m_identity,'SHETL (Base)'!AN149, 'SPTL (Base)'!AN149, 'NGET TO (Base)'!AN149),CHOOSE(m_identity,'SHETL (Best)'!AN149, 'SPTL (Best)'!AN149, 'NGET TO (Best)'!AN149)) -> 0 | AO149: =IF(UserInterface!$E$76 = 1,CHOOSE(m_identity,'SHETL (Base)'!AO149, 'SPTL (Base)'!AO149, 'NGET TO (Base)'!AO149),CHOOSE(m_identity,'SHETL (Best)'!AO149, 'SPTL (Best)'!AO149, 'NGET TO (Best)'!AO149)) -> 0
E150: Allocation to controllable opex | G150: % | AH150: =IF(UserInterface!$E$76 = 1,CHOOSE(m_identity,'SHETL (Base)'!AH150, 'SPTL (Base)'!AH150, 'NGET TO (Base)'!AH150),CHOOSE(m_identity,'SHETL (Best)'!AH150, 'SPTL (Best)'!AH150, 'NGET TO (Best)'!AH150)) -> 0 | AI150: =IF(UserInterface!$E$76 = 1,CHOOSE(m_identity,'SHETL (Base)'!AI150, 'SPTL (Base)'!AI150, 'NGET TO (Base)'!AI150),CHOOSE(m_identity,'SHETL (Best)'!AI150, 'SPTL (Best)'!AI150, 'NGET TO (Best)'!AI150)) -> 0 | AJ150: =IF(UserInterface!$E$76 = 1,CHOOSE(m_identity,'SHETL (Base)'!AJ150, 'SPTL (Base)'!AJ150, 'NGET TO (Base)'!AJ150),CHOOSE(m_identity,'SHETL (Best)'!AJ150, 'SPTL (Best)'!AJ150, 'NGET TO (Best)'!AJ150)) -> 0 | AK150: =IF(UserInterface!$E$76 = 1,CHOOSE(m_identity,'SHETL (Base)'!AK150, 'SPTL (Base)'!AK150, 'NGET TO (Base)'!AK150),CHOOSE(m_identity,'SHETL (Best)'!AK150, 'SPTL (Best)'!AK150, 'NGET TO (Best)'!AK150)) -> 0 | AL150: =IF(UserInterface!$E$76 = 1,CHOOSE(m_identity,'SHETL (Base)'!AL150, 'SPTL (Base)'!AL150, 'NGET TO (Base)'!AL150),CHOOSE(m_identity,'SHETL (Best)'!AL150, 'SPTL (Best)'!AL150, 'NGET TO (Best)'!AL150)) -> 0 | AM150: =IF(UserInterface!$E$76 = 1,CHOOSE(m_identity,'SHETL (Base)'!AM150, 'SPTL (Base)'!AM150, 'NGET TO (Base)'!AM150),CHOOSE(m_identity,'SHETL (Best)'!AM150, 'SPTL (Best)'!AM150, 'NGET TO (Best)'!AM150)) -> 0 | AN150: =IF(UserInterface!$E$76 = 1,CHOOSE(m_identity,'SHETL (Base)'!AN150, 'SPTL (Base)'!AN150, 'NGET TO (Base)'!AN150),CHOOSE(m_identity,'SHETL (Best)'!AN150, 'SPTL (Best)'!AN150, 'NGET TO (Best)'!AN150)) -> 0 | AO150: =IF(UserInterface!$E$76 = 1,CHOOSE(m_identity,'SHETL (Base)'!AO150, 'SPTL (Base)'!AO150, 'NGET TO (Base)'!AO150),CHOOSE(m_identity,'SHETL (Best)'!AO150, 'SPTL (Best)'!AO150, 'NGET TO (Best)'!AO150)) -> 0
E151: Allocation to non-operational capex | G151: % | AH151: =IF(UserInterface!$E$76 = 1,CHOOSE(m_identity,'SHETL (Base)'!AH151, 'SPTL (Base)'!AH151, 'NGET TO (Base)'!AH151),CHOOSE(m_identity,'SHETL (Best)'!AH151, 'SPTL (Best)'!AH151, 'NGET TO (Best)'!AH151)) -> 0 | AI151: =IF(UserInterface!$E$76 = 1,CHOOSE(m_identity,'SHETL (Base)'!AI151, 'SPTL (Base)'!AI151, 'NGET TO (Base)'!AI151),CHOOSE(m_identity,'SHETL (Best)'!AI151, 'SPTL (Best)'!AI151, 'NGET TO (Best)'!AI151)) -> 0 | AJ151: =IF(UserInterface!$E$76 = 1,CHOOSE(m_identity,'SHETL (Base)'!AJ151, 'SPTL (Base)'!AJ151, 'NGET TO (Base)'!AJ151),CHOOSE(m_identity,'SHETL (Best)'!AJ151, 'SPTL (Best)'!AJ151, 'NGET TO (Best)'!AJ151)) -> 0 | AK151: =IF(UserInterface!$E$76 = 1,CHOOSE(m_identity,'SHETL (Base)'!AK151, 'SPTL (Base)'!AK151, 'NGET TO (Base)'!AK151),CHOOSE(m_identity,'SHETL (Best)'!AK151, 'SPTL (Best)'!AK151, 'NGET TO (Best)'!AK151)) -> 0 | AL151: =IF(UserInterface!$E$76 = 1,CHOOSE(m_identity,'SHETL (Base)'!AL151, 'SPTL (Base)'!AL151, 'NGET TO (Base)'!AL151),CHOOSE(m_identity,'SHETL (Best)'!AL151, 'SPTL (Best)'!AL151, 'NGET TO (Best)'!AL151)) -> 0 | AM151: =IF(UserInterface!$E$76 = 1,CHOOSE(m_identity,'SHETL (Base)'!AM151, 'SPTL (Base)'!AM151, 'NGET TO (Base)'!AM151),CHOOSE(m_identity,'SHETL (Best)'!AM151, 'SPTL (Best)'!AM151, 'NGET TO (Best)'!AM151)) -> 0 | AN151: =IF(UserInterface!$E$76 = 1,CHOOSE(m_identity,'SHETL (Base)'!AN151, 'SPTL (Base)'!AN151, 'NGET TO (Base)'!AN151),CHOOSE(m_identity,'SHETL (Best)'!AN151, 'SPTL (Best)'!AN151, 'NGET TO (Best)'!AN151)) -> 0 | AO151: =IF(UserInterface!$E$76 = 1,CHOOSE(m_identity,'SHETL (Base)'!AO151, 'SPTL (Base)'!AO151, 'NGET TO (Base)'!AO151),CHOOSE(m_identity,'SHETL (Best)'!AO151, 'SPTL (Best)'!AO151, 'NGET TO (Best)'!AO151)) -> 0
E153: =E23 -> Generation connections volume driver | G153: £m 09/10 prices | AH153: =AH23 -> 4.271244383 | AI153: =AI23 -> 45.74040409 | AJ153: =AJ23 -> 64.16809169 | AK153: 16.6606297 | AL153: =AL23 -> 11.47168239 | AM153: 8.623243068 | AN153: 37.69707186 | AO153: 41.39912511
E154: Allocation to load related capex expenditure | G154: % | AH154: =IF(UserInterface!$E$76 = 1,CHOOSE(m_identity,'SHETL (Base)'!AH154, 'SPTL (Base)'!AH154, 'NGET TO (Base)'!AH154),CHOOSE(m_identity,'SHETL (Best)'!AH154, 'SPTL (Best)'!AH154, 'NGET TO (Best)'!AH154)) -> 1 | AI154: =IF(UserInterface!$E$76 = 1,CHOOSE(m_identity,'SHETL (Base)'!AI154, 'SPTL (Base)'!AI154, 'NGET TO (Base)'!AI154),CHOOSE(m_identity,'SHETL (Best)'!AI154, 'SPTL (Best)'!AI154, 'NGET TO (Best)'!AI154)) -> 1 | AJ154: =IF(UserInterface!$E$76 = 1,CHOOSE(m_identity,'SHETL (Base)'!AJ154, 'SPTL (Base)'!AJ154, 'NGET TO (Base)'!AJ154),CHOOSE(m_identity,'SHETL (Best)'!AJ154, 'SPTL (Best)'!AJ154, 'NGET TO (Best)'!AJ154)) -> 1 | AK154: =IF(UserInterface!$E$76 = 1,CHOOSE(m_identity,'SHETL (Base)'!AK154, 'SPTL (Base)'!AK154, 'NGET TO (Base)'!AK154),CHOOSE(m_identity,'SHETL (Best)'!AK154, 'SPTL (Best)'!AK154, 'NGET TO (Best)'!AK154)) -> 1 | AL154: =IF(UserInterface!$E$76 = 1,CHOOSE(m_identity,'SHETL (Base)'!AL154, 'SPTL (Base)'!AL154, 'NGET TO (Base)'!AL154),CHOOSE(m_identity,'SHETL (Best)'!AL154, 'SPTL (Best)'!AL154, 'NGET TO (Best)'!AL154)) -> 1 | AM154: =IF(UserInterface!$E$76 = 1,CHOOSE(m_identity,'SHETL (Base)'!AM154, 'SPTL (Base)'!AM154, 'NGET TO (Base)'!AM154),CHOOSE(m_identity,'SHETL (Best)'!AM154, 'SPTL (Best)'!AM154, 'NGET TO (Best)'!AM154)) -> 1 | AN154: =IF(UserInterface!$E$76 = 1,CHOOSE(m_identity,'SHETL (Base)'!AN154, 'SPTL (Base)'!AN154, 'NGET TO (Base)'!AN154),CHOOSE(m_identity,'SHETL (Best)'!AN154, 'SPTL (Best)'!AN154, 'NGET TO (Best)'!AN154)) -> 1 | AO154: =IF(UserInterface!$E$76 = 1,CHOOSE(m_identity,'SHETL (Base)'!AO154, 'SPTL (Base)'!AO154, 'NGET TO (Base)'!AO154),CHOOSE(m_identity,'SHETL (Best)'!AO154, 'SPTL (Best)'!AO154, 'NGET TO (Best)'!AO154)) -> 1
E155: Allocation to asset replacement capex expenditure | G155: % | AH155: =IF(UserInterface!$E$76 = 1,CHOOSE(m_identity,'SHETL (Base)'!AH155, 'SPTL (Base)'!AH155, 'NGET TO (Base)'!AH155),CHOOSE(m_identity,'SHETL (Best)'!AH155, 'SPTL (Best)'!AH155, 'NGET TO (Best)'!AH155)) -> 0 | AI155: =IF(UserInterface!$E$76 = 1,CHOOSE(m_identity,'SHETL (Base)'!AI155, 'SPTL (Base)'!AI155, 'NGET TO (Base)'!AI155),CHOOSE(m_identity,'SHETL (Best)'!AI155, 'SPTL (Best)'!AI155, 'NGET TO (Best)'!AI155)) -> 0 | AJ155: =IF(UserInterface!$E$76 = 1,CHOOSE(m_identity,'SHETL (Base)'!AJ155, 'SPTL (Base)'!AJ155, 'NGET TO (Base)'!AJ155),CHOOSE(m_identity,'SHETL (Best)'!AJ155, 'SPTL (Best)'!AJ155, 'NGET TO (Best)'!AJ155)) -> 0 | AK155: =IF(UserInterface!$E$76 = 1,CHOOSE(m_identity,'SHETL (Base)'!AK155, 'SPTL (Base)'!AK155, 'NGET TO (Base)'!AK155),CHOOSE(m_identity,'SHETL (Best)'!AK155, 'SPTL (Best)'!AK155, 'NGET TO (Best)'!AK155)) -> 0 | AL155: =IF(UserInterface!$E$76 = 1,CHOOSE(m_identity,'SHETL (Base)'!AL155, 'SPTL (Base)'!AL155, 'NGET TO (Base)'!AL155),CHOOSE(m_identity,'SHETL (Best)'!AL155, 'SPTL (Best)'!AL155, 'NGET TO (Best)'!AL155)) -> 0 | AM155: =IF(UserInterface!$E$76 = 1,CHOOSE(m_identity,'SHETL (Base)'!AM155, 'SPTL (Base)'!AM155, 'NGET TO (Base)'!AM155),CHOOSE(m_identity,'SHETL (Best)'!AM155, 'SPTL (Best)'!AM155, 'NGET TO (Best)'!AM155)) -> 0 | AN155: =IF(UserInterface!$E$76 = 1,CHOOSE(m_identity,'SHETL (Base)'!AN155, 'SPTL (Base)'!AN155, 'NGET TO (Base)'!AN155),CHOOSE(m_identity,'SHETL (Best)'!AN155, 'SPTL (Best)'!AN155, 'NGET TO (Best)'!AN155)) -> 0 | AO155: =IF(UserInterface!$E$76 = 1,CHOOSE(m_identity,'SHETL (Base)'!AO155, 'SPTL (Base)'!AO155, 'NGET TO (Base)'!AO155),CHOOSE(m_identity,'SHETL (Best)'!AO155, 'SPTL (Best)'!AO155, 'NGET TO (Best)'!AO155)) -> 0
E156: Allocation to other capex expenditure | G156: % | AH156: =IF(UserInterface!$E$76 = 1,CHOOSE(m_identity,'SHETL (Base)'!AH156, 'SPTL (Base)'!AH156, 'NGET TO (Base)'!AH156),CHOOSE(m_identity,'SHETL (Best)'!AH156, 'SPTL (Best)'!AH156, 'NGET TO (Best)'!AH156)) -> 0 | AI156: =IF(UserInterface!$E$76 = 1,CHOOSE(m_identity,'SHETL (Base)'!AI156, 'SPTL (Base)'!AI156, 'NGET TO (Base)'!AI156),CHOOSE(m_identity,'SHETL (Best)'!AI156, 'SPTL (Best)'!AI156, 'NGET TO (Best)'!AI156)) -> 0 | AJ156: =IF(UserInterface!$E$76 = 1,CHOOSE(m_identity,'SHETL (Base)'!AJ156, 'SPTL (Base)'!AJ156, 'NGET TO (Base)'!AJ156),CHOOSE(m_identity,'SHETL (Best)'!AJ156, 'SPTL (Best)'!AJ156, 'NGET TO (Best)'!AJ156)) -> 0 | AK156: =IF(UserInterface!$E$76 = 1,CHOOSE(m_identity,'SHETL (Base)'!AK156, 'SPTL (Base)'!AK156, 'NGET TO (Base)'!AK156),CHOOSE(m_identity,'SHETL (Best)'!AK156, 'SPTL (Best)'!AK156, 'NGET TO (Best)'!AK156)) -> 0 | AL156: =IF(UserInterface!$E$76 = 1,CHOOSE(m_identity,'SHETL (Base)'!AL156, 'SPTL (Base)'!AL156, 'NGET TO (Base)'!AL156),CHOOSE(m_identity,'SHETL (Best)'!AL156, 'SPTL (Best)'!AL156, 'NGET TO (Best)'!AL156)) -> 0 | AM156: =IF(UserInterface!$E$76 = 1,CHOOSE(m_identity,'SHETL (Base)'!AM156, 'SPTL (Base)'!AM156, 'NGET TO (Base)'!AM156),CHOOSE(m_identity,'SHETL (Best)'!AM156, 'SPTL (Best)'!AM156, 'NGET TO (Best)'!AM156)) -> 0 | AN156: =IF(UserInterface!$E$76 = 1,CHOOSE(m_identity,'SHETL (Base)'!AN156, 'SPTL (Base)'!AN156, 'NGET TO (Base)'!AN156),CHOOSE(m_identity,'SHETL (Best)'!AN156, 'SPTL (Best)'!AN156, 'NGET TO (Best)'!AN156)) -> 0 | AO156: =IF(UserInterface!$E$76 = 1,CHOOSE(m_identity,'SHETL (Base)'!AO156, 'SPTL (Base)'!AO156, 'NGET TO (Base)'!AO156),CHOOSE(m_identity,'SHETL (Best)'!AO156, 'SPTL (Best)'!AO156, 'NGET TO (Best)'!AO156)) -> 0
E157: Allocation to controllable opex | G157: % | AH157: =IF(UserInterface!$E$76 = 1,CHOOSE(m_identity,'SHETL (Base)'!AH157, 'SPTL (Base)'!AH157, 'NGET TO (Base)'!AH157),CHOOSE(m_identity,'SHETL (Best)'!AH157, 'SPTL (Best)'!AH157, 'NGET TO (Best)'!AH157)) -> 0 | AI157: =IF(UserInterface!$E$76 = 1,CHOOSE(m_identity,'SHETL (Base)'!AI157, 'SPTL (Base)'!AI157, 'NGET TO (Base)'!AI157),CHOOSE(m_identity,'SHETL (Best)'!AI157, 'SPTL (Best)'!AI157, 'NGET TO (Best)'!AI157)) -> 0 | AJ157: =IF(UserInterface!$E$76 = 1,CHOOSE(m_identity,'SHETL (Base)'!AJ157, 'SPTL (Base)'!AJ157, 'NGET TO (Base)'!AJ157),CHOOSE(m_identity,'SHETL (Best)'!AJ157, 'SPTL (Best)'!AJ157, 'NGET TO (Best)'!AJ157)) -> 0 | AK157: =IF(UserInterface!$E$76 = 1,CHOOSE(m_identity,'SHETL (Base)'!AK157, 'SPTL (Base)'!AK157, 'NGET TO (Base)'!AK157),CHOOSE(m_identity,'SHETL (Best)'!AK157, 'SPTL (Best)'!AK157, 'NGET TO (Best)'!AK157)) -> 0 | AL157: =IF(UserInterface!$E$76 = 1,CHOOSE(m_identity,'SHETL (Base)'!AL157, 'SPTL (Base)'!AL157, 'NGET TO (Base)'!AL157),CHOOSE(m_identity,'SHETL (Best)'!AL157, 'SPTL (Best)'!AL157, 'NGET TO (Best)'!AL157)) -> 0 | AM157: =IF(UserInterface!$E$76 = 1,CHOOSE(m_identity,'SHETL (Base)'!AM157, 'SPTL (Base)'!AM157, 'NGET TO (Base)'!AM157),CHOOSE(m_identity,'SHETL (Best)'!AM157, 'SPTL (Best)'!AM157, 'NGET TO (Best)'!AM157)) -> 0 | AN157: =IF(UserInterface!$E$76 = 1,CHOOSE(m_identity,'SHETL (Base)'!AN157, 'SPTL (Base)'!AN157, 'NGET TO (Base)'!AN157),CHOOSE(m_identity,'SHETL (Best)'!AN157, 'SPTL (Best)'!AN157, 'NGET TO (Best)'!AN157)) -> 0 | AO157: =IF(UserInterface!$E$76 = 1,CHOOSE(m_identity,'SHETL (Base)'!AO157, 'SPTL (Base)'!AO157, 'NGET TO (Base)'!AO157),CHOOSE(m_identity,'SHETL (Best)'!AO157, 'SPTL (Best)'!AO157, 'NGET TO (Best)'!AO157)) -> 0
E158: Allocation to non-operational capex | G158: % | AH158: =IF(UserInterface!$E$76 = 1,CHOOSE(m_identity,'SHETL (Base)'!AH158, 'SPTL (Base)'!AH158, 'NGET TO (Base)'!AH158),CHOOSE(m_identity,'SHETL (Best)'!AH158, 'SPTL (Best)'!AH158, 'NGET TO (Best)'!AH158)) -> 0 | AI158: =IF(UserInterface!$E$76 = 1,CHOOSE(m_identity,'SHETL (Base)'!AI158, 'SPTL (Base)'!AI158, 'NGET TO (Base)'!AI158),CHOOSE(m_identity,'SHETL (Best)'!AI158, 'SPTL (Best)'!AI158, 'NGET TO (Best)'!AI158)) -> 0 | AJ158: =IF(UserInterface!$E$76 = 1,CHOOSE(m_identity,'SHETL (Base)'!AJ158, 'SPTL (Base)'!AJ158, 'NGET TO (Base)'!AJ158),CHOOSE(m_identity,'SHETL (Best)'!AJ158, 'SPTL (Best)'!AJ158, 'NGET TO (Best)'!AJ158)) -> 0 | AK158: =IF(UserInterface!$E$76 = 1,CHOOSE(m_identity,'SHETL (Base)'!AK158, 'SPTL (Base)'!AK158, 'NGET TO (Base)'!AK158),CHOOSE(m_identity,'SHETL (Best)'!AK158, 'SPTL (Best)'!AK158, 'NGET TO (Best)'!AK158)) -> 0 | AL158: =IF(UserInterface!$E$76 = 1,CHOOSE(m_identity,'SHETL (Base)'!AL158, 'SPTL (Base)'!AL158, 'NGET TO (Base)'!AL158),CHOOSE(m_identity,'SHETL (Best)'!AL158, 'SPTL (Best)'!AL158, 'NGET TO (Best)'!AL158)) -> 0 | AM158: =IF(UserInterface!$E$76 = 1,CHOOSE(m_identity,'SHETL (Base)'!AM158, 'SPTL (Base)'!AM158, 'NGET TO (Base)'!AM158),CHOOSE(m_identity,'SHETL (Best)'!AM158, 'SPTL (Best)'!AM158, 'NGET TO (Best)'!AM158)) -> 0 | AN158: =IF(UserInterface!$E$76 = 1,CHOOSE(m_identity,'SHETL (Base)'!AN158, 'SPTL (Base)'!AN158, 'NGET TO (Base)'!AN158),CHOOSE(m_identity,'SHETL (Best)'!AN158, 'SPTL (Best)'!AN158, 'NGET TO (Best)'!AN158)) -> 0 | AO158: =IF(UserInterface!$E$76 = 1,CHOOSE(m_identity,'SHETL (Base)'!AO158, 'SPTL (Base)'!AO158, 'NGET TO (Base)'!AO158),CHOOSE(m_identity,'SHETL (Best)'!AO158, 'SPTL (Best)'!AO158, 'NGET TO (Best)'!AO158)) -> 0
E160: =E24 -> Innovation roll out mechanism | G160: £m 09/10 prices | AH160: =AH24 -> 0 | AI160: =AI24 -> 0 | AJ160: 0 | AK160: 0 | AL160: 0 | AM160: 0 | AN160: 0 | AO160: 0
E161: Allocation to load related capex expenditure | G161: % | AH161: =IF(UserInterface!$E$76 = 1,CHOOSE(m_identity,'SHETL (Base)'!AH161, 'SPTL (Base)'!AH161, 'NGET TO (Base)'!AH161),CHOOSE(m_identity,'SHETL (Best)'!AH161, 'SPTL (Best)'!AH161, 'NGET TO (Best)'!AH161)) -> 0.3 | AI161: =IF(UserInterface!$E$76 = 1,CHOOSE(m_identity,'SHETL (Base)'!AI161, 'SPTL (Base)'!AI161, 'NGET TO (Base)'!AI161),CHOOSE(m_identity,'SHETL (Best)'!AI161, 'SPTL (Best)'!AI161, 'NGET TO (Best)'!AI161)) -> 0.3 | AJ161: =IF(UserInterface!$E$76 = 1,CHOOSE(m_identity,'SHETL (Base)'!AJ161, 'SPTL (Base)'!AJ161, 'NGET TO (Base)'!AJ161),CHOOSE(m_identity,'SHETL (Best)'!AJ161, 'SPTL (Best)'!AJ161, 'NGET TO (Best)'!AJ161)) -> 0.3 | AK161: =IF(UserInterface!$E$76 = 1,CHOOSE(m_identity,'SHETL (Base)'!AK161, 'SPTL (Base)'!AK161, 'NGET TO (Base)'!AK161),CHOOSE(m_identity,'SHETL (Best)'!AK161, 'SPTL (Best)'!AK161, 'NGET TO (Best)'!AK161)) -> 0.3 | AL161: =IF(UserInterface!$E$76 = 1,CHOOSE(m_identity,'SHETL (Base)'!AL161, 'SPTL (Base)'!AL161, 'NGET TO (Base)'!AL161),CHOOSE(m_identity,'SHETL (Best)'!AL161, 'SPTL (Best)'!AL161, 'NGET TO (Best)'!AL161)) -> 0.3 | AM161: =IF(UserInterface!$E$76 = 1,CHOOSE(m_identity,'SHETL (Base)'!AM161, 'SPTL (Base)'!AM161, 'NGET TO (Base)'!AM161),CHOOSE(m_identity,'SHETL (Best)'!AM161, 'SPTL (Best)'!AM161, 'NGET TO (Best)'!AM161)) -> 0.3 | AN161: =IF(UserInterface!$E$76 = 1,CHOOSE(m_identity,'SHETL (Base)'!AN161, 'SPTL (Base)'!AN161, 'NGET TO (Base)'!AN161),CHOOSE(m_identity,'SHETL (Best)'!AN161, 'SPTL (Best)'!AN161, 'NGET TO (Best)'!AN161)) -> 0.3 | AO161: =IF(UserInterface!$E$76 = 1,CHOOSE(m_identity,'SHETL (Base)'!AO161, 'SPTL (Base)'!AO161, 'NGET TO (Base)'!AO161),CHOOSE(m_identity,'SHETL (Best)'!AO161, 'SPTL (Best)'!AO161, 'NGET TO (Best)'!AO161)) -> 0.3
E162: Allocation to asset replacement capex expenditure | G162: % | AH162: =IF(UserInterface!$E$76 = 1,CHOOSE(m_identity,'SHETL (Base)'!AH162, 'SPTL (Base)'!AH162, 'NGET TO (Base)'!AH162),CHOOSE(m_identity,'SHETL (Best)'!AH162, 'SPTL (Best)'!AH162, 'NGET TO (Best)'!AH162)) -> 0.1 | AI162: =IF(UserInterface!$E$76 = 1,CHOOSE(m_identity,'SHETL (Base)'!AI162, 'SPTL (Base)'!AI162, 'NGET TO (Base)'!AI162),CHOOSE(m_identity,'SHETL (Best)'!AI162, 'SPTL (Best)'!AI162, 'NGET TO (Best)'!AI162)) -> 0.1 | AJ162: =IF(UserInterface!$E$76 = 1,CHOOSE(m_identity,'SHETL (Base)'!AJ162, 'SPTL (Base)'!AJ162, 'NGET TO (Base)'!AJ162),CHOOSE(m_identity,'SHETL (Best)'!AJ162, 'SPTL (Best)'!AJ162, 'NGET TO (Best)'!AJ162)) -> 0.1 | AK162: =IF(UserInterface!$E$76 = 1,CHOOSE(m_identity,'SHETL (Base)'!AK162, 'SPTL (Base)'!AK162, 'NGET TO (Base)'!AK162),CHOOSE(m_identity,'SHETL (Best)'!AK162, 'SPTL (Best)'!AK162, 'NGET TO (Best)'!AK162)) -> 0.1 | AL162: =IF(UserInterface!$E$76 = 1,CHOOSE(m_identity,'SHETL (Base)'!AL162, 'SPTL (Base)'!AL162, 'NGET TO (Base)'!AL162),CHOOSE(m_identity,'SHETL (Best)'!AL162, 'SPTL (Best)'!AL162, 'NGET TO (Best)'!AL162)) -> 0.1 | AM162: =IF(UserInterface!$E$76 = 1,CHOOSE(m_identity,'SHETL (Base)'!AM162, 'SPTL (Base)'!AM162, 'NGET TO (Base)'!AM162),CHOOSE(m_identity,'SHETL (Best)'!AM162, 'SPTL (Best)'!AM162, 'NGET TO (Best)'!AM162)) -> 0.1 | AN162: =IF(UserInterface!$E$76 = 1,CHOOSE(m_identity,'SHETL (Base)'!AN162, 'SPTL (Base)'!AN162, 'NGET TO (Base)'!AN162),CHOOSE(m_identity,'SHETL (Best)'!AN162, 'SPTL (Best)'!AN162, 'NGET TO (Best)'!AN162)) -> 0.1 | AO162: =IF(UserInterface!$E$76 = 1,CHOOSE(m_identity,'SHETL (Base)'!AO162, 'SPTL (Base)'!AO162, 'NGET TO (Base)'!AO162),CHOOSE(m_identity,'SHETL (Best)'!AO162, 'SPTL (Best)'!AO162, 'NGET TO (Best)'!AO162)) -> 0.1
E163: Allocation to other capex expenditure | G163: % | AH163: =IF(UserInterface!$E$76 = 1,CHOOSE(m_identity,'SHETL (Base)'!AH163, 'SPTL (Base)'!AH163, 'NGET TO (Base)'!AH163),CHOOSE(m_identity,'SHETL (Best)'!AH163, 'SPTL (Best)'!AH163, 'NGET TO (Best)'!AH163)) -> 0.5 | AI163: =IF(UserInterface!$E$76 = 1,CHOOSE(m_identity,'SHETL (Base)'!AI163, 'SPTL (Base)'!AI163, 'NGET TO (Base)'!AI163),CHOOSE(m_identity,'SHETL (Best)'!AI163, 'SPTL (Best)'!AI163, 'NGET TO (Best)'!AI163)) -> 0.5 | AJ163: =IF(UserInterface!$E$76 = 1,CHOOSE(m_identity,'SHETL (Base)'!AJ163, 'SPTL (Base)'!AJ163, 'NGET TO (Base)'!AJ163),CHOOSE(m_identity,'SHETL (Best)'!AJ163, 'SPTL (Best)'!AJ163, 'NGET TO (Best)'!AJ163)) -> 0.5 | AK163: =IF(UserInterface!$E$76 = 1,CHOOSE(m_identity,'SHETL (Base)'!AK163, 'SPTL (Base)'!AK163, 'NGET TO (Base)'!AK163),CHOOSE(m_identity,'SHETL (Best)'!AK163, 'SPTL (Best)'!AK163, 'NGET TO (Best)'!AK163)) -> 0.5 | AL163: =IF(UserInterface!$E$76 = 1,CHOOSE(m_identity,'SHETL (Base)'!AL163, 'SPTL (Base)'!AL163, 'NGET TO (Base)'!AL163),CHOOSE(m_identity,'SHETL (Best)'!AL163, 'SPTL (Best)'!AL163, 'NGET TO (Best)'!AL163)) -> 0.5 | AM163: =IF(UserInterface!$E$76 = 1,CHOOSE(m_identity,'SHETL (Base)'!AM163, 'SPTL (Base)'!AM163, 'NGET TO (Base)'!AM163),CHOOSE(m_identity,'SHETL (Best)'!AM163, 'SPTL (Best)'!AM163, 'NGET TO (Best)'!AM163)) -> 0.5 | AN163: =IF(UserInterface!$E$76 = 1,CHOOSE(m_identity,'SHETL (Base)'!AN163, 'SPTL (Base)'!AN163, 'NGET TO (Base)'!AN163),CHOOSE(m_identity,'SHETL (Best)'!AN163, 'SPTL (Best)'!AN163, 'NGET TO (Best)'!AN163)) -> 0.5 | AO163: =IF(UserInterface!$E$76 = 1,CHOOSE(m_identity,'SHETL (Base)'!AO163, 'SPTL (Base)'!AO163, 'NGET TO (Base)'!AO163),CHOOSE(m_identity,'SHETL (Best)'!AO163, 'SPTL (Best)'!AO163, 'NGET TO (Best)'!AO163)) -> 0.5
E164: Allocation to controllable opex | G164: % | AH164: =IF(UserInterface!$E$76 = 1,CHOOSE(m_identity,'SHETL (Base)'!AH164, 'SPTL (Base)'!AH164, 'NGET TO (Base)'!AH164),CHOOSE(m_identity,'SHETL (Best)'!AH164, 'SPTL (Best)'!AH164, 'NGET TO (Best)'!AH164)) -> 0.1 | AI164: =IF(UserInterface!$E$76 = 1,CHOOSE(m_identity,'SHETL (Base)'!AI164, 'SPTL (Base)'!AI164, 'NGET TO (Base)'!AI164),CHOOSE(m_identity,'SHETL (Best)'!AI164, 'SPTL (Best)'!AI164, 'NGET TO (Best)'!AI164)) -> 0.1 | AJ164: =IF(UserInterface!$E$76 = 1,CHOOSE(m_identity,'SHETL (Base)'!AJ164, 'SPTL (Base)'!AJ164, 'NGET TO (Base)'!AJ164),CHOOSE(m_identity,'SHETL (Best)'!AJ164, 'SPTL (Best)'!AJ164, 'NGET TO (Best)'!AJ164)) -> 0.1 | AK164: =IF(UserInterface!$E$76 = 1,CHOOSE(m_identity,'SHETL (Base)'!AK164, 'SPTL (Base)'!AK164, 'NGET TO (Base)'!AK164),CHOOSE(m_identity,'SHETL (Best)'!AK164, 'SPTL (Best)'!AK164, 'NGET TO (Best)'!AK164)) -> 0.1 | AL164: =IF(UserInterface!$E$76 = 1,CHOOSE(m_identity,'SHETL (Base)'!AL164, 'SPTL (Base)'!AL164, 'NGET TO (Base)'!AL164),CHOOSE(m_identity,'SHETL (Best)'!AL164, 'SPTL (Best)'!AL164, 'NGET TO (Best)'!AL164)) -> 0.1 | AM164: =IF(UserInterface!$E$76 = 1,CHOOSE(m_identity,'SHETL (Base)'!AM164, 'SPTL (Base)'!AM164, 'NGET TO (Base)'!AM164),CHOOSE(m_identity,'SHETL (Best)'!AM164, 'SPTL (Best)'!AM164, 'NGET TO (Best)'!AM164)) -> 0.1 | AN164: =IF(UserInterface!$E$76 = 1,CHOOSE(m_identity,'SHETL (Base)'!AN164, 'SPTL (Base)'!AN164, 'NGET TO (Base)'!AN164),CHOOSE(m_identity,'SHETL (Best)'!AN164, 'SPTL (Best)'!AN164, 'NGET TO (Best)'!AN164)) -> 0.1 | AO164: =IF(UserInterface!$E$76 = 1,CHOOSE(m_identity,'SHETL (Base)'!AO164, 'SPTL (Base)'!AO164, 'NGET TO (Base)'!AO164),CHOOSE(m_identity,'SHETL (Best)'!AO164, 'SPTL (Best)'!AO164, 'NGET TO (Best)'!AO164)) -> 0.1
E165: Allocation to non-operational capex | G165: % | AH165: =IF(UserInterface!$E$76 = 1,CHOOSE(m_identity,'SHETL (Base)'!AH165, 'SPTL (Base)'!AH165, 'NGET TO (Base)'!AH165),CHOOSE(m_identity,'SHETL (Best)'!AH165, 'SPTL (Best)'!AH165, 'NGET TO (Best)'!AH165)) -> 0 | AI165: =IF(UserInterface!$E$76 = 1,CHOOSE(m_identity,'SHETL (Base)'!AI165, 'SPTL (Base)'!AI165, 'NGET TO (Base)'!AI165),CHOOSE(m_identity,'SHETL (Best)'!AI165, 'SPTL (Best)'!AI165, 'NGET TO (Best)'!AI165)) -> 0 | AJ165: =IF(UserInterface!$E$76 = 1,CHOOSE(m_identity,'SHETL (Base)'!AJ165, 'SPTL (Base)'!AJ165, 'NGET TO (Base)'!AJ165),CHOOSE(m_identity,'SHETL (Best)'!AJ165, 'SPTL (Best)'!AJ165, 'NGET TO (Best)'!AJ165)) -> 0 | AK165: =IF(UserInterface!$E$76 = 1,CHOOSE(m_identity,'SHETL (Base)'!AK165, 'SPTL (Base)'!AK165, 'NGET TO (Base)'!AK165),CHOOSE(m_identity,'SHETL (Best)'!AK165, 'SPTL (Best)'!AK165, 'NGET TO (Best)'!AK165)) -> 0 | AL165: =IF(UserInterface!$E$76 = 1,CHOOSE(m_identity,'SHETL (Base)'!AL165, 'SPTL (Base)'!AL165, 'NGET TO (Base)'!AL165),CHOOSE(m_identity,'SHETL (Best)'!AL165, 'SPTL (Best)'!AL165, 'NGET TO (Best)'!AL165)) -> 0 | AM165: =IF(UserInterface!$E$76 = 1,CHOOSE(m_identity,'SHETL (Base)'!AM165, 'SPTL (Base)'!AM165, 'NGET TO (Base)'!AM165),CHOOSE(m_identity,'SHETL (Best)'!AM165, 'SPTL (Best)'!AM165, 'NGET TO (Best)'!AM165)) -> 0 | AN165: =IF(UserInterface!$E$76 = 1,CHOOSE(m_identity,'SHETL (Base)'!AN165, 'SPTL (Base)'!AN165, 'NGET TO (Base)'!AN165),CHOOSE(m_identity,'SHETL (Best)'!AN165, 'SPTL (Best)'!AN165, 'NGET TO (Best)'!AN165)) -> 0 | AO165: =IF(UserInterface!$E$76 = 1,CHOOSE(m_identity,'SHETL (Base)'!AO165, 'SPTL (Base)'!AO165, 'NGET TO (Base)'!AO165),CHOOSE(m_identity,'SHETL (Best)'!AO165, 'SPTL (Best)'!AO165, 'NGET TO (Best)'!AO165)) -> 0
E167: Variant allowed load related capex expenditure | G167: £m 09/10 prices | AH167: =(AH$90*AH91) + (AH$97*AH98) + (AH$104*AH105) + (AH$111*AH112) + (AH$118*AH119) + (AH$125*AH126) + (AH$132*AH133) + (AH$139*AH140) + (AH$146*AH147) + (AH$153*AH154) + (AH$160*AH161) -> 103.8769353 | AI167: =(AI$90*AI91) + (AI$97*AI98) + (AI$104*AI105) + (AI$111*AI112) + (AI$118*AI119) + (AI$125*AI126) + (AI$132*AI133) + (AI$139*AI140) + (AI$146*AI147) + (AI$153*AI154) + (AI$160*AI161) -> 214.6168617 | AJ167: 329.7404129 | AK167: 383.9883071 | AL167: 392.4938421 | AM167: 462.7510193 | AN167: 319.5576023 | AO167: 239.5615759
E168: Variant allowed asset replacement capex expenditure | G168: £m 09/10 prices | AH168: =(AH$90*AH92) + (AH$97*AH99) + (AH$104*AH106) + (AH$111*AH113) + (AH$118*AH120) + (AH$125*AH127) + (AH$132*AH134) + (AH$139*AH141) + (AH$146*AH148) + (AH$153*AH155) + (AH$160*AH162) -> 0 | AI168: 0 | AJ168: 0 | AK168: 0 | AL168: 0 | AM168: 0 | AN168: 0 | AO168: 0
E169: Variant allowed other capex expenditure | G169: £m 09/10 prices | AH169: =(AH$90*AH93) + (AH$97*AH100) + (AH$104*AH107) + (AH$111*AH114) + (AH$118*AH121) + (AH$125*AH128) + (AH$132*AH135) + (AH$139*AH142) + (AH$146*AH149) + (AH$153*AH156) + (AH$160*AH163) -> 4.886213636 | AI169: 5.53199742 | AJ169: 3.179751735 | AK169: 4.291087592 | AL169: 1.689670161 | AM169: 1.70993168 | AN169: 1.730875798 | AO169: 1.751999408
E170: Variant allowed controllable opex | G170: £m 09/10 prices | AH170: =(AH$90*AH94) + (AH$97*AH101) + (AH$104*AH108) + (AH$111*AH115) + (AH$118*AH122) + (AH$125*AH129) + (AH$132*AH136) + (AH$139*AH143) + (AH$146*AH150) + (AH$153*AH157) + (AH$160*AH164) -> 0.9903961516 | AI170: 1.757493108 | AJ170: 3.900788442 | AK170: 2.892957249 | AL170: 5.050419435 | AM170: 5.146447011 | AN170: 5.224049373 | AO170: 5.293070056
E171: Variant allowed non-operational capex | G171: £m 09/10 prices | AH171: =(AH$90*AH95) + (AH$97*AH102) + (AH$104*AH109) + (AH$111*AH116) + (AH$118*AH123) + (AH$125*AH130) + (AH$132*AH137) + (AH$139*AH144) + (AH$146*AH151) + (AH$153*AH158) + (AH$160*AH165) -> 0 | AI171: 0 | AJ171: 0 | AK171: 0 | AL171: 0 | AM171: 0 | AN171: 0 | AO171: 0
D173: Actual
E175: Actual load related capex expenditure | G175: £m 09/10 prices | AH175: =AH9 -> 988.2538011 | AI175: 1244.280253 | AJ175: 1291.950588 | AK175: 1260.709999 | AL175: 911.7846156 | AM175: 835.7631843 | AN175: 473.3779152 | AO175: 301.3830181
E176: Actual asset replacement capex expenditure | G176: £m 09/10 prices | AH176: =AH10 -> 468.8084321 | AI176: 464.0539988 | AJ176: 458.9694018 | AK176: 462.2051567 | AL176: 597.3961699 | AM176: 694.9536236 | AN176: 760.4713341 | AO176: 680.3753404
E177: Actual other capex expenditure | G177: £m 09/10 prices | AH177: =AH11 -> 13.69389364 | AI177: 12.78887742 | AJ177: 9.120751735 | AK177: 12.54336759 | AL177: 9.594990161 | AM177: 12.42157168 | AN177: 12.4005158 | AO177: 13.63263941
E178: Actual controllable opex | G178: £m 09/10 prices | AH178: 193.2032224 | AI178: 198.1695338 | AJ178: 206.947895 | AK178: 207.2446741 | AL178: 210.7724592 | AM178: 211.2108875 | AN178: 213.0629594 | AO178: 213.4971254
E179: Actual non-operational capex | G179: £m 09/10 prices | AH179: =AH13 -> 28.50225287 | AI179: 27.89321936 | AJ179: 20.16289582 | AK179: 18.68399486 | AL179: 17.31743474 | AM179: 10.13227357 | AN179: 13.10983634 | AO179: 11.95703552
C181: Non-totex
E183: Non-controllable opex | G183: £m 09/10 prices | AH183: =IF(UserInterface!$E$76 = 1,CHOOSE(m_identity,'SHETL (Base)'!AH183, 'SPTL (Base)'!AH183, 'NGET TO (Base)'!AH183),CHOOSE(m_identity,'SHETL (Best)'!AH183, 'SPTL (Best)'!AH183, 'NGET TO (Best)'!AH183)) -> 94.24723304 | AI183: =IF(UserInterface!$E$76 = 1,CHOOSE(m_identity,'SHETL (Base)'!AI183, 'SPTL (Base)'!AI183, 'NGET TO (Base)'!AI183),CHOOSE(m_identity,'SHETL (Best)'!AI183, 'SPTL (Best)'!AI183, 'NGET TO (Best)'!AI183)) -> 87.6782242 | AJ183: =IF(UserInterface!$E$76 = 1,CHOOSE(m_identity,'SHETL (Base)'!AJ183, 'SPTL (Base)'!AJ183, 'NGET TO (Base)'!AJ183),CHOOSE(m_identity,'SHETL (Best)'!AJ183, 'SPTL (Best)'!AJ183, 'NGET TO (Best)'!AJ183)) -> 87.67624376 | AK183: =IF(UserInterface!$E$76 = 1,CHOOSE(m_identity,'SHETL (Base)'!AK183, 'SPTL (Base)'!AK183, 'NGET TO (Base)'!AK183),CHOOSE(m_identity,'SHETL (Best)'!AK183, 'SPTL (Best)'!AK183, 'NGET TO (Best)'!AK183)) -> 87.67748178 | AL183: =IF(UserInterface!$E$76 = 1,CHOOSE(m_identity,'SHETL (Base)'!AL183, 'SPTL (Base)'!AL183, 'NGET TO (Base)'!AL183),CHOOSE(m_identity,'SHETL (Best)'!AL183, 'SPTL (Best)'!AL183, 'NGET TO (Best)'!AL183)) -> 87.67624449 | AM183: =IF(UserInterface!$E$76 = 1,CHOOSE(m_identity,'SHETL (Base)'!AM183, 'SPTL (Base)'!AM183, 'NGET TO (Base)'!AM183),CHOOSE(m_identity,'SHETL (Best)'!AM183, 'SPTL (Best)'!AM183, 'NGET TO (Best)'!AM183)) -> 87.67624449 | AN183: =IF(UserInterface!$E$76 = 1,CHOOSE(m_identity,'SHETL (Base)'!AN183, 'SPTL (Base)'!AN183, 'NGET TO (Base)'!AN183),CHOOSE(m_identity,'SHETL (Best)'!AN183, 'SPTL (Best)'!AN183, 'NGET TO (Best)'!AN183)) -> 87.67624449 | AO183: =IF(UserInterface!$E$76 = 1,CHOOSE(m_identity,'SHETL (Base)'!AO183, 'SPTL (Base)'!AO183, 'NGET TO (Base)'!AO183),CHOOSE(m_identity,'SHETL (Best)'!AO183, 'SPTL (Best)'!AO183, 'NGET TO (Best)'!AO183)) -> 87.67624446
B185: Direct allowed revenue terms (DARTs)
E187: =E27 -> Pension scheme administration and Pension Protection Fund Levy | G187: £m 09/10 prices | AH187: =AH27 -> 1.5 | AI187: 1.3 | AJ187: 1.3 | AK187: 1.5 | AL187: 1.3 | AM187: 1.3 | AN187: 1.5 | AO187: 1.3
E188: =E28 -> Pension Scheme Established Deficit | G188: £m 09/10 prices | AH188: =AH28 -> 28.92905255 | AI188: 28.92905255 | AJ188: 28.92905255 | AK188: 28.92905255 | AL188: 28.92905255 | AM188: 28.92905255 | AN188: 28.92905255 | AO188: 28.92905255
E190: Pension true-up from previous price controls | G190: £m 09/10 prices | AH190: =IF(UserInterface!$E$76 = 1,CHOOSE(m_identity,'SHETL (Base)'!AH190, 'SPTL (Base)'!AH190, 'NGET TO (Base)'!AH190),CHOOSE(m_identity,'SHETL (Best)'!AH190, 'SPTL (Best)'!AH190, 'NGET TO (Best)'!AH190)) -> 1.628172748 | AI190: =IF(UserInterface!$E$76 = 1,CHOOSE(m_identity,'SHETL (Base)'!AI190, 'SPTL (Base)'!AI190, 'NGET TO (Base)'!AI190),CHOOSE(m_identity,'SHETL (Best)'!AI190, 'SPTL (Best)'!AI190, 'NGET TO (Best)'!AI190)) -> 1.702287172 | AJ190: =IF(UserInterface!$E$76 = 1,CHOOSE(m_identity,'SHETL (Base)'!AJ190, 'SPTL (Base)'!AJ190, 'NGET TO (Base)'!AJ190),CHOOSE(m_identity,'SHETL (Best)'!AJ190, 'SPTL (Best)'!AJ190, 'NGET TO (Best)'!AJ190)) -> 1.779775284 | AK190: =IF(UserInterface!$E$76 = 1,CHOOSE(m_identity,'SHETL (Base)'!AK190, 'SPTL (Base)'!AK190, 'NGET TO (Base)'!AK190),CHOOSE(m_identity,'SHETL (Best)'!AK190, 'SPTL (Best)'!AK190, 'NGET TO (Best)'!AK190)) -> 1.860790655 | AL190: =IF(UserInterface!$E$76 = 1,CHOOSE(m_identity,'SHETL (Base)'!AL190, 'SPTL (Base)'!AL190, 'NGET TO (Base)'!AL190),CHOOSE(m_identity,'SHETL (Best)'!AL190, 'SPTL (Best)'!AL190, 'NGET TO (Best)'!AL190)) -> 1.945493845 | AM190: =IF(UserInterface!$E$76 = 1,CHOOSE(m_identity,'SHETL (Base)'!AM190, 'SPTL (Base)'!AM190, 'NGET TO (Base)'!AM190),CHOOSE(m_identity,'SHETL (Best)'!AM190, 'SPTL (Best)'!AM190, 'NGET TO (Best)'!AM190)) -> 2.034052725 | AN190: =IF(UserInterface!$E$76 = 1,CHOOSE(m_identity,'SHETL (Base)'!AN190, 'SPTL (Base)'!AN190, 'NGET TO (Base)'!AN190),CHOOSE(m_identity,'SHETL (Best)'!AN190, 'SPTL (Best)'!AN190, 'NGET TO (Best)'!AN190)) -> 2.126642805 | AO190: =IF(UserInterface!$E$76 = 1,CHOOSE(m_identity,'SHETL (Base)'!AO190, 'SPTL (Base)'!AO190, 'NGET TO (Base)'!AO190),CHOOSE(m_identity,'SHETL (Best)'!AO190, 'SPTL (Best)'!AO190, 'NGET TO (Best)'!AO190)) -> 2.223447585
E191: NGET TO Capital Expenditure Incentive and Safety Net | G191: £m 09/10 prices | AH191: =IF(UserInterface!$E$76 = 1,CHOOSE(m_identity,'SHETL (Base)'!AH191, 'SPTL (Base)'!AH191, 'NGET TO (Base)'!AH191),CHOOSE(m_identity,'SHETL (Best)'!AH191, 'SPTL (Best)'!AH191, 'NGET TO (Best)'!AH191)) -> 19.09222316 | AI191: =IF(UserInterface!$E$76 = 1,CHOOSE(m_identity,'SHETL (Base)'!AI191, 'SPTL (Base)'!AI191, 'NGET TO (Base)'!AI191),CHOOSE(m_identity,'SHETL (Best)'!AI191, 'SPTL (Best)'!AI191, 'NGET TO (Best)'!AI191)) -> 19.96130116 | AJ191: =IF(UserInterface!$E$76 = 1,CHOOSE(m_identity,'SHETL (Base)'!AJ191, 'SPTL (Base)'!AJ191, 'NGET TO (Base)'!AJ191),CHOOSE(m_identity,'SHETL (Best)'!AJ191, 'SPTL (Best)'!AJ191, 'NGET TO (Best)'!AJ191)) -> 20.86993959 | AK191: =IF(UserInterface!$E$76 = 1,CHOOSE(m_identity,'SHETL (Base)'!AK191, 'SPTL (Base)'!AK191, 'NGET TO (Base)'!AK191),CHOOSE(m_identity,'SHETL (Best)'!AK191, 'SPTL (Best)'!AK191, 'NGET TO (Best)'!AK191)) -> 21.81993924 | AL191: =IF(UserInterface!$E$76 = 1,CHOOSE(m_identity,'SHETL (Base)'!AL191, 'SPTL (Base)'!AL191, 'NGET TO (Base)'!AL191),CHOOSE(m_identity,'SHETL (Best)'!AL191, 'SPTL (Best)'!AL191, 'NGET TO (Best)'!AL191)) -> 22.81318288 | AM191: =IF(UserInterface!$E$76 = 1,CHOOSE(m_identity,'SHETL (Base)'!AM191, 'SPTL (Base)'!AM191, 'NGET TO (Base)'!AM191),CHOOSE(m_identity,'SHETL (Best)'!AM191, 'SPTL (Best)'!AM191, 'NGET TO (Best)'!AM191)) -> 23.85163896 | AN191: =IF(UserInterface!$E$76 = 1,CHOOSE(m_identity,'SHETL (Base)'!AN191, 'SPTL (Base)'!AN191, 'NGET TO (Base)'!AN191),CHOOSE(m_identity,'SHETL (Best)'!AN191, 'SPTL (Best)'!AN191, 'NGET TO (Best)'!AN191)) -> 24.93736557 | AO191: =IF(UserInterface!$E$76 = 1,CHOOSE(m_identity,'SHETL (Base)'!AO191, 'SPTL (Base)'!AO191, 'NGET TO (Base)'!AO191),CHOOSE(m_identity,'SHETL (Best)'!AO191, 'SPTL (Best)'!AO191, 'NGET TO (Best)'!AO191)) -> 26.07251445
E193: Revenue adjustment from previous controls (Base) | G193: £m 09/10 prices | AH193: =IF(UserInterface!$E$76 = 1,CHOOSE(m_identity,'SHETL (Base)'!AH193, 'SPTL (Base)'!AH193, 'NGET TO (Base)'!AH193),CHOOSE(m_identity,'SHETL (Best)'!AH193, 'SPTL (Best)'!AH193, 'NGET TO (Best)'!AH193)) -> 6.834099792 | AI193: =IF(UserInterface!$E$76 = 1,CHOOSE(m_identity,'SHETL (Base)'!AI193, 'SPTL (Base)'!AI193, 'NGET TO (Base)'!AI193),CHOOSE(m_identity,'SHETL (Best)'!AI193, 'SPTL (Best)'!AI193, 'NGET TO (Best)'!AI193)) -> 7.145188015 | AJ193: =IF(UserInterface!$E$76 = 1,CHOOSE(m_identity,'SHETL (Base)'!AJ193, 'SPTL (Base)'!AJ193, 'NGET TO (Base)'!AJ193),CHOOSE(m_identity,'SHETL (Best)'!AJ193, 'SPTL (Best)'!AJ193, 'NGET TO (Best)'!AJ193)) -> 7.470436973 | AK193: =IF(UserInterface!$E$76 = 1,CHOOSE(m_identity,'SHETL (Base)'!AK193, 'SPTL (Base)'!AK193, 'NGET TO (Base)'!AK193),CHOOSE(m_identity,'SHETL (Best)'!AK193, 'SPTL (Best)'!AK193, 'NGET TO (Best)'!AK193)) -> 7.810491264 | AL193: =IF(UserInterface!$E$76 = 1,CHOOSE(m_identity,'SHETL (Base)'!AL193, 'SPTL (Base)'!AL193, 'NGET TO (Base)'!AL193),CHOOSE(m_identity,'SHETL (Best)'!AL193, 'SPTL (Best)'!AL193, 'NGET TO (Best)'!AL193)) -> 8.166024826 | AM193: =IF(UserInterface!$E$76 = 1,CHOOSE(m_identity,'SHETL (Base)'!AM193, 'SPTL (Base)'!AM193, 'NGET TO (Base)'!AM193),CHOOSE(m_identity,'SHETL (Best)'!AM193, 'SPTL (Best)'!AM193, 'NGET TO (Best)'!AM193)) -> 8.537742277 | AN193: =IF(UserInterface!$E$76 = 1,CHOOSE(m_identity,'SHETL (Base)'!AN193, 'SPTL (Base)'!AN193, 'NGET TO (Base)'!AN193),CHOOSE(m_identity,'SHETL (Best)'!AN193, 'SPTL (Best)'!AN193, 'NGET TO (Best)'!AN193)) -> 8.926380305 | AO193: =IF(UserInterface!$E$76 = 1,CHOOSE(m_identity,'SHETL (Base)'!AO193, 'SPTL (Base)'!AO193, 'NGET TO (Base)'!AO193),CHOOSE(m_identity,'SHETL (Best)'!AO193, 'SPTL (Best)'!AO193, 'NGET TO (Best)'!AO193)) -> 9.332709136
E194: =E29 -> Legacy price control adjustments to allowed revenue | G194: £m 09/10 prices | AH194: =IF(OR(m_identity=1,m_identity=2),$AH$29,$AH$29/8*(1+AH40)^ROUND((AH4-$AH4)/365,1)) -> 0 | AI194: 0 | AJ194: 0 | AK194: 0 | AL194: 0 | AM194: 0 | AN194: 0 | AO194: 0
E195: Revenue adjustment from previous controls | G195: £m 09/10 prices | AH195: =AH193+AH194 -> 6.834099792 | AI195: =AI193+AI194 -> 7.145188015 | AJ195: 7.470436973 | AK195: 7.810491264 | AL195: 8.166024826 | AM195: 8.537742277 | AN195: 8.926380305 | AO195: 9.332709136
E197: Excluded services revenue | G197: £m 09/10 prices | AH197: =IF(UserInterface!$E$76 = 1,CHOOSE(m_identity,'SHETL (Base)'!AH197, 'SPTL (Base)'!AH197, 'NGET TO (Base)'!AH197),CHOOSE(m_identity,'SHETL (Best)'!AH197, 'SPTL (Best)'!AH197, 'NGET TO (Best)'!AH197)) -> 123 | AI197: =IF(UserInterface!$E$76 = 1,CHOOSE(m_identity,'SHETL (Base)'!AI197, 'SPTL (Base)'!AI197, 'NGET TO (Base)'!AI197),CHOOSE(m_identity,'SHETL (Best)'!AI197, 'SPTL (Best)'!AI197, 'NGET TO (Best)'!AI197)) -> 122.8 | AJ197: =IF(UserInterface!$E$76 = 1,CHOOSE(m_identity,'SHETL (Base)'!AJ197, 'SPTL (Base)'!AJ197, 'NGET TO (Base)'!AJ197),CHOOSE(m_identity,'SHETL (Best)'!AJ197, 'SPTL (Best)'!AJ197, 'NGET TO (Best)'!AJ197)) -> 129.8 | AK197: =IF(UserInterface!$E$76 = 1,CHOOSE(m_identity,'SHETL (Base)'!AK197, 'SPTL (Base)'!AK197, 'NGET TO (Base)'!AK197),CHOOSE(m_identity,'SHETL (Best)'!AK197, 'SPTL (Best)'!AK197, 'NGET TO (Best)'!AK197)) -> 125.6 | AL197: =IF(UserInterface!$E$76 = 1,CHOOSE(m_identity,'SHETL (Base)'!AL197, 'SPTL (Base)'!AL197, 'NGET TO (Base)'!AL197),CHOOSE(m_identity,'SHETL (Best)'!AL197, 'SPTL (Best)'!AL197, 'NGET TO (Best)'!AL197)) -> 127.3 | AM197: =IF(UserInterface!$E$76 = 1,CHOOSE(m_identity,'SHETL (Base)'!AM197, 'SPTL (Base)'!AM197, 'NGET TO (Base)'!AM197),CHOOSE(m_identity,'SHETL (Best)'!AM197, 'SPTL (Best)'!AM197, 'NGET TO (Best)'!AM197)) -> 128.6 | AN197: =IF(UserInterface!$E$76 = 1,CHOOSE(m_identity,'SHETL (Base)'!AN197, 'SPTL (Base)'!AN197, 'NGET TO (Base)'!AN197),CHOOSE(m_identity,'SHETL (Best)'!AN197, 'SPTL (Best)'!AN197, 'NGET TO (Best)'!AN197)) -> 130.2 | AO197: =IF(UserInterface!$E$76 = 1,CHOOSE(m_identity,'SHETL (Base)'!AO197, 'SPTL (Base)'!AO197, 'NGET TO (Base)'!AO197),CHOOSE(m_identity,'SHETL (Best)'!AO197, 'SPTL (Best)'!AO197, 'NGET TO (Best)'!AO197)) -> 131.7
E198: Identified excluded services costs | G198: £m 09/10 prices | AH198: =IF(UserInterface!$E$76 = 1,CHOOSE(m_identity,'SHETL (Base)'!AH198, 'SPTL (Base)'!AH198, 'NGET TO (Base)'!AH198),CHOOSE(m_identity,'SHETL (Best)'!AH198, 'SPTL (Best)'!AH198, 'NGET TO (Best)'!AH198)) -> 7.367 | AI198: =IF(UserInterface!$E$76 = 1,CHOOSE(m_identity,'SHETL (Base)'!AI198, 'SPTL (Base)'!AI198, 'NGET TO (Base)'!AI198),CHOOSE(m_identity,'SHETL (Best)'!AI198, 'SPTL (Best)'!AI198, 'NGET TO (Best)'!AI198)) -> 6.234 | AJ198: =IF(UserInterface!$E$76 = 1,CHOOSE(m_identity,'SHETL (Base)'!AJ198, 'SPTL (Base)'!AJ198, 'NGET TO (Base)'!AJ198),CHOOSE(m_identity,'SHETL (Best)'!AJ198, 'SPTL (Best)'!AJ198, 'NGET TO (Best)'!AJ198)) -> 5.578 | AK198: =IF(UserInterface!$E$76 = 1,CHOOSE(m_identity,'SHETL (Base)'!AK198, 'SPTL (Base)'!AK198, 'NGET TO (Base)'!AK198),CHOOSE(m_identity,'SHETL (Best)'!AK198, 'SPTL (Best)'!AK198, 'NGET TO (Best)'!AK198)) -> 3.369 | AL198: =IF(UserInterface!$E$76 = 1,CHOOSE(m_identity,'SHETL (Base)'!AL198, 'SPTL (Base)'!AL198, 'NGET TO (Base)'!AL198),CHOOSE(m_identity,'SHETL (Best)'!AL198, 'SPTL (Best)'!AL198, 'NGET TO (Best)'!AL198)) -> 3.368 | AM198: =IF(UserInterface!$E$76 = 1,CHOOSE(m_identity,'SHETL (Base)'!AM198, 'SPTL (Base)'!AM198, 'NGET TO (Base)'!AM198),CHOOSE(m_identity,'SHETL (Best)'!AM198, 'SPTL (Best)'!AM198, 'NGET TO (Best)'!AM198)) -> 3.162 | AN198: =IF(UserInterface!$E$76 = 1,CHOOSE(m_identity,'SHETL (Base)'!AN198, 'SPTL (Base)'!AN198, 'NGET TO (Base)'!AN198),CHOOSE(m_identity,'SHETL (Best)'!AN198, 'SPTL (Best)'!AN198, 'NGET TO (Best)'!AN198)) -> 3.094 | AO198: =IF(UserInterface!$E$76 = 1,CHOOSE(m_identity,'SHETL (Base)'!AO198, 'SPTL (Base)'!AO198, 'NGET TO (Base)'!AO198),CHOOSE(m_identity,'SHETL (Best)'!AO198, 'SPTL (Best)'!AO198, 'NGET TO (Best)'!AO198)) -> 3.027
E199: Excluded services | G199: £m 09/10 prices | AH199: =SUM(AH197, -AH198) -> 115.633 | AI199: =SUM(AI197, -AI198) -> 116.566 | AJ199: 124.222 | AK199: 122.231 | AL199: 123.932 | AM199: 125.438 | AN199: 127.106 | AO199: 128.673
B201: RAV and assets
C203: Pre-vesting assets | AH203: =(Input!AH220+Input!AH221+SystemOperator!AH74)*Input!AH44/Input!$AD$44 + ('Finance&Tax'!AH29+'Finance&Tax'!AH30) -> 0
E205: Pre-vesting RAV cost opening balance brought forward (before transfers) | G205: £m 09/10 prices | AH205: =IF(UserInterface!$E$76 = 1,CHOOSE(m_identity,'SHETL (Base)'!AH205, 'SPTL (Base)'!AH205, 'NGET TO (Base)'!AH205),CHOOSE(m_identity,'SHETL (Best)'!AH205, 'SPTL (Best)'!AH205, 'NGET TO (Best)'!AH205)) -> 0
E206: Pre-vesting RAV cumulative depreciation opening balance brought forward (before transfers) | G206: £m 09/10 prices | AH206: =IF(UserInterface!$E$76 = 1,CHOOSE(m_identity,'SHETL (Base)'!AH206, 'SPTL (Base)'!AH206, 'NGET TO (Base)'!AH206),CHOOSE(m_identity,'SHETL (Best)'!AH206, 'SPTL (Best)'!AH206, 'NGET TO (Best)'!AH206)) -> 0
E208: Pre-vesting asset life | G208: years | I208: =IF(UserInterface!$E$76 = 1,CHOOSE(m_identity,'SHETL (Base)'!I208, 'SPTL (Base)'!I208, 'NGET TO (Base)'!I208),CHOOSE(m_identity,'SHETL (Best)'!I208, 'SPTL (Best)'!I208, 'NGET TO (Best)'!I208)) -> 20
E210: Years of pre-vesting depreciation remaining | G210: years | AH210: =IF(UserInterface!$E$76 = 1,CHOOSE(m_identity,'SHETL (Base)'!AH210, 'SPTL (Base)'!AH210, 'NGET TO (Base)'!AH210),CHOOSE(m_identity,'SHETL (Best)'!AH210, 'SPTL (Best)'!AH210, 'NGET TO (Best)'!AH210)) -> 45 | AI210: =IF(UserInterface!$E$76 = 1,CHOOSE(m_identity,'SHETL (Base)'!AI210, 'SPTL (Base)'!AI210, 'NGET TO (Base)'!AI210),CHOOSE(m_identity,'SHETL (Best)'!AI210, 'SPTL (Best)'!AI210, 'NGET TO (Best)'!AI210)) -> 44 | AJ210: =IF(UserInterface!$E$76 = 1,CHOOSE(m_identity,'SHETL (Base)'!AJ210, 'SPTL (Base)'!AJ210, 'NGET TO (Base)'!AJ210),CHOOSE(m_identity,'SHETL (Best)'!AJ210, 'SPTL (Best)'!AJ210, 'NGET TO (Best)'!AJ210)) -> 43 | AK210: =IF(UserInterface!$E$76 = 1,CHOOSE(m_identity,'SHETL (Base)'!AK210, 'SPTL (Base)'!AK210, 'NGET TO (Base)'!AK210),CHOOSE(m_identity,'SHETL (Best)'!AK210, 'SPTL (Best)'!AK210, 'NGET TO (Best)'!AK210)) -> 42 | AL210: =IF(UserInterface!$E$76 = 1,CHOOSE(m_identity,'SHETL (Base)'!AL210, 'SPTL (Base)'!AL210, 'NGET TO (Base)'!AL210),CHOOSE(m_identity,'SHETL (Best)'!AL210, 'SPTL (Best)'!AL210, 'NGET TO (Best)'!AL210)) -> 41 | AM210: =IF(UserInterface!$E$76 = 1,CHOOSE(m_identity,'SHETL (Base)'!AM210, 'SPTL (Base)'!AM210, 'NGET TO (Base)'!AM210),CHOOSE(m_identity,'SHETL (Best)'!AM210, 'SPTL (Best)'!AM210, 'NGET TO (Best)'!AM210)) -> 40 | AN210: =IF(UserInterface!$E$76 = 1,CHOOSE(m_identity,'SHETL (Base)'!AN210, 'SPTL (Base)'!AN210, 'NGET TO (Base)'!AN210),CHOOSE(m_identity,'SHETL (Best)'!AN210, 'SPTL (Best)'!AN210, 'NGET TO (Best)'!AN210)) -> 39 | AO210: =IF(UserInterface!$E$76 = 1,CHOOSE(m_identity,'SHETL (Base)'!AO210, 'SPTL (Base)'!AO210, 'NGET TO (Base)'!AO210),CHOOSE(m_identity,'SHETL (Best)'!AO210, 'SPTL (Best)'!AO210, 'NGET TO (Best)'!AO210)) -> 38
C212: Post-vesting assets
E214: Transmission
E215: Post-vesting asset life | G215: years | J215: > | K215: =IF(UserInterface!$E$76 = 1,CHOOSE(m_identity,'SHETL (Base)'!K215, 'SPTL (Base)'!K215, 'NGET TO (Base)'!K215),CHOOSE(m_identity,'SHETL (Best)'!K215, 'SPTL (Best)'!K215, 'NGET TO (Best)'!K215)) -> 40 | L215: =IF(UserInterface!$E$76 = 1,CHOOSE(m_identity,'SHETL (Base)'!L215, 'SPTL (Base)'!L215, 'NGET TO (Base)'!L215),CHOOSE(m_identity,'SHETL (Best)'!L215, 'SPTL (Best)'!L215, 'NGET TO (Best)'!L215)) -> 40 | M215: =IF(UserInterface!$E$76 = 1,CHOOSE(m_identity,'SHETL (Base)'!M215, 'SPTL (Base)'!M215, 'NGET TO (Base)'!M215),CHOOSE(m_identity,'SHETL (Best)'!M215, 'SPTL (Best)'!M215, 'NGET TO (Best)'!M215)) -> 40 | N215: =IF(UserInterface!$E$76 = 1,CHOOSE(m_identity,'SHETL (Base)'!N215, 'SPTL (Base)'!N215, 'NGET TO (Base)'!N215),CHOOSE(m_identity,'SHETL (Best)'!N215, 'SPTL (Best)'!N215, 'NGET TO (Best)'!N215)) -> 40 | O215: =IF(UserInterface!$E$76 = 1,CHOOSE(m_identity,'SHETL (Base)'!O215, 'SPTL (Base)'!O215, 'NGET TO (Base)'!O215),CHOOSE(m_identity,'SHETL (Best)'!O215, 'SPTL (Best)'!O215, 'NGET TO (Best)'!O215)) -> 40 | P215: =IF(UserInterface!$E$76 = 1,CHOOSE(m_identity,'SHETL (Base)'!P215, 'SPTL (Base)'!P215, 'NGET TO (Base)'!P215),CHOOSE(m_identity,'SHETL (Best)'!P215, 'SPTL (Best)'!P215, 'NGET TO (Best)'!P215)) -> 40 | Q215: =IF(UserInterface!$E$76 = 1,CHOOSE(m_identity,'SHETL (Base)'!Q215, 'SPTL (Base)'!Q215, 'NGET TO (Base)'!Q215),CHOOSE(m_identity,'SHETL (Best)'!Q215, 'SPTL (Best)'!Q215, 'NGET TO (Best)'!Q215)) -> 40 | R215: =IF(UserInterface!$E$76 = 1,CHOOSE(m_identity,'SHETL (Base)'!R215, 'SPTL (Base)'!R215, 'NGET TO (Base)'!R215),CHOOSE(m_identity,'SHETL (Best)'!R215, 'SPTL (Best)'!R215, 'NGET TO (Best)'!R215)) -> 40 | S215: =IF(UserInterface!$E$76 = 1,CHOOSE(m_identity,'SHETL (Base)'!S215, 'SPTL (Base)'!S215, 'NGET TO (Base)'!S215),CHOOSE(m_identity,'SHETL (Best)'!S215, 'SPTL (Best)'!S215, 'NGET TO (Best)'!S215)) -> 40 | T215: =IF(UserInterface!$E$76 = 1,CHOOSE(m_identity,'SHETL (Base)'!T215, 'SPTL (Base)'!T215, 'NGET TO (Base)'!T215),CHOOSE(m_identity,'SHETL (Best)'!T215, 'SPTL (Best)'!T215, 'NGET TO (Best)'!T215)) -> 40 | U215: =IF(UserInterface!$E$76 = 1,CHOOSE(m_identity,'SHETL (Base)'!U215, 'SPTL (Base)'!U215, 'NGET TO (Base)'!U215),CHOOSE(m_identity,'SHETL (Best)'!U215, 'SPTL (Best)'!U215, 'NGET TO (Best)'!U215)) -> 40 | V215: =IF(UserInterface!$E$76 = 1,CHOOSE(m_identity,'SHETL (Base)'!V215, 'SPTL (Base)'!V215, 'NGET TO (Base)'!V215),CHOOSE(m_identity,'SHETL (Best)'!V215, 'SPTL (Best)'!V215, 'NGET TO (Best)'!V215)) -> 40 | W215: =IF(UserInterface!$E$76 = 1,CHOOSE(m_identity,'SHETL (Base)'!W215, 'SPTL (Base)'!W215, 'NGET TO (Base)'!W215),CHOOSE(m_identity,'SHETL (Best)'!W215, 'SPTL (Best)'!W215, 'NGET TO (Best)'!W215)) -> 40 | X215: =IF(UserInterface!$E$76 = 1,CHOOSE(m_identity,'SHETL (Base)'!X215, 'SPTL (Base)'!X215, 'NGET TO (Base)'!X215),CHOOSE(m_identity,'SHETL (Best)'!X215, 'SPTL (Best)'!X215, 'NGET TO (Best)'!X215)) -> 40 | Y215: =IF(UserInterface!$E$76 = 1,CHOOSE(m_identity,'SHETL (Base)'!Y215, 'SPTL (Base)'!Y215, 'NGET TO (Base)'!Y215),CHOOSE(m_identity,'SHETL (Best)'!Y215, 'SPTL (Best)'!Y215, 'NGET TO (Best)'!Y215)) -> 40 | Z215: =IF(UserInterface!$E$76 = 1,CHOOSE(m_identity,'SHETL (Base)'!Z215, 'SPTL (Base)'!Z215, 'NGET TO (Base)'!Z215),CHOOSE(m_identity,'SHETL (Best)'!Z215, 'SPTL (Best)'!Z215, 'NGET TO (Best)'!Z215)) -> 40 | AA215: =IF(UserInterface!$E$76 = 1,CHOOSE(m_identity,'SHETL (Base)'!AA215, 'SPTL (Base)'!AA215, 'NGET TO (Base)'!AA215),CHOOSE(m_identity,'SHETL (Best)'!AA215, 'SPTL (Best)'!AA215, 'NGET TO (Best)'!AA215)) -> 40 | AB215: =IF(UserInterface!$E$76 = 1,CHOOSE(m_identity,'SHETL (Base)'!AB215, 'SPTL (Base)'!AB215, 'NGET TO (Base)'!AB215),CHOOSE(m_identity,'SHETL (Best)'!AB215, 'SPTL (Best)'!AB215, 'NGET TO (Best)'!AB215)) -> 40 | AC215: =IF(UserInterface!$E$76 = 1,CHOOSE(m_identity,'SHETL (Base)'!AC215, 'SPTL (Base)'!AC215, 'NGET TO (Base)'!AC215),CHOOSE(m_identity,'SHETL (Best)'!AC215, 'SPTL (Best)'!AC215, 'NGET TO (Best)'!AC215)) -> 40 | AD215: =IF(UserInterface!$E$76 = 1,CHOOSE(m_identity,'SHETL (Base)'!AD215, 'SPTL (Base)'!AD215, 'NGET TO (Base)'!AD215),CHOOSE(m_identity,'SHETL (Best)'!AD215, 'SPTL (Best)'!AD215, 'NGET TO (Best)'!AD215)) -> 40 | AE215: =IF(UserInterface!$E$76 = 1,CHOOSE(m_identity,'SHETL (Base)'!AE215, 'SPTL (Base)'!AE215, 'NGET TO (Base)'!AE215),CHOOSE(m_identity,'SHETL (Best)'!AE215, 'SPTL (Best)'!AE215, 'NGET TO (Best)'!AE215)) -> 40 | AF215: =IF(UserInterface!$E$76 = 1,CHOOSE(m_identity,'SHETL (Base)'!AF215, 'SPTL (Base)'!AF215, 'NGET TO (Base)'!AF215),CHOOSE(m_identity,'SHETL (Best)'!AF215, 'SPTL (Best)'!AF215, 'NGET TO (Best)'!AF215)) -> 40 | AG215: =IF(UserInterface!$E$76 = 1,CHOOSE(m_identity,'SHETL (Base)'!AG215, 'SPTL (Base)'!AG215, 'NGET TO (Base)'!AG215),CHOOSE(m_identity,'SHETL (Best)'!AG215, 'SPTL (Best)'!AG215, 'NGET TO (Best)'!AG215)) -> 40 | AH215: =IF(UserInterface!$E$76 = 1,CHOOSE(m_identity,'SHETL (Base)'!AH215, 'SPTL (Base)'!AH215, 'NGET TO (Base)'!AH215),CHOOSE(m_identity,'SHETL (Best)'!AH215, 'SPTL (Best)'!AH215, 'NGET TO (Best)'!AH215)) -> 23.125 | AI215: =IF(UserInterface!$E$76 = 1,CHOOSE(m_identity,'SHETL (Base)'!AI215, 'SPTL (Base)'!AI215, 'NGET TO (Base)'!AI215),CHOOSE(m_identity,'SHETL (Best)'!AI215, 'SPTL (Best)'!AI215, 'NGET TO (Best)'!AI215)) -> 26.25 | AJ215: =IF(UserInterface!$E$76 = 1,CHOOSE(m_identity,'SHETL (Base)'!AJ215, 'SPTL (Base)'!AJ215, 'NGET TO (Base)'!AJ215),CHOOSE(m_identity,'SHETL (Best)'!AJ215, 'SPTL (Best)'!AJ215, 'NGET TO (Best)'!AJ215)) -> 29.375 | AK215: =IF(UserInterface!$E$76 = 1,CHOOSE(m_identity,'SHETL (Base)'!AK215, 'SPTL (Base)'!AK215, 'NGET TO (Base)'!AK215),CHOOSE(m_identity,'SHETL (Best)'!AK215, 'SPTL (Best)'!AK215, 'NGET TO (Best)'!AK215)) -> 32.5 | AL215: =IF(UserInterface!$E$76 = 1,CHOOSE(m_identity,'SHETL (Base)'!AL215, 'SPTL (Base)'!AL215, 'NGET TO (Base)'!AL215),CHOOSE(m_identity,'SHETL (Best)'!AL215, 'SPTL (Best)'!AL215, 'NGET TO (Best)'!AL215)) -> 35.625 | AM215: =IF(UserInterface!$E$76 = 1,CHOOSE(m_identity,'SHETL (Base)'!AM215, 'SPTL (Base)'!AM215, 'NGET TO (Base)'!AM215),CHOOSE(m_identity,'SHETL (Best)'!AM215, 'SPTL (Best)'!AM215, 'NGET TO (Best)'!AM215)) -> 38.75 | AN215: =IF(UserInterface!$E$76 = 1,CHOOSE(m_identity,'SHETL (Base)'!AN215, 'SPTL (Base)'!AN215, 'NGET TO (Base)'!AN215),CHOOSE(m_identity,'SHETL (Best)'!AN215, 'SPTL (Best)'!AN215, 'NGET TO (Best)'!AN215)) -> 41.875 | AO215: =IF(UserInterface!$E$76 = 1,CHOOSE(m_identity,'SHETL (Base)'!AO215, 'SPTL (Base)'!AO215, 'NGET TO (Base)'!AO215),CHOOSE(m_identity,'SHETL (Best)'!AO215, 'SPTL (Best)'!AO215, 'NGET TO (Best)'!AO215)) -> 45
E216: Accelerated post-vesting asset life | G216: years | J216: > | K216: =IF(UserInterface!$E$76 = 1,CHOOSE(m_identity,'SHETL (Base)'!K216, 'SPTL (Base)'!K216, 'NGET TO (Base)'!K216),CHOOSE(m_identity,'SHETL (Best)'!K216, 'SPTL (Best)'!K216, 'NGET TO (Best)'!K216)) -> 20 | L216: =IF(UserInterface!$E$76 = 1,CHOOSE(m_identity,'SHETL (Base)'!L216, 'SPTL (Base)'!L216, 'NGET TO (Base)'!L216),CHOOSE(m_identity,'SHETL (Best)'!L216, 'SPTL (Best)'!L216, 'NGET TO (Best)'!L216)) -> 20 | M216: =IF(UserInterface!$E$76 = 1,CHOOSE(m_identity,'SHETL (Base)'!M216, 'SPTL (Base)'!M216, 'NGET TO (Base)'!M216),CHOOSE(m_identity,'SHETL (Best)'!M216, 'SPTL (Best)'!M216, 'NGET TO (Best)'!M216)) -> 20 | N216: =IF(UserInterface!$E$76 = 1,CHOOSE(m_identity,'SHETL (Base)'!N216, 'SPTL (Base)'!N216, 'NGET TO (Base)'!N216),CHOOSE(m_identity,'SHETL (Best)'!N216, 'SPTL (Best)'!N216, 'NGET TO (Best)'!N216)) -> 20 | O216: =IF(UserInterface!$E$76 = 1,CHOOSE(m_identity,'SHETL (Base)'!O216, 'SPTL (Base)'!O216, 'NGET TO (Base)'!O216),CHOOSE(m_identity,'SHETL (Best)'!O216, 'SPTL (Best)'!O216, 'NGET TO (Best)'!O216)) -> 20 | P216: =IF(UserInterface!$E$76 = 1,CHOOSE(m_identity,'SHETL (Base)'!P216, 'SPTL (Base)'!P216, 'NGET TO (Base)'!P216),CHOOSE(m_identity,'SHETL (Best)'!P216, 'SPTL (Best)'!P216, 'NGET TO (Best)'!P216)) -> 20 | Q216: =IF(UserInterface!$E$76 = 1,CHOOSE(m_identity,'SHETL (Base)'!Q216, 'SPTL (Base)'!Q216, 'NGET TO (Base)'!Q216),CHOOSE(m_identity,'SHETL (Best)'!Q216, 'SPTL (Best)'!Q216, 'NGET TO (Best)'!Q216)) -> 20 | R216: =IF(UserInterface!$E$76 = 1,CHOOSE(m_identity,'SHETL (Base)'!R216, 'SPTL (Base)'!R216, 'NGET TO (Base)'!R216),CHOOSE(m_identity,'SHETL (Best)'!R216, 'SPTL (Best)'!R216, 'NGET TO (Best)'!R216)) -> 20 | S216: =IF(UserInterface!$E$76 = 1,CHOOSE(m_identity,'SHETL (Base)'!S216, 'SPTL (Base)'!S216, 'NGET TO (Base)'!S216),CHOOSE(m_identity,'SHETL (Best)'!S216, 'SPTL (Best)'!S216, 'NGET TO (Best)'!S216)) -> 20 | T216: =IF(UserInterface!$E$76 = 1,CHOOSE(m_identity,'SHETL (Base)'!T216, 'SPTL (Base)'!T216, 'NGET TO (Base)'!T216),CHOOSE(m_identity,'SHETL (Best)'!T216, 'SPTL (Best)'!T216, 'NGET TO (Best)'!T216)) -> 20 | U216: =IF(UserInterface!$E$76 = 1,CHOOSE(m_identity,'SHETL (Base)'!U216, 'SPTL (Base)'!U216, 'NGET TO (Base)'!U216),CHOOSE(m_identity,'SHETL (Best)'!U216, 'SPTL (Best)'!U216, 'NGET TO (Best)'!U216)) -> 20 | V216: =IF(UserInterface!$E$76 = 1,CHOOSE(m_identity,'SHETL (Base)'!V216, 'SPTL (Base)'!V216, 'NGET TO (Base)'!V216),CHOOSE(m_identity,'SHETL (Best)'!V216, 'SPTL (Best)'!V216, 'NGET TO (Best)'!V216)) -> 20 | W216: =IF(UserInterface!$E$76 = 1,CHOOSE(m_identity,'SHETL (Base)'!W216, 'SPTL (Base)'!W216, 'NGET TO (Base)'!W216),CHOOSE(m_identity,'SHETL (Best)'!W216, 'SPTL (Best)'!W216, 'NGET TO (Best)'!W216)) -> 20 | X216: =IF(UserInterface!$E$76 = 1,CHOOSE(m_identity,'SHETL (Base)'!X216, 'SPTL (Base)'!X216, 'NGET TO (Base)'!X216),CHOOSE(m_identity,'SHETL (Best)'!X216, 'SPTL (Best)'!X216, 'NGET TO (Best)'!X216)) -> 20 | Y216: =IF(UserInterface!$E$76 = 1,CHOOSE(m_identity,'SHETL (Base)'!Y216, 'SPTL (Base)'!Y216, 'NGET TO (Base)'!Y216),CHOOSE(m_identity,'SHETL (Best)'!Y216, 'SPTL (Best)'!Y216, 'NGET TO (Best)'!Y216)) -> 20 | Z216: =IF(UserInterface!$E$76 = 1,CHOOSE(m_identity,'SHETL (Base)'!Z216, 'SPTL (Base)'!Z216, 'NGET TO (Base)'!Z216),CHOOSE(m_identity,'SHETL (Best)'!Z216, 'SPTL (Best)'!Z216, 'NGET TO (Best)'!Z216)) -> 20 | AA216: =IF(UserInterface!$E$76 = 1,CHOOSE(m_identity,'SHETL (Base)'!AA216, 'SPTL (Base)'!AA216, 'NGET TO (Base)'!AA216),CHOOSE(m_identity,'SHETL (Best)'!AA216, 'SPTL (Best)'!AA216, 'NGET TO (Best)'!AA216)) -> 20 | AB216: =IF(UserInterface!$E$76 = 1,CHOOSE(m_identity,'SHETL (Base)'!AB216, 'SPTL (Base)'!AB216, 'NGET TO (Base)'!AB216),CHOOSE(m_identity,'SHETL (Best)'!AB216, 'SPTL (Best)'!AB216, 'NGET TO (Best)'!AB216)) -> 20 | AC216: =IF(UserInterface!$E$76 = 1,CHOOSE(m_identity,'SHETL (Base)'!AC216, 'SPTL (Base)'!AC216, 'NGET TO (Base)'!AC216),CHOOSE(m_identity,'SHETL (Best)'!AC216, 'SPTL (Best)'!AC216, 'NGET TO (Best)'!AC216)) -> 20 | AD216: =IF(UserInterface!$E$76 = 1,CHOOSE(m_identity,'SHETL (Base)'!AD216, 'SPTL (Base)'!AD216, 'NGET TO (Base)'!AD216),CHOOSE(m_identity,'SHETL (Best)'!AD216, 'SPTL (Best)'!AD216, 'NGET TO (Best)'!AD216)) -> 20 | AE216: =IF(UserInterface!$E$76 = 1,CHOOSE(m_identity,'SHETL (Base)'!AE216, 'SPTL (Base)'!AE216, 'NGET TO (Base)'!AE216),CHOOSE(m_identity,'SHETL (Best)'!AE216, 'SPTL (Best)'!AE216, 'NGET TO (Best)'!AE216)) -> 20 | AF216: =IF(UserInterface!$E$76 = 1,CHOOSE(m_identity,'SHETL (Base)'!AF216, 'SPTL (Base)'!AF216, 'NGET TO (Base)'!AF216),CHOOSE(m_identity,'SHETL (Best)'!AF216, 'SPTL (Best)'!AF216, 'NGET TO (Best)'!AF216)) -> 20 | AG216: =IF(UserInterface!$E$76 = 1,CHOOSE(m_identity,'SHETL (Base)'!AG216, 'SPTL (Base)'!AG216, 'NGET TO (Base)'!AG216),CHOOSE(m_identity,'SHETL (Best)'!AG216, 'SPTL (Best)'!AG216, 'NGET TO (Best)'!AG216)) -> 20 | AH216: =IF(UserInterface!$E$76 = 1,CHOOSE(m_identity,'SHETL (Base)'!AH216, 'SPTL (Base)'!AH216, 'NGET TO (Base)'!AH216),CHOOSE(m_identity,'SHETL (Best)'!AH216, 'SPTL (Best)'!AH216, 'NGET TO (Best)'!AH216)) -> 23.125 | AI216: =IF(UserInterface!$E$76 = 1,CHOOSE(m_identity,'SHETL (Base)'!AI216, 'SPTL (Base)'!AI216, 'NGET TO (Base)'!AI216),CHOOSE(m_identity,'SHETL (Best)'!AI216, 'SPTL (Best)'!AI216, 'NGET TO (Best)'!AI216)) -> 26.25 | AJ216: =IF(UserInterface!$E$76 = 1,CHOOSE(m_identity,'SHETL (Base)'!AJ216, 'SPTL (Base)'!AJ216, 'NGET TO (Base)'!AJ216),CHOOSE(m_identity,'SHETL (Best)'!AJ216, 'SPTL (Best)'!AJ216, 'NGET TO (Best)'!AJ216)) -> 29.375 | AK216: =IF(UserInterface!$E$76 = 1,CHOOSE(m_identity,'SHETL (Base)'!AK216, 'SPTL (Base)'!AK216, 'NGET TO (Base)'!AK216),CHOOSE(m_identity,'SHETL (Best)'!AK216, 'SPTL (Best)'!AK216, 'NGET TO (Best)'!AK216)) -> 32.5 | AL216: =IF(UserInterface!$E$76 = 1,CHOOSE(m_identity,'SHETL (Base)'!AL216, 'SPTL (Base)'!AL216, 'NGET TO (Base)'!AL216),CHOOSE(m_identity,'SHETL (Best)'!AL216, 'SPTL (Best)'!AL216, 'NGET TO (Best)'!AL216)) -> 35.625 | AM216: =IF(UserInterface!$E$76 = 1,CHOOSE(m_identity,'SHETL (Base)'!AM216, 'SPTL (Base)'!AM216, 'NGET TO (Base)'!AM216),CHOOSE(m_identity,'SHETL (Best)'!AM216, 'SPTL (Best)'!AM216, 'NGET TO (Best)'!AM216)) -> 38.75 | AN216: =IF(UserInterface!$E$76 = 1,CHOOSE(m_identity,'SHETL (Base)'!AN216, 'SPTL (Base)'!AN216, 'NGET TO (Base)'!AN216),CHOOSE(m_identity,'SHETL (Best)'!AN216, 'SPTL (Best)'!AN216, 'NGET TO (Best)'!AN216)) -> 41.875 | AO216: =IF(UserInterface!$E$76 = 1,CHOOSE(m_identity,'SHETL (Base)'!AO216, 'SPTL (Base)'!AO216, 'NGET TO (Base)'!AO216),CHOOSE(m_identity,'SHETL (Best)'!AO216, 'SPTL (Best)'!AO216, 'NGET TO (Best)'!AO216)) -> 45
E217: Smoothing period following full depreciation of pre-vesting assets | G217: years | I217: =IF(UserInterface!$E$76 = 1,CHOOSE(m_identity,'SHETL (Base)'!I217, 'SPTL (Base)'!I217, 'NGET TO (Base)'!I217),CHOOSE(m_identity,'SHETL (Best)'!I217, 'SPTL (Best)'!I217, 'NGET TO (Best)'!I217)) -> 50
E218: Start of smoothing period | G218: year ending | I218: =IF(UserInterface!$E$76 = 1,CHOOSE(m_identity,'SHETL (Base)'!I218, 'SPTL (Base)'!I218, 'NGET TO (Base)'!I218),CHOOSE(m_identity,'SHETL (Best)'!I218, 'SPTL (Best)'!I218, 'NGET TO (Best)'!I218)) -> 1991-03-31
E219: Pre-RIIO net additions to RAV | G219: £m 09/10 prices | J219: > | K219: =IF(UserInterface!$E$76 = 1,CHOOSE(m_identity,'SHETL (Base)'!K219, 'SPTL (Base)'!K219, 'NGET TO (Base)'!K219),CHOOSE(m_identity,'SHETL (Best)'!K219, 'SPTL (Best)'!K219, 'NGET TO (Best)'!K219)) -> 379.4436332 | L219: =IF(UserInterface!$E$76 = 1,CHOOSE(m_identity,'SHETL (Base)'!L219, 'SPTL (Base)'!L219, 'NGET TO (Base)'!L219),CHOOSE(m_identity,'SHETL (Best)'!L219, 'SPTL (Best)'!L219, 'NGET TO (Best)'!L219)) -> 470.0945248 | M219: =IF(UserInterface!$E$76 = 1,CHOOSE(m_identity,'SHETL (Base)'!M219, 'SPTL (Base)'!M219, 'NGET TO (Base)'!M219),CHOOSE(m_identity,'SHETL (Best)'!M219, 'SPTL (Best)'!M219, 'NGET TO (Best)'!M219)) -> 554.8108451 | N219: =IF(UserInterface!$E$76 = 1,CHOOSE(m_identity,'SHETL (Base)'!N219, 'SPTL (Base)'!N219, 'NGET TO (Base)'!N219),CHOOSE(m_identity,'SHETL (Best)'!N219, 'SPTL (Best)'!N219, 'NGET TO (Best)'!N219)) -> 399.5679012 | O219: =IF(UserInterface!$E$76 = 1,CHOOSE(m_identity,'SHETL (Base)'!O219, 'SPTL (Base)'!O219, 'NGET TO (Base)'!O219),CHOOSE(m_identity,'SHETL (Best)'!O219, 'SPTL (Best)'!O219, 'NGET TO (Best)'!O219)) -> 260.2263273 | P219: =IF(UserInterface!$E$76 = 1,CHOOSE(m_identity,'SHETL (Base)'!P219, 'SPTL (Base)'!P219, 'NGET TO (Base)'!P219),CHOOSE(m_identity,'SHETL (Best)'!P219, 'SPTL (Best)'!P219, 'NGET TO (Best)'!P219)) -> 263.05996 | Q219: =IF(UserInterface!$E$76 = 1,CHOOSE(m_identity,'SHETL (Base)'!Q219, 'SPTL (Base)'!Q219, 'NGET TO (Base)'!Q219),CHOOSE(m_identity,'SHETL (Best)'!Q219, 'SPTL (Best)'!Q219, 'NGET TO (Best)'!Q219)) -> 254.7927781 | R219: =IF(UserInterface!$E$76 = 1,CHOOSE(m_identity,'SHETL (Base)'!R219, 'SPTL (Base)'!R219, 'NGET TO (Base)'!R219),CHOOSE(m_identity,'SHETL (Best)'!R219, 'SPTL (Best)'!R219, 'NGET TO (Best)'!R219)) -> 225.413665 | S219: =IF(UserInterface!$E$76 = 1,CHOOSE(m_identity,'SHETL (Base)'!S219, 'SPTL (Base)'!S219, 'NGET TO (Base)'!S219),CHOOSE(m_identity,'SHETL (Best)'!S219, 'SPTL (Best)'!S219, 'NGET TO (Best)'!S219)) -> 390.5666463 | T219: =IF(UserInterface!$E$76 = 1,CHOOSE(m_identity,'SHETL (Base)'!T219, 'SPTL (Base)'!T219, 'NGET TO (Base)'!T219),CHOOSE(m_identity,'SHETL (Best)'!T219, 'SPTL (Best)'!T219, 'NGET TO (Best)'!T219)) -> 346.9643274 | U219: =IF(UserInterface!$E$76 = 1,CHOOSE(m_identity,'SHETL (Base)'!U219, 'SPTL (Base)'!U219, 'NGET TO (Base)'!U219),CHOOSE(m_identity,'SHETL (Best)'!U219, 'SPTL (Best)'!U219, 'NGET TO (Best)'!U219)) -> 294.6148425 | V219: =IF(UserInterface!$E$76 = 1,CHOOSE(m_identity,'SHETL (Base)'!V219, 'SPTL (Base)'!V219, 'NGET TO (Base)'!V219),CHOOSE(m_identity,'SHETL (Best)'!V219, 'SPTL (Best)'!V219, 'NGET TO (Best)'!V219)) -> 407.7088313 | W219: =IF(UserInterface!$E$76 = 1,CHOOSE(m_identity,'SHETL (Base)'!W219, 'SPTL (Base)'!W219, 'NGET TO (Base)'!W219),CHOOSE(m_identity,'SHETL (Best)'!W219, 'SPTL (Best)'!W219, 'NGET TO (Best)'!W219)) -> 378.1171606 | X219: =IF(UserInterface!$E$76 = 1,CHOOSE(m_identity,'SHETL (Base)'!X219, 'SPTL (Base)'!X219, 'NGET TO (Base)'!X219),CHOOSE(m_identity,'SHETL (Best)'!X219, 'SPTL (Best)'!X219, 'NGET TO (Best)'!X219)) -> 321.3343833 | Y219: =IF(UserInterface!$E$76 = 1,CHOOSE(m_identity,'SHETL (Base)'!Y219, 'SPTL (Base)'!Y219, 'NGET TO (Base)'!Y219),CHOOSE(m_identity,'SHETL (Best)'!Y219, 'SPTL (Best)'!Y219, 'NGET TO (Best)'!Y219)) -> 422.5964764 | Z219: =IF(UserInterface!$E$76 = 1,CHOOSE(m_identity,'SHETL (Base)'!Z219, 'SPTL (Base)'!Z219, 'NGET TO (Base)'!Z219),CHOOSE(m_identity,'SHETL (Best)'!Z219, 'SPTL (Best)'!Z219, 'NGET TO (Best)'!Z219)) -> 580.3708604 | AA219: =IF(UserInterface!$E$76 = 1,CHOOSE(m_identity,'SHETL (Base)'!AA219, 'SPTL (Base)'!AA219, 'NGET TO (Base)'!AA219),CHOOSE(m_identity,'SHETL (Best)'!AA219, 'SPTL (Best)'!AA219, 'NGET TO (Best)'!AA219)) -> 556.6596888 | AB219: =IF(UserInterface!$E$76 = 1,CHOOSE(m_identity,'SHETL (Base)'!AB219, 'SPTL (Base)'!AB219, 'NGET TO (Base)'!AB219),CHOOSE(m_identity,'SHETL (Best)'!AB219, 'SPTL (Best)'!AB219, 'NGET TO (Best)'!AB219)) -> 696.0701861 | AC219: =IF(UserInterface!$E$76 = 1,CHOOSE(m_identity,'SHETL (Base)'!AC219, 'SPTL (Base)'!AC219, 'NGET TO (Base)'!AC219),CHOOSE(m_identity,'SHETL (Best)'!AC219, 'SPTL (Best)'!AC219, 'NGET TO (Best)'!AC219)) -> 665.0363469 | AD219: =IF(UserInterface!$E$76 = 1,CHOOSE(m_identity,'SHETL (Base)'!AD219, 'SPTL (Base)'!AD219, 'NGET TO (Base)'!AD219),CHOOSE(m_identity,'SHETL (Best)'!AD219, 'SPTL (Best)'!AD219, 'NGET TO (Best)'!AD219)) -> 812.19193 | AE219: =IF(UserInterface!$E$76 = 1,CHOOSE(m_identity,'SHETL (Base)'!AE219, 'SPTL (Base)'!AE219, 'NGET TO (Base)'!AE219),CHOOSE(m_identity,'SHETL (Best)'!AE219, 'SPTL (Best)'!AE219, 'NGET TO (Best)'!AE219)) -> 656.7203652 | AF219: =IF(UserInterface!$E$76 = 1,CHOOSE(m_identity,'SHETL (Base)'!AF219, 'SPTL (Base)'!AF219, 'NGET TO (Base)'!AF219),CHOOSE(m_identity,'SHETL (Best)'!AF219, 'SPTL (Best)'!AF219, 'NGET TO (Best)'!AF219)) -> 927.7488527 | AG219: =IF(UserInterface!$E$76 = 1,CHOOSE(m_identity,'SHETL (Base)'!AG219, 'SPTL (Base)'!AG219, 'NGET TO (Base)'!AG219),CHOOSE(m_identity,'SHETL (Best)'!AG219, 'SPTL (Best)'!AG219, 'NGET TO (Best)'!AG219)) -> 902.961618
E220: LRAV | G220: £m 09/10 prices | AH220: =AH30 -> 0
E221: RIIO post-vesting RAV additions | G221: £m 09/10 prices | AH221: =IF(UserInterface!$E$76 = 1,CHOOSE(m_identity,'SHETL (Base)'!AH221, 'SPTL (Base)'!AH221, 'NGET TO (Base)'!AH221),CHOOSE(m_identity,'SHETL (Best)'!AH221, 'SPTL (Best)'!AH221, 'NGET TO (Best)'!AH221)) -> 0 | AI221: =IF(UserInterface!$E$76 = 1,CHOOSE(m_identity,'SHETL (Base)'!AI221, 'SPTL (Base)'!AI221, 'NGET TO (Base)'!AI221),CHOOSE(m_identity,'SHETL (Best)'!AI221, 'SPTL (Best)'!AI221, 'NGET TO (Best)'!AI221)) -> 0 | AJ221: =IF(UserInterface!$E$76 = 1,CHOOSE(m_identity,'SHETL (Base)'!AJ221, 'SPTL (Base)'!AJ221, 'NGET TO (Base)'!AJ221),CHOOSE(m_identity,'SHETL (Best)'!AJ221, 'SPTL (Best)'!AJ221, 'NGET TO (Best)'!AJ221)) -> 0 | AK221: =IF(UserInterface!$E$76 = 1,CHOOSE(m_identity,'SHETL (Base)'!AK221, 'SPTL (Base)'!AK221, 'NGET TO (Base)'!AK221),CHOOSE(m_identity,'SHETL (Best)'!AK221, 'SPTL (Best)'!AK221, 'NGET TO (Best)'!AK221)) -> 0 | AL221: =IF(UserInterface!$E$76 = 1,CHOOSE(m_identity,'SHETL (Base)'!AL221, 'SPTL (Base)'!AL221, 'NGET TO (Base)'!AL221),CHOOSE(m_identity,'SHETL (Best)'!AL221, 'SPTL (Best)'!AL221, 'NGET TO (Best)'!AL221)) -> 0 | AM221: =IF(UserInterface!$E$76 = 1,CHOOSE(m_identity,'SHETL (Base)'!AM221, 'SPTL (Base)'!AM221, 'NGET TO (Base)'!AM221),CHOOSE(m_identity,'SHETL (Best)'!AM221, 'SPTL (Best)'!AM221, 'NGET TO (Best)'!AM221)) -> 0 | AN221: =IF(UserInterface!$E$76 = 1,CHOOSE(m_identity,'SHETL (Base)'!AN221, 'SPTL (Base)'!AN221, 'NGET TO (Base)'!AN221),CHOOSE(m_identity,'SHETL (Best)'!AN221, 'SPTL (Best)'!AN221, 'NGET TO (Best)'!AN221)) -> 0 | AO221: =IF(UserInterface!$E$76 = 1,CHOOSE(m_identity,'SHETL (Base)'!AO221, 'SPTL (Base)'!AO221, 'NGET TO (Base)'!AO221),CHOOSE(m_identity,'SHETL (Best)'!AO221, 'SPTL (Best)'!AO221, 'NGET TO (Best)'!AO221)) -> 0
E222: RIIO post-vesting RAV disposals | G222: £m 09/10 prices | AH222: =IF(UserInterface!$E$76 = 1,CHOOSE(m_identity,'SHETL (Base)'!AH222, 'SPTL (Base)'!AH222, 'NGET TO (Base)'!AH222),CHOOSE(m_identity,'SHETL (Best)'!AH222, 'SPTL (Best)'!AH222, 'NGET TO (Best)'!AH222)) -> 0 | AI222: =IF(UserInterface!$E$76 = 1,CHOOSE(m_identity,'SHETL (Base)'!AI222, 'SPTL (Base)'!AI222, 'NGET TO (Base)'!AI222),CHOOSE(m_identity,'SHETL (Best)'!AI222, 'SPTL (Best)'!AI222, 'NGET TO (Best)'!AI222)) -> 0 | AJ222: =IF(UserInterface!$E$76 = 1,CHOOSE(m_identity,'SHETL (Base)'!AJ222, 'SPTL (Base)'!AJ222, 'NGET TO (Base)'!AJ222),CHOOSE(m_identity,'SHETL (Best)'!AJ222, 'SPTL (Best)'!AJ222, 'NGET TO (Best)'!AJ222)) -> 0 | AK222: =IF(UserInterface!$E$76 = 1,CHOOSE(m_identity,'SHETL (Base)'!AK222, 'SPTL (Base)'!AK222, 'NGET TO (Base)'!AK222),CHOOSE(m_identity,'SHETL (Best)'!AK222, 'SPTL (Best)'!AK222, 'NGET TO (Best)'!AK222)) -> 0 | AL222: =IF(UserInterface!$E$76 = 1,CHOOSE(m_identity,'SHETL (Base)'!AL222, 'SPTL (Base)'!AL222, 'NGET TO (Base)'!AL222),CHOOSE(m_identity,'SHETL (Best)'!AL222, 'SPTL (Best)'!AL222, 'NGET TO (Best)'!AL222)) -> 0 | AM222: =IF(UserInterface!$E$76 = 1,CHOOSE(m_identity,'SHETL (Base)'!AM222, 'SPTL (Base)'!AM222, 'NGET TO (Base)'!AM222),CHOOSE(m_identity,'SHETL (Best)'!AM222, 'SPTL (Best)'!AM222, 'NGET TO (Best)'!AM222)) -> 0 | AN222: =IF(UserInterface!$E$76 = 1,CHOOSE(m_identity,'SHETL (Base)'!AN222, 'SPTL (Base)'!AN222, 'NGET TO (Base)'!AN222),CHOOSE(m_identity,'SHETL (Best)'!AN222, 'SPTL (Best)'!AN222, 'NGET TO (Best)'!AN222)) -> 0 | AO222: =IF(UserInterface!$E$76 = 1,CHOOSE(m_identity,'SHETL (Base)'!AO222, 'SPTL (Base)'!AO222, 'NGET TO (Base)'!AO222),CHOOSE(m_identity,'SHETL (Best)'!AO222, 'SPTL (Best)'!AO222, 'NGET TO (Best)'!AO222)) -> 0
E223: Pre-RIIO transfers to depreciation | G223: £m 09/10 prices | J223: > | K223: =IF(UserInterface!$E$76 = 1,CHOOSE(m_identity,'SHETL (Base)'!K223, 'SPTL (Base)'!K223, 'NGET TO (Base)'!K223),CHOOSE(m_identity,'SHETL (Best)'!K223, 'SPTL (Best)'!K223, 'NGET TO (Best)'!K223)) -> 0 | L223: =IF(UserInterface!$E$76 = 1,CHOOSE(m_identity,'SHETL (Base)'!L223, 'SPTL (Base)'!L223, 'NGET TO (Base)'!L223),CHOOSE(m_identity,'SHETL (Best)'!L223, 'SPTL (Best)'!L223, 'NGET TO (Best)'!L223)) -> 0 | M223: =IF(UserInterface!$E$76 = 1,CHOOSE(m_identity,'SHETL (Base)'!M223, 'SPTL (Base)'!M223, 'NGET TO (Base)'!M223),CHOOSE(m_identity,'SHETL (Best)'!M223, 'SPTL (Best)'!M223, 'NGET TO (Best)'!M223)) -> 0 | N223: =IF(UserInterface!$E$76 = 1,CHOOSE(m_identity,'SHETL (Base)'!N223, 'SPTL (Base)'!N223, 'NGET TO (Base)'!N223),CHOOSE(m_identity,'SHETL (Best)'!N223, 'SPTL (Best)'!N223, 'NGET TO (Best)'!N223)) -> 0 | O223: =IF(UserInterface!$E$76 = 1,CHOOSE(m_identity,'SHETL (Base)'!O223, 'SPTL (Base)'!O223, 'NGET TO (Base)'!O223),CHOOSE(m_identity,'SHETL (Best)'!O223, 'SPTL (Best)'!O223, 'NGET TO (Best)'!O223)) -> 0 | P223: =IF(UserInterface!$E$76 = 1,CHOOSE(m_identity,'SHETL (Base)'!P223, 'SPTL (Base)'!P223, 'NGET TO (Base)'!P223),CHOOSE(m_identity,'SHETL (Best)'!P223, 'SPTL (Best)'!P223, 'NGET TO (Best)'!P223)) -> 0 | Q223: =IF(UserInterface!$E$76 = 1,CHOOSE(m_identity,'SHETL (Base)'!Q223, 'SPTL (Base)'!Q223, 'NGET TO (Base)'!Q223),CHOOSE(m_identity,'SHETL (Best)'!Q223, 'SPTL (Best)'!Q223, 'NGET TO (Best)'!Q223)) -> 0 | R223: =IF(UserInterface!$E$76 = 1,CHOOSE(m_identity,'SHETL (Base)'!R223, 'SPTL (Base)'!R223, 'NGET TO (Base)'!R223),CHOOSE(m_identity,'SHETL (Best)'!R223, 'SPTL (Best)'!R223, 'NGET TO (Best)'!R223)) -> 0 | S223: =IF(UserInterface!$E$76 = 1,CHOOSE(m_identity,'SHETL (Base)'!S223, 'SPTL (Base)'!S223, 'NGET TO (Base)'!S223),CHOOSE(m_identity,'SHETL (Best)'!S223, 'SPTL (Best)'!S223, 'NGET TO (Best)'!S223)) -> 0 | T223: =IF(UserInterface!$E$76 = 1,CHOOSE(m_identity,'SHETL (Base)'!T223, 'SPTL (Base)'!T223, 'NGET TO (Base)'!T223),CHOOSE(m_identity,'SHETL (Best)'!T223, 'SPTL (Best)'!T223, 'NGET TO (Best)'!T223)) -> 0 | U223: =IF(UserInterface!$E$76 = 1,CHOOSE(m_identity,'SHETL (Base)'!U223, 'SPTL (Base)'!U223, 'NGET TO (Base)'!U223),CHOOSE(m_identity,'SHETL (Best)'!U223, 'SPTL (Best)'!U223, 'NGET TO (Best)'!U223)) -> 0 | V223: =IF(UserInterface!$E$76 = 1,CHOOSE(m_identity,'SHETL (Base)'!V223, 'SPTL (Base)'!V223, 'NGET TO (Base)'!V223),CHOOSE(m_identity,'SHETL (Best)'!V223, 'SPTL (Best)'!V223, 'NGET TO (Best)'!V223)) -> 0 | W223: =IF(UserInterface!$E$76 = 1,CHOOSE(m_identity,'SHETL (Base)'!W223, 'SPTL (Base)'!W223, 'NGET TO (Base)'!W223),CHOOSE(m_identity,'SHETL (Best)'!W223, 'SPTL (Best)'!W223, 'NGET TO (Best)'!W223)) -> 0 | X223: =IF(UserInterface!$E$76 = 1,CHOOSE(m_identity,'SHETL (Base)'!X223, 'SPTL (Base)'!X223, 'NGET TO (Base)'!X223),CHOOSE(m_identity,'SHETL (Best)'!X223, 'SPTL (Best)'!X223, 'NGET TO (Best)'!X223)) -> -40.43692387 | Y223: =IF(UserInterface!$E$76 = 1,CHOOSE(m_identity,'SHETL (Base)'!Y223, 'SPTL (Base)'!Y223, 'NGET TO (Base)'!Y223),CHOOSE(m_identity,'SHETL (Best)'!Y223, 'SPTL (Best)'!Y223, 'NGET TO (Best)'!Y223)) -> 0 | Z223: =IF(UserInterface!$E$76 = 1,CHOOSE(m_identity,'SHETL (Base)'!Z223, 'SPTL (Base)'!Z223, 'NGET TO (Base)'!Z223),CHOOSE(m_identity,'SHETL (Best)'!Z223, 'SPTL (Best)'!Z223, 'NGET TO (Best)'!Z223)) -> 0 | AA223: =IF(UserInterface!$E$76 = 1,CHOOSE(m_identity,'SHETL (Base)'!AA223, 'SPTL (Base)'!AA223, 'NGET TO (Base)'!AA223),CHOOSE(m_identity,'SHETL (Best)'!AA223, 'SPTL (Best)'!AA223, 'NGET TO (Best)'!AA223)) -> 0 | AB223: =IF(UserInterface!$E$76 = 1,CHOOSE(m_identity,'SHETL (Base)'!AB223, 'SPTL (Base)'!AB223, 'NGET TO (Base)'!AB223),CHOOSE(m_identity,'SHETL (Best)'!AB223, 'SPTL (Best)'!AB223, 'NGET TO (Best)'!AB223)) -> 0 | AC223: =IF(UserInterface!$E$76 = 1,CHOOSE(m_identity,'SHETL (Base)'!AC223, 'SPTL (Base)'!AC223, 'NGET TO (Base)'!AC223),CHOOSE(m_identity,'SHETL (Best)'!AC223, 'SPTL (Best)'!AC223, 'NGET TO (Best)'!AC223)) -> 0 | AD223: =IF(UserInterface!$E$76 = 1,CHOOSE(m_identity,'SHETL (Base)'!AD223, 'SPTL (Base)'!AD223, 'NGET TO (Base)'!AD223),CHOOSE(m_identity,'SHETL (Best)'!AD223, 'SPTL (Best)'!AD223, 'NGET TO (Best)'!AD223)) -> 0 | AE223: =IF(UserInterface!$E$76 = 1,CHOOSE(m_identity,'SHETL (Base)'!AE223, 'SPTL (Base)'!AE223, 'NGET TO (Base)'!AE223),CHOOSE(m_identity,'SHETL (Best)'!AE223, 'SPTL (Best)'!AE223, 'NGET TO (Best)'!AE223)) -> 0 | AF223: =IF(UserInterface!$E$76 = 1,CHOOSE(m_identity,'SHETL (Base)'!AF223, 'SPTL (Base)'!AF223, 'NGET TO (Base)'!AF223),CHOOSE(m_identity,'SHETL (Best)'!AF223, 'SPTL (Best)'!AF223, 'NGET TO (Best)'!AF223)) -> 0 | AG223: =IF(UserInterface!$E$76 = 1,CHOOSE(m_identity,'SHETL (Base)'!AG223, 'SPTL (Base)'!AG223, 'NGET TO (Base)'!AG223),CHOOSE(m_identity,'SHETL (Best)'!AG223, 'SPTL (Best)'!AG223, 'NGET TO (Best)'!AG223)) -> 0
C225: Project assets (except TIRG)
E227: PLUGS asset life | G227: years | J227: > | Z227: =IF(UserInterface!$E$76 = 1,CHOOSE(m_identity,'SHETL (Base)'!Z227, 'SPTL (Base)'!Z227, 'NGET TO (Base)'!Z227),CHOOSE(m_identity,'SHETL (Best)'!Z227, 'SPTL (Best)'!Z227, 'NGET TO (Best)'!Z227)) -> 30 | AA227: =IF(UserInterface!$E$76 = 1,CHOOSE(m_identity,'SHETL (Base)'!AA227, 'SPTL (Base)'!AA227, 'NGET TO (Base)'!AA227),CHOOSE(m_identity,'SHETL (Best)'!AA227, 'SPTL (Best)'!AA227, 'NGET TO (Best)'!AA227)) -> 30 | AB227: =IF(UserInterface!$E$76 = 1,CHOOSE(m_identity,'SHETL (Base)'!AB227, 'SPTL (Base)'!AB227, 'NGET TO (Base)'!AB227),CHOOSE(m_identity,'SHETL (Best)'!AB227, 'SPTL (Best)'!AB227, 'NGET TO (Best)'!AB227)) -> 30 | AC227: =IF(UserInterface!$E$76 = 1,CHOOSE(m_identity,'SHETL (Base)'!AC227, 'SPTL (Base)'!AC227, 'NGET TO (Base)'!AC227),CHOOSE(m_identity,'SHETL (Best)'!AC227, 'SPTL (Best)'!AC227, 'NGET TO (Best)'!AC227)) -> 30 | AD227: =IF(UserInterface!$E$76 = 1,CHOOSE(m_identity,'SHETL (Base)'!AD227, 'SPTL (Base)'!AD227, 'NGET TO (Base)'!AD227),CHOOSE(m_identity,'SHETL (Best)'!AD227, 'SPTL (Best)'!AD227, 'NGET TO (Best)'!AD227)) -> 30 | AE227: =IF(UserInterface!$E$76 = 1,CHOOSE(m_identity,'SHETL (Base)'!AE227, 'SPTL (Base)'!AE227, 'NGET TO (Base)'!AE227),CHOOSE(m_identity,'SHETL (Best)'!AE227, 'SPTL (Best)'!AE227, 'NGET TO (Best)'!AE227)) -> 30 | AF227: =IF(UserInterface!$E$76 = 1,CHOOSE(m_identity,'SHETL (Base)'!AF227, 'SPTL (Base)'!AF227, 'NGET TO (Base)'!AF227),CHOOSE(m_identity,'SHETL (Best)'!AF227, 'SPTL (Best)'!AF227, 'NGET TO (Best)'!AF227)) -> 30 | AG227: =IF(UserInterface!$E$76 = 1,CHOOSE(m_identity,'SHETL (Base)'!AG227, 'SPTL (Base)'!AG227, 'NGET TO (Base)'!AG227),CHOOSE(m_identity,'SHETL (Best)'!AG227, 'SPTL (Best)'!AG227, 'NGET TO (Best)'!AG227)) -> 18 | AH227: =IF(UserInterface!$E$76 = 1,CHOOSE(m_identity,'SHETL (Base)'!AH227, 'SPTL (Base)'!AH227, 'NGET TO (Base)'!AH227),CHOOSE(m_identity,'SHETL (Best)'!AH227, 'SPTL (Best)'!AH227, 'NGET TO (Best)'!AH227)) -> 18 | AI227: =IF(UserInterface!$E$76 = 1,CHOOSE(m_identity,'SHETL (Base)'!AI227, 'SPTL (Base)'!AI227, 'NGET TO (Base)'!AI227),CHOOSE(m_identity,'SHETL (Best)'!AI227, 'SPTL (Best)'!AI227, 'NGET TO (Best)'!AI227)) -> 18 | AJ227: =IF(UserInterface!$E$76 = 1,CHOOSE(m_identity,'SHETL (Base)'!AJ227, 'SPTL (Base)'!AJ227, 'NGET TO (Base)'!AJ227),CHOOSE(m_identity,'SHETL (Best)'!AJ227, 'SPTL (Best)'!AJ227, 'NGET TO (Best)'!AJ227)) -> 18 | AK227: =IF(UserInterface!$E$76 = 1,CHOOSE(m_identity,'SHETL (Base)'!AK227, 'SPTL (Base)'!AK227, 'NGET TO (Base)'!AK227),CHOOSE(m_identity,'SHETL (Best)'!AK227, 'SPTL (Best)'!AK227, 'NGET TO (Best)'!AK227)) -> 18 | AL227: =IF(UserInterface!$E$76 = 1,CHOOSE(m_identity,'SHETL (Base)'!AL227, 'SPTL (Base)'!AL227, 'NGET TO (Base)'!AL227),CHOOSE(m_identity,'SHETL (Best)'!AL227, 'SPTL (Best)'!AL227, 'NGET TO (Best)'!AL227)) -> 18 | AM227: =IF(UserInterface!$E$76 = 1,CHOOSE(m_identity,'SHETL (Base)'!AM227, 'SPTL (Base)'!AM227, 'NGET TO (Base)'!AM227),CHOOSE(m_identity,'SHETL (Best)'!AM227, 'SPTL (Best)'!AM227, 'NGET TO (Best)'!AM227)) -> 18 | AN227: =IF(UserInterface!$E$76 = 1,CHOOSE(m_identity,'SHETL (Base)'!AN227, 'SPTL (Base)'!AN227, 'NGET TO (Base)'!AN227),CHOOSE(m_identity,'SHETL (Best)'!AN227, 'SPTL (Best)'!AN227, 'NGET TO (Best)'!AN227)) -> 18 | AO227: =IF(UserInterface!$E$76 = 1,CHOOSE(m_identity,'SHETL (Base)'!AO227, 'SPTL (Base)'!AO227, 'NGET TO (Base)'!AO227),CHOOSE(m_identity,'SHETL (Best)'!AO227, 'SPTL (Best)'!AO227, 'NGET TO (Best)'!AO227)) -> 18
E228: PLUGS net additions (after disposals) | G228: £m 09/10 prices | J228: > | Z228: =IF(UserInterface!$E$76 = 1,CHOOSE(m_identity,'SHETL (Base)'!Z228, 'SPTL (Base)'!Z228, 'NGET TO (Base)'!Z228),CHOOSE(m_identity,'SHETL (Best)'!Z228, 'SPTL (Best)'!Z228, 'NGET TO (Best)'!Z228)) -> 0 | AA228: =IF(UserInterface!$E$76 = 1,CHOOSE(m_identity,'SHETL (Base)'!AA228, 'SPTL (Base)'!AA228, 'NGET TO (Base)'!AA228),CHOOSE(m_identity,'SHETL (Best)'!AA228, 'SPTL (Best)'!AA228, 'NGET TO (Best)'!AA228)) -> 0 | AB228: =IF(UserInterface!$E$76 = 1,CHOOSE(m_identity,'SHETL (Base)'!AB228, 'SPTL (Base)'!AB228, 'NGET TO (Base)'!AB228),CHOOSE(m_identity,'SHETL (Best)'!AB228, 'SPTL (Best)'!AB228, 'NGET TO (Best)'!AB228)) -> 0 | AC228: =IF(UserInterface!$E$76 = 1,CHOOSE(m_identity,'SHETL (Base)'!AC228, 'SPTL (Base)'!AC228, 'NGET TO (Base)'!AC228),CHOOSE(m_identity,'SHETL (Best)'!AC228, 'SPTL (Best)'!AC228, 'NGET TO (Best)'!AC228)) -> 0 | AD228: =IF(UserInterface!$E$76 = 1,CHOOSE(m_identity,'SHETL (Base)'!AD228, 'SPTL (Base)'!AD228, 'NGET TO (Base)'!AD228),CHOOSE(m_identity,'SHETL (Best)'!AD228, 'SPTL (Best)'!AD228, 'NGET TO (Best)'!AD228)) -> 0 | AE228: =IF(UserInterface!$E$76 = 1,CHOOSE(m_identity,'SHETL (Base)'!AE228, 'SPTL (Base)'!AE228, 'NGET TO (Base)'!AE228),CHOOSE(m_identity,'SHETL (Best)'!AE228, 'SPTL (Best)'!AE228, 'NGET TO (Best)'!AE228)) -> 0 | AF228: =IF(UserInterface!$E$76 = 1,CHOOSE(m_identity,'SHETL (Base)'!AF228, 'SPTL (Base)'!AF228, 'NGET TO (Base)'!AF228),CHOOSE(m_identity,'SHETL (Best)'!AF228, 'SPTL (Best)'!AF228, 'NGET TO (Best)'!AF228)) -> 0 | AG228: =IF(UserInterface!$E$76 = 1,CHOOSE(m_identity,'SHETL (Base)'!AG228, 'SPTL (Base)'!AG228, 'NGET TO (Base)'!AG228),CHOOSE(m_identity,'SHETL (Best)'!AG228, 'SPTL (Best)'!AG228, 'NGET TO (Best)'!AG228)) -> 0
E230: TOI accelerated post-vesting asset life | G230: years | I230: =IF(UserInterface!$E$76 = 1,CHOOSE(m_identity,'SHETL (Base)'!I230, 'SPTL (Base)'!I230, 'NGET TO (Base)'!I230),CHOOSE(m_identity,'SHETL (Best)'!I230, 'SPTL (Best)'!I230, 'NGET TO (Best)'!I230)) -> 20
E231: TOI net additions (after disposals) | G231: £m 09/10 prices | J231: > | AC231: =IF(UserInterface!$E$76 = 1,CHOOSE(m_identity,'SHETL (Base)'!AC231, 'SPTL (Base)'!AC231, 'NGET TO (Base)'!AC231),CHOOSE(m_identity,'SHETL (Best)'!AC231, 'SPTL (Best)'!AC231, 'NGET TO (Best)'!AC231)) -> 0.7765389928 | AD231: =IF(UserInterface!$E$76 = 1,CHOOSE(m_identity,'SHETL (Base)'!AD231, 'SPTL (Base)'!AD231, 'NGET TO (Base)'!AD231),CHOOSE(m_identity,'SHETL (Best)'!AD231, 'SPTL (Best)'!AD231, 'NGET TO (Best)'!AD231)) -> 12.29 | AE231: =IF(UserInterface!$E$76 = 1,CHOOSE(m_identity,'SHETL (Base)'!AE231, 'SPTL (Base)'!AE231, 'NGET TO (Base)'!AE231),CHOOSE(m_identity,'SHETL (Best)'!AE231, 'SPTL (Best)'!AE231, 'NGET TO (Best)'!AE231)) -> 108.4094356 | AF231: =IF(UserInterface!$E$76 = 1,CHOOSE(m_identity,'SHETL (Base)'!AF231, 'SPTL (Base)'!AF231, 'NGET TO (Base)'!AF231),CHOOSE(m_identity,'SHETL (Best)'!AF231, 'SPTL (Best)'!AF231, 'NGET TO (Best)'!AF231)) -> 100.2816133 | AG231: =IF(UserInterface!$E$76 = 1,CHOOSE(m_identity,'SHETL (Base)'!AG231, 'SPTL (Base)'!AG231, 'NGET TO (Base)'!AG231),CHOOSE(m_identity,'SHETL (Best)'!AG231, 'SPTL (Best)'!AG231, 'NGET TO (Best)'!AG231)) -> 313.17
E232: TOI deemed depreciation | G232: £m 09/10 prices | J232: > | AD232: =IF(UserInterface!$E$76 = 1,CHOOSE(m_identity,'SHETL (Base)'!AD232, 'SPTL (Base)'!AD232, 'NGET TO (Base)'!AD232),CHOOSE(m_identity,'SHETL (Best)'!AD232, 'SPTL (Best)'!AD232, 'NGET TO (Best)'!AD232)) -> 0 | AE232: =IF(UserInterface!$E$76 = 1,CHOOSE(m_identity,'SHETL (Base)'!AE232, 'SPTL (Base)'!AE232, 'NGET TO (Base)'!AE232),CHOOSE(m_identity,'SHETL (Best)'!AE232, 'SPTL (Best)'!AE232, 'NGET TO (Best)'!AE232)) -> 0.1005714488 | AF232: =IF(UserInterface!$E$76 = 1,CHOOSE(m_identity,'SHETL (Base)'!AF232, 'SPTL (Base)'!AF232, 'NGET TO (Base)'!AF232),CHOOSE(m_identity,'SHETL (Best)'!AF232, 'SPTL (Best)'!AF232, 'NGET TO (Best)'!AF232)) -> 3.783717531
E234: England-Scotland interconnector asset life applied | G234: years | J234: > | Z234: =IF(UserInterface!$E$76 = 1,CHOOSE(m_identity,'SHETL (Base)'!Z234, 'SPTL (Base)'!Z234, 'NGET TO (Base)'!Z234),CHOOSE(m_identity,'SHETL (Best)'!Z234, 'SPTL (Best)'!Z234, 'NGET TO (Best)'!Z234)) -> 29 | AA234: =IF(UserInterface!$E$76 = 1,CHOOSE(m_identity,'SHETL (Base)'!AA234, 'SPTL (Base)'!AA234, 'NGET TO (Base)'!AA234),CHOOSE(m_identity,'SHETL (Best)'!AA234, 'SPTL (Best)'!AA234, 'NGET TO (Best)'!AA234)) -> 29 | AB234: =IF(UserInterface!$E$76 = 1,CHOOSE(m_identity,'SHETL (Base)'!AB234, 'SPTL (Base)'!AB234, 'NGET TO (Base)'!AB234),CHOOSE(m_identity,'SHETL (Best)'!AB234, 'SPTL (Best)'!AB234, 'NGET TO (Best)'!AB234)) -> 29 | AC234: =IF(UserInterface!$E$76 = 1,CHOOSE(m_identity,'SHETL (Base)'!AC234, 'SPTL (Base)'!AC234, 'NGET TO (Base)'!AC234),CHOOSE(m_identity,'SHETL (Best)'!AC234, 'SPTL (Best)'!AC234, 'NGET TO (Best)'!AC234)) -> 29 | AD234: =IF(UserInterface!$E$76 = 1,CHOOSE(m_identity,'SHETL (Base)'!AD234, 'SPTL (Base)'!AD234, 'NGET TO (Base)'!AD234),CHOOSE(m_identity,'SHETL (Best)'!AD234, 'SPTL (Best)'!AD234, 'NGET TO (Best)'!AD234)) -> 29 | AE234: =IF(UserInterface!$E$76 = 1,CHOOSE(m_identity,'SHETL (Base)'!AE234, 'SPTL (Base)'!AE234, 'NGET TO (Base)'!AE234),CHOOSE(m_identity,'SHETL (Best)'!AE234, 'SPTL (Best)'!AE234, 'NGET TO (Best)'!AE234)) -> 17.5 | AF234: =IF(UserInterface!$E$76 = 1,CHOOSE(m_identity,'SHETL (Base)'!AF234, 'SPTL (Base)'!AF234, 'NGET TO (Base)'!AF234),CHOOSE(m_identity,'SHETL (Best)'!AF234, 'SPTL (Best)'!AF234, 'NGET TO (Best)'!AF234)) -> 17.5 | AG234: =IF(UserInterface!$E$76 = 1,CHOOSE(m_identity,'SHETL (Base)'!AG234, 'SPTL (Base)'!AG234, 'NGET TO (Base)'!AG234),CHOOSE(m_identity,'SHETL (Best)'!AG234, 'SPTL (Best)'!AG234, 'NGET TO (Best)'!AG234)) -> 17.5 | AH234: =IF(UserInterface!$E$76 = 1,CHOOSE(m_identity,'SHETL (Base)'!AH234, 'SPTL (Base)'!AH234, 'NGET TO (Base)'!AH234),CHOOSE(m_identity,'SHETL (Best)'!AH234, 'SPTL (Best)'!AH234, 'NGET TO (Best)'!AH234)) -> 17.5 | AI234: =IF(UserInterface!$E$76 = 1,CHOOSE(m_identity,'SHETL (Base)'!AI234, 'SPTL (Base)'!AI234, 'NGET TO (Base)'!AI234),CHOOSE(m_identity,'SHETL (Best)'!AI234, 'SPTL (Best)'!AI234, 'NGET TO (Best)'!AI234)) -> 17.5 | AJ234: =IF(UserInterface!$E$76 = 1,CHOOSE(m_identity,'SHETL (Base)'!AJ234, 'SPTL (Base)'!AJ234, 'NGET TO (Base)'!AJ234),CHOOSE(m_identity,'SHETL (Best)'!AJ234, 'SPTL (Best)'!AJ234, 'NGET TO (Best)'!AJ234)) -> 17.5 | AK234: =IF(UserInterface!$E$76 = 1,CHOOSE(m_identity,'SHETL (Base)'!AK234, 'SPTL (Base)'!AK234, 'NGET TO (Base)'!AK234),CHOOSE(m_identity,'SHETL (Best)'!AK234, 'SPTL (Best)'!AK234, 'NGET TO (Best)'!AK234)) -> 17.5 | AL234: =IF(UserInterface!$E$76 = 1,CHOOSE(m_identity,'SHETL (Base)'!AL234, 'SPTL (Base)'!AL234, 'NGET TO (Base)'!AL234),CHOOSE(m_identity,'SHETL (Best)'!AL234, 'SPTL (Best)'!AL234, 'NGET TO (Best)'!AL234)) -> 17.5 | AM234: =IF(UserInterface!$E$76 = 1,CHOOSE(m_identity,'SHETL (Base)'!AM234, 'SPTL (Base)'!AM234, 'NGET TO (Base)'!AM234),CHOOSE(m_identity,'SHETL (Best)'!AM234, 'SPTL (Best)'!AM234, 'NGET TO (Best)'!AM234)) -> 17.5 | AN234: =IF(UserInterface!$E$76 = 1,CHOOSE(m_identity,'SHETL (Base)'!AN234, 'SPTL (Base)'!AN234, 'NGET TO (Base)'!AN234),CHOOSE(m_identity,'SHETL (Best)'!AN234, 'SPTL (Best)'!AN234, 'NGET TO (Best)'!AN234)) -> 17.5 | AO234: =IF(UserInterface!$E$76 = 1,CHOOSE(m_identity,'SHETL (Base)'!AO234, 'SPTL (Base)'!AO234, 'NGET TO (Base)'!AO234),CHOOSE(m_identity,'SHETL (Best)'!AO234, 'SPTL (Best)'!AO234, 'NGET TO (Best)'!AO234)) -> 17.5
E235: England-Scotland Interconnector net additions (after disposals) | G235: £m 09/10 prices | J235: > | Z235: =IF(UserInterface!$E$76 = 1,CHOOSE(m_identity,'SHETL (Base)'!Z235, 'SPTL (Base)'!Z235, 'NGET TO (Base)'!Z235),CHOOSE(m_identity,'SHETL (Best)'!Z235, 'SPTL (Best)'!Z235, 'NGET TO (Best)'!Z235)) -> 105.7331207 | AA235: =IF(UserInterface!$E$76 = 1,CHOOSE(m_identity,'SHETL (Base)'!AA235, 'SPTL (Base)'!AA235, 'NGET TO (Base)'!AA235),CHOOSE(m_identity,'SHETL (Best)'!AA235, 'SPTL (Best)'!AA235, 'NGET TO (Best)'!AA235)) -> 0 | AB235: =IF(UserInterface!$E$76 = 1,CHOOSE(m_identity,'SHETL (Base)'!AB235, 'SPTL (Base)'!AB235, 'NGET TO (Base)'!AB235),CHOOSE(m_identity,'SHETL (Best)'!AB235, 'SPTL (Best)'!AB235, 'NGET TO (Best)'!AB235)) -> 0 | AC235: =IF(UserInterface!$E$76 = 1,CHOOSE(m_identity,'SHETL (Base)'!AC235, 'SPTL (Base)'!AC235, 'NGET TO (Base)'!AC235),CHOOSE(m_identity,'SHETL (Best)'!AC235, 'SPTL (Best)'!AC235, 'NGET TO (Best)'!AC235)) -> 0 | AD235: =IF(UserInterface!$E$76 = 1,CHOOSE(m_identity,'SHETL (Base)'!AD235, 'SPTL (Base)'!AD235, 'NGET TO (Base)'!AD235),CHOOSE(m_identity,'SHETL (Best)'!AD235, 'SPTL (Best)'!AD235, 'NGET TO (Best)'!AD235)) -> 0 | AE235: =IF(UserInterface!$E$76 = 1,CHOOSE(m_identity,'SHETL (Base)'!AE235, 'SPTL (Base)'!AE235, 'NGET TO (Base)'!AE235),CHOOSE(m_identity,'SHETL (Best)'!AE235, 'SPTL (Best)'!AE235, 'NGET TO (Best)'!AE235)) -> 0 | AF235: =IF(UserInterface!$E$76 = 1,CHOOSE(m_identity,'SHETL (Base)'!AF235, 'SPTL (Base)'!AF235, 'NGET TO (Base)'!AF235),CHOOSE(m_identity,'SHETL (Best)'!AF235, 'SPTL (Best)'!AF235, 'NGET TO (Best)'!AF235)) -> 0 | AG235: =IF(UserInterface!$E$76 = 1,CHOOSE(m_identity,'SHETL (Base)'!AG235, 'SPTL (Base)'!AG235, 'NGET TO (Base)'!AG235),CHOOSE(m_identity,'SHETL (Best)'!AG235, 'SPTL (Best)'!AG235, 'NGET TO (Best)'!AG235)) -> 0
E237: Logged-up items and security costs asset life | G237: years | I237: =IF(UserInterface!$E$76 = 1,CHOOSE(m_identity,'SHETL (Base)'!I237, 'SPTL (Base)'!I237, 'NGET TO (Base)'!I237),CHOOSE(m_identity,'SHETL (Best)'!I237, 'SPTL (Best)'!I237, 'NGET TO (Best)'!I237)) -> 20 | J237: >
E239: Logged-up items net additions (after disposals) | G239: £m 09/10 prices | J239: > | Y239: =IF(UserInterface!$E$76 = 1,CHOOSE(m_identity,'SHETL (Base)'!Y239, 'SPTL (Base)'!Y239, 'NGET TO (Base)'!Y239),CHOOSE(m_identity,'SHETL (Best)'!Y239, 'SPTL (Best)'!Y239, 'NGET TO (Best)'!Y239)) -> 0 | Z239: =IF(UserInterface!$E$76 = 1,CHOOSE(m_identity,'SHETL (Base)'!Z239, 'SPTL (Base)'!Z239, 'NGET TO (Base)'!Z239),CHOOSE(m_identity,'SHETL (Best)'!Z239, 'SPTL (Best)'!Z239, 'NGET TO (Best)'!Z239)) -> 0 | AA239: =IF(UserInterface!$E$76 = 1,CHOOSE(m_identity,'SHETL (Base)'!AA239, 'SPTL (Base)'!AA239, 'NGET TO (Base)'!AA239),CHOOSE(m_identity,'SHETL (Best)'!AA239, 'SPTL (Best)'!AA239, 'NGET TO (Best)'!AA239)) -> 0 | AB239: =IF(UserInterface!$E$76 = 1,CHOOSE(m_identity,'SHETL (Base)'!AB239, 'SPTL (Base)'!AB239, 'NGET TO (Base)'!AB239),CHOOSE(m_identity,'SHETL (Best)'!AB239, 'SPTL (Best)'!AB239, 'NGET TO (Best)'!AB239)) -> 0.8709625664 | AC239: =IF(UserInterface!$E$76 = 1,CHOOSE(m_identity,'SHETL (Base)'!AC239, 'SPTL (Base)'!AC239, 'NGET TO (Base)'!AC239),CHOOSE(m_identity,'SHETL (Best)'!AC239, 'SPTL (Best)'!AC239, 'NGET TO (Best)'!AC239)) -> 19.67868348 | AD239: =IF(UserInterface!$E$76 = 1,CHOOSE(m_identity,'SHETL (Base)'!AD239, 'SPTL (Base)'!AD239, 'NGET TO (Base)'!AD239),CHOOSE(m_identity,'SHETL (Best)'!AD239, 'SPTL (Best)'!AD239, 'NGET TO (Best)'!AD239)) -> 17.951 | AE239: =IF(UserInterface!$E$76 = 1,CHOOSE(m_identity,'SHETL (Base)'!AE239, 'SPTL (Base)'!AE239, 'NGET TO (Base)'!AE239),CHOOSE(m_identity,'SHETL (Best)'!AE239, 'SPTL (Best)'!AE239, 'NGET TO (Best)'!AE239)) -> 0.9612918276 | AF239: =IF(UserInterface!$E$76 = 1,CHOOSE(m_identity,'SHETL (Base)'!AF239, 'SPTL (Base)'!AF239, 'NGET TO (Base)'!AF239),CHOOSE(m_identity,'SHETL (Best)'!AF239, 'SPTL (Best)'!AF239, 'NGET TO (Best)'!AF239)) -> 29.34475152 | AG239: =IF(UserInterface!$E$76 = 1,CHOOSE(m_identity,'SHETL (Base)'!AG239, 'SPTL (Base)'!AG239, 'NGET TO (Base)'!AG239),CHOOSE(m_identity,'SHETL (Best)'!AG239, 'SPTL (Best)'!AG239, 'NGET TO (Best)'!AG239)) -> 2.5
E241: Security costs net additions (after disposals) | G241: £m 09/10 prices | J241: > | Y241: =IF(UserInterface!$E$76 = 1,CHOOSE(m_identity,'SHETL (Base)'!Y241, 'SPTL (Base)'!Y241, 'NGET TO (Base)'!Y241),CHOOSE(m_identity,'SHETL (Best)'!Y241, 'SPTL (Best)'!Y241, 'NGET TO (Best)'!Y241)) -> 0 | Z241: =IF(UserInterface!$E$76 = 1,CHOOSE(m_identity,'SHETL (Base)'!Z241, 'SPTL (Base)'!Z241, 'NGET TO (Base)'!Z241),CHOOSE(m_identity,'SHETL (Best)'!Z241, 'SPTL (Best)'!Z241, 'NGET TO (Best)'!Z241)) -> 0 | AA241: =IF(UserInterface!$E$76 = 1,CHOOSE(m_identity,'SHETL (Base)'!AA241, 'SPTL (Base)'!AA241, 'NGET TO (Base)'!AA241),CHOOSE(m_identity,'SHETL (Best)'!AA241, 'SPTL (Best)'!AA241, 'NGET TO (Best)'!AA241)) -> 4.308511523 | AB241: =IF(UserInterface!$E$76 = 1,CHOOSE(m_identity,'SHETL (Base)'!AB241, 'SPTL (Base)'!AB241, 'NGET TO (Base)'!AB241),CHOOSE(m_identity,'SHETL (Best)'!AB241, 'SPTL (Best)'!AB241, 'NGET TO (Best)'!AB241)) -> 3.563498861 | AC241: =IF(UserInterface!$E$76 = 1,CHOOSE(m_identity,'SHETL (Base)'!AC241, 'SPTL (Base)'!AC241, 'NGET TO (Base)'!AC241),CHOOSE(m_identity,'SHETL (Best)'!AC241, 'SPTL (Best)'!AC241, 'NGET TO (Best)'!AC241)) -> 5.313214402 | AD241: =IF(UserInterface!$E$76 = 1,CHOOSE(m_identity,'SHETL (Base)'!AD241, 'SPTL (Base)'!AD241, 'NGET TO (Base)'!AD241),CHOOSE(m_identity,'SHETL (Best)'!AD241, 'SPTL (Best)'!AD241, 'NGET TO (Best)'!AD241)) -> 11.357 | AE241: =IF(UserInterface!$E$76 = 1,CHOOSE(m_identity,'SHETL (Base)'!AE241, 'SPTL (Base)'!AE241, 'NGET TO (Base)'!AE241),CHOOSE(m_identity,'SHETL (Best)'!AE241, 'SPTL (Best)'!AE241, 'NGET TO (Best)'!AE241)) -> 30.17255915 | AF241: =IF(UserInterface!$E$76 = 1,CHOOSE(m_identity,'SHETL (Base)'!AF241, 'SPTL (Base)'!AF241, 'NGET TO (Base)'!AF241),CHOOSE(m_identity,'SHETL (Best)'!AF241, 'SPTL (Best)'!AF241, 'NGET TO (Best)'!AF241)) -> 31.45567543 | AG241: =IF(UserInterface!$E$76 = 1,CHOOSE(m_identity,'SHETL (Base)'!AG241, 'SPTL (Base)'!AG241, 'NGET TO (Base)'!AG241),CHOOSE(m_identity,'SHETL (Best)'!AG241, 'SPTL (Best)'!AG241, 'NGET TO (Best)'!AG241)) -> 0
C243: TIRG
E245: TIRG asset life before transfer to RAV | G245: years | I245: =IF(UserInterface!$E$76 = 1,CHOOSE(m_identity,'SHETL (Base)'!I245, 'SPTL (Base)'!I245, 'NGET TO (Base)'!I245),CHOOSE(m_identity,'SHETL (Best)'!I245, 'SPTL (Best)'!I245, 'NGET TO (Best)'!I245)) -> 20
E246: Years from TIRG commissioning to RAV transfer | G246: years | I246: =IF(UserInterface!$E$76 = 1,CHOOSE(m_identity,'SHETL (Base)'!I246, 'SPTL (Base)'!I246, 'NGET TO (Base)'!I246),CHOOSE(m_identity,'SHETL (Best)'!I246, 'SPTL (Best)'!I246, 'NGET TO (Best)'!I246)) -> 5
E248: Pre-RIIO TIRG allocation to "General" pool | G248: % | J248: > | Y248: =IF(UserInterface!$E$76 = 1,CHOOSE(m_identity,'SHETL (Base)'!Y248, 'SPTL (Base)'!Y248, 'NGET TO (Base)'!Y248),CHOOSE(m_identity,'SHETL (Best)'!Y248, 'SPTL (Best)'!Y248, 'NGET TO (Best)'!Y248)) -> 0 | Z248: =IF(UserInterface!$E$76 = 1,CHOOSE(m_identity,'SHETL (Base)'!Z248, 'SPTL (Base)'!Z248, 'NGET TO (Base)'!Z248),CHOOSE(m_identity,'SHETL (Best)'!Z248, 'SPTL (Best)'!Z248, 'NGET TO (Best)'!Z248)) -> 0 | AA248: =IF(UserInterface!$E$76 = 1,CHOOSE(m_identity,'SHETL (Base)'!AA248, 'SPTL (Base)'!AA248, 'NGET TO (Base)'!AA248),CHOOSE(m_identity,'SHETL (Best)'!AA248, 'SPTL (Best)'!AA248, 'NGET TO (Best)'!AA248)) -> 0 | AB248: =IF(UserInterface!$E$76 = 1,CHOOSE(m_identity,'SHETL (Base)'!AB248, 'SPTL (Base)'!AB248, 'NGET TO (Base)'!AB248),CHOOSE(m_identity,'SHETL (Best)'!AB248, 'SPTL (Best)'!AB248, 'NGET TO (Best)'!AB248)) -> 0 | AC248: =IF(UserInterface!$E$76 = 1,CHOOSE(m_identity,'SHETL (Base)'!AC248, 'SPTL (Base)'!AC248, 'NGET TO (Base)'!AC248),CHOOSE(m_identity,'SHETL (Best)'!AC248, 'SPTL (Best)'!AC248, 'NGET TO (Best)'!AC248)) -> 0 | AD248: =IF(UserInterface!$E$76 = 1,CHOOSE(m_identity,'SHETL (Base)'!AD248, 'SPTL (Base)'!AD248, 'NGET TO (Base)'!AD248),CHOOSE(m_identity,'SHETL (Best)'!AD248, 'SPTL (Best)'!AD248, 'NGET TO (Best)'!AD248)) -> 0.0234741784 | AE248: =IF(UserInterface!$E$76 = 1,CHOOSE(m_identity,'SHETL (Base)'!AE248, 'SPTL (Base)'!AE248, 'NGET TO (Base)'!AE248),CHOOSE(m_identity,'SHETL (Best)'!AE248, 'SPTL (Best)'!AE248, 'NGET TO (Best)'!AE248)) -> 0.149605752 | AF248: =IF(UserInterface!$E$76 = 1,CHOOSE(m_identity,'SHETL (Base)'!AF248, 'SPTL (Base)'!AF248, 'NGET TO (Base)'!AF248),CHOOSE(m_identity,'SHETL (Best)'!AF248, 'SPTL (Best)'!AF248, 'NGET TO (Best)'!AF248)) -> 0.02363002914 | AG248: =IF(UserInterface!$E$76 = 1,CHOOSE(m_identity,'SHETL (Base)'!AG248, 'SPTL (Base)'!AG248, 'NGET TO (Base)'!AG248),CHOOSE(m_identity,'SHETL (Best)'!AG248, 'SPTL (Best)'!AG248, 'NGET TO (Best)'!AG248)) -> 0.02363002914
E249: Pre-RIIO TIRG allocation to "Special Rate" pool | G249: % | J249: > | Y249: =IF(UserInterface!$E$76 = 1,CHOOSE(m_identity,'SHETL (Base)'!Y249, 'SPTL (Base)'!Y249, 'NGET TO (Base)'!Y249),CHOOSE(m_identity,'SHETL (Best)'!Y249, 'SPTL (Best)'!Y249, 'NGET TO (Best)'!Y249)) -> 0 | Z249: =IF(UserInterface!$E$76 = 1,CHOOSE(m_identity,'SHETL (Base)'!Z249, 'SPTL (Base)'!Z249, 'NGET TO (Base)'!Z249),CHOOSE(m_identity,'SHETL (Best)'!Z249, 'SPTL (Best)'!Z249, 'NGET TO (Best)'!Z249)) -> 0 | AA249: =IF(UserInterface!$E$76 = 1,CHOOSE(m_identity,'SHETL (Base)'!AA249, 'SPTL (Base)'!AA249, 'NGET TO (Base)'!AA249),CHOOSE(m_identity,'SHETL (Best)'!AA249, 'SPTL (Best)'!AA249, 'NGET TO (Best)'!AA249)) -> 0 | AB249: =IF(UserInterface!$E$76 = 1,CHOOSE(m_identity,'SHETL (Base)'!AB249, 'SPTL (Base)'!AB249, 'NGET TO (Base)'!AB249),CHOOSE(m_identity,'SHETL (Best)'!AB249, 'SPTL (Best)'!AB249, 'NGET TO (Best)'!AB249)) -> 0 | AC249: =IF(UserInterface!$E$76 = 1,CHOOSE(m_identity,'SHETL (Base)'!AC249, 'SPTL (Base)'!AC249, 'NGET TO (Base)'!AC249),CHOOSE(m_identity,'SHETL (Best)'!AC249, 'SPTL (Best)'!AC249, 'NGET TO (Best)'!AC249)) -> 1 | AD249: =IF(UserInterface!$E$76 = 1,CHOOSE(m_identity,'SHETL (Base)'!AD249, 'SPTL (Base)'!AD249, 'NGET TO (Base)'!AD249),CHOOSE(m_identity,'SHETL (Best)'!AD249, 'SPTL (Best)'!AD249, 'NGET TO (Best)'!AD249)) -> 0.9765258216 | AE249: =IF(UserInterface!$E$76 = 1,CHOOSE(m_identity,'SHETL (Base)'!AE249, 'SPTL (Base)'!AE249, 'NGET TO (Base)'!AE249),CHOOSE(m_identity,'SHETL (Best)'!AE249, 'SPTL (Best)'!AE249, 'NGET TO (Best)'!AE249)) -> 0.850394248 | AF249: =IF(UserInterface!$E$76 = 1,CHOOSE(m_identity,'SHETL (Base)'!AF249, 'SPTL (Base)'!AF249, 'NGET TO (Base)'!AF249),CHOOSE(m_identity,'SHETL (Best)'!AF249, 'SPTL (Best)'!AF249, 'NGET TO (Best)'!AF249)) -> 0.9763699709 | AG249: =IF(UserInterface!$E$76 = 1,CHOOSE(m_identity,'SHETL (Base)'!AG249, 'SPTL (Base)'!AG249, 'NGET TO (Base)'!AG249),CHOOSE(m_identity,'SHETL (Best)'!AG249, 'SPTL (Best)'!AG249, 'NGET TO (Best)'!AG249)) -> 0.9763699709
E251: TIRG commissioned in 2010 net additions (after disposals) | G251: £m 09/10 prices | J251: > | Y251: =IF(UserInterface!$E$76 = 1,CHOOSE(m_identity,'SHETL (Base)'!Y251, 'SPTL (Base)'!Y251, 'NGET TO (Base)'!Y251),CHOOSE(m_identity,'SHETL (Best)'!Y251, 'SPTL (Best)'!Y251, 'NGET TO (Best)'!Y251)) -> 0 | Z251: =IF(UserInterface!$E$76 = 1,CHOOSE(m_identity,'SHETL (Base)'!Z251, 'SPTL (Base)'!Z251, 'NGET TO (Base)'!Z251),CHOOSE(m_identity,'SHETL (Best)'!Z251, 'SPTL (Best)'!Z251, 'NGET TO (Best)'!Z251)) -> 0 | AA251: =IF(UserInterface!$E$76 = 1,CHOOSE(m_identity,'SHETL (Base)'!AA251, 'SPTL (Base)'!AA251, 'NGET TO (Base)'!AA251),CHOOSE(m_identity,'SHETL (Best)'!AA251, 'SPTL (Best)'!AA251, 'NGET TO (Best)'!AA251)) -> 0 | AB251: =IF(UserInterface!$E$76 = 1,CHOOSE(m_identity,'SHETL (Base)'!AB251, 'SPTL (Base)'!AB251, 'NGET TO (Base)'!AB251),CHOOSE(m_identity,'SHETL (Best)'!AB251, 'SPTL (Best)'!AB251, 'NGET TO (Best)'!AB251)) -> 0 | AC251: =IF(UserInterface!$E$76 = 1,CHOOSE(m_identity,'SHETL (Base)'!AC251, 'SPTL (Base)'!AC251, 'NGET TO (Base)'!AC251),CHOOSE(m_identity,'SHETL (Best)'!AC251, 'SPTL (Best)'!AC251, 'NGET TO (Best)'!AC251)) -> 0 | AD251: =IF(UserInterface!$E$76 = 1,CHOOSE(m_identity,'SHETL (Base)'!AD251, 'SPTL (Base)'!AD251, 'NGET TO (Base)'!AD251),CHOOSE(m_identity,'SHETL (Best)'!AD251, 'SPTL (Best)'!AD251, 'NGET TO (Best)'!AD251)) -> 0 | AE251: =IF(UserInterface!$E$76 = 1,CHOOSE(m_identity,'SHETL (Base)'!AE251, 'SPTL (Base)'!AE251, 'NGET TO (Base)'!AE251),CHOOSE(m_identity,'SHETL (Best)'!AE251, 'SPTL (Best)'!AE251, 'NGET TO (Best)'!AE251)) -> 0
E252: TIRG commissioned in 2011 net additions (after disposals) | G252: £m 09/10 prices | J252: > | Y252: =IF(UserInterface!$E$76 = 1,CHOOSE(m_identity,'SHETL (Base)'!Y252, 'SPTL (Base)'!Y252, 'NGET TO (Base)'!Y252),CHOOSE(m_identity,'SHETL (Best)'!Y252, 'SPTL (Best)'!Y252, 'NGET TO (Best)'!Y252)) -> 0 | Z252: =IF(UserInterface!$E$76 = 1,CHOOSE(m_identity,'SHETL (Base)'!Z252, 'SPTL (Base)'!Z252, 'NGET TO (Base)'!Z252),CHOOSE(m_identity,'SHETL (Best)'!Z252, 'SPTL (Best)'!Z252, 'NGET TO (Best)'!Z252)) -> 0 | AA252: =IF(UserInterface!$E$76 = 1,CHOOSE(m_identity,'SHETL (Base)'!AA252, 'SPTL (Base)'!AA252, 'NGET TO (Base)'!AA252),CHOOSE(m_identity,'SHETL (Best)'!AA252, 'SPTL (Best)'!AA252, 'NGET TO (Best)'!AA252)) -> 1.292553457 | AB252: =IF(UserInterface!$E$76 = 1,CHOOSE(m_identity,'SHETL (Base)'!AB252, 'SPTL (Base)'!AB252, 'NGET TO (Base)'!AB252),CHOOSE(m_identity,'SHETL (Best)'!AB252, 'SPTL (Best)'!AB252, 'NGET TO (Best)'!AB252)) -> 14.98427997 | AC252: =IF(UserInterface!$E$76 = 1,CHOOSE(m_identity,'SHETL (Base)'!AC252, 'SPTL (Base)'!AC252, 'NGET TO (Base)'!AC252),CHOOSE(m_identity,'SHETL (Best)'!AC252, 'SPTL (Best)'!AC252, 'NGET TO (Best)'!AC252)) -> 25.27619353 | AD252: =IF(UserInterface!$E$76 = 1,CHOOSE(m_identity,'SHETL (Base)'!AD252, 'SPTL (Base)'!AD252, 'NGET TO (Base)'!AD252),CHOOSE(m_identity,'SHETL (Best)'!AD252, 'SPTL (Best)'!AD252, 'NGET TO (Best)'!AD252)) -> 42.616 | AE252: =IF(UserInterface!$E$76 = 1,CHOOSE(m_identity,'SHETL (Base)'!AE252, 'SPTL (Base)'!AE252, 'NGET TO (Base)'!AE252),CHOOSE(m_identity,'SHETL (Best)'!AE252, 'SPTL (Best)'!AE252, 'NGET TO (Best)'!AE252)) -> 29.78480318 | AF252: =IF(UserInterface!$E$76 = 1,CHOOSE(m_identity,'SHETL (Base)'!AF252, 'SPTL (Base)'!AF252, 'NGET TO (Base)'!AF252),CHOOSE(m_identity,'SHETL (Best)'!AF252, 'SPTL (Best)'!AF252, 'NGET TO (Best)'!AF252)) -> 8.206421263
E253: TIRG commissioned in 2012 net additions (after disposals) | G253: £m 09/10 prices | J253: > | Y253: =IF(UserInterface!$E$76 = 1,CHOOSE(m_identity,'SHETL (Base)'!Y253, 'SPTL (Base)'!Y253, 'NGET TO (Base)'!Y253),CHOOSE(m_identity,'SHETL (Best)'!Y253, 'SPTL (Best)'!Y253, 'NGET TO (Best)'!Y253)) -> 0 | Z253: =IF(UserInterface!$E$76 = 1,CHOOSE(m_identity,'SHETL (Base)'!Z253, 'SPTL (Base)'!Z253, 'NGET TO (Base)'!Z253),CHOOSE(m_identity,'SHETL (Best)'!Z253, 'SPTL (Best)'!Z253, 'NGET TO (Best)'!Z253)) -> 0 | AA253: =IF(UserInterface!$E$76 = 1,CHOOSE(m_identity,'SHETL (Base)'!AA253, 'SPTL (Base)'!AA253, 'NGET TO (Base)'!AA253),CHOOSE(m_identity,'SHETL (Best)'!AA253, 'SPTL (Best)'!AA253, 'NGET TO (Best)'!AA253)) -> 0 | AB253: =IF(UserInterface!$E$76 = 1,CHOOSE(m_identity,'SHETL (Base)'!AB253, 'SPTL (Base)'!AB253, 'NGET TO (Base)'!AB253),CHOOSE(m_identity,'SHETL (Best)'!AB253, 'SPTL (Best)'!AB253, 'NGET TO (Best)'!AB253)) -> 0 | AC253: =IF(UserInterface!$E$76 = 1,CHOOSE(m_identity,'SHETL (Base)'!AC253, 'SPTL (Base)'!AC253, 'NGET TO (Base)'!AC253),CHOOSE(m_identity,'SHETL (Best)'!AC253, 'SPTL (Best)'!AC253, 'NGET TO (Best)'!AC253)) -> 0 | AD253: =IF(UserInterface!$E$76 = 1,CHOOSE(m_identity,'SHETL (Base)'!AD253, 'SPTL (Base)'!AD253, 'NGET TO (Base)'!AD253),CHOOSE(m_identity,'SHETL (Best)'!AD253, 'SPTL (Best)'!AD253, 'NGET TO (Best)'!AD253)) -> 0 | AE253: =IF(UserInterface!$E$76 = 1,CHOOSE(m_identity,'SHETL (Base)'!AE253, 'SPTL (Base)'!AE253, 'NGET TO (Base)'!AE253),CHOOSE(m_identity,'SHETL (Best)'!AE253, 'SPTL (Best)'!AE253, 'NGET TO (Best)'!AE253)) -> 0 | AF253: =IF(UserInterface!$E$76 = 1,CHOOSE(m_identity,'SHETL (Base)'!AF253, 'SPTL (Base)'!AF253, 'NGET TO (Base)'!AF253),CHOOSE(m_identity,'SHETL (Best)'!AF253, 'SPTL (Best)'!AF253, 'NGET TO (Best)'!AF253)) -> 0 | AG253: =IF(UserInterface!$E$76 = 1,CHOOSE(m_identity,'SHETL (Base)'!AG253, 'SPTL (Base)'!AG253, 'NGET TO (Base)'!AG253),CHOOSE(m_identity,'SHETL (Best)'!AG253, 'SPTL (Best)'!AG253, 'NGET TO (Best)'!AG253)) -> 0
E254: TIRG commissioned in 2013 net additions (after disposals) | G254: £m 09/10 prices | J254: > | Y254: =IF(UserInterface!$E$76 = 1,CHOOSE(m_identity,'SHETL (Base)'!Y254, 'SPTL (Base)'!Y254, 'NGET TO (Base)'!Y254),CHOOSE(m_identity,'SHETL (Best)'!Y254, 'SPTL (Best)'!Y254, 'NGET TO (Best)'!Y254)) -> 0 | Z254: =IF(UserInterface!$E$76 = 1,CHOOSE(m_identity,'SHETL (Base)'!Z254, 'SPTL (Base)'!Z254, 'NGET TO (Base)'!Z254),CHOOSE(m_identity,'SHETL (Best)'!Z254, 'SPTL (Best)'!Z254, 'NGET TO (Best)'!Z254)) -> 0 | AA254: =IF(UserInterface!$E$76 = 1,CHOOSE(m_identity,'SHETL (Base)'!AA254, 'SPTL (Base)'!AA254, 'NGET TO (Base)'!AA254),CHOOSE(m_identity,'SHETL (Best)'!AA254, 'SPTL (Best)'!AA254, 'NGET TO (Best)'!AA254)) -> 0 | AB254: =IF(UserInterface!$E$76 = 1,CHOOSE(m_identity,'SHETL (Base)'!AB254, 'SPTL (Base)'!AB254, 'NGET TO (Base)'!AB254),CHOOSE(m_identity,'SHETL (Best)'!AB254, 'SPTL (Best)'!AB254, 'NGET TO (Best)'!AB254)) -> 0 | AC254: =IF(UserInterface!$E$76 = 1,CHOOSE(m_identity,'SHETL (Base)'!AC254, 'SPTL (Base)'!AC254, 'NGET TO (Base)'!AC254),CHOOSE(m_identity,'SHETL (Best)'!AC254, 'SPTL (Best)'!AC254, 'NGET TO (Best)'!AC254)) -> 0 | AD254: =IF(UserInterface!$E$76 = 1,CHOOSE(m_identity,'SHETL (Base)'!AD254, 'SPTL (Base)'!AD254, 'NGET TO (Base)'!AD254),CHOOSE(m_identity,'SHETL (Best)'!AD254, 'SPTL (Best)'!AD254, 'NGET TO (Best)'!AD254)) -> 0 | AE254: =IF(UserInterface!$E$76 = 1,CHOOSE(m_identity,'SHETL (Base)'!AE254, 'SPTL (Base)'!AE254, 'NGET TO (Base)'!AE254),CHOOSE(m_identity,'SHETL (Best)'!AE254, 'SPTL (Best)'!AE254, 'NGET TO (Best)'!AE254)) -> 0 | AF254: =IF(UserInterface!$E$76 = 1,CHOOSE(m_identity,'SHETL (Base)'!AF254, 'SPTL (Base)'!AF254, 'NGET TO (Base)'!AF254),CHOOSE(m_identity,'SHETL (Best)'!AF254, 'SPTL (Best)'!AF254, 'NGET TO (Best)'!AF254)) -> 0 | AG254: =IF(UserInterface!$E$76 = 1,CHOOSE(m_identity,'SHETL (Base)'!AG254, 'SPTL (Base)'!AG254, 'NGET TO (Base)'!AG254),CHOOSE(m_identity,'SHETL (Best)'!AG254, 'SPTL (Best)'!AG254, 'NGET TO (Best)'!AG254)) -> 0 | AH254: =IF(UserInterface!$E$76 = 1,CHOOSE(m_identity,'SHETL (Base)'!AH254, 'SPTL (Base)'!AH254, 'NGET TO (Base)'!AH254),CHOOSE(m_identity,'SHETL (Best)'!AH254, 'SPTL (Best)'!AH254, 'NGET TO (Best)'!AH254)) -> 0
E255: TIRG commissioned in 2014 net additions (after disposals) | G255: £m 09/10 prices | J255: > | Y255: =IF(UserInterface!$E$76 = 1,CHOOSE(m_identity,'SHETL (Base)'!Y255, 'SPTL (Base)'!Y255, 'NGET TO (Base)'!Y255),CHOOSE(m_identity,'SHETL (Best)'!Y255, 'SPTL (Best)'!Y255, 'NGET TO (Best)'!Y255)) -> 0 | Z255: =IF(UserInterface!$E$76 = 1,CHOOSE(m_identity,'SHETL (Base)'!Z255, 'SPTL (Base)'!Z255, 'NGET TO (Base)'!Z255),CHOOSE(m_identity,'SHETL (Best)'!Z255, 'SPTL (Best)'!Z255, 'NGET TO (Best)'!Z255)) -> 0 | AA255: =IF(UserInterface!$E$76 = 1,CHOOSE(m_identity,'SHETL (Base)'!AA255, 'SPTL (Base)'!AA255, 'NGET TO (Base)'!AA255),CHOOSE(m_identity,'SHETL (Best)'!AA255, 'SPTL (Best)'!AA255, 'NGET TO (Best)'!AA255)) -> 0 | AB255: =IF(UserInterface!$E$76 = 1,CHOOSE(m_identity,'SHETL (Base)'!AB255, 'SPTL (Base)'!AB255, 'NGET TO (Base)'!AB255),CHOOSE(m_identity,'SHETL (Best)'!AB255, 'SPTL (Best)'!AB255, 'NGET TO (Best)'!AB255)) -> 0 | AC255: =IF(UserInterface!$E$76 = 1,CHOOSE(m_identity,'SHETL (Base)'!AC255, 'SPTL (Base)'!AC255, 'NGET TO (Base)'!AC255),CHOOSE(m_identity,'SHETL (Best)'!AC255, 'SPTL (Best)'!AC255, 'NGET TO (Best)'!AC255)) -> 0 | AD255: =IF(UserInterface!$E$76 = 1,CHOOSE(m_identity,'SHETL (Base)'!AD255, 'SPTL (Base)'!AD255, 'NGET TO (Base)'!AD255),CHOOSE(m_identity,'SHETL (Best)'!AD255, 'SPTL (Best)'!AD255, 'NGET TO (Best)'!AD255)) -> 0 | AE255: =IF(UserInterface!$E$76 = 1,CHOOSE(m_identity,'SHETL (Base)'!AE255, 'SPTL (Base)'!AE255, 'NGET TO (Base)'!AE255),CHOOSE(m_identity,'SHETL (Best)'!AE255, 'SPTL (Best)'!AE255, 'NGET TO (Best)'!AE255)) -> 0 | AF255: =IF(UserInterface!$E$76 = 1,CHOOSE(m_identity,'SHETL (Base)'!AF255, 'SPTL (Base)'!AF255, 'NGET TO (Base)'!AF255),CHOOSE(m_identity,'SHETL (Best)'!AF255, 'SPTL (Best)'!AF255, 'NGET TO (Best)'!AF255)) -> 0 | AG255: =IF(UserInterface!$E$76 = 1,CHOOSE(m_identity,'SHETL (Base)'!AG255, 'SPTL (Base)'!AG255, 'NGET TO (Base)'!AG255),CHOOSE(m_identity,'SHETL (Best)'!AG255, 'SPTL (Best)'!AG255, 'NGET TO (Best)'!AG255)) -> 0 | AH255: =IF(UserInterface!$E$76 = 1,CHOOSE(m_identity,'SHETL (Base)'!AH255, 'SPTL (Base)'!AH255, 'NGET TO (Base)'!AH255),CHOOSE(m_identity,'SHETL (Best)'!AH255, 'SPTL (Best)'!AH255, 'NGET TO (Best)'!AH255)) -> 0 | AI255: =IF(UserInterface!$E$76 = 1,CHOOSE(m_identity,'SHETL (Base)'!AI255, 'SPTL (Base)'!AI255, 'NGET TO (Base)'!AI255),CHOOSE(m_identity,'SHETL (Best)'!AI255, 'SPTL (Best)'!AI255, 'NGET TO (Best)'!AI255)) -> 0
E256: TIRG commissioned in 2015 net additions (after disposals) | G256: £m 09/10 prices | J256: > | Y256: =IF(UserInterface!$E$76 = 1,CHOOSE(m_identity,'SHETL (Base)'!Y256, 'SPTL (Base)'!Y256, 'NGET TO (Base)'!Y256),CHOOSE(m_identity,'SHETL (Best)'!Y256, 'SPTL (Best)'!Y256, 'NGET TO (Best)'!Y256)) -> 0 | Z256: =IF(UserInterface!$E$76 = 1,CHOOSE(m_identity,'SHETL (Base)'!Z256, 'SPTL (Base)'!Z256, 'NGET TO (Base)'!Z256),CHOOSE(m_identity,'SHETL (Best)'!Z256, 'SPTL (Best)'!Z256, 'NGET TO (Best)'!Z256)) -> 0 | AA256: =IF(UserInterface!$E$76 = 1,CHOOSE(m_identity,'SHETL (Base)'!AA256, 'SPTL (Base)'!AA256, 'NGET TO (Base)'!AA256),CHOOSE(m_identity,'SHETL (Best)'!AA256, 'SPTL (Best)'!AA256, 'NGET TO (Best)'!AA256)) -> 0 | AB256: =IF(UserInterface!$E$76 = 1,CHOOSE(m_identity,'SHETL (Base)'!AB256, 'SPTL (Base)'!AB256, 'NGET TO (Base)'!AB256),CHOOSE(m_identity,'SHETL (Best)'!AB256, 'SPTL (Best)'!AB256, 'NGET TO (Best)'!AB256)) -> 0 | AC256: =IF(UserInterface!$E$76 = 1,CHOOSE(m_identity,'SHETL (Base)'!AC256, 'SPTL (Base)'!AC256, 'NGET TO (Base)'!AC256),CHOOSE(m_identity,'SHETL (Best)'!AC256, 'SPTL (Best)'!AC256, 'NGET TO (Best)'!AC256)) -> 0 | AD256: =IF(UserInterface!$E$76 = 1,CHOOSE(m_identity,'SHETL (Base)'!AD256, 'SPTL (Base)'!AD256, 'NGET TO (Base)'!AD256),CHOOSE(m_identity,'SHETL (Best)'!AD256, 'SPTL (Best)'!AD256, 'NGET TO (Best)'!AD256)) -> 0 | AE256: =IF(UserInterface!$E$76 = 1,CHOOSE(m_identity,'SHETL (Base)'!AE256, 'SPTL (Base)'!AE256, 'NGET TO (Base)'!AE256),CHOOSE(m_identity,'SHETL (Best)'!AE256, 'SPTL (Best)'!AE256, 'NGET TO (Best)'!AE256)) -> 0 | AF256: =IF(UserInterface!$E$76 = 1,CHOOSE(m_identity,'SHETL (Base)'!AF256, 'SPTL (Base)'!AF256, 'NGET TO (Base)'!AF256),CHOOSE(m_identity,'SHETL (Best)'!AF256, 'SPTL (Best)'!AF256, 'NGET TO (Best)'!AF256)) -> 0 | AG256: =IF(UserInterface!$E$76 = 1,CHOOSE(m_identity,'SHETL (Base)'!AG256, 'SPTL (Base)'!AG256, 'NGET TO (Base)'!AG256),CHOOSE(m_identity,'SHETL (Best)'!AG256, 'SPTL (Best)'!AG256, 'NGET TO (Best)'!AG256)) -> 0 | AH256: =IF(UserInterface!$E$76 = 1,CHOOSE(m_identity,'SHETL (Base)'!AH256, 'SPTL (Base)'!AH256, 'NGET TO (Base)'!AH256),CHOOSE(m_identity,'SHETL (Best)'!AH256, 'SPTL (Best)'!AH256, 'NGET TO (Best)'!AH256)) -> 0 | AI256: =IF(UserInterface!$E$76 = 1,CHOOSE(m_identity,'SHETL (Base)'!AI256, 'SPTL (Base)'!AI256, 'NGET TO (Base)'!AI256),CHOOSE(m_identity,'SHETL (Best)'!AI256, 'SPTL (Best)'!AI256, 'NGET TO (Best)'!AI256)) -> 0 | AJ256: =IF(UserInterface!$E$76 = 1,CHOOSE(m_identity,'SHETL (Base)'!AJ256, 'SPTL (Base)'!AJ256, 'NGET TO (Base)'!AJ256),CHOOSE(m_identity,'SHETL (Best)'!AJ256, 'SPTL (Best)'!AJ256, 'NGET TO (Best)'!AJ256)) -> 0
E257: TIRG commissioned in 2016 net additions (after disposals) | G257: £m 09/10 prices | J257: > | Y257: =IF(UserInterface!$E$76 = 1,CHOOSE(m_identity,'SHETL (Base)'!Y257, 'SPTL (Base)'!Y257, 'NGET TO (Base)'!Y257),CHOOSE(m_identity,'SHETL (Best)'!Y257, 'SPTL (Best)'!Y257, 'NGET TO (Best)'!Y257)) -> 0 | Z257: =IF(UserInterface!$E$76 = 1,CHOOSE(m_identity,'SHETL (Base)'!Z257, 'SPTL (Base)'!Z257, 'NGET TO (Base)'!Z257),CHOOSE(m_identity,'SHETL (Best)'!Z257, 'SPTL (Best)'!Z257, 'NGET TO (Best)'!Z257)) -> 0 | AA257: =IF(UserInterface!$E$76 = 1,CHOOSE(m_identity,'SHETL (Base)'!AA257, 'SPTL (Base)'!AA257, 'NGET TO (Base)'!AA257),CHOOSE(m_identity,'SHETL (Best)'!AA257, 'SPTL (Best)'!AA257, 'NGET TO (Best)'!AA257)) -> 0 | AB257: =IF(UserInterface!$E$76 = 1,CHOOSE(m_identity,'SHETL (Base)'!AB257, 'SPTL (Base)'!AB257, 'NGET TO (Base)'!AB257),CHOOSE(m_identity,'SHETL (Best)'!AB257, 'SPTL (Best)'!AB257, 'NGET TO (Best)'!AB257)) -> 0 | AC257: =IF(UserInterface!$E$76 = 1,CHOOSE(m_identity,'SHETL (Base)'!AC257, 'SPTL (Base)'!AC257, 'NGET TO (Base)'!AC257),CHOOSE(m_identity,'SHETL (Best)'!AC257, 'SPTL (Best)'!AC257, 'NGET TO (Best)'!AC257)) -> 0 | AD257: =IF(UserInterface!$E$76 = 1,CHOOSE(m_identity,'SHETL (Base)'!AD257, 'SPTL (Base)'!AD257, 'NGET TO (Base)'!AD257),CHOOSE(m_identity,'SHETL (Best)'!AD257, 'SPTL (Best)'!AD257, 'NGET TO (Best)'!AD257)) -> 0 | AE257: =IF(UserInterface!$E$76 = 1,CHOOSE(m_identity,'SHETL (Base)'!AE257, 'SPTL (Base)'!AE257, 'NGET TO (Base)'!AE257),CHOOSE(m_identity,'SHETL (Best)'!AE257, 'SPTL (Best)'!AE257, 'NGET TO (Best)'!AE257)) -> 0 | AF257: =IF(UserInterface!$E$76 = 1,CHOOSE(m_identity,'SHETL (Base)'!AF257, 'SPTL (Base)'!AF257, 'NGET TO (Base)'!AF257),CHOOSE(m_identity,'SHETL (Best)'!AF257, 'SPTL (Best)'!AF257, 'NGET TO (Best)'!AF257)) -> 0 | AG257: =IF(UserInterface!$E$76 = 1,CHOOSE(m_identity,'SHETL (Base)'!AG257, 'SPTL (Base)'!AG257, 'NGET TO (Base)'!AG257),CHOOSE(m_identity,'SHETL (Best)'!AG257, 'SPTL (Best)'!AG257, 'NGET TO (Best)'!AG257)) -> 0 | AH257: =IF(UserInterface!$E$76 = 1,CHOOSE(m_identity,'SHETL (Base)'!AH257, 'SPTL (Base)'!AH257, 'NGET TO (Base)'!AH257),CHOOSE(m_identity,'SHETL (Best)'!AH257, 'SPTL (Best)'!AH257, 'NGET TO (Best)'!AH257)) -> 0 | AI257: =IF(UserInterface!$E$76 = 1,CHOOSE(m_identity,'SHETL (Base)'!AI257, 'SPTL (Base)'!AI257, 'NGET TO (Base)'!AI257),CHOOSE(m_identity,'SHETL (Best)'!AI257, 'SPTL (Best)'!AI257, 'NGET TO (Best)'!AI257)) -> 0 | AJ257: =IF(UserInterface!$E$76 = 1,CHOOSE(m_identity,'SHETL (Base)'!AJ257, 'SPTL (Base)'!AJ257, 'NGET TO (Base)'!AJ257),CHOOSE(m_identity,'SHETL (Best)'!AJ257, 'SPTL (Best)'!AJ257, 'NGET TO (Best)'!AJ257)) -> 0 | AK257: =IF(UserInterface!$E$76 = 1,CHOOSE(m_identity,'SHETL (Base)'!AK257, 'SPTL (Base)'!AK257, 'NGET TO (Base)'!AK257),CHOOSE(m_identity,'SHETL (Best)'!AK257, 'SPTL (Best)'!AK257, 'NGET TO (Best)'!AK257)) -> 0
E258: TIRG commissioned in 2017 net additions (after disposals) | G258: £m 09/10 prices | J258: > | Y258: =IF(UserInterface!$E$76 = 1,CHOOSE(m_identity,'SHETL (Base)'!Y258, 'SPTL (Base)'!Y258, 'NGET TO (Base)'!Y258),CHOOSE(m_identity,'SHETL (Best)'!Y258, 'SPTL (Best)'!Y258, 'NGET TO (Best)'!Y258)) -> 0 | Z258: =IF(UserInterface!$E$76 = 1,CHOOSE(m_identity,'SHETL (Base)'!Z258, 'SPTL (Base)'!Z258, 'NGET TO (Base)'!Z258),CHOOSE(m_identity,'SHETL (Best)'!Z258, 'SPTL (Best)'!Z258, 'NGET TO (Best)'!Z258)) -> 0 | AA258: =IF(UserInterface!$E$76 = 1,CHOOSE(m_identity,'SHETL (Base)'!AA258, 'SPTL (Base)'!AA258, 'NGET TO (Base)'!AA258),CHOOSE(m_identity,'SHETL (Best)'!AA258, 'SPTL (Best)'!AA258, 'NGET TO (Best)'!AA258)) -> 0 | AB258: =IF(UserInterface!$E$76 = 1,CHOOSE(m_identity,'SHETL (Base)'!AB258, 'SPTL (Base)'!AB258, 'NGET TO (Base)'!AB258),CHOOSE(m_identity,'SHETL (Best)'!AB258, 'SPTL (Best)'!AB258, 'NGET TO (Best)'!AB258)) -> 0 | AC258: =IF(UserInterface!$E$76 = 1,CHOOSE(m_identity,'SHETL (Base)'!AC258, 'SPTL (Base)'!AC258, 'NGET TO (Base)'!AC258),CHOOSE(m_identity,'SHETL (Best)'!AC258, 'SPTL (Best)'!AC258, 'NGET TO (Best)'!AC258)) -> 0 | AD258: =IF(UserInterface!$E$76 = 1,CHOOSE(m_identity,'SHETL (Base)'!AD258, 'SPTL (Base)'!AD258, 'NGET TO (Base)'!AD258),CHOOSE(m_identity,'SHETL (Best)'!AD258, 'SPTL (Best)'!AD258, 'NGET TO (Best)'!AD258)) -> 0 | AE258: =IF(UserInterface!$E$76 = 1,CHOOSE(m_identity,'SHETL (Base)'!AE258, 'SPTL (Base)'!AE258, 'NGET TO (Base)'!AE258),CHOOSE(m_identity,'SHETL (Best)'!AE258, 'SPTL (Best)'!AE258, 'NGET TO (Best)'!AE258)) -> 0 | AF258: =IF(UserInterface!$E$76 = 1,CHOOSE(m_identity,'SHETL (Base)'!AF258, 'SPTL (Base)'!AF258, 'NGET TO (Base)'!AF258),CHOOSE(m_identity,'SHETL (Best)'!AF258, 'SPTL (Best)'!AF258, 'NGET TO (Best)'!AF258)) -> 0 | AG258: =IF(UserInterface!$E$76 = 1,CHOOSE(m_identity,'SHETL (Base)'!AG258, 'SPTL (Base)'!AG258, 'NGET TO (Base)'!AG258),CHOOSE(m_identity,'SHETL (Best)'!AG258, 'SPTL (Best)'!AG258, 'NGET TO (Best)'!AG258)) -> 0 | AH258: =IF(UserInterface!$E$76 = 1,CHOOSE(m_identity,'SHETL (Base)'!AH258, 'SPTL (Base)'!AH258, 'NGET TO (Base)'!AH258),CHOOSE(m_identity,'SHETL (Best)'!AH258, 'SPTL (Best)'!AH258, 'NGET TO (Best)'!AH258)) -> 0 | AI258: =IF(UserInterface!$E$76 = 1,CHOOSE(m_identity,'SHETL (Base)'!AI258, 'SPTL (Base)'!AI258, 'NGET TO (Base)'!AI258),CHOOSE(m_identity,'SHETL (Best)'!AI258, 'SPTL (Best)'!AI258, 'NGET TO (Best)'!AI258)) -> 0 | AJ258: =IF(UserInterface!$E$76 = 1,CHOOSE(m_identity,'SHETL (Base)'!AJ258, 'SPTL (Base)'!AJ258, 'NGET TO (Base)'!AJ258),CHOOSE(m_identity,'SHETL (Best)'!AJ258, 'SPTL (Best)'!AJ258, 'NGET TO (Best)'!AJ258)) -> 0 | AK258: =IF(UserInterface!$E$76 = 1,CHOOSE(m_identity,'SHETL (Base)'!AK258, 'SPTL (Base)'!AK258, 'NGET TO (Base)'!AK258),CHOOSE(m_identity,'SHETL (Best)'!AK258, 'SPTL (Best)'!AK258, 'NGET TO (Best)'!AK258)) -> 0 | AL258: =IF(UserInterface!$E$76 = 1,CHOOSE(m_identity,'SHETL (Base)'!AL258, 'SPTL (Base)'!AL258, 'NGET TO (Base)'!AL258),CHOOSE(m_identity,'SHETL (Best)'!AL258, 'SPTL (Best)'!AL258, 'NGET TO (Best)'!AL258)) -> 0
E260: TIRG commissioned in 2010 deemed depreciation | G260: £m 09/10 prices | J260: > | Y260: =IF(UserInterface!$E$76 = 1,CHOOSE(m_identity,'SHETL (Base)'!Y260, 'SPTL (Base)'!Y260, 'NGET TO (Base)'!Y260),CHOOSE(m_identity,'SHETL (Best)'!Y260, 'SPTL (Best)'!Y260, 'NGET TO (Best)'!Y260)) -> 0 | Z260: =IF(UserInterface!$E$76 = 1,CHOOSE(m_identity,'SHETL (Base)'!Z260, 'SPTL (Base)'!Z260, 'NGET TO (Base)'!Z260),CHOOSE(m_identity,'SHETL (Best)'!Z260, 'SPTL (Best)'!Z260, 'NGET TO (Best)'!Z260)) -> 0 | AA260: =IF(UserInterface!$E$76 = 1,CHOOSE(m_identity,'SHETL (Base)'!AA260, 'SPTL (Base)'!AA260, 'NGET TO (Base)'!AA260),CHOOSE(m_identity,'SHETL (Best)'!AA260, 'SPTL (Best)'!AA260, 'NGET TO (Best)'!AA260)) -> 0 | AB260: =IF(UserInterface!$E$76 = 1,CHOOSE(m_identity,'SHETL (Base)'!AB260, 'SPTL (Base)'!AB260, 'NGET TO (Base)'!AB260),CHOOSE(m_identity,'SHETL (Best)'!AB260, 'SPTL (Best)'!AB260, 'NGET TO (Best)'!AB260)) -> 0 | AC260: =IF(UserInterface!$E$76 = 1,CHOOSE(m_identity,'SHETL (Base)'!AC260, 'SPTL (Base)'!AC260, 'NGET TO (Base)'!AC260),CHOOSE(m_identity,'SHETL (Best)'!AC260, 'SPTL (Best)'!AC260, 'NGET TO (Best)'!AC260)) -> 0 | AD260: =IF(UserInterface!$E$76 = 1,CHOOSE(m_identity,'SHETL (Base)'!AD260, 'SPTL (Base)'!AD260, 'NGET TO (Base)'!AD260),CHOOSE(m_identity,'SHETL (Best)'!AD260, 'SPTL (Best)'!AD260, 'NGET TO (Best)'!AD260)) -> 0 | AE260: =IF(UserInterface!$E$76 = 1,CHOOSE(m_identity,'SHETL (Base)'!AE260, 'SPTL (Base)'!AE260, 'NGET TO (Base)'!AE260),CHOOSE(m_identity,'SHETL (Best)'!AE260, 'SPTL (Best)'!AE260, 'NGET TO (Best)'!AE260)) -> 0 | AF260: =IF(UserInterface!$E$76 = 1,CHOOSE(m_identity,'SHETL (Base)'!AF260, 'SPTL (Base)'!AF260, 'NGET TO (Base)'!AF260),CHOOSE(m_identity,'SHETL (Best)'!AF260, 'SPTL (Best)'!AF260, 'NGET TO (Best)'!AF260)) -> 0 | AG260: =IF(UserInterface!$E$76 = 1,CHOOSE(m_identity,'SHETL (Base)'!AG260, 'SPTL (Base)'!AG260, 'NGET TO (Base)'!AG260),CHOOSE(m_identity,'SHETL (Best)'!AG260, 'SPTL (Best)'!AG260, 'NGET TO (Best)'!AG260)) -> 0 | AH260: =IF(UserInterface!$E$76 = 1,CHOOSE(m_identity,'SHETL (Base)'!AH260, 'SPTL (Base)'!AH260, 'NGET TO (Base)'!AH260),CHOOSE(m_identity,'SHETL (Best)'!AH260, 'SPTL (Best)'!AH260, 'NGET TO (Best)'!AH260)) -> 0 | AI260: =IF(UserInterface!$E$76 = 1,CHOOSE(m_identity,'SHETL (Base)'!AI260, 'SPTL (Base)'!AI260, 'NGET TO (Base)'!AI260),CHOOSE(m_identity,'SHETL (Best)'!AI260, 'SPTL (Best)'!AI260, 'NGET TO (Best)'!AI260)) -> 0
E261: TIRG commissioned in 2011 deemed depreciation | G261: £m 09/10 prices | J261: > | Y261: =IF(UserInterface!$E$76 = 1,CHOOSE(m_identity,'SHETL (Base)'!Y261, 'SPTL (Base)'!Y261, 'NGET TO (Base)'!Y261),CHOOSE(m_identity,'SHETL (Best)'!Y261, 'SPTL (Best)'!Y261, 'NGET TO (Best)'!Y261)) -> 0.02293560103 | Z261: =IF(UserInterface!$E$76 = 1,CHOOSE(m_identity,'SHETL (Base)'!Z261, 'SPTL (Base)'!Z261, 'NGET TO (Base)'!Z261),CHOOSE(m_identity,'SHETL (Best)'!Z261, 'SPTL (Best)'!Z261, 'NGET TO (Best)'!Z261)) -> 0 | AA261: =IF(UserInterface!$E$76 = 1,CHOOSE(m_identity,'SHETL (Base)'!AA261, 'SPTL (Base)'!AA261, 'NGET TO (Base)'!AA261),CHOOSE(m_identity,'SHETL (Best)'!AA261, 'SPTL (Best)'!AA261, 'NGET TO (Best)'!AA261)) -> 0 | AB261: =IF(UserInterface!$E$76 = 1,CHOOSE(m_identity,'SHETL (Base)'!AB261, 'SPTL (Base)'!AB261, 'NGET TO (Base)'!AB261),CHOOSE(m_identity,'SHETL (Best)'!AB261, 'SPTL (Best)'!AB261, 'NGET TO (Best)'!AB261)) -> 0.693 | AC261: =IF(UserInterface!$E$76 = 1,CHOOSE(m_identity,'SHETL (Base)'!AC261, 'SPTL (Base)'!AC261, 'NGET TO (Base)'!AC261),CHOOSE(m_identity,'SHETL (Best)'!AC261, 'SPTL (Best)'!AC261, 'NGET TO (Best)'!AC261)) -> 2.18 | AD261: =IF(UserInterface!$E$76 = 1,CHOOSE(m_identity,'SHETL (Base)'!AD261, 'SPTL (Base)'!AD261, 'NGET TO (Base)'!AD261),CHOOSE(m_identity,'SHETL (Best)'!AD261, 'SPTL (Best)'!AD261, 'NGET TO (Best)'!AD261)) -> 4.074 | AE261: =IF(UserInterface!$E$76 = 1,CHOOSE(m_identity,'SHETL (Base)'!AE261, 'SPTL (Base)'!AE261, 'NGET TO (Base)'!AE261),CHOOSE(m_identity,'SHETL (Best)'!AE261, 'SPTL (Best)'!AE261, 'NGET TO (Best)'!AE261)) -> 5.204 | AF261: =IF(UserInterface!$E$76 = 1,CHOOSE(m_identity,'SHETL (Base)'!AF261, 'SPTL (Base)'!AF261, 'NGET TO (Base)'!AF261),CHOOSE(m_identity,'SHETL (Best)'!AF261, 'SPTL (Best)'!AF261, 'NGET TO (Best)'!AF261)) -> 5.111930328 | AG261: =IF(UserInterface!$E$76 = 1,CHOOSE(m_identity,'SHETL (Base)'!AG261, 'SPTL (Base)'!AG261, 'NGET TO (Base)'!AG261),CHOOSE(m_identity,'SHETL (Best)'!AG261, 'SPTL (Best)'!AG261, 'NGET TO (Best)'!AG261)) -> 5.111930328 | AH261: =IF(UserInterface!$E$76 = 1,CHOOSE(m_identity,'SHETL (Base)'!AH261, 'SPTL (Base)'!AH261, 'NGET TO (Base)'!AH261),CHOOSE(m_identity,'SHETL (Best)'!AH261, 'SPTL (Best)'!AH261, 'NGET TO (Best)'!AH261)) -> 5.111930328 | AI261: =IF(UserInterface!$E$76 = 1,CHOOSE(m_identity,'SHETL (Base)'!AI261, 'SPTL (Base)'!AI261, 'NGET TO (Base)'!AI261),CHOOSE(m_identity,'SHETL (Best)'!AI261, 'SPTL (Best)'!AI261, 'NGET TO (Best)'!AI261)) -> 6.130948171 | AJ261: =IF(UserInterface!$E$76 = 1,CHOOSE(m_identity,'SHETL (Base)'!AJ261, 'SPTL (Base)'!AJ261, 'NGET TO (Base)'!AJ261),CHOOSE(m_identity,'SHETL (Best)'!AJ261, 'SPTL (Best)'!AJ261, 'NGET TO (Best)'!AJ261)) -> 6.130948171
E262: TIRG commissioned in 2012 deemed depreciation | G262: £m 09/10 prices | J262: > | Y262: =IF(UserInterface!$E$76 = 1,CHOOSE(m_identity,'SHETL (Base)'!Y262, 'SPTL (Base)'!Y262, 'NGET TO (Base)'!Y262),CHOOSE(m_identity,'SHETL (Best)'!Y262, 'SPTL (Best)'!Y262, 'NGET TO (Best)'!Y262)) -> 0 | Z262: =IF(UserInterface!$E$76 = 1,CHOOSE(m_identity,'SHETL (Base)'!Z262, 'SPTL (Base)'!Z262, 'NGET TO (Base)'!Z262),CHOOSE(m_identity,'SHETL (Best)'!Z262, 'SPTL (Best)'!Z262, 'NGET TO (Best)'!Z262)) -> 0 | AA262: =IF(UserInterface!$E$76 = 1,CHOOSE(m_identity,'SHETL (Base)'!AA262, 'SPTL (Base)'!AA262, 'NGET TO (Base)'!AA262),CHOOSE(m_identity,'SHETL (Best)'!AA262, 'SPTL (Best)'!AA262, 'NGET TO (Best)'!AA262)) -> 0 | AB262: =IF(UserInterface!$E$76 = 1,CHOOSE(m_identity,'SHETL (Base)'!AB262, 'SPTL (Base)'!AB262, 'NGET TO (Base)'!AB262),CHOOSE(m_identity,'SHETL (Best)'!AB262, 'SPTL (Best)'!AB262, 'NGET TO (Best)'!AB262)) -> 0 | AC262: =IF(UserInterface!$E$76 = 1,CHOOSE(m_identity,'SHETL (Base)'!AC262, 'SPTL (Base)'!AC262, 'NGET TO (Base)'!AC262),CHOOSE(m_identity,'SHETL (Best)'!AC262, 'SPTL (Best)'!AC262, 'NGET TO (Best)'!AC262)) -> 0 | AD262: =IF(UserInterface!$E$76 = 1,CHOOSE(m_identity,'SHETL (Base)'!AD262, 'SPTL (Base)'!AD262, 'NGET TO (Base)'!AD262),CHOOSE(m_identity,'SHETL (Best)'!AD262, 'SPTL (Best)'!AD262, 'NGET TO (Best)'!AD262)) -> 0 | AE262: =IF(UserInterface!$E$76 = 1,CHOOSE(m_identity,'SHETL (Base)'!AE262, 'SPTL (Base)'!AE262, 'NGET TO (Base)'!AE262),CHOOSE(m_identity,'SHETL (Best)'!AE262, 'SPTL (Best)'!AE262, 'NGET TO (Best)'!AE262)) -> 0 | AF262: =IF(UserInterface!$E$76 = 1,CHOOSE(m_identity,'SHETL (Base)'!AF262, 'SPTL (Base)'!AF262, 'NGET TO (Base)'!AF262),CHOOSE(m_identity,'SHETL (Best)'!AF262, 'SPTL (Best)'!AF262, 'NGET TO (Best)'!AF262)) -> 0 | AG262: =IF(UserInterface!$E$76 = 1,CHOOSE(m_identity,'SHETL (Base)'!AG262, 'SPTL (Base)'!AG262, 'NGET TO (Base)'!AG262),CHOOSE(m_identity,'SHETL (Best)'!AG262, 'SPTL (Best)'!AG262, 'NGET TO (Best)'!AG262)) -> 0 | AH262: =IF(UserInterface!$E$76 = 1,CHOOSE(m_identity,'SHETL (Base)'!AH262, 'SPTL (Base)'!AH262, 'NGET TO (Base)'!AH262),CHOOSE(m_identity,'SHETL (Best)'!AH262, 'SPTL (Best)'!AH262, 'NGET TO (Best)'!AH262)) -> 0 | AI262: =IF(UserInterface!$E$76 = 1,CHOOSE(m_identity,'SHETL (Base)'!AI262, 'SPTL (Base)'!AI262, 'NGET TO (Base)'!AI262),CHOOSE(m_identity,'SHETL (Best)'!AI262, 'SPTL (Best)'!AI262, 'NGET TO (Best)'!AI262)) -> 0 | AJ262: =IF(UserInterface!$E$76 = 1,CHOOSE(m_identity,'SHETL (Base)'!AJ262, 'SPTL (Base)'!AJ262, 'NGET TO (Base)'!AJ262),CHOOSE(m_identity,'SHETL (Best)'!AJ262, 'SPTL (Best)'!AJ262, 'NGET TO (Best)'!AJ262)) -> 0 | AK262: =IF(UserInterface!$E$76 = 1,CHOOSE(m_identity,'SHETL (Base)'!AK262, 'SPTL (Base)'!AK262, 'NGET TO (Base)'!AK262),CHOOSE(m_identity,'SHETL (Best)'!AK262, 'SPTL (Best)'!AK262, 'NGET TO (Best)'!AK262)) -> 0
... 69 more rows

Sheet Totex
A1: Totex
B2: =UserInterface!G32 -> NGET TO
E3: Parameter | G3: Units | I3: Constant | AH3: Annual values
E4: PCFM year ending | I4: =UserInterface!$G$25 -> 2014-03-31 | K4: 1991-03-31 | L4: 1992-03-31 | M4: 1993-03-31 | N4: 1994-03-31 | O4: 1995-03-31 | P4: 1996-03-31 | Q4: 1997-03-31 | R4: 1998-03-31 | S4: 1999-03-31 | T4: 2000-03-31 | U4: 2001-03-31 | V4: 2002-03-31 | W4: 2003-03-31 | X4: 2004-03-31 | Y4: 2005-03-31 | Z4: 2006-03-31 | AA4: 2007-03-31 | AB4: 2008-03-31 | AC4: 2009-03-31 | AD4: 2010-03-31 | AE4: 2011-03-31 | AF4: 2012-03-31 | AG4: 2013-03-31 | AH4: 2014-03-31 | AI4: 2015-03-31 | AJ4: 2016-03-31 | AK4: 2017-03-31 | AL4: 2018-03-31 | AM4: 2019-03-31 | AN4: 2020-03-31 | AO4: 2021-03-31
B6: Totex
C8: Allowed totex aggregated by sub-category
C9: Note: Totex is the sum of a number of cost categories, with all totex allowances falling under one (or more) of them. They have significance in the model as each sub-category can have its own set of tax pool allocation rules.
D11: Non-variant allowances
D12: Note: These values are set at final proposals and are not updated during the price control
E14: Non-variant allowed load related capex expenditure | G14: £m 09/10 prices | AH14: =Input!AH82 -> 884.3768658 | AI14: =Input!AI82 -> 1029.663391 | AJ14: =Input!AJ82 -> 962.2101749 | AK14: =Input!AK82 -> 876.7216915 | AL14: =Input!AL82 -> 519.2907735 | AM14: =Input!AM82 -> 373.012165 | AN14: =Input!AN82 -> 153.8203129 | AO14: =Input!AO82 -> 61.8214422
E15: Non-variant allowed asset replacement capex expenditure | G15: £m 09/10 prices | AH15: =Input!AH83 -> 468.8084321 | AI15: =Input!AI83 -> 464.0539988 | AJ15: =Input!AJ83 -> 458.9694018 | AK15: =Input!AK83 -> 462.2051567 | AL15: =Input!AL83 -> 597.3961699 | AM15: =Input!AM83 -> 694.9536236 | AN15: =Input!AN83 -> 760.4713341 | AO15: =Input!AO83 -> 680.3753404
E16: Non-variant allowed other capex expenditure | G16: £m 09/10 prices | AH16: =Input!AH84 -> 8.80768 | AI16: =Input!AI84 -> 7.25688 | AJ16: =Input!AJ84 -> 5.941 | AK16: =Input!AK84 -> 8.25228 | AL16: =Input!AL84 -> 7.90532 | AM16: =Input!AM84 -> 10.71164 | AN16: =Input!AN84 -> 10.66964 | AO16: =Input!AO84 -> 11.88064
E17: Non-variant allowed controllable opex | G17: £m 09/10 prices | AH17: =Input!AH85 -> 192.2128263 | AI17: =Input!AI85 -> 196.4120407 | AJ17: =Input!AJ85 -> 203.0471066 | AK17: =Input!AK85 -> 204.3517168 | AL17: =Input!AL85 -> 205.7220397 | AM17: =Input!AM85 -> 206.0644405 | AN17: =Input!AN85 -> 207.83891 | AO17: =Input!AO85 -> 208.2040553
E18: Non-variant allowed non-operational capex | G18: £m 09/10 prices | AH18: =Input!AH86 -> 28.50225287 | AI18: =Input!AI86 -> 27.89321936 | AJ18: =Input!AJ86 -> 20.16289582 | AK18: =Input!AK86 -> 18.68399486 | AL18: =Input!AL86 -> 17.31743474 | AM18: =Input!AM86 -> 10.13227357 | AN18: =Input!AN86 -> 13.10983634 | AO18: =Input!AO86 -> 11.95703552
D20: Variant
D21: Note: Licence conditions may allow for non-baseline allowances to be granted. These are added to the baseline to generate the allowed sub-categories and thereby the overall allowed totex.
E23: Variant allowed load related capex expenditure | G23: =Input!G167 -> £m 09/10 prices | AH23: =Input!AH167 -> 103.8769353 | AI23: =Input!AI167 -> 214.6168617 | AJ23: =Input!AJ167 -> 329.7404129 | AK23: =Input!AK167 -> 383.9883071 | AL23: =Input!AL167 -> 392.4938421 | AM23: =Input!AM167 -> 462.7510193 | AN23: =Input!AN167 -> 319.5576023 | AO23: =Input!AO167 -> 239.5615759
E24: Variant allowed asset replacement capex expenditure | G24: =Input!G168 -> £m 09/10 prices | AH24: =Input!AH168 -> 0 | AI24: =Input!AI168 -> 0 | AJ24: =Input!AJ168 -> 0 | AK24: =Input!AK168 -> 0 | AL24: =Input!AL168 -> 0 | AM24: =Input!AM168 -> 0 | AN24: =Input!AN168 -> 0 | AO24: =Input!AO168 -> 0
E25: Variant allowed other capex expenditure | G25: =Input!G169 -> £m 09/10 prices | AH25: =Input!AH169 -> 4.886213636 | AI25: =Input!AI169 -> 5.53199742 | AJ25: =Input!AJ169 -> 3.179751735 | AK25: =Input!AK169 -> 4.291087592 | AL25: =Input!AL169 -> 1.689670161 | AM25: =Input!AM169 -> 1.70993168 | AN25: =Input!AN169 -> 1.730875798 | AO25: =Input!AO169 -> 1.751999408
E26: Variant allowed controllable opex | G26: =Input!G170 -> £m 09/10 prices | AH26: =Input!AH170 -> 0.9903961516 | AI26: =Input!AI170 -> 1.757493108 | AJ26: =Input!AJ170 -> 3.900788442 | AK26: =Input!AK170 -> 2.892957249 | AL26: =Input!AL170 -> 5.050419435 | AM26: =Input!AM170 -> 5.146447011 | AN26: =Input!AN170 -> 5.224049373 | AO26: =Input!AO170 -> 5.293070056
E27: Variant allowed non-operational capex | G27: =Input!G171 -> £m 09/10 prices | AH27: =Input!AH171 -> 0 | AI27: =Input!AI171 -> 0 | AJ27: =Input!AJ171 -> 0 | AK27: =Input!AK171 -> 0 | AL27: =Input!AL171 -> 0 | AM27: =Input!AM171 -> 0 | AN27: =Input!AN171 -> 0 | AO27: =Input!AO171 -> 0
D29: Allowance
D30: Note: "Allowed totex" is exported to be used in the TIM calculation. The allowed totex sub-categories are used below to create forecast actuals for the tax calculation and the TIM calculation when actuals are not yet available.
E32: Allowed load related capex expenditure | G32: £m 09/10 prices | AH32: =AH14 + AH23 -> 988.2538011 | AI32: 1244.280253 | AJ32: 1291.950588 | AK32: 1260.709999 | AL32: 911.7846156 | AM32: 835.7631843 | AN32: 473.3779152 | AO32: 301.3830181
E33: Allowed asset replacement capex expenditure | G33: £m 09/10 prices | AH33: 468.8084321 | AI33: 464.0539988 | AJ33: 458.9694018 | AK33: 462.2051567 | AL33: 597.3961699 | AM33: 694.9536236 | AN33: 760.4713341 | AO33: 680.3753404
E34: Allowed other capex expenditure | G34: £m 09/10 prices | AH34: 13.69389364 | AI34: 12.78887742 | AJ34: 9.120751735 | AK34: 12.54336759 | AL34: 9.594990161 | AM34: 12.42157168 | AN34: 12.4005158 | AO34: 13.63263941
E35: Allowed controllable opex | G35: £m 09/10 prices | AH35: 193.2032224 | AI35: 198.1695338 | AJ35: 206.947895 | AK35: 207.2446741 | AL35: 210.7724592 | AM35: 211.2108875 | AN35: 213.0629594 | AO35: 213.4971254
E36: Allowed non-operational capex | G36: £m 09/10 prices | AH36: 28.50225287 | AI36: 27.89321936 | AJ36: 20.16289582 | AK36: 18.68399486 | AL36: 17.31743474 | AM36: 10.13227357 | AN36: 13.10983634 | AO36: 11.95703552
E37: Allowed totex | G37: £m 09/10 prices | AH37: =SUM(AH32:AH36) -> 1692.461602 | AI37: 1947.185882 | AJ37: 1987.151532 | AK37: 1961.387192 | AL37: 1746.86567 | AM37: 1764.481541 | AN37: 1472.422561 | AO37: 1220.845159
C39: Actual totex
D41: Source of actuals
D42: Note: The model assumes that there is a time lag from year t until actual expenditure data becomes available for the model. After the lag, actual expenditure inputs are used. Up to that point the model generates a forecast actual expenditure.
D43: When required in the model, forecasts assume that actuals are equal to their corresponding allowance.
D44: In a year where actual totex is assumed to be available, values must be inputted to the model as it will not generate a forecast and the empty input cell will be read as an actual spend of zero.
E46: Years from t until normal reporting of actual costs | G46: years | I46: =Input!I48 -> 2
E47: Input actuals used | G47: text | AH47: =YEAR($I$4) >= YEAR(AH$4) + $I46 -> FALSE | AI47: FALSE | AJ47: FALSE | AK47: FALSE | AL47: FALSE | AM47: FALSE | AN47: FALSE | AO47: FALSE
E48: Forecast actuals generated from allowances | G48: text | AH48: =YEAR($I$4) < YEAR(AH$4) + $I46 -> TRUE | AI48: TRUE | AJ48: TRUE | AK48: TRUE | AL48: TRUE | AM48: TRUE | AN48: TRUE | AO48: TRUE
D50: Actual totex from cost reporting processes and final proposals
E52: Actual load related capex expenditure | G52: £m 09/10 prices | AH52: =IF(AH$47, Input!AH175, 0) -> 0 | AI52: =IF(AI$47, Input!AI175, 0) -> 0 | AJ52: =IF(AJ$47, Input!AJ175, 0) -> 0 | AK52: =IF(AK$47, Input!AK175, 0) -> 0 | AL52: =IF(AL$47, Input!AL175, 0) -> 0 | AM52: =IF(AM$47, Input!AM175, 0) -> 0 | AN52: =IF(AN$47, Input!AN175, 0) -> 0 | AO52: =IF(AO$47, Input!AO175, 0) -> 0
E53: Actual asset replacement capex expenditure | G53: £m 09/10 prices | AH53: =IF(AH$47, Input!AH176, 0) -> 0 | AI53: =IF(AI$47, Input!AI176, 0) -> 0 | AJ53: =IF(AJ$47, Input!AJ176, 0) -> 0 | AK53: =IF(AK$47, Input!AK176, 0) -> 0 | AL53: =IF(AL$47, Input!AL176, 0) -> 0 | AM53: =IF(AM$47, Input!AM176, 0) -> 0 | AN53: =IF(AN$47, Input!AN176, 0) -> 0 | AO53: =IF(AO$47, Input!AO176, 0) -> 0
E54: Actual other capex expenditure | G54: £m 09/10 prices | AH54: =IF(AH$47, Input!AH177, 0) -> 0 | AI54: =IF(AI$47, Input!AI177, 0) -> 0 | AJ54: =IF(AJ$47, Input!AJ177, 0) -> 0 | AK54: =IF(AK$47, Input!AK177, 0) -> 0 | AL54: =IF(AL$47, Input!AL177, 0) -> 0 | AM54: =IF(AM$47, Input!AM177, 0) -> 0 | AN54: =IF(AN$47, Input!AN177, 0) -> 0 | AO54: =IF(AO$47, Input!AO177, 0) -> 0
E55: Actual controllable opex | G55: £m 09/10 prices | AH55: =IF(AH$47, Input!AH178, 0) -> 0 | AI55: =IF(AI$47, Input!AI178, 0) -> 0 | AJ55: =IF(AJ$47, Input!AJ178, 0) -> 0 | AK55: =IF(AK$47, Input!AK178, 0) -> 0 | AL55: =IF(AL$47, Input!AL178, 0) -> 0 | AM55: =IF(AM$47, Input!AM178, 0) -> 0 | AN55: =IF(AN$47, Input!AN178, 0) -> 0 | AO55: =IF(AO$47, Input!AO178, 0) -> 0
E56: Actual non-operational capex | G56: £m 09/10 prices | AH56: =IF(AH$47, Input!AH179, 0) -> 0 | AI56: =IF(AI$47, Input!AI179, 0) -> 0 | AJ56: =IF(AJ$47, Input!AJ179, 0) -> 0 | AK56: =IF(AK$47, Input!AK179, 0) -> 0 | AL56: =IF(AL$47, Input!AL179, 0) -> 0 | AM56: =IF(AM$47, Input!AM179, 0) -> 0 | AN56: =IF(AN$47, Input!AN179, 0) -> 0 | AO56: =IF(AO$47, Input!AO179, 0) -> 0
D58: Forecast totex from new allowances
E60: Forecast actual load related capex expenditure | G60: £m 09/10 prices | AH60: =IF(AH$48, AH32, 0) -> 988.2538011 | AI60: 1244.280253 | AJ60: 1291.950588 | AK60: 1260.709999 | AL60: 911.7846156 | AM60: 835.7631843 | AN60: 473.3779152 | AO60: 301.3830181
E61: Forecast actual asset replacement capex expenditure | G61: £m 09/10 prices | AH61: 468.8084321 | AI61: 464.0539988 | AJ61: 458.9694018 | AK61: 462.2051567 | AL61: 597.3961699 | AM61: 694.9536236 | AN61: 760.4713341 | AO61: 680.3753404
E62: Forecast actual other capex expenditure | G62: £m 09/10 prices | AH62: 13.69389364 | AI62: 12.78887742 | AJ62: 9.120751735 | AK62: 12.54336759 | AL62: 9.594990161 | AM62: 12.42157168 | AN62: 12.4005158 | AO62: 13.63263941
E63: Forecast actual controllable opex | G63: £m 09/10 prices | AH63: 193.2032224 | AI63: 198.1695338 | AJ63: 206.947895 | AK63: 207.2446741 | AL63: 210.7724592 | AM63: 211.2108875 | AN63: 213.0629594 | AO63: 213.4971254
E64: Forecast actual non-operational capex | G64: £m 09/10 prices | AH64: 28.50225287 | AI64: 27.89321936 | AJ64: 20.16289582 | AK64: 18.68399486 | AL64: 17.31743474 | AM64: 10.13227357 | AN64: 13.10983634 | AO64: 11.95703552
D66: Totex applied
D67: Note: Actuals are exported both to identify performance against the allowance and to generate writing down allowances used in the tax calculation.
E69: Actual load related capex expenditure | G69: £m 09/10 prices | AH69: =AH52 + AH60 -> 988.2538011 | AI69: 1244.280253 | AJ69: 1291.950588 | AK69: 1260.709999 | AL69: 911.7846156 | AM69: 835.7631843 | AN69: 473.3779152 | AO69: 301.3830181
E70: Actual asset replacement capex expenditure | G70: £m 09/10 prices | AH70: 468.8084321 | AI70: 464.0539988 | AJ70: 458.9694018 | AK70: 462.2051567 | AL70: 597.3961699 | AM70: 694.9536236 | AN70: 760.4713341 | AO70: 680.3753404
E71: Actual other capex expenditure | G71: £m 09/10 prices | AH71: 13.69389364 | AI71: 12.78887742 | AJ71: 9.120751735 | AK71: 12.54336759 | AL71: 9.594990161 | AM71: 12.42157168 | AN71: 12.4005158 | AO71: 13.63263941
